Workbook

Sheet Start

Sheet A. Allgemeine Informationen
A1: Kostentool_§23_Gas_V5_3_160307
A2: Wirtschaftlichkeitsprüfung_Incremental_Capacities_Gas_V1
B4: A. Allgemeine Informationen
B6: A.1 | C6: Wirtschaftlichkeitsprüfung | D6: Nein
B7: A.2 | C7: Wirtschaftlichkeitsprüfung | D7: =IF(OR(D6="",D6="bitte wählen"),"",IF(D6="Ja","Nein","Ja")) -> Ja
B8: A.1 | C8: Firma des Vorhabenträgers/ Firmen der Vorhabenträger
B9: A.2 | C9: Rechtsform(en) | H9: bitte wählen | I9: AG | J9: eG | K9: Eigenbetrieb | L9: GmbH | M9: GmbH & Co KG | N9: KG | O9: OHG | P9: Regiebetrieb | Q9: Zweckverband | R9: GbR | S9: KGaA | T9: sonstige
B10: A.3 | C10: Betriebsnummer(n) der Bundesnetzagentur
B11: A.4 | C11: Netznummer(n) bei der Bundesnetzagentur
B12: A.5 | C12: Aktenzeichen der Bundesnetzagentur, unter dem das Verfahren geführt wird [BKY-JJ-XXX]
B13: A.6 | C13: Bezeichnung des Projektes
B14: A.7 | C14: Abgabedatum des Berechnungstools
B15: A.8 | C15: Jahr der erstmaligen Aktivierung von Anlagen im Bau innerhalb des Projektes
B16: A.9 | C16: Jahr der erstmaligen Aktivierung eines abschreibungsfähigen Anlagengutes innerhalb des Projektes
B17: A.10 | C17: Jahr der letztmaligen Aktivierung eines abschreibungsfähigen Anlagenguts innerhalb des Projektes
B18: A.15 | C18: Finanzierung
B19: A.11 | C19: Letztes Kalenderjahr, für das Referenzpreise vorliegen
B20: A.12 | C20: Höhe des letzten vorliegenden Referenzpreises in €/kWh/h/a | E20: Erläuterung: Wenn es sich um ein anderes Kapazitätsprodukt
B21: A.13 | C21: Höhe des letzten vorliegenden Referenzpreises in €/kWh/h/a unter Einbeziehung der Kosten für das Vorhaben für neu zu schaffende Kapazität zu aktuellen Preisen | E21: als fFZK handelt, bitte den entprechenden Wert eintragen
B22: A.14 | C22: Jahr der verbindlichen Kapazitätsanfrage (Jahr der Barwertbetrachtung)
B23: A.15 | C23: Jahr der erstmaligen Kapazitätsnutzung
B24: A.16 | C24: Jahr, bis zu dem die Netznutzer im Rahmen des Verfahrens für neu zu schaffende Kapazitäten verbindlich buchen könnnen
B25: A.17 | C25: Anteil der zurückgehaltenen Kapazität (Reservierungsquote)

Sheet B. Parameter
A1: B. Parameter
A3: Allgemeine Angaben
B4: A.4 | C4: A.6a | D4: A.6b | E4: A.6c
A5: Position | B5: aktueller Gewerbesteuer- hebesatz* | C5: Zinssatz für FK | D5: Zinssatz für EK < 40% | E5: WACC/ Zinssatz zum Auf- und Abzinsen | G5: *Bitte bei der Ermittlung des Gewerbesteuerhebesatzes für zukünftige Jahre auf den Durchschnitt der letzten zehn Jahre abstellen.
A6: Einheit | B6: % | C6: % | D6: % | E6: %
A7: Quelle | B7: Gewerbesteuer-bescheid | C7: pauschal | D7: pauchal | E7: pauschal
A8: 2019 | B8: 4 | C8: ='B.1 Referenzwerte Fremdkapital'!C5 -> 0.0264325 | D8: 0.0691 | E8: =0.4*D8+(0.6*C8) -> 0.0434995
A9: =A8+1 -> 2020 | B9: 4 | C9: ='B.1 Referenzwerte Fremdkapital'!C6 -> 0.0264325 | D9: 0.0691 | E9: =0.4*D9+(0.6*C9) -> 0.0434995
A10: =A9+1 -> 2021 | B10: 4 | C10: ='B.1 Referenzwerte Fremdkapital'!C7 -> 0.0264325 | D10: 0.0691 | E10: 0.0434995
A11: 2022 | B11: 4 | C11: ='B.1 Referenzwerte Fremdkapital'!C8 -> 0.0264325 | D11: 0.0691 | E11: 0.0434995
A12: 2023 | B12: 4 | C12: ='B.1 Referenzwerte Fremdkapital'!C9 -> 0.0264325 | D12: 0.0691 | E12: 0.0434995
A13: 2024 | B13: 4 | C13: ='B.1 Referenzwerte Fremdkapital'!C10 -> 0.0264325 | D13: 0.0691 | E13: 0.0434995
A14: 2025 | B14: 4 | C14: ='B.1 Referenzwerte Fremdkapital'!C11 -> 0.0264325 | D14: 0.0691 | E14: 0.0434995
A15: 2026 | B15: 4 | C15: ='B.1 Referenzwerte Fremdkapital'!C12 -> 0.0264325 | D15: 0.0691 | E15: 0.0434995
A16: 2027 | B16: 4 | C16: ='B.1 Referenzwerte Fremdkapital'!C13 -> 0.0264325 | D16: 0.0691 | E16: 0.0434995
A17: 2028 | B17: 4 | C17: ='B.1 Referenzwerte Fremdkapital'!C14 -> 0.0264325 | D17: 0.0691 | E17: 0.0434995
A18: 2029 | B18: 4 | C18: ='B.1 Referenzwerte Fremdkapital'!C15 -> 0.0264325 | D18: 0.0691 | E18: 0.0434995
A19: 2030 | B19: 4 | C19: ='B.1 Referenzwerte Fremdkapital'!C16 -> 0.0264325 | D19: 0.0691 | E19: 0.0434995
A20: 2031 | B20: 4 | C20: ='B.1 Referenzwerte Fremdkapital'!C17 -> 0.0264325 | D20: 0.0691 | E20: 0.0434995
A21: 2032 | B21: 4 | C21: ='B.1 Referenzwerte Fremdkapital'!C18 -> 0.0264325 | D21: 0.0691 | E21: 0.0434995
A22: 2033 | B22: 4 | C22: ='B.1 Referenzwerte Fremdkapital'!C19 -> 0.0264325 | D22: 0.0691 | E22: 0.0434995
A23: 2034 | B23: 4 | C23: ='B.1 Referenzwerte Fremdkapital'!C20 -> 0.0264325 | D23: 0.0691 | E23: 0.0434995
A24: 2035 | B24: 4 | C24: ='B.1 Referenzwerte Fremdkapital'!C21 -> 0.0264325 | D24: 0.0691 | E24: 0.0434995
A25: 2036 | B25: 4 | C25: ='B.1 Referenzwerte Fremdkapital'!C22 -> 0.0264325 | D25: 0.0691 | E25: 0.0434995
A26: 2037 | B26: 4 | C26: ='B.1 Referenzwerte Fremdkapital'!C23 -> 0.0264325 | D26: 0.0691 | E26: 0.0434995
A27: 2038 | B27: 4 | C27: ='B.1 Referenzwerte Fremdkapital'!C24 -> 0.0264325 | D27: 0.0691 | E27: 0.0434995
A28: 2039 | B28: 4 | C28: ='B.1 Referenzwerte Fremdkapital'!C25 -> 0.0264325 | D28: 0.0691 | E28: 0.0434995
A29: 2040 | B29: 4 | C29: ='B.1 Referenzwerte Fremdkapital'!C26 -> 0.0264325 | D29: 0.0691 | E29: 0.0434995
A30: 2041 | B30: 4 | C30: ='B.1 Referenzwerte Fremdkapital'!C27 -> 0.0264325 | D30: 0.0691 | E30: 0.0434995
A31: 2042 | B31: 4 | C31: ='B.1 Referenzwerte Fremdkapital'!C28 -> 0.0264325 | D31: 0.0691 | E31: 0.0434995
A32: 2043 | B32: 4 | C32: ='B.1 Referenzwerte Fremdkapital'!C29 -> 0.0264325 | D32: 0.0691 | E32: 0.0434995
A33: 2044 | B33: 4 | C33: ='B.1 Referenzwerte Fremdkapital'!C30 -> 0.0264325 | D33: 0.0691 | E33: 0.0434995
A34: 2045 | B34: 4 | C34: ='B.1 Referenzwerte Fremdkapital'!C31 -> 0.0264325 | D34: 0.0691 | E34: 0.0434995
A35: 2046 | B35: 4 | C35: ='B.1 Referenzwerte Fremdkapital'!C32 -> 0.0264325 | D35: 0.0691 | E35: 0.0434995
A36: 2047 | B36: 4 | C36: ='B.1 Referenzwerte Fremdkapital'!C33 -> 0.0264325 | D36: 0.0691 | E36: 0.0434995
A37: 2048 | B37: 4 | C37: ='B.1 Referenzwerte Fremdkapital'!C34 -> 0.0264325 | D37: 0.0691 | E37: 0.0434995
A38: 2049 | B38: 4 | C38: ='B.1 Referenzwerte Fremdkapital'!C35 -> 0.0264325 | D38: 0.0691 | E38: 0.0434995
A39: 2050 | B39: 4 | C39: ='B.1 Referenzwerte Fremdkapital'!C36 -> 0.0264325 | D39: 0.0691 | E39: 0.0434995
A40: 2051 | B40: 4 | C40: ='B.1 Referenzwerte Fremdkapital'!C37 -> 0.0264325 | D40: 0.0691 | E40: 0.0434995
A41: 2052 | B41: 4 | C41: ='B.1 Referenzwerte Fremdkapital'!C38 -> 0.0264325 | D41: 0.0691 | E41: 0.0434995
A42: 2053 | B42: 4 | C42: ='B.1 Referenzwerte Fremdkapital'!C39 -> 0.0264325 | D42: 0.0691 | E42: 0.0434995
A43: 2054 | B43: 4 | C43: ='B.1 Referenzwerte Fremdkapital'!C40 -> 0.0264325 | D43: 0.0691 | E43: 0.0434995
A44: 2055 | B44: 4 | C44: ='B.1 Referenzwerte Fremdkapital'!C41 -> 0.0264325 | D44: 0.0691 | E44: 0.0434995
A45: 2056 | B45: 4 | C45: ='B.1 Referenzwerte Fremdkapital'!C42 -> 0.0264325 | D45: 0.0691 | E45: 0.0434995
A46: 2057 | B46: 4 | C46: ='B.1 Referenzwerte Fremdkapital'!C43 -> 0.0264325 | D46: 0.0691 | E46: 0.0434995
A47: 2058 | B47: 4 | C47: ='B.1 Referenzwerte Fremdkapital'!C44 -> 0.0264325 | D47: 0.0691 | E47: 0.0434995
A48: 2059 | B48: 4 | C48: ='B.1 Referenzwerte Fremdkapital'!C45 -> 0.0264325 | D48: 0.0691 | E48: 0.0434995
A49: 2060 | B49: 4 | C49: ='B.1 Referenzwerte Fremdkapital'!C46 -> 0.0264325 | D49: 0.0691 | E49: 0.0434995
A50: 2061 | B50: 4 | C50: ='B.1 Referenzwerte Fremdkapital'!C47 -> 0.0264325 | D50: 0.0691 | E50: 0.0434995
A51: 2062 | B51: 4 | C51: ='B.1 Referenzwerte Fremdkapital'!C48 -> 0.0264325 | D51: 0.0691 | E51: 0.0434995
A52: 2063 | B52: 4 | C52: ='B.1 Referenzwerte Fremdkapital'!C49 -> 0.0264325 | D52: 0.0691 | E52: 0.0434995
A53: 2064 | B53: 4 | C53: ='B.1 Referenzwerte Fremdkapital'!C50 -> 0.0264325 | D53: 0.0691 | E53: 0.0434995
A54: 2065 | B54: 4 | C54: ='B.1 Referenzwerte Fremdkapital'!C51 -> 0.0264325 | D54: 0.0691 | E54: 0.0434995
A55: 2066 | B55: 4 | C55: ='B.1 Referenzwerte Fremdkapital'!C52 -> 0.0264325 | D55: 0.0691 | E55: 0.0434995
A56: 2067 | B56: 4 | C56: ='B.1 Referenzwerte Fremdkapital'!C53 -> 0.0264325 | D56: 0.0691 | E56: 0.0434995
A57: 2068 | B57: 4 | C57: ='B.1 Referenzwerte Fremdkapital'!C54 -> 0.0264325 | D57: 0.0691 | E57: 0.0434995
A58: 2069 | B58: 4 | C58: ='B.1 Referenzwerte Fremdkapital'!C55 -> 0.0264325 | D58: 0.0691 | E58: 0.0434995
A59: 2070 | B59: 4 | C59: ='B.1 Referenzwerte Fremdkapital'!C56 -> 0.0264325 | D59: 0.0691 | E59: 0.0434995
A60: 2071 | B60: 4 | C60: ='B.1 Referenzwerte Fremdkapital'!C57 -> 0.0264325 | D60: 0.0691 | E60: 0.0434995
A61: 2072 | B61: 4 | C61: ='B.1 Referenzwerte Fremdkapital'!C58 -> 0.0264325 | D61: 0.0691 | E61: 0.0434995
A62: 2073 | B62: 4 | C62: ='B.1 Referenzwerte Fremdkapital'!C59 -> 0.0264325 | D62: 0.0691 | E62: 0.0434995
A63: 2074 | B63: 4 | C63: ='B.1 Referenzwerte Fremdkapital'!C60 -> 0.0264325 | D63: 0.0691 | E63: 0.0434995
A64: 2075 | B64: 4 | C64: ='B.1 Referenzwerte Fremdkapital'!C61 -> 0.0264325 | D64: 0.0691 | E64: 0.0434995
A65: 2076 | B65: 4 | C65: ='B.1 Referenzwerte Fremdkapital'!C62 -> 0.0264325 | D65: 0.0691 | E65: 0.0434995
A66: 2077 | B66: 4 | C66: ='B.1 Referenzwerte Fremdkapital'!C63 -> 0.0264325 | D66: 0.0691 | E66: 0.0434995
A67: 2078 | B67: 4 | C67: ='B.1 Referenzwerte Fremdkapital'!C64 -> 0.0264325 | D67: 0.0691 | E67: 0.0434995
A68: 2079 | B68: 4 | C68: ='B.1 Referenzwerte Fremdkapital'!C65 -> 0.0264325 | D68: 0.0691 | E68: 0.0434995
A69: 2080 | B69: 4 | C69: ='B.1 Referenzwerte Fremdkapital'!C66 -> 0.0264325 | D69: 0.0691 | E69: 0.0434995
A70: 2081 | B70: 4 | C70: ='B.1 Referenzwerte Fremdkapital'!C67 -> 0.0264325 | D70: 0.0691 | E70: 0.0434995
A71: 2082 | B71: 4 | C71: ='B.1 Referenzwerte Fremdkapital'!C68 -> 0.0264325 | D71: 0.0691 | E71: 0.0434995
A72: 2083 | B72: 4 | C72: ='B.1 Referenzwerte Fremdkapital'!C69 -> 0.0264325 | D72: 0.0691 | E72: 0.0434995
A73: 2084 | B73: 4 | C73: ='B.1 Referenzwerte Fremdkapital'!C70 -> 0.0264325 | D73: 0.0691 | E73: =0.4*D73+(0.6*C73) -> 0.0434995
A74: =A73+1 -> 2085 | B74: 4 | C74: ='B.1 Referenzwerte Fremdkapital'!C71 -> 0.0264325 | D74: 0.0691 | E74: 0.0434995
A75: 2086 | B75: 4 | C75: ='B.1 Referenzwerte Fremdkapital'!C72 -> 0.0264325 | D75: 0.0691 | E75: 0.0434995
A76: 2087 | B76: 4 | C76: ='B.1 Referenzwerte Fremdkapital'!C73 -> 0.0264325 | D76: 0.0691 | E76: 0.0434995
A77: 2088 | B77: 4 | C77: ='B.1 Referenzwerte Fremdkapital'!C74 -> 0.0264325 | D77: 0.0691 | E77: 0.0434995
A78: 2089 | B78: 4 | C78: ='B.1 Referenzwerte Fremdkapital'!C75 -> 0.0264325 | D78: 0.0691 | E78: 0.0434995
A79: 2090 | B79: 4 | C79: ='B.1 Referenzwerte Fremdkapital'!C76 -> 0.0264325 | D79: 0.0691 | E79: 0.0434995
A80: 2091 | B80: 4 | C80: ='B.1 Referenzwerte Fremdkapital'!C77 -> 0.0264325 | D80: 0.0691 | E80: 0.0434995
A81: 2092 | B81: 4 | C81: ='B.1 Referenzwerte Fremdkapital'!C78 -> 0.0264325 | D81: 0.0691 | E81: 0.0434995
A82: 2093 | B82: 4 | C82: ='B.1 Referenzwerte Fremdkapital'!C79 -> 0.0264325 | D82: 0.0691 | E82: 0.0434995
A83: 2094 | B83: 4 | C83: ='B.1 Referenzwerte Fremdkapital'!C80 -> 0.0264325 | D83: 0.0691 | E83: 0.0434995
A84: 2095 | B84: 4 | C84: ='B.1 Referenzwerte Fremdkapital'!C81 -> 0.0264325 | D84: 0.0691 | E84: 0.0434995
A85: 2096 | B85: 4 | C85: ='B.1 Referenzwerte Fremdkapital'!C82 -> 0.0264325 | D85: 0.0691 | E85: 0.0434995
A86: 2097 | B86: 4 | C86: ='B.1 Referenzwerte Fremdkapital'!C83 -> 0.0264325 | D86: 0.0691 | E86: 0.0434995
A87: 2098 | B87: 4 | C87: ='B.1 Referenzwerte Fremdkapital'!C84 -> 0.0264325 | D87: 0.0691 | E87: 0.0434995
A88: 2099 | B88: 4 | C88: ='B.1 Referenzwerte Fremdkapital'!C85 -> 0.0264325 | D88: 0.0691 | E88: 0.0434995
A89: 2100 | B89: 4 | C89: ='B.1 Referenzwerte Fremdkapital'!C86 -> 0.0264325 | D89: 0.0691 | E89: 0.0434995
A90: 2101 | B90: 4 | C90: ='B.1 Referenzwerte Fremdkapital'!C87 -> 0.0264325 | D90: 0.0691 | E90: 0.0434995
A91: 2102 | B91: 4 | C91: ='B.1 Referenzwerte Fremdkapital'!C88 -> 0.0264325 | D91: 0.0691 | E91: 0.0434995
A92: 2103 | B92: 4 | C92: ='B.1 Referenzwerte Fremdkapital'!C89 -> 0.0264325 | D92: 0.0691 | E92: 0.0434995
A95: Kapitalbindung | K95: Kapitalbindung FK - lfd.Nr.1 | S95: Kapitalbindung FK - lfd.Nr.2 | Z95: Kapitalbindung FK - lfd.Nr.3 | AG95: Kapitalbindung FK - lfd.Nr.4 | AN95: Kapitalbindung FK - lfd.Nr.5 | AU95: Kapitalbindung FK - lfd.Nr.6 | BB95: Kapitalbindung FK - lfd.Nr.7 | BI95: Kapitalbindung FK - lfd.Nr.8 | BP95: Kapitalbindung FK - lfd.Nr.9 | BW95: Kapitalbindung FK - lfd.Nr.10
B96: B.1 | C96: B.1a | D96: B.1a.1 | E96: B.1b | F96: B.1c | G96: B.2a | H96: B.2b | I96: B.2c | J96: B.2d | L96: B.2a.1 | M96: B.2b.1 | N96: B.2c.1 | O96: B.2d.1 | P96: B.2e.1 | Q96: A.5.1 | T96: B.2a.2 | U96: B.2b.2 | V96: B.2c.2 | W96: B.2d.2 | X96: B.2e.2 | Y96: A.5.2 | AA96: B.2a.3 | AB96: B.2b.3 | AC96: B.2c.3 | AD96: B.2d.3 | AE96: B.2e.3 | AF96: A.5.3 | AH96: B.2a.4 | AI96: B.2b.4 | AJ96: B.2c.4 | AK96: B.2d.4 | AL96: B.2e.4 | AM96: A.5.4 | AO96: B.2a.5 | AP96: B.2b.5 | AQ96: B.2c.5 | AR96: B.2d.5 | AS96: B.2e.5 | AT96: A.5.5 | AV96: B.2a.6 | AW96: B.2b.6 | AX96: B.2c.6 | AY96: B.2d.6 | AZ96: B.2e.6 | BA96: A.5.6 | BC96: B.2a.7 | BD96: B.2b.7 | BE96: B.2c.7 | BF96: B.2d.7 | BG96: B.2e.7 | BH96: A.5.7 | BJ96: B.2a.8 | BK96: B.2b.8 | BL96: B.2c.8 | BM96: B.2d.8 | BN96: B.2e.8 | BO96: A.5.8 | BQ96: B.2a.9 | BR96: B.2b.9 | BS96: B.2c.9 | BT96: B.2d.9 | BU96: B.2e.9 | BV96: A.5.9 | BX96: B.2a.10 | BY96: B.2b.10 | BZ96: B.2c.10 | CA96: B.2d.10 | CB96: B.2e.10 | CC96: A.5.10
A97: Position | B97: Gesamte aktivierte Fertiganlagen des Gesamtunternehmens (keine AIB) | C97: davon Gasverteilung/ Gasfernleitung | D97: davon aktivierte Fertiganlagen aus Genehmigungen gem. § 23 ARegV | E97: davon Stromverteilung/ Stromübertragung | F97: davon weitere Sparten / Aktivitäten | G97: verzinsliches Fremdkapital Jahresanfangs- bestand | H97: Tilgung | I97: verzinsliches Fremdkapital Jahresendbestand | J97: verzinsliches Fremdkapital Mittelwert | K97: Position | L97: Anfangsbestand | M97: Fremdkapitalaufnahme | N97: Tilgung | O97: Endbestand | P97: Mittelwert | Q97: Zinssatz | S97: Position | T97: Anfangsbestand | U97: Fremdkapitalaufnahme | V97: Tilgung | W97: Endbestand | X97: Mittelwert | Y97: Zinssatz | Z97: Position | AA97: Anfangsbestand | AB97: Fremdkapitalaufnahme | AC97: Tilgung | AD97: Endbestand | AE97: Mittelwert | AF97: Zinssatz | AG97: Position | AH97: Anfangsbestand | AI97: Fremdkapitalaufnahme | AJ97: Tilgung | AK97: Endbestand | AL97: Mittelwert | AM97: Zinssatz | AN97: Position | AO97: Anfangsbestand | AP97: Fremdkapitalaufnahme | AQ97: Tilgung | AR97: Endbestand | AS97: Mittelwert | AT97: Zinssatz | AU97: Position | AV97: Anfangsbestand | AW97: Fremdkapitalaufnahme | AX97: Tilgung | AY97: Endbestand | AZ97: Mittelwert | BA97: Zinssatz | BB97: Position | BC97: Anfangsbestand | BD97: Fremdkapitalaufnahme | BE97: Tilgung | BF97: Endbestand | BG97: Mittelwert | BH97: Zinssatz | BI97: Position | BJ97: Anfangsbestand | BK97: Fremdkapitalaufnahme | BL97: Tilgung | BM97: Endbestand | BN97: Mittelwert | BO97: Zinssatz | BP97: Position | BQ97: Anfangsbestand | BR97: Fremdkapitalaufnahme | BS97: Tilgung | BT97: Endbestand | BU97: Mittelwert | BV97: Zinssatz | BW97: Position | BX97: Anfangsbestand | BY97: Fremdkapitalaufnahme | BZ97: Tilgung | CA97: Endbestand | CB97: Mittelwert | CC97: Zinssatz
A98: Einheit | B98: € | C98: € | D98: € | E98: € | F98: € | G98: € | H98: € | I98: € | J98: € | K98: Einheit | L98: € | M98: € | N98: € | O98: € | P98: € | Q98: % | S98: Einheit | T98: € | U98: € | V98: € | W98: € | X98: € | Y98: % | Z98: Einheit | AA98: € | AB98: € | AC98: € | AD98: € | AE98: € | AF98: % | AG98: Einheit | AH98: € | AI98: € | AJ98: € | AK98: € | AL98: € | AM98: % | AN98: Einheit | AO98: € | AP98: € | AQ98: € | AR98: € | AS98: € | AT98: % | AU98: Einheit | AV98: € | AW98: € | AX98: € | AY98: € | AZ98: € | BA98: % | BB98: Einheit | BC98: € | BD98: € | BE98: € | BF98: € | BG98: € | BH98: % | BI98: Einheit | BJ98: € | BK98: € | BL98: € | BM98: € | BN98: € | BO98: % | BP98: Einheit | BQ98: € | BR98: € | BS98: € | BT98: € | BU98: € | BV98: % | BW98: Einheit | BX98: € | BY98: € | BZ98: € | CA98: € | CB98: € | CC98: %
A99: Quelle | B99: Jahresabschluss | C99: Jahresabschluss | D99: gesonderter Nachweis | E99: Jahresabschluss | F99: Jahresabschluss | G99: gesonderter Nachweis | H99: gesonderter Nachweis | I99: gesonderter Nachweis | J99: gesonderter Nachweis | K99: Quelle | L99: gesonderter Nachweis | M99: gesonderter Nachweis | N99: gesonderter Nachweis | O99: gesonderter Nachweis | P99: gesonderter Nachweis | Q99: gesonderter Nachweis | S99: Quelle | T99: gesonderter Nachweis | U99: gesonderter Nachweis | V99: gesonderter Nachweis | W99: gesonderter Nachweis | X99: gesonderter Nachweis | Y99: gesonderter Nachweis | Z99: Quelle | AA99: gesonderter Nachweis | AB99: gesonderter Nachweis | AC99: gesonderter Nachweis | AD99: gesonderter Nachweis | AE99: gesonderter Nachweis | AF99: gesonderter Nachweis | AG99: Quelle | AH99: gesonderter Nachweis | AI99: gesonderter Nachweis | AJ99: gesonderter Nachweis | AK99: gesonderter Nachweis | AL99: gesonderter Nachweis | AM99: gesonderter Nachweis | AN99: Quelle | AO99: gesonderter Nachweis | AP99: gesonderter Nachweis | AQ99: gesonderter Nachweis | AR99: gesonderter Nachweis | AS99: gesonderter Nachweis | AT99: gesonderter Nachweis | AU99: Quelle | AV99: gesonderter Nachweis | AW99: gesonderter Nachweis | AX99: gesonderter Nachweis | AY99: gesonderter Nachweis | AZ99: gesonderter Nachweis | BA99: gesonderter Nachweis | BB99: Quelle | BC99: gesonderter Nachweis | BD99: gesonderter Nachweis | BE99: gesonderter Nachweis | BF99: gesonderter Nachweis | BG99: gesonderter Nachweis | BH99: gesonderter Nachweis | BI99: Quelle | BJ99: gesonderter Nachweis | BK99: gesonderter Nachweis | BL99: gesonderter Nachweis | BM99: gesonderter Nachweis | BN99: gesonderter Nachweis | BO99: gesonderter Nachweis | BP99: Quelle | BQ99: gesonderter Nachweis | BR99: gesonderter Nachweis | BS99: gesonderter Nachweis | BT99: gesonderter Nachweis | BU99: gesonderter Nachweis | BV99: gesonderter Nachweis | BW99: Quelle | BX99: gesonderter Nachweis | BY99: gesonderter Nachweis | BZ99: gesonderter Nachweis | CA99: gesonderter Nachweis | CB99: gesonderter Nachweis | CC99: gesonderter Nachweis
A100: 2015 | G100: 0 | H100: =N100+V100+AC100+AJ100+AQ100+AX100+BE100+BL100+BS100+BZ100 -> 0 | I100: 0 | J100: 0 | K100: 2015 | O100: =L100+M100-N100 -> 0 | P100: =(L100+O100)/2 -> 0 | S100: 2015 | W100: =T100+U100-V100 -> 0 | X100: =(T100+W100)/2 -> 0 | Z100: 2015 | AD100: =AA100+AB100-AC100 -> 0 | AE100: =(AA100+AD100)/2 -> 0 | AG100: 2015 | AK100: =AH100+AI100-AJ100 -> 0 | AL100: =(AH100+AK100)/2 -> 0 | AN100: 2015 | AR100: =AO100+AP100-AQ100 -> 0 | AS100: =(AO100+AR100)/2 -> 0 | AU100: 2015 | AY100: =AV100+AW100-AX100 -> 0 | AZ100: =(AV100+AY100)/2 -> 0 | BB100: 2015 | BF100: =BC100+BD100-BE100 -> 0 | BG100: =(BC100+BF100)/2 -> 0 | BI100: 2015 | BM100: =BJ100+BK100-BL100 -> 0 | BN100: =(BJ100+BM100)/2 -> 0 | BP100: 2015 | BT100: =BQ100+BR100-BS100 -> 0 | BU100: =(BQ100+BT100)/2 -> 0 | BW100: 2015 | CA100: =BX100+BY100-BZ100 -> 0 | CB100: =(BX100+CA100)/2 -> 0
A101: 2016 | G101: =L101+T101+AA101+AH101+AO101+AV101+BC101+BJ101+BQ101+BX101 -> 0 | H101: =N101+V101+AC101+AJ101+AQ101+AX101+BE101+BL101+BS101+BZ101 -> 0 | I101: =O101+W101+AD101+AK101+AR101+AY101+BF101+BM101+BT101+CA101 -> 0 | J101: =P101+X101+AE101+AL101+AS101+AZ101+BG101+BN101+BU101+CB101 -> 0 | K101: 2016 | L101: =O100 -> 0 | O101: =L101+M101-N101 -> 0 | P101: =(L101+O101)/2 -> 0 | S101: 2016 | T101: =W100 -> 0 | W101: =T101+U101-V101 -> 0 | X101: =(T101+W101)/2 -> 0 | Z101: 2016 | AA101: =AD100 -> 0 | AD101: =AA101+AB101-AC101 -> 0 | AE101: =(AA101+AD101)/2 -> 0 | AG101: 2016 | AH101: =AK100 -> 0 | AK101: =AH101+AI101-AJ101 -> 0 | AL101: =(AH101+AK101)/2 -> 0 | AN101: 2016 | AO101: =AR100 -> 0 | AR101: =AO101+AP101-AQ101 -> 0 | AS101: =(AO101+AR101)/2 -> 0 | AU101: 2016 | AV101: =AY100 -> 0 | AY101: =AV101+AW101-AX101 -> 0 | AZ101: =(AV101+AY101)/2 -> 0 | BB101: 2016 | BC101: =BF100 -> 0 | BF101: =BC101+BD101-BE101 -> 0 | BG101: =(BC101+BF101)/2 -> 0 | BI101: 2016 | BJ101: =BM100 -> 0 | BM101: =BJ101+BK101-BL101 -> 0 | BN101: =(BJ101+BM101)/2 -> 0 | BP101: 2016 | BQ101: =BT100 -> 0 | BT101: =BQ101+BR101-BS101 -> 0 | BU101: =(BQ101+BT101)/2 -> 0 | BW101: 2016 | BX101: =CA100 -> 0 | CA101: =BX101+BY101-BZ101 -> 0 | CB101: =(BX101+CA101)/2 -> 0
A102: 2017 | G102: =L102+T102+AA102+AH102+AO102+AV102+BC102+BJ102+BQ102+BX102 -> 0 | H102: 0 | I102: 0 | J102: 0 | K102: 2017 | L102: =O101 -> 0 | O102: 0 | P102: 0 | S102: 2017 | T102: =W101 -> 0 | W102: =T102+U102-V102 -> 0 | X102: 0 | Z102: 2017 | AA102: =AD101 -> 0 | AD102: 0 | AE102: 0 | AG102: 2017 | AH102: =AK101 -> 0 | AK102: 0 | AL102: 0 | AN102: 2017 | AO102: =AR101 -> 0 | AR102: 0 | AS102: 0 | AU102: 2017 | AV102: =AY101 -> 0 | AY102: 0 | AZ102: 0 | BB102: 2017 | BC102: =BF101 -> 0 | BF102: 0 | BG102: 0 | BI102: 2017 | BJ102: =BM101 -> 0 | BM102: 0 | BN102: 0 | BP102: 2017 | BQ102: =BT101 -> 0 | BT102: 0 | BU102: 0 | BW102: 2017 | BX102: =CA101 -> 0 | CA102: 0 | CB102: 0
A103: 2018 | G103: 0 | H103: 0 | I103: 0 | J103: 0 | K103: 2018 | L103: 0 | O103: 0 | P103: 0 | S103: 2018 | T103: 0 | W103: 0 | X103: 0 | Z103: 2018 | AA103: 0 | AD103: 0 | AE103: 0 | AG103: 2018 | AH103: 0 | AK103: 0 | AL103: 0 | AN103: 2018 | AO103: 0 | AR103: =AO103+AP103-AQ103 -> 0 | AS103: 0 | AU103: 2018 | AV103: 0 | AY103: 0 | AZ103: 0 | BB103: 2018 | BC103: 0 | BF103: 0 | BG103: 0 | BI103: 2018 | BJ103: 0 | BM103: 0 | BN103: 0 | BP103: 2018 | BQ103: 0 | BT103: 0 | BU103: 0 | BW103: 2018 | BX103: 0 | CA103: 0 | CB103: 0
A104: 2019 | G104: 0 | H104: 0 | I104: 0 | J104: 0 | K104: 2019 | L104: 0 | O104: 0 | P104: 0 | S104: 2019 | T104: 0 | W104: 0 | X104: 0 | Z104: 2019 | AA104: 0 | AD104: 0 | AE104: 0 | AG104: 2019 | AH104: 0 | AK104: 0 | AL104: 0 | AN104: 2019 | AO104: 0 | AR104: 0 | AS104: 0 | AU104: 2019 | AV104: 0 | AY104: 0 | AZ104: 0 | BB104: 2019 | BC104: 0 | BF104: 0 | BG104: 0 | BI104: 2019 | BJ104: 0 | BM104: 0 | BN104: 0 | BP104: 2019 | BQ104: 0 | BT104: 0 | BU104: 0 | BW104: 2019 | BX104: 0 | CA104: 0 | CB104: 0
A105: 2020 | G105: 0 | H105: 0 | I105: 0 | J105: 0 | K105: 2020 | L105: 0 | O105: 0 | P105: 0 | S105: 2020 | T105: 0 | W105: 0 | X105: 0 | Z105: 2020 | AA105: 0 | AD105: 0 | AE105: 0 | AG105: 2020 | AH105: 0 | AK105: 0 | AL105: 0 | AN105: 2020 | AO105: 0 | AR105: 0 | AS105: 0 | AU105: 2020 | AV105: 0 | AY105: 0 | AZ105: 0 | BB105: 2020 | BC105: 0 | BF105: 0 | BG105: 0 | BI105: 2020 | BJ105: 0 | BM105: 0 | BN105: 0 | BP105: 2020 | BQ105: 0 | BT105: 0 | BU105: 0 | BW105: 2020 | BX105: 0 | CA105: 0 | CB105: 0
A106: 2021 | G106: 0 | H106: 0 | I106: 0 | J106: 0 | K106: 2021 | L106: 0 | O106: 0 | P106: 0 | S106: 2021 | T106: 0 | W106: 0 | X106: 0 | Z106: 2021 | AA106: 0 | AD106: 0 | AE106: 0 | AG106: 2021 | AH106: 0 | AK106: 0 | AL106: 0 | AN106: 2021 | AO106: 0 | AR106: 0 | AS106: 0 | AU106: 2021 | AV106: 0 | AY106: 0 | AZ106: 0 | BB106: 2021 | BC106: 0 | BF106: 0 | BG106: 0 | BI106: 2021 | BJ106: 0 | BM106: 0 | BN106: 0 | BP106: 2021 | BQ106: 0 | BT106: 0 | BU106: 0 | BW106: 2021 | BX106: 0 | CA106: 0 | CB106: 0
A107: 2022 | G107: 0 | H107: 0 | I107: 0 | J107: 0 | K107: 2022 | L107: 0 | O107: 0 | P107: 0 | S107: 2022 | T107: 0 | W107: 0 | X107: 0 | Z107: 2022 | AA107: 0 | AD107: 0 | AE107: 0 | AG107: 2022 | AH107: 0 | AK107: 0 | AL107: 0 | AN107: 2022 | AO107: 0 | AR107: 0 | AS107: 0 | AU107: 2022 | AV107: 0 | AY107: 0 | AZ107: 0 | BB107: 2022 | BC107: 0 | BF107: 0 | BG107: 0 | BI107: 2022 | BJ107: 0 | BM107: 0 | BN107: 0 | BP107: 2022 | BQ107: 0 | BT107: 0 | BU107: 0 | BW107: 2022 | BX107: 0 | CA107: 0 | CB107: 0
A108: 2023 | G108: 0 | H108: 0 | I108: 0 | J108: 0 | K108: 2023 | L108: 0 | O108: 0 | P108: 0 | S108: 2023 | T108: 0 | W108: 0 | X108: 0 | Z108: 2023 | AA108: 0 | AD108: 0 | AE108: 0 | AG108: 2023 | AH108: 0 | AK108: 0 | AL108: 0 | AN108: 2023 | AO108: 0 | AR108: 0 | AS108: 0 | AU108: 2023 | AV108: 0 | AY108: 0 | AZ108: =(AV108+AY108)/2 -> 0 | BB108: 2023 | BC108: 0 | BF108: 0 | BG108: 0 | BI108: 2023 | BJ108: 0 | BM108: 0 | BN108: 0 | BP108: 2023 | BQ108: 0 | BT108: 0 | BU108: 0 | BW108: 2023 | BX108: 0 | CA108: 0 | CB108: 0
A109: 2024 | G109: 0 | H109: 0 | I109: 0 | J109: 0 | K109: 2024 | L109: 0 | O109: 0 | P109: 0 | S109: 2024 | T109: 0 | W109: 0 | X109: 0 | Z109: 2024 | AA109: 0 | AD109: 0 | AE109: 0 | AG109: 2024 | AH109: 0 | AK109: 0 | AL109: 0 | AN109: 2024 | AO109: 0 | AR109: 0 | AS109: 0 | AU109: 2024 | AV109: 0 | AY109: 0 | AZ109: 0 | BB109: 2024 | BC109: 0 | BF109: 0 | BG109: 0 | BI109: 2024 | BJ109: 0 | BM109: 0 | BN109: 0 | BP109: 2024 | BQ109: 0 | BT109: 0 | BU109: 0 | BW109: 2024 | BX109: 0 | CA109: 0 | CB109: 0
A110: 2025 | G110: 0 | H110: 0 | I110: 0 | J110: 0 | K110: 2025 | L110: 0 | O110: 0 | P110: 0 | S110: 2025 | T110: 0 | W110: 0 | X110: 0 | Z110: 2025 | AA110: 0 | AD110: 0 | AE110: 0 | AG110: 2025 | AH110: 0 | AK110: 0 | AL110: 0 | AN110: 2025 | AO110: 0 | AR110: 0 | AS110: 0 | AU110: 2025 | AV110: 0 | AY110: 0 | AZ110: 0 | BB110: 2025 | BC110: 0 | BF110: 0 | BG110: 0 | BI110: 2025 | BJ110: 0 | BM110: 0 | BN110: 0 | BP110: 2025 | BQ110: 0 | BT110: 0 | BU110: 0 | BW110: 2025 | BX110: 0 | CA110: 0 | CB110: 0
A111: 2026 | G111: 0 | H111: 0 | I111: 0 | J111: 0 | K111: 2026 | L111: 0 | O111: 0 | P111: 0 | S111: 2026 | T111: 0 | W111: 0 | X111: 0 | Z111: 2026 | AA111: 0 | AD111: 0 | AE111: 0 | AG111: 2026 | AH111: 0 | AK111: 0 | AL111: 0 | AN111: 2026 | AO111: 0 | AR111: 0 | AS111: 0 | AU111: 2026 | AV111: 0 | AY111: 0 | AZ111: 0 | BB111: 2026 | BC111: 0 | BF111: 0 | BG111: 0 | BI111: 2026 | BJ111: 0 | BM111: 0 | BN111: 0 | BP111: 2026 | BQ111: 0 | BT111: 0 | BU111: 0 | BW111: 2026 | BX111: 0 | CA111: 0 | CB111: 0
A112: 2027 | G112: 0 | H112: 0 | I112: 0 | J112: 0 | K112: 2027 | L112: 0 | O112: 0 | P112: 0 | S112: 2027 | T112: 0 | W112: 0 | X112: 0 | Z112: 2027 | AA112: 0 | AD112: 0 | AE112: 0 | AG112: 2027 | AH112: 0 | AK112: 0 | AL112: 0 | AN112: 2027 | AO112: 0 | AR112: 0 | AS112: 0 | AU112: 2027 | AV112: 0 | AY112: 0 | AZ112: 0 | BB112: 2027 | BC112: 0 | BF112: 0 | BG112: 0 | BI112: 2027 | BJ112: 0 | BM112: 0 | BN112: 0 | BP112: 2027 | BQ112: 0 | BT112: 0 | BU112: 0 | BW112: 2027 | BX112: 0 | CA112: 0 | CB112: 0
A113: 2028 | G113: 0 | H113: 0 | I113: 0 | J113: 0 | K113: 2028 | L113: 0 | O113: 0 | P113: 0 | S113: 2028 | T113: 0 | W113: 0 | X113: 0 | Z113: 2028 | AA113: 0 | AD113: 0 | AE113: 0 | AG113: 2028 | AH113: 0 | AK113: 0 | AL113: 0 | AN113: 2028 | AO113: 0 | AR113: 0 | AS113: 0 | AU113: 2028 | AV113: 0 | AY113: 0 | AZ113: 0 | BB113: 2028 | BC113: 0 | BF113: 0 | BG113: 0 | BI113: 2028 | BJ113: 0 | BM113: 0 | BN113: 0 | BP113: 2028 | BQ113: 0 | BT113: 0 | BU113: 0 | BW113: 2028 | BX113: 0 | CA113: 0 | CB113: 0
A114: 2029 | G114: 0 | H114: 0 | I114: 0 | J114: 0 | K114: 2029 | L114: 0 | O114: 0 | P114: 0 | S114: 2029 | T114: 0 | W114: 0 | X114: 0 | Z114: 2029 | AA114: 0 | AD114: 0 | AE114: 0 | AG114: 2029 | AH114: 0 | AK114: 0 | AL114: 0 | AN114: 2029 | AO114: 0 | AR114: 0 | AS114: 0 | AU114: 2029 | AV114: 0 | AY114: 0 | AZ114: 0 | BB114: 2029 | BC114: 0 | BF114: 0 | BG114: 0 | BI114: 2029 | BJ114: 0 | BM114: 0 | BN114: 0 | BP114: 2029 | BQ114: 0 | BT114: 0 | BU114: 0 | BW114: 2029 | BX114: 0 | CA114: 0 | CB114: 0
A115: 2030 | G115: 0 | H115: 0 | I115: 0 | J115: 0 | K115: 2030 | L115: 0 | O115: 0 | P115: 0 | S115: 2030 | T115: 0 | W115: 0 | X115: 0 | Z115: 2030 | AA115: 0 | AD115: 0 | AE115: 0 | AG115: 2030 | AH115: 0 | AK115: 0 | AL115: 0 | AN115: 2030 | AO115: 0 | AR115: 0 | AS115: 0 | AU115: 2030 | AV115: 0 | AY115: 0 | AZ115: 0 | BB115: 2030 | BC115: 0 | BF115: 0 | BG115: 0 | BI115: 2030 | BJ115: 0 | BM115: 0 | BN115: 0 | BP115: 2030 | BQ115: 0 | BT115: 0 | BU115: 0 | BW115: 2030 | BX115: 0 | CA115: 0 | CB115: 0
A116: 2031 | G116: 0 | H116: 0 | I116: 0 | J116: 0 | K116: 2031 | L116: 0 | O116: 0 | P116: 0 | S116: 2031 | T116: 0 | W116: 0 | X116: 0 | Z116: 2031 | AA116: 0 | AD116: 0 | AE116: 0 | AG116: 2031 | AH116: 0 | AK116: 0 | AL116: 0 | AN116: 2031 | AO116: 0 | AR116: 0 | AS116: 0 | AU116: 2031 | AV116: 0 | AY116: 0 | AZ116: 0 | BB116: 2031 | BC116: 0 | BF116: 0 | BG116: 0 | BI116: 2031 | BJ116: 0 | BM116: 0 | BN116: 0 | BP116: 2031 | BQ116: 0 | BT116: 0 | BU116: 0 | BW116: 2031 | BX116: 0 | CA116: 0 | CB116: 0
A119: kostenmindernde Erlöse/ Abzugskapital
B120: Erlöse (Basis AKHK) | E120: öffentliche Förderungen (Basis AKHK) | H120: Sonstiges (Basis AKHK) | J120: Sonstige Erlöse (Basis Kosten)
B121: C.1a | C121: C.1b | D121: C.2 | E121: C.3a | F121: C.3b | G121: C.3c | H121: C.4a | I121: C.4b | J121: C.5
A122: Position | B122: aus Maßnahmen im Rahmen des Art. 5 der Verordnung (EG) Nr. 1775/2005, soweit diese für Maßnahmen zur Beseitigung von Engpässe kostenmindernd anzusetzen sind [€] | C122: nach § 10 GasNZV, soweit diese Maßnahmen zur Beseitigung von Engepässen nach § 10 Abs. 6 Satz 4 der GasNZV kostenmindernd anzusetzen [€] | D122: Auflösung Netzanschlusskostenbeiträge und Baukostenzuschüsse | E122: Höhe der öffentlichen Förderung | F122: Art der öffentlichen Förderung | G122: Status der öffentlichen Förderung [erfolgt, beantragt, zugesagt oder abgelehnt] | H122: Erträge aus der Auflösung von Rückstellungspositionen, deren Begründung durch die Umsetzung des Investitionsprojektes entfallen ist | I122: sonstige Abzugspositionen bzw. Abzugskapital (hier bitte auch Baukostenzuschüsse/ Netzanschlusskostenbeiträge eintragen) | J122: Von Kapital- und Betriebskosten abzuziehende Erlöse (z.B. Pachterlöse)
A123: Einheit | B123: € | C123: € | D123: € | E123: € | F123: Text | G123: Text | H123: € | I123: € | J123: €
A124: Quelle | B124: Jahresabschluss | C124: Jahresabschluss | D124: Jahresabschluss | E124: Jahresabschluss | F124: gesonderter Nachweis | G124: gesonderter Nachweis | H124: gesonderter Nachweis | I124: gesonderter Nachweis | J124: gesonderter Nachweis
A125: 2019 | D125: 0
A126: =A125+1 -> 2020 | D126: 0
A127: =A126+1 -> 2021 | D127: 0
A128: 2022 | D128: 0
A129: 2023 | D129: 0
A130: 2024 | D130: 0
A131: 2025 | D131: 0
A132: 2026 | D132: 0
A133: 2027 | D133: 0
A134: 2028 | D134: 0
A135: 2029 | D135: 0
A136: 2030 | D136: 0
A137: 2031 | D137: 0
A138: 2032 | D138: 0
A139: 2033 | D139: 0
A140: 2034 | D140: 0
A141: 2035 | D141: 0
A142: 2036 | D142: 0
A143: 2037 | D143: 0
A144: 2038 | D144: 0
A145: 2039 | D145: 0
A146: 2040 | D146: 0
A147: 2041 | D147: 0
A148: 2042 | D148: 0
A149: 2043 | D149: 0
A150: 2044 | D150: 0
A151: 2045 | D151: 0
A152: 2046 | D152: 0
A153: 2047 | D153: 0
A154: 2048 | D154: 0
A155: 2049 | D155: 0
A156: 2050 | D156: 0
A157: 2051 | D157: 0
A158: 2052 | D158: 0
A159: 2053 | D159: 0
A160: 2054 | D160: 0
A161: 2055 | D161: 0
A162: 2056 | D162: 0
A163: 2057 | D163: 0
A164: 2058 | D164: 0
A165: 2059 | D165: 0
A166: 2060 | D166: 0
A167: 2061 | D167: 0
A168: 2062 | D168: 0
A169: 2063 | D169: 0
A170: 2064 | D170: 0
A171: 2065 | D171: 0
A172: 2066 | D172: 0
A173: 2067 | D173: 0
A174: 2068 | D174: 0
A175: 2069 | D175: 0
A176: 2070 | D176: 0
A177: 2071 | D177: 0
A178: 2072 | D178: 0
A179: 2073 | D179: 0
A180: 2074 | D180: 0
A181: 2075 | D181: 0
A182: 2076 | D182: 0
A183: 2077 | D183: 0
A184: 2078 | D184: 0
A185: 2079 | D185: 0
A186: 2080 | D186: 0
A187: 2081 | D187: 0
A188: 2082 | D188: 0
A189: 2083 | D189: 0
A190: 2084 | D190: 0
A191: =A190+1 -> 2085 | D191: 0
A192: 2086 | D192: 0
A193: 2087 | D193: 0
A194: 2088 | D194: 0
A195: 2089 | D195: 0
A196: 2090 | D196: 0
A197: 2091 | D197: 0
A198: 2092 | D198: 0
A199: 2093 | D199: 0
A200: 2094 | D200: 0
A201: 2095 | D201: 0
A202: 2096 | D202: 0
A203: 2097 | D203: 0
A204: 2098 | D204: 0
A205: 2099 | D205: 0
... 93 more rows

Sheet B.1 Referenzwerte Fremdkapital
B2: Referenzwerte Fremdkapital
B4: Jahr | C4: Zehn- Jahres- Mittelwert
B5: 2019 | C5: =1/10*($E$152+$E$167+$E$182+$E$197+$E$212+$E$227+$E$242+$E$257+$E$272+$E$287)/100 -> 0.0264325
B6: =B5+1 -> 2020 | C6: =1/10*($E$152+$E$167+$E$182+$E$197+$E$212+$E$227+$E$242+$E$257+$E$272+$E$287)/100 -> 0.0264325
B7: =B6+1 -> 2021 | C7: 0.0264325
B8: 2022 | C8: 0.0264325
B9: 2023 | C9: 0.0264325
B10: 2024 | C10: 0.0264325
B11: 2025 | C11: 0.0264325
B12: 2026 | C12: 0.0264325
B13: 2027 | C13: 0.0264325
B14: 2028 | C14: 0.0264325
B15: 2029 | C15: 0.0264325
B16: 2030 | C16: 0.0264325
B17: 2031 | C17: 0.0264325
B18: 2032 | C18: 0.0264325
B19: 2033 | C19: 0.0264325
B20: 2034 | C20: 0.0264325
B21: 2035 | C21: 0.0264325
B22: 2036 | C22: 0.0264325
B23: 2037 | C23: 0.0264325
B24: 2038 | C24: 0.0264325
B25: 2039 | C25: 0.0264325
B26: 2040 | C26: 0.0264325
B27: 2041 | C27: 0.0264325
B28: 2042 | C28: 0.0264325
B29: 2043 | C29: 0.0264325
B30: 2044 | C30: 0.0264325
B31: 2045 | C31: 0.0264325
B32: 2046 | C32: 0.0264325
B33: 2047 | C33: 0.0264325
B34: 2048 | C34: 0.0264325
B35: 2049 | C35: 0.0264325
B36: 2050 | C36: 0.0264325
B37: 2051 | C37: 0.0264325
B38: 2052 | C38: 0.0264325
B39: 2053 | C39: 0.0264325
B40: 2054 | C40: 0.0264325
B41: 2055 | C41: 0.0264325
B42: 2056 | C42: 0.0264325
B43: 2057 | C43: 0.0264325
B44: 2058 | C44: 0.0264325
B45: 2059 | C45: 0.0264325
B46: 2060 | C46: 0.0264325
B47: 2061 | C47: 0.0264325
B48: 2062 | C48: 0.0264325
B49: 2063 | C49: 0.0264325
B50: 2064 | C50: 0.0264325
B51: 2065 | C51: 0.0264325
B52: 2066 | C52: 0.0264325
B53: 2067 | C53: 0.0264325
B54: 2068 | C54: 0.0264325
B55: 2069 | C55: 0.0264325
B56: 2070 | C56: 0.0264325
B57: 2071 | C57: 0.0264325
B58: 2072 | C58: 0.0264325
B59: 2073 | C59: 0.0264325
B60: 2074 | C60: 0.0264325
B61: 2075 | C61: 0.0264325
B62: 2076 | C62: 0.0264325
B63: 2077 | C63: 0.0264325
B64: 2078 | C64: 0.0264325
B65: 2079 | C65: 0.0264325
B66: 2080 | C66: 0.0264325
B67: 2081 | C67: 0.0264325
B68: 2082 | C68: 0.0264325
B69: 2083 | C69: 0.0264325
B70: 2084 | C70: =1/10*($E$152+$E$167+$E$182+$E$197+$E$212+$E$227+$E$242+$E$257+$E$272+$E$287)/100 -> 0.0264325
B71: =B70+1 -> 2085 | C71: 0.0264325
B72: 2086 | C72: 0.0264325
B73: 2087 | C73: 0.0264325
B74: 2088 | C74: 0.0264325
B75: 2089 | C75: 0.0264325
B76: 2090 | C76: 0.0264325
B77: 2091 | C77: 0.0264325
B78: 2092 | C78: 0.0264325
B79: 2093 | C79: 0.0264325
B80: 2094 | C80: 0.0264325
B81: 2095 | C81: 0.0264325
B82: 2096 | C82: 0.0264325
B83: 2097 | C83: 0.0264325
B84: 2098 | C84: 0.0264325
B85: 2099 | C85: 0.0264325
B86: 2100 | C86: 0.0264325
B87: 2101 | C87: 0.0264325
B88: 2102 | C88: 0.0264325
B89: 2103 | C89: 0.0264325
B91: Referenzwerte Fremdkapital - Historische Werte
C93: Kredite an nichtfinanzielle Kapitalgesellschaften von über 1 Mio. € mit anfänglicher Zinsbindung von über 1 Jahr bis 5 Jahre in % | D93: Anleihen von Unternehmen (Nicht-MFIs) in % | E93: Mittelwert in %
B94: 2007-01 | C94: 4.84 | D94: 4.5 | E94: =(C94+D94)/2 -> 4.67 | H94: Monatsbericht Bundesbank -- Statistischer Teil Seite *47
B95: 2007-02 | C95: 4.69 | D95: 4.5 | E95: 4.595 | H95: Monatsbericht Bundesbank -- Statistischer Teil Seite *53
B96: 2007-03 | C96: 4.82 | D96: 4.4 | E96: 4.61
B97: 2007-04 | C97: 5.05 | D97: 4.6 | E97: 4.825
B98: 2007-05 | C98: 5.13 | D98: 4.7 | E98: 4.915
B99: 2007-06 | C99: 5.5 | D99: 4.9 | E99: 5.2
B100: 2007-07 | C100: 5.17 | D100: 5.5 | E100: 5.335
B101: 2007-08 | C101: 5.55 | D101: 5.5 | E101: 5.525
B102: 2007-09 | C102: 5.71 | D102: 5.6 | E102: 5.655
B103: 2007-10 | C103: 5.51 | D103: 5.5 | E103: 5.505
B104: 2007-11 | C104: 5.39 | D104: 5.3 | E104: 5.345
B105: 2007-12 | C105: 5.67 | D105: 5.5 | E105: 5.585
B107: Mittelwert | C107: =AVERAGE(C94:C105) -> 5.2525 | D107: =ROUND(AVERAGE(D94:D105),1) -> 5 | E107: =(C107+D107)/2 -> 5.12625
B109: 2008-01 | C109: 5.39 | D109: 5.5 | E109: =(C109+D109)/2 -> 5.445
B110: 2008-02 | C110: 5.84 | D110: 5.5 | E110: 5.67
B111: 2008-03 | C111: 5.58 | D111: 5.5 | E111: 5.54
B112: 2008-04 | C112: 5.59 | D112: 5.9 | E112: 5.745
B113: 2008-05 | C113: 5.74 | D113: 5.9 | E113: 5.82
B114: 2008-06 | C114: 6.09 | D114: 6.3 | E114: 6.195
B115: 2008-07 | C115: 5.97 | D115: 6.4 | E115: 6.185
B116: 2008-08 | C116: 5.91 | D116: 6.1 | E116: 6.005
B117: 2008-09 | C117: 5.63 | D117: 6.4 | E117: 6.015
B118: 2008-10 | C118: 6.1 | D118: 7.6 | E118: 6.85
B119: 2008-11 | C119: 5.38 | D119: 7.2 | E119: 6.29
B120: 2008-12 | C120: 4.82 | D120: 6.9 | E120: 5.86
B122: Mittelwert | C122: =AVERAGE(C109:C120) -> 5.67 | D122: =ROUND(AVERAGE(D109:D120),1) -> 6.3 | E122: =(C122+D122)/2 -> 5.985
B124: 2009-01 | C124: 5 | D124: 6.5 | E124: =(C124+D124)/2 -> 5.75
B125: 2009-02 | C125: 4.79 | D125: 6.2 | E125: 5.495
B126: 2009-03 | C126: 4.23 | D126: 6.5 | E126: 5.365
B127: 2009-04 | C127: 4.22 | D127: 6.3 | E127: 5.26
B128: 2009-05 | C128: 3.98 | D128: 6.2 | E128: 5.09
B129: 2009-06 | C129: 4.33 | D129: 6.2 | E129: 5.265
B130: 2009-07 | C130: 3.85 | D130: 5.2 | E130: 4.525
B131: 2009-08 | C131: 4.18 | D131: 4.7 | E131: 4.44
B132: 2009-09 | C132: 4.23 | D132: 4.8 | E132: 4.515
B133: 2009-10 | C133: 3.88 | D133: 4.7 | E133: 4.29
B134: 2009-11 | C134: 3.87 | D134: 4.4 | E134: 4.135
B135: 2009-12 | C135: 3.88 | D135: 4.8 | E135: 4.34
B137: Mittelwert | C137: =ROUND(AVERAGE(C124:C135),2) -> 4.2 | D137: =ROUND(AVERAGE(D124:D135),1) -> 5.5 | E137: =(C137+D137)/2 -> 4.85
B139: 2010-01 | C139: 3.9 | D139: 4.4 | E139: 4.15
B140: 2010-02 | C140: 4.54 | D140: 4.4 | E140: 4.47
B141: 2010-03 | C141: 3.69 | D141: 4.2 | E141: 3.945
B142: 2010-04 | C142: 3.92 | D142: 4.3 | E142: 4.11
B143: 2010-05 | C143: 3.59 | D143: 4.3 | E143: 3.945
B144: 2010-06 | C144: 3.29 | D144: 4.4 | E144: 3.845
B145: 2010-07 | C145: 2.97 | D145: 4 | E145: 3.485
B146: 2010-08 | C146: 3.39 | D146: 3.8 | E146: 3.595
B147: 2010-09 | C147: 3.4 | D147: 3.7 | E147: 3.55
B148: 2010-10 | C148: 3.33 | D148: 3.5 | E148: 3.415
B149: 2010-11 | C149: 3.47 | D149: 3.6 | E149: 3.535
B150: 2010-12 | C150: 3.26 | D150: 3.8 | E150: 3.53
B152: Mittelwert | C152: =AVERAGE(C139:C150) -> 3.5625 | D152: =AVERAGE(D139:D150) -> 4.033333333 | E152: =(C152+D152)/2 -> 3.797916667
B154: 2011-01 | C154: 3.34 | D154: 3.9 | E154: =(C154+D154)/2 -> 3.62
B155: 2011-02 | C155: 4.05 | D155: 4 | E155: 4.025
B156: 2011-03 | C156: 3.84 | D156: 3.9 | E156: 3.87
B157: 2011-04 | C157: 3.82 | D157: 4.1 | E157: 3.96
B158: 2011-05 | C158: 3.67 | D158: 4.2 | E158: 3.935
B159: 2011-06 | C159: 3.62 | D159: 4.2 | E159: 3.91
B160: 2011-07 | C160: 3.79 | D160: 4.2 | E160: 3.995
B161: 2011-08 | C161: 3.92 | D161: 4.4 | E161: 4.16
B162: 2011-09 | C162: 3.61 | D162: 4.6 | E162: 4.105
B163: 2011-10 | C163: 3.91 | D163: 4.6 | E163: 4.255
B164: 2011-11 | C164: 3.67 | D164: 4.4 | E164: 4.035
B165: 2011-12 | C165: 3.71 | D165: 4.6 | E165: 4.155
B167: Mittelwert | C167: =AVERAGE(C154:C165) -> 3.745833333 | D167: =AVERAGE(D154:D165) -> 4.258333333 | E167: =(C167+D167)/2 -> 4.002083333
B169: 2012-01 | C169: 3.37 | D169: 4.3 | E169: =(C169+D169)/2 -> 3.835
B170: 2012-02 | C170: 3.47 | D170: 4 | E170: 3.735
B171: 2012-03 | C171: 2.85 | D171: 4 | E171: 3.425
B172: 2012-04 | C172: 3.04 | D172: 3.9 | E172: 3.47
B173: 2012-05 | C173: 2.98 | D173: 3.8 | E173: 3.39
B174: 2012-06 | C174: 2.89 | D174: 3.5 | E174: 3.195
B175: 2012-07 | C175: 2.96 | D175: 3 | E175: 2.98
B176: 2012-08 | C176: 2.82 | D176: 3.6 | E176: 3.21
B177: 2012-09 | C177: 2.81 | D177: 3.9 | E177: 3.355
B178: 2012-10 | C178: 2.84 | D178: 3.8 | E178: 3.32
B179: 2012-11 | C179: 3.25 | D179: 3.6 | E179: 3.425
B180: 2012-12 | C180: 2.54 | D180: 3.3 | E180: 2.92
B182: Mittelwert | C182: =AVERAGE(C169:C180) -> 2.985 | D182: =AVERAGE(D169:D180) -> 3.725 | E182: =(C182+D182)/2 -> 3.355
B184: 2013-01 | C184: 2.94 | D184: 3.4 | E184: =(C184+D184)/2 -> 3.17
B185: 2013-02 | C185: 3.16 | D185: 3.3 | E185: 3.23
B186: 2013-03 | C186: 2.63 | D186: 3.1 | E186: 2.865
B187: 2013-04 | C187: 2.85 | D187: 3 | E187: 2.925
B188: 2013-05 | C188: 2.77 | D188: 2.9 | E188: 2.835
B189: 2013-06 | C189: 2.58 | D189: 3.2 | E189: 2.89
B190: 2013-07 | C190: 2.84 | D190: 3.4 | E190: 3.12
B191: 2013-08 | C191: 2.51 | D191: 3.5 | E191: 3.005
B192: 2013-09 | C192: 2.84 | D192: 3.9 | E192: 3.37
B193: 2013-10 | C193: 2.86 | D193: 3.8 | E193: 3.33
B194: 2013-11 | C194: 2.43 | D194: 3.6 | E194: 3.015
B195: 2013-12 | C195: 2.62 | D195: 3.5 | E195: 3.06
B197: Mittelwert | C197: =AVERAGE(C184:C195) -> 2.7525 | D197: =AVERAGE(D184:D195) -> 3.383333333 | E197: =(C197+D197)/2 -> 3.067916667
B199: 2014-01 | C199: 2.41 | D199: 3.4 | E199: =(C199+D199)/2 -> 2.905
B200: 2014-02 | C200: 2.14 | D200: 3.4 | E200: 2.77
B201: 2014-03 | C201: 2.53 | D201: 3.4 | E201: =(C201+D201)/2 -> 2.965
B202: 2014-04 | C202: 2.34 | D202: 3.3 | E202: 2.82
B203: 2014-05 | C203: 2.19 | D203: 3.2 | E203: 2.695
B204: 2014-06 | C204: 2.31 | D204: 3 | E204: 2.655
B205: 2014-07 | C205: 2.56 | D205: 2.8 | E205: 2.68
B206: 2014-08 | C206: 2.22 | D206: 2.7 | E206: 2.46
B207: 2014-09 | C207: 2.37 | D207: 2.7 | E207: 2.535
B208: 2014-10 | C208: 2.59 | D208: 2.6 | E208: 2.595
B209: 2014-11 | C209: 2.42 | D209: 2.5 | E209: 2.46
B210: 2014-12 | C210: 1.99 | D210: 2.4 | E210: 2.195
B212: Mittelwert | C212: =AVERAGE(C199:C210) -> 2.339166667 | D212: =AVERAGE(D199:D210) -> 2.95 | E212: =(C212+D212)/2 -> 2.644583333
B214: 2015-01 | C214: 1.9 | D214: 2.3 | E214: =(C214+D214)/2 -> 2.1
B215: 2015-02 | C215: 1.63 | D215: 2.2 | E215: 1.915
B216: 2015-03 | C216: 1.63 | D216: 2.1 | E216: 1.865
B217: 2015-04 | C217: 1.75 | D217: 2 | E217: 1.875
B218: 2015-05 | C218: 1.92 | D218: 2.2 | E218: 2.06
B219: 2015-06 | C219: 1.91 | D219: 2.4 | E219: 2.155
B220: 2015-07 | C220: 1.94 | D220: 2.4 | E220: 2.17
... 58 more rows

Sheet C.1 Kostendaten Verdichtung
B2: III. 1. Erdgasverdichtung | M2: C.1 Erdgasverdichtung (voraussichtliche Werte)
B3: =IF('[2]A. Allgemeine Informationen'!D7="Ja","Genehmigte","Beantragte")&" Planwerte des Anlagevermögens - Investitionsplan" -> Beantragte Planwerte des Anlagevermögens - Investitionsplan | M3: aktivierte Anlagen im Bau | S3: aktivierte Fertiganlagen
B4: gesamte geplante AK / HK | C4: =SUM(C6:C1000) -> 0 | E4: Investitionskosten | I4: technische Spezifikation | O4: Anlagengut | P4: =SUM(P6:P1000) -> 0 | Q4: =SUM(Q6:Q1000) -> 0 | T4: =SUM(T6:T1000) -> 0 | V4: Investitionskosten | AA4: technische Spezifikation
B5: lfd. Nr. des Anlagengutes | C5: Planwerte Anschaffungs- und Herstellungs- kosten gesamt [€] | D5: davon geplante AK/HK Verdichteranlage | E5: davon geplante AK/HK für Grundstück und Gebäude | F5: davon geplante AK/HK für Sonstiges | G5: voraussichtliches Jahr der Inbetriebnahme | H5: Betriebsmittel | I5: max. Durchfluss bis … [in Nm³ / h] | J5: Auslegungsdruck - eingangsseitig - bis ... [in bar] | K5: Auslegungsdruck - ausgangsseitig - bis ... [in bar] | M5: lfd. Nr. gem. Investitionsplan | N5: Jahr | O5: Aktivierung in Anlagengruppe gem. Blatt F. ND | P5: Zugänge | Q5: Umbuchungen / Abgänge | S5: lfd. Nr. gem. Investitionsplan | T5: Anschaffungs- und Herstellungskosten [gesamt] | U5: davon tatsächliche AK/HK Verdichteranlage | V5: davon tatsächliche AK/HK für Grundstück und Gebäude | W5: davon tatsächliche AK/HK für Sonstiges | X5: Jahr der Inbetriebnahme | Y5: Monat der Inbetriebnahme | Z5: Betriebsmittel | AA5: max. Durchfluss bis … [in Nm³ / h] | AB5: Auslegungsdruck - eingangsseitig - bis ... [in bar] | AC5: Auslegungsdruck - ausgangsseitig - bis ... [in bar]
B6: 1 | C6: =D6+E6+F6 -> 0
B7: 2 | C7: 0
B8: 3 | C8: 0
B9: 4 | C9: 0
B10: 5 | C10: 0
B11: 6 | C11: 0
B12: 7 | C12: 0
B13: 8 | C13: 0
B14: 9 | C14: 0
B15: 10 | C15: 0
B16: 11 | C16: 0
B17: 12 | C17: 0
B18: 13 | C18: 0
B19: 14 | C19: 0
B20: 15 | C20: 0
B21: 16 | C21: 0
B22: 17 | C22: 0
B23: 18 | C23: 0
B24: 19 | C24: 0
B25: 20 | C25: 0
B26: 21 | C26: 0
B27: 22 | C27: 0
B28: 23 | C28: 0
B29: 24 | C29: 0
B30: 25 | C30: 0
B31: 26 | C31: 0
B32: 27 | C32: 0
B33: 28 | C33: 0
B34: 29 | C34: 0
B35: 30 | C35: 0
B36: 31 | C36: 0
B37: 32 | C37: 0
B38: 33 | C38: 0
B39: 34 | C39: 0
B40: 35 | C40: 0
B41: 36 | C41: 0
B42: 37 | C42: 0
B43: 38 | C43: 0
G108: 2007
G109: 2008
G110: 2009 | H110: Gas | I110: 100000 | J110: 1 | K110: 1
G111: 2010 | H111: Strom | I111: 200000 | J111: 5 | K111: 2
G112: 2011 | I112: 300000 | J112: 16 | K112: 3
G113: 2012 | I113: 400000 | J113: 70 | K113: 4
G114: 2013 | I114: 500000 | J114: 80 | K114: 5
G115: 2014 | I115: 600000 | J115: 90 | K115: 6
G116: 2015 | I116: 700000 | J116: 100 | K116: 7
G117: 2016 | I117: 800000 | J117: 110 | K117: 8
G118: 2017 | I118: 900000 | J118: 120 | K118: 9
G119: 2018 | I119: 1000000 | J119: 130 | K119: 10
G120: 2019 | I120: 1100000 | K120: 11
G121: 2020 | I121: 1200000 | K121: 12
G122: 2021 | I122: 1300000
G123: 2022 | I123: 1400000
G124: 2023 | I124: 1500000
G125: 2024 | I125: 1600000
G126: 2025 | I126: 1700000
G127: 2026 | I127: 1800000
G128: 2027 | I128: 1900000
G129: 2028 | I129: 2000000
G130: 2029 | I130: 2100000
G131: 2030 | I131: 2200000
G132: 2031 | I132: 2300000
G133: 2032 | I133: 2400000
G134: 2033 | I134: 2500000
G135: 2034 | I135: 2600000
G136: 2035 | I136: 2700000
G137: 2036 | I137: 2800000
G138: 2037 | I138: 2900000
G139: 2038 | I139: 3000000
G140: 2039 | I140: 3100000
G141: 2040 | I141: 3200000
I142: 3300000
I143: 3400000
I144: 3500000
I145: 3600000
I146: 3700000
I147: 3800000
I148: 3900000
I149: 4000000

Sheet C.2 Kostendaten Rohr PE
B2: IV. 1.1 Rohrleitungen - Stahl - PE ummantelt | T2: C.2 Rohrleitungen - Stahl - PE ummantelt (voraussichtliche Werte)
B3: =IF('[2]A. Allgemeine Informationen'!D7="Ja","Genehmigte","Beantragte")&" Planwerte des Anlagevermögens - Investitionsplan" -> Beantragte Planwerte des Anlagevermögens - Investitionsplan | T3: aktivierte Anlagen im Bau | Z3: aktivierte Fertiganlagen
B4: gesamte geplante AK / HK | C4: =SUM(C6:C1000) -> 0 | G4: Investitionskosten | O4: technische Spezifikation | V4: Anlagengut | W4: =SUM(W6:W1000) -> 0 | X4: =SUM(X6:X1000) -> 0 | AA4: =SUM(AA6:AA1000) -> 0 | AE4: Investitionskosten | AN4: technische Spezifikation
B5: lfd. Nr. des Anlagengutes | C5: Planwerte Anschaffungs- und Herstellungs- kosten gesamt [€] | D5: davon geplante AK/HK Materialkosten Rohre | E5: davon geplante AK/HK Materialkosten Armaturen | F5: davon geplante AK/HK Sonderbauwerke (z.B. Düker) | G5: davon geplante AK/HK Herstellung des Kathodenschutzes | H5: davon geplante AK/HK Rohrverlegungs- und Rohrgrabenarbeiten | I5: davon geplante AK/HK Planungs-, Beratungs- und Prozesskosten | J5: davon geplante AK/HK für Sonstiges | K5: voraussichtliches Jahr der Inbetriebnahme | L5: Durchmesser [DN] bis … mm | M5: Nenndruck [PN] bis … bar | N5: Grabenarbeiten nach Gebietstyp | O5: Bodenklasse | P5: Grabenlänge in km | Q5: mittlere Grabentiefe [mm] | R5: mittlere Grabenbreite [mm] | T5: lfd. Nr. gem. Investitionsplan | U5: Jahr | V5: Aktivierung in Anlagengruppe gem. Blatt F. ND | W5: Zugänge | X5: Umbuchungen / Abgänge | Z5: lfd. Nr. gem. Investitionsplan | AA5: Anschaffungs- und Herstellungskosten [gesamt] | AB5: davon tatsächliche AK/HK Materialkosten Rohre | AC5: davon tatsächliche AK/HK Materialkosten Armaturen | AD5: davon tatsächliche AK/HK Sonderbauwerke (z.B. Düker) | AE5: davon tatsächliche AK/HK Herstellung des Kathodenschutzes | AF5: davon tatsächliche AK/HK Rohrverlegungs- und Rohrgrabenarbeiten | AG5: davon tatsächliche AK/HK Planungs-, Beratungs- und Prozesskosten | AH5: davon tatsächliche AK/HK für Sonstiges | AI5: Jahr der Inbetriebnahme | AJ5: Monat der Inbetriebnahme | AK5: Durchmesser [DN] bis … mm | AL5: Nenndruck [PN] bis … bar | AM5: Grabenarbeiten nach Gebietstyp | AN5: Bodenklasse | AO5: Grabenlänge in km | AP5: mittlere Grabentiefe [mm] | AQ5: mittlere Grabenbreite [mm]
B6: 1 | C6: =SUM(D6:J6) -> 0
B7: 2 | C7: =SUM(D7:J7) -> 0
B8: 3 | C8: =SUM(D8:J8) -> 0
B9: 4 | C9: =SUM(D9:J9) -> 0
B10: 5 | C10: 0
B11: 6 | C11: 0
B12: 7 | C12: 0
B13: 8 | C13: 0
B14: 9 | C14: 0
B15: 10 | C15: 0
B16: 11 | C16: 0
B17: 12 | C17: 0
B18: 13 | C18: 0
B19: 14 | C19: 0
B20: 15 | C20: 0
B21: 16 | C21: 0
B22: 17 | C22: 0
B23: 18 | C23: 0
B24: 19 | C24: 0
B25: 20 | C25: 0
B26: 21 | C26: 0
B27: 22 | C27: 0
B28: 23 | C28: 0
B29: 24 | C29: 0
B30: 25 | C30: 0
B31: 26 | C31: 0
B32: 27 | C32: 0
B33: 28 | C33: 0
B34: 29 | C34: 0
B35: 30 | C35: 0
B36: 31 | C36: 0
B37: 32 | C37: 0
B38: 33 | C38: 0
B39: 34 | C39: 0
B40: 35 | C40: 0
B41: 36 | C41: 0
B42: 37 | C42: 0
B43: 38 | C43: 0
K108: 2007
K109: 2008
K110: 2009 | L110: 100 | M110: 1 | N110: Unbebaut - Feld / Flachland | O110: 1
K111: 2010 | L111: 200 | M111: 5 | N111: Wald | O111: 2
K112: 2011 | L112: 300 | M112: 16 | N112: Besiedelung - Flachland | O112: 3
K113: 2012 | L113: 400 | M113: 70 | N113: Unbebaut - Mittelgebirge | O113: 4
K114: 2013 | L114: 500 | M114: 80 | N114: Besiedelung - Mittelgebirge | O114: 5
K115: 2014 | L115: 600 | M115: 90 | N115: Hochgebirge | O115: 6
K116: 2015 | L116: 700 | M116: 100 | N116: Sonstiges | O116: 7
K117: 2016 | L117: 800 | M117: 110 | O117: 8
K118: 2017 | L118: 900 | M118: 120 | O118: 9
K119: 2018 | L119: 1000 | M119: 130 | O119: 10
K120: 2019 | L120: 1100 | O120: 11
K121: 2020 | L121: 1200 | O121: 12
K122: 2021 | L122: 1300
K123: 2022 | L123: 1400
K124: 2023 | L124: 1500
K125: 2024 | L125: 1600
K126: 2025 | L126: 1700
K127: 2026 | L127: 1800
K128: 2027
K129: 2028
K130: 2029
K131: 2030
K132: 2031
K133: 2032
K134: 2033
K135: 2034
K136: 2035
K137: 2036
K138: 2037
K139: 2038
K140: 2039
K141: 2040

Sheet C.3 Kostendaten Rohr kath
B2: C.3 Rohrleitungen - Stahl - kathodisch geschützt | T2: C.3 Rohrleitungen - Stahl - kathodisch geschützt (voraussichtliche Werte)
B3: =IF('[2]A. Allgemeine Informationen'!D7="Ja","Genehmigte","Beantragte")&" Planwerte des Anlagevermögens - Investitionsplan" -> Beantragte Planwerte des Anlagevermögens - Investitionsplan | T3: aktivierte Anlagen im Bau | Z3: aktivierte Fertiganlagen
B4: gesamte geplante AK / HK | C4: =SUM(C6:C1000) -> 0 | G4: Investitionskosten | O4: technische Spezifikation | V4: Anlagengut | W4: =SUM(W6:W1000) -> 0 | X4: =SUM(X6:X1000) -> 0 | AA4: =SUM(AA6:AA1000) -> 0 | AE4: Investitionskosten | AN4: technische Spezifikation
B5: lfd. Nr. des Anlagengutes | C5: Planwerte Anschaffungs- und Herstellungs- kosten gesamt [€] | D5: davon geplante AK/HK Materialkosten Rohre | E5: davon geplante AK/HK Materialkosten Armaturen | F5: davon geplante AK/HK Sonderbauwerke (z.B. Düker) | G5: davon geplante AK/HK Herstellung des Kathodenschutzes | H5: davon geplante AK/HK Rohrverlegungs- und Rohrgrabenarbeiten | I5: davon geplante AK/HK Planungs-, Beratungs- und Prozesskosten | J5: davon geplante AK/HK für Sonstiges | K5: voraussichtliches Jahr der Inbetriebnahme | L5: Durchmesser [DN] bis … mm | M5: Nenndruck [PN] bis … bar | N5: Grabenarbeiten nach Gebietstyp | O5: Bodenklasse | P5: Grabenlänge in km | Q5: mittlere Grabentiefe [mm] | R5: mittlere Grabenbreite [mm] | T5: lfd. Nr. gem. Investitionsplan | U5: Jahr | V5: Aktivierung in Anlagengruppe gem. Blatt F. ND | W5: Zugänge | X5: Umbuchungen / Abgänge | Z5: lfd. Nr. gem. Investitionsplan | AA5: Anschaffungs- und Herstellungskosten [gesamt] | AB5: davon tatsächliche AK/HK Materialkosten Rohre | AC5: davon tatsächliche AK/HK Materialkosten Armaturen | AD5: davon tatsächliche AK/HK Sonderbauwerke (z.B. Düker) | AE5: davon tatsächliche AK/HK Herstellung des Kathodenschutzes | AF5: davon tatsächliche AK/HK Rohrverlegungs- und Rohrgrabenarbeiten | AG5: davon tatsächliche AK/HK Planungs-, Beratungs- und Prozesskosten | AH5: davon tatsächliche AK/HK für Sonstiges | AI5: Jahr der Inbetriebnahme | AJ5: Monat der Inbetriebnahme | AK5: Durchmesser [DN] bis … mm | AL5: Nenndruck [PN] bis … bar | AM5: Grabenarbeiten nach Gebietstyp | AN5: Bodenklasse | AO5: Grabenlänge in km | AP5: mittlere Grabentiefe [mm] | AQ5: mittlere Grabenbreite [mm]
B6: 1 | C6: =SUM(D6:J6) -> 0
B7: 2 | C7: =SUM(D7:J7) -> 0
B8: 3 | C8: 0
B9: 4 | C9: 0
B10: 5 | C10: 0
B11: 6 | C11: 0
B12: 7 | C12: 0
B13: 8 | C13: 0
B14: 9 | C14: 0
B15: 10 | C15: 0
B16: 11 | C16: 0
B17: 12 | C17: 0
B18: 13 | C18: 0
B19: 14 | C19: 0
B20: 15 | C20: 0
B21: 16 | C21: 0
B22: 17 | C22: 0
B23: 18 | C23: 0
B24: 19 | C24: 0
B25: 20 | C25: 0
B26: 21 | C26: 0
B27: 22 | C27: 0
B28: 23 | C28: 0
B29: 24 | C29: 0
B30: 25 | C30: 0
B31: 26 | C31: 0
B32: 27 | C32: 0
B33: 28 | C33: 0
B34: 29 | C34: 0
B35: 30 | C35: 0
B36: 31 | C36: 0
B37: 32 | C37: 0
B38: 33 | C38: 0
B39: 34 | C39: 0
B40: 35 | C40: 0
B41: 36 | C41: 0
B42: 37 | C42: 0
B43: 38 | C43: 0
K108: 2007
K109: 2008
K110: 2009 | L110: 100 | M110: 1 | N110: Unbebaut - Feld / Flachland | O110: 1
K111: 2010 | L111: 200 | M111: 5 | N111: Wald | O111: 2
K112: 2011 | L112: 300 | M112: 16 | N112: Besiedelung - Flachland | O112: 3
K113: 2012 | L113: 400 | M113: 70 | N113: Unbebaut - Mittelgebirge | O113: 4
K114: 2013 | L114: 500 | M114: 80 | N114: Besiedelung - Mittelgebirge | O114: 5
K115: 2014 | L115: 600 | M115: 90 | N115: Hochgebirge | O115: 6
K116: 2015 | L116: 700 | M116: 100 | N116: Sonstiges | O116: 7
K117: 2016 | L117: 800 | M117: 110 | O117: 8
K118: 2017 | L118: 900 | M118: 120 | O118: 9
K119: 2018 | L119: 1000 | M119: 130 | O119: 10
K120: 2019 | L120: 1100 | O120: 11
K121: 2020 | L121: 1200 | O121: 12
K122: 2021 | L122: 1300
K123: 2022 | L123: 1400
K124: 2023 | L124: 1500
K125: 2024 | L125: 1600
K126: 2025 | L126: 1700
K127: 2026 | L127: 1800
K128: 2027
K129: 2028
K130: 2029
K131: 2030
K132: 2031
K133: 2032
K134: 2033
K135: 2034
K136: 2035
K137: 2036
K138: 2037
K139: 2038
K140: 2039
K141: 2040

Sheet C.4 Kostendaten Regelein.
B2: V. 4. Regeleinrichtungen | M2: C.4 Regeleinrichtungen (voraussichtliche Werte)
B3: =IF('[2]A. Allgemeine Informationen'!D7="Ja","Genehmigte","Beantragte")&" Planwerte des Anlagevermögens - Investitionsplan" -> Beantragte Planwerte des Anlagevermögens - Investitionsplan | M3: aktivierte Anlagen im Bau | S3: aktivierte Fertiganlagen
B4: gesamte geplante AK / HK | C4: =SUM(C6:C1000) -> 0 | E4: Investitionskosten | I4: technische Spezifikation | O4: Anlagengut | P4: =SUM(P6:P1000) -> 0 | Q4: =SUM(Q6:Q1000) -> 0 | T4: =SUM(T6:T1000) -> 0 | V4: Investitionskosten | AA4: technische Spezifikation | AB4: technische Spezifikation | AE4: Investitionskosten | AN4: technische Spezifikation
B5: lfd. Nr. des Anlagengutes | C5: Planwerte Anschaffungs- und Herstellungs- kosten gesamt [€] | D5: davon geplante AK/HK Regelanlage(n) | E5: davon geplante AK/HK für Grundstück und Gebäude | F5: davon geplante AK/HK für Sonstiges | G5: voraussichtliches Jahr der Inbetriebnahme | H5: max. Durchfluss bis … [in Nm³ / h] | I5: Anzahl der Regler | J5: Auslegungsdruck - eingangsseitig - bis ... [in bar] | K5: Auslegungsdruck - ausgangsseitig - bis ... [in bar] | M5: lfd. Nr. gem. Investitionsplan | N5: Jahr | O5: Aktivierung in Anlagengruppe gem. Blatt F. ND | P5: Zugänge | Q5: Umbuchungen / Abgänge | S5: lfd. Nr. gem. Investitionsplan | T5: Anschaffungs- und Herstellungskosten [gesamt] | U5: davon geplante AK/HK Regelanlage(n) | V5: davon geplante AK/HK für Grundstück und Gebäude | W5: davon geplante AK/HK für Sonstiges | X5: Jahr der Inbetriebnahme | Y5: Monat der Inbetriebnahme | Z5: max. Durchfluss bis … [in Nm³ / h] | AA5: Anzahl der Regler | AB5: Auslegungsdruck - eingangsseitig - bis ... [in bar] | AC5: Auslegungsdruck - ausgangsseitig - bis ... [in bar] | AD5: davon tatsächliche AK/HK Sonderbauwerke (z.B. Düker) | AE5: davon tatsächliche AK/HK Herstellung des Kathodenschutzes | AF5: davon tatsächliche AK/HK Rohrverlegungs- und Rohrgrabenarbeiten | AG5: davon tatsächliche AK/HK Planungs-, Beratungs- und Prozesskosten | AH5: davon tatsächliche AK/HK für Sonstiges | AI5: Jahr der Inbetriebnahme | AJ5: Monat der Inbetriebnahme | AK5: Durchmesser [DN] bis … mm | AL5: Nenndruck [PN] bis … bar | AM5: Grabenarbeiten nach Gebietstyp | AN5: Bodenklasse | AO5: Grabenlänge in km | AP5: mittlere Grabentiefe [mm] | AQ5: mittlere Grabenbreite [mm]
B6: 1 | C6: =D6+E6+F6 -> 0
B7: 2 | C7: 0
B8: 3 | C8: 0
B9: 4 | C9: 0
B10: 5 | C10: 0
B11: 6 | C11: 0
B12: 7 | C12: 0
B13: 8 | C13: 0
B14: 9 | C14: 0
B15: 10 | C15: 0
B16: 11 | C16: 0
B17: 12 | C17: 0
B18: 13 | C18: 0
B19: 14 | C19: 0
B20: 15 | C20: 0
B21: 16 | C21: 0
B22: 17 | C22: 0
B23: 18 | C23: 0
B24: 19 | C24: 0
B25: 20 | C25: 0
B26: 21 | C26: 0
B27: 22 | C27: 0
B28: 23 | C28: 0
B29: 24 | C29: 0
B30: 25 | C30: 0
B31: 26 | C31: 0
B32: 27 | C32: 0
B33: 28 | C33: 0
B34: 29 | C34: 0
B35: 30 | C35: 0
B36: 31 | C36: 0
B37: 32 | C37: 0
B38: 33 | C38: 0
B39: 34 | C39: 0
B40: 35 | C40: 0
B41: 36 | C41: 0
B42: 37 | C42: 0
B43: 38 | C43: 0
G108: 2007 | H108: 10000 | I108: 1
G109: 2008 | H109: 20000 | I109: 2
G110: 2009 | H110: 30000 | I110: 3 | J110: 1
G111: 2010 | H111: 40000 | I111: 4 | J111: 5
G112: 2011 | H112: 50000 | I112: 5 | J112: 16
G113: 2012 | H113: 60000 | I113: 6 | J113: 70
G114: 2013 | H114: 70000 | I114: 7 | J114: 80
G115: 2014 | H115: 80000 | I115: 8 | J115: 90
G116: 2015 | H116: 90000 | I116: 9 | J116: 100
G117: 2016 | H117: 100000 | I117: 10 | J117: 110
G118: 2017 | H118: 200000 | I118: 11 | J118: 120
G119: 2018 | H119: 300000 | I119: 12 | J119: 130
G120: 2019 | H120: 400000
G121: 2020 | H121: 500000
G122: 2021 | H122: 600000
G123: 2022 | H123: 700000
G124: 2023 | H124: 800000
G125: 2024 | H125: 900000
G126: 2025 | H126: 1000000
G127: 2026 | H127: 1100000
G128: 2027 | H128: 1200000
G129: 2028 | H129: 1300000
G130: 2029 | H130: 1400000
G131: 2030 | H131: 1500000
G132: 2031 | H132: 1600000
G133: 2032 | H133: 1700000
G134: 2033 | H134: 1800000
G135: 2034 | H135: 1900000
G136: 2035 | H136: 2000000
G137: 2036 | H137: 2100000
G138: 2037 | H138: 2200000
G139: 2038 | H139: 2300000
G140: 2039 | H140: 2400000
G141: 2040 | H141: 2500000
H142: 2600000
H143: 2700000
H144: 2800000
H145: 2900000
H146: 3000000
H147: 3100000
H148: 3200000
H149: 3300000
H150: 3400000
H151: 3500000
H152: 3600000
H153: 3700000
H154: 3800000
H155: 3900000
H156: 4000000

Sheet C.5 Übrige Anlagen
B2: C.5 Übrige Anlagen | K2: C.5 Übrige Anlagen (voraussichtliche Werte)
B3: =IF('[2]A. Allgemeine Informationen'!D7="Ja","Genehmigte","Beantragte")&" Planwerte des Anlagevermögens - Investitionsplan" -> Beantragte Planwerte des Anlagevermögens - Investitionsplan | K3: Anlagen im Bau | Q3: aktiviertes Sachanlagevermögen
B4: Istabrechnung | F4: bitte zuerst Spalte C befüllen! | G4: gesamte geplante AK / HK | H4: =SUM(H6:H1000) -> 0 | M4: Anlagengut | N4: =SUM(N6:N1000) -> 0 | O4: =SUM(O6:O1000) -> 0 | U4: bitte zuerst Spalte C befüllen! | W4: =SUM(W6:W1000) -> 0
B5: lfd. Nr. des Anlagengutes | C5: Anlagengruppennummer gem. Blatt F. ND | D5: Anlagengut | E5: Nutzungsdauer [gem. Eintrag in Blatt F. ND] | F5: Menge | G5: Mengeneinheit | H5: Planwerte Anschaffungs- und Herstellungskosten [€] | I5: voraussichtliches Jahr der Inbetriebnahme | K5: lfd. Nr. gem. Investitionsplan | L5: Jahr | M5: Aktivierung in Anlagengruppe gem. Blatt F. ND | N5: Zugänge | O5: Umbuchungen / Abgänge | Q5: lfd. Nr. gem. Investitionsplan | R5: Anlagengruppennummer gem. Blatt F. ND | S5: Anlagengut (Text) | T5: Nutzungsdauer [gem. Eintrag in Blatt F. ND] | U5: Menge | V5: Mengeneinheit | W5: Anschaffungs- und Herstellungskosten [€] | X5: Jahr der Inbetriebnahme | Y5: Monat der Inbetriebnahme
B6: 1 | C6: bitte auswählen | E6: =IF(C6="bitte auswählen","",VLOOKUP(C6,'[2]F. ND u. OPEX-Pauschale'!$B$2:$F$43,5,FALSE)) ->  | R6: bitte auswählen | T6: =IF(R6="bitte auswählen","",VLOOKUP(R6,'F. ND u. OPEX-Pauschale'!$B$3:$F$43,5,FALSE)) -> 
B7: 2 | C7: bitte auswählen | E7: =IF(C7="bitte auswählen","",VLOOKUP(C7,'[2]F. ND u. OPEX-Pauschale'!$B$2:$F$43,5,FALSE)) ->  | R7: bitte auswählen | T7: =IF(R7="bitte auswählen","",VLOOKUP(R7,'F. ND u. OPEX-Pauschale'!$B$3:$F$43,5,FALSE)) -> 
B8: 3 | C8: bitte auswählen | E8: =IF(C8="bitte auswählen","",VLOOKUP(C8,'[2]F. ND u. OPEX-Pauschale'!$B$2:$F$43,5,FALSE)) ->  | R8: bitte auswählen | T8: =IF(R8="bitte auswählen","",VLOOKUP(R8,'F. ND u. OPEX-Pauschale'!$B$3:$F$43,5,FALSE)) -> 
B9: 4 | C9: bitte auswählen | E9: =IF(C9="bitte auswählen","",VLOOKUP(C9,'[2]F. ND u. OPEX-Pauschale'!$B$2:$F$43,5,FALSE)) ->  | R9: bitte auswählen | T9: =IF(R9="bitte auswählen","",VLOOKUP(R9,'F. ND u. OPEX-Pauschale'!$B$3:$F$43,5,FALSE)) -> 
B10: 5 | C10: bitte auswählen | E10: =IF(C10="bitte auswählen","",VLOOKUP(C10,'[2]F. ND u. OPEX-Pauschale'!$B$2:$F$43,5,FALSE)) ->  | R10: bitte auswählen | T10: =IF(R10="bitte auswählen","",VLOOKUP(R10,'F. ND u. OPEX-Pauschale'!$B$3:$F$43,5,FALSE)) -> 
B11: 6 | C11: bitte auswählen | E11: =IF(C11="bitte auswählen","",VLOOKUP(C11,'[2]F. ND u. OPEX-Pauschale'!$B$2:$F$43,5,FALSE)) ->  | R11: bitte auswählen | T11: =IF(R11="bitte auswählen","",VLOOKUP(R11,'F. ND u. OPEX-Pauschale'!$B$3:$F$43,5,FALSE)) -> 
B12: 7 | C12: bitte auswählen | E12: =IF(C12="bitte auswählen","",VLOOKUP(C12,'[2]F. ND u. OPEX-Pauschale'!$B$2:$F$43,5,FALSE)) ->  | R12: bitte auswählen | T12: =IF(R12="bitte auswählen","",VLOOKUP(R12,'F. ND u. OPEX-Pauschale'!$B$3:$F$43,5,FALSE)) -> 
B13: 8 | C13: bitte auswählen | E13: =IF(C13="bitte auswählen","",VLOOKUP(C13,'[2]F. ND u. OPEX-Pauschale'!$B$2:$F$43,5,FALSE)) ->  | R13: bitte auswählen | T13: =IF(R13="bitte auswählen","",VLOOKUP(R13,'F. ND u. OPEX-Pauschale'!$B$3:$F$43,5,FALSE)) -> 
B14: 9 | C14: bitte auswählen | E14: =IF(C14="bitte auswählen","",VLOOKUP(C14,'[2]F. ND u. OPEX-Pauschale'!$B$2:$F$43,5,FALSE)) ->  | R14: bitte auswählen | T14: =IF(R14="bitte auswählen","",VLOOKUP(R14,'F. ND u. OPEX-Pauschale'!$B$3:$F$43,5,FALSE)) -> 
B15: 10 | C15: bitte auswählen | E15: =IF(C15="bitte auswählen","",VLOOKUP(C15,'[2]F. ND u. OPEX-Pauschale'!$B$2:$F$43,5,FALSE)) ->  | R15: bitte auswählen | T15: =IF(R15="bitte auswählen","",VLOOKUP(R15,'F. ND u. OPEX-Pauschale'!$B$3:$F$43,5,FALSE)) -> 
B16: 11 | C16: bitte auswählen | E16: =IF(C16="bitte auswählen","",VLOOKUP(C16,'[2]F. ND u. OPEX-Pauschale'!$B$2:$F$43,5,FALSE)) ->  | R16: bitte auswählen | T16: =IF(R16="bitte auswählen","",VLOOKUP(R16,'F. ND u. OPEX-Pauschale'!$B$3:$F$43,5,FALSE)) -> 
B17: 12 | C17: bitte auswählen | E17: =IF(C17="bitte auswählen","",VLOOKUP(C17,'[2]F. ND u. OPEX-Pauschale'!$B$2:$F$43,5,FALSE)) ->  | R17: bitte auswählen | T17: =IF(R17="bitte auswählen","",VLOOKUP(R17,'F. ND u. OPEX-Pauschale'!$B$3:$F$43,5,FALSE)) -> 
B18: 13 | C18: bitte auswählen | E18: =IF(C18="bitte auswählen","",VLOOKUP(C18,'[2]F. ND u. OPEX-Pauschale'!$B$2:$F$43,5,FALSE)) ->  | R18: bitte auswählen | T18: =IF(R18="bitte auswählen","",VLOOKUP(R18,'F. ND u. OPEX-Pauschale'!$B$3:$F$43,5,FALSE)) -> 
B19: 14 | C19: bitte auswählen | E19: =IF(C19="bitte auswählen","",VLOOKUP(C19,'[2]F. ND u. OPEX-Pauschale'!$B$2:$F$43,5,FALSE)) ->  | R19: bitte auswählen | T19: =IF(R19="bitte auswählen","",VLOOKUP(R19,'F. ND u. OPEX-Pauschale'!$B$3:$F$43,5,FALSE)) -> 
B20: 15 | C20: bitte auswählen | E20: =IF(C20="bitte auswählen","",VLOOKUP(C20,'[2]F. ND u. OPEX-Pauschale'!$B$2:$F$43,5,FALSE)) ->  | R20: bitte auswählen | T20: =IF(R20="bitte auswählen","",VLOOKUP(R20,'F. ND u. OPEX-Pauschale'!$B$3:$F$43,5,FALSE)) -> 
B21: 16 | C21: bitte auswählen | E21: =IF(C21="bitte auswählen","",VLOOKUP(C21,'[2]F. ND u. OPEX-Pauschale'!$B$2:$F$43,5,FALSE)) ->  | R21: bitte auswählen | T21: =IF(R21="bitte auswählen","",VLOOKUP(R21,'F. ND u. OPEX-Pauschale'!$B$3:$F$43,5,FALSE)) -> 
B22: 17 | C22: bitte auswählen | E22: =IF(C22="bitte auswählen","",VLOOKUP(C22,'[2]F. ND u. OPEX-Pauschale'!$B$2:$F$43,5,FALSE)) ->  | R22: bitte auswählen | T22: =IF(R22="bitte auswählen","",VLOOKUP(R22,'F. ND u. OPEX-Pauschale'!$B$3:$F$43,5,FALSE)) -> 
B23: 18 | C23: bitte auswählen | E23: =IF(C23="bitte auswählen","",VLOOKUP(C23,'[2]F. ND u. OPEX-Pauschale'!$B$2:$F$43,5,FALSE)) ->  | R23: bitte auswählen | T23: =IF(R23="bitte auswählen","",VLOOKUP(R23,'F. ND u. OPEX-Pauschale'!$B$3:$F$43,5,FALSE)) -> 
B24: 19 | C24: bitte auswählen | E24: =IF(C24="bitte auswählen","",VLOOKUP(C24,'[2]F. ND u. OPEX-Pauschale'!$B$2:$F$43,5,FALSE)) ->  | R24: bitte auswählen | T24: =IF(R24="bitte auswählen","",VLOOKUP(R24,'F. ND u. OPEX-Pauschale'!$B$3:$F$43,5,FALSE)) -> 
B25: 20 | C25: bitte auswählen | E25: =IF(C25="bitte auswählen","",VLOOKUP(C25,'[2]F. ND u. OPEX-Pauschale'!$B$2:$F$43,5,FALSE)) ->  | R25: bitte auswählen | T25: =IF(R25="bitte auswählen","",VLOOKUP(R25,'F. ND u. OPEX-Pauschale'!$B$3:$F$43,5,FALSE)) -> 
B26: 21 | C26: bitte auswählen | E26: =IF(C26="bitte auswählen","",VLOOKUP(C26,'[2]F. ND u. OPEX-Pauschale'!$B$2:$F$43,5,FALSE)) ->  | R26: bitte auswählen | T26: =IF(R26="bitte auswählen","",VLOOKUP(R26,'F. ND u. OPEX-Pauschale'!$B$3:$F$43,5,FALSE)) -> 
B27: 22 | C27: bitte auswählen | E27: =IF(C27="bitte auswählen","",VLOOKUP(C27,'[2]F. ND u. OPEX-Pauschale'!$B$2:$F$43,5,FALSE)) ->  | R27: bitte auswählen | T27: =IF(R27="bitte auswählen","",VLOOKUP(R27,'F. ND u. OPEX-Pauschale'!$B$3:$F$43,5,FALSE)) -> 
B28: 23 | C28: bitte auswählen | E28: =IF(C28="bitte auswählen","",VLOOKUP(C28,'[2]F. ND u. OPEX-Pauschale'!$B$2:$F$43,5,FALSE)) ->  | R28: bitte auswählen | T28: =IF(R28="bitte auswählen","",VLOOKUP(R28,'F. ND u. OPEX-Pauschale'!$B$3:$F$43,5,FALSE)) -> 
B29: 24 | C29: bitte auswählen | E29: =IF(C29="bitte auswählen","",VLOOKUP(C29,'[2]F. ND u. OPEX-Pauschale'!$B$2:$F$43,5,FALSE)) ->  | R29: bitte auswählen | T29: =IF(R29="bitte auswählen","",VLOOKUP(R29,'F. ND u. OPEX-Pauschale'!$B$3:$F$43,5,FALSE)) -> 
B30: 25 | C30: bitte auswählen | E30: =IF(C30="bitte auswählen","",VLOOKUP(C30,'[2]F. ND u. OPEX-Pauschale'!$B$2:$F$43,5,FALSE)) ->  | R30: bitte auswählen | T30: =IF(R30="bitte auswählen","",VLOOKUP(R30,'F. ND u. OPEX-Pauschale'!$B$3:$F$43,5,FALSE)) -> 
B31: 26 | C31: bitte auswählen | E31: =IF(C31="bitte auswählen","",VLOOKUP(C31,'[2]F. ND u. OPEX-Pauschale'!$B$2:$F$43,5,FALSE)) ->  | R31: bitte auswählen | T31: =IF(R31="bitte auswählen","",VLOOKUP(R31,'F. ND u. OPEX-Pauschale'!$B$3:$F$43,5,FALSE)) -> 
B32: 27 | C32: bitte auswählen | E32: =IF(C32="bitte auswählen","",VLOOKUP(C32,'[2]F. ND u. OPEX-Pauschale'!$B$2:$F$43,5,FALSE)) ->  | R32: bitte auswählen | T32: =IF(R32="bitte auswählen","",VLOOKUP(R32,'F. ND u. OPEX-Pauschale'!$B$3:$F$43,5,FALSE)) -> 
B33: 28 | C33: bitte auswählen | E33: =IF(C33="bitte auswählen","",VLOOKUP(C33,'[2]F. ND u. OPEX-Pauschale'!$B$2:$F$43,5,FALSE)) ->  | R33: bitte auswählen | T33: =IF(R33="bitte auswählen","",VLOOKUP(R33,'F. ND u. OPEX-Pauschale'!$B$3:$F$43,5,FALSE)) -> 
B34: 29 | C34: bitte auswählen | E34: =IF(C34="bitte auswählen","",VLOOKUP(C34,'[2]F. ND u. OPEX-Pauschale'!$B$2:$F$43,5,FALSE)) ->  | R34: bitte auswählen | T34: =IF(R34="bitte auswählen","",VLOOKUP(R34,'F. ND u. OPEX-Pauschale'!$B$3:$F$43,5,FALSE)) -> 
B35: 30 | C35: bitte auswählen | E35: =IF(C35="bitte auswählen","",VLOOKUP(C35,'[2]F. ND u. OPEX-Pauschale'!$B$2:$F$43,5,FALSE)) ->  | R35: bitte auswählen | T35: =IF(R35="bitte auswählen","",VLOOKUP(R35,'F. ND u. OPEX-Pauschale'!$B$3:$F$43,5,FALSE)) -> 
B36: 31 | C36: bitte auswählen | E36: =IF(C36="bitte auswählen","",VLOOKUP(C36,'[2]F. ND u. OPEX-Pauschale'!$B$2:$F$43,5,FALSE)) ->  | R36: bitte auswählen | T36: =IF(R36="bitte auswählen","",VLOOKUP(R36,'F. ND u. OPEX-Pauschale'!$B$3:$F$43,5,FALSE)) -> 
B37: 32 | C37: bitte auswählen | E37: =IF(C37="bitte auswählen","",VLOOKUP(C37,'[2]F. ND u. OPEX-Pauschale'!$B$2:$F$43,5,FALSE)) ->  | R37: bitte auswählen | T37: =IF(R37="bitte auswählen","",VLOOKUP(R37,'F. ND u. OPEX-Pauschale'!$B$3:$F$43,5,FALSE)) -> 
B38: 33 | C38: bitte auswählen | E38: =IF(C38="bitte auswählen","",VLOOKUP(C38,'[2]F. ND u. OPEX-Pauschale'!$B$2:$F$43,5,FALSE)) ->  | R38: bitte auswählen | T38: =IF(R38="bitte auswählen","",VLOOKUP(R38,'F. ND u. OPEX-Pauschale'!$B$3:$F$43,5,FALSE)) -> 
B39: 34 | C39: bitte auswählen | E39: =IF(C39="bitte auswählen","",VLOOKUP(C39,'[2]F. ND u. OPEX-Pauschale'!$B$2:$F$43,5,FALSE)) ->  | R39: bitte auswählen | T39: =IF(R39="bitte auswählen","",VLOOKUP(R39,'F. ND u. OPEX-Pauschale'!$B$3:$F$43,5,FALSE)) -> 
B40: 35 | C40: bitte auswählen | E40: =IF(C40="bitte auswählen","",VLOOKUP(C40,'[2]F. ND u. OPEX-Pauschale'!$B$2:$F$43,5,FALSE)) ->  | R40: bitte auswählen | T40: =IF(R40="bitte auswählen","",VLOOKUP(R40,'F. ND u. OPEX-Pauschale'!$B$3:$F$43,5,FALSE)) -> 
B41: 36 | C41: bitte auswählen | E41: =IF(C41="bitte auswählen","",VLOOKUP(C41,'[2]F. ND u. OPEX-Pauschale'!$B$2:$F$43,5,FALSE)) ->  | R41: bitte auswählen | T41: =IF(R41="bitte auswählen","",VLOOKUP(R41,'F. ND u. OPEX-Pauschale'!$B$3:$F$43,5,FALSE)) -> 
B42: 37 | C42: bitte auswählen | E42: =IF(C42="bitte auswählen","",VLOOKUP(C42,'[2]F. ND u. OPEX-Pauschale'!$B$2:$F$43,5,FALSE)) ->  | R42: bitte auswählen | T42: =IF(R42="bitte auswählen","",VLOOKUP(R42,'F. ND u. OPEX-Pauschale'!$B$3:$F$43,5,FALSE)) -> 
B43: 38 | C43: bitte auswählen | E43: =IF(C43="bitte auswählen","",VLOOKUP(C43,'[2]F. ND u. OPEX-Pauschale'!$B$2:$F$43,5,FALSE)) ->  | R43: bitte auswählen | T43: =IF(R43="bitte auswählen","",VLOOKUP(R43,'F. ND u. OPEX-Pauschale'!$B$3:$F$43,5,FALSE)) -> 
B44: 39 | C44: bitte auswählen | E44: =IF(C44="bitte auswählen","",VLOOKUP(C44,'[2]F. ND u. OPEX-Pauschale'!$B$2:$F$43,5,FALSE)) ->  | R44: bitte auswählen | T44: =IF(R44="bitte auswählen","",VLOOKUP(R44,'F. ND u. OPEX-Pauschale'!$B$3:$F$43,5,FALSE)) -> 
B45: 40 | C45: bitte auswählen | E45: =IF(C45="bitte auswählen","",VLOOKUP(C45,'[2]F. ND u. OPEX-Pauschale'!$B$2:$F$43,5,FALSE)) ->  | R45: bitte auswählen | T45: =IF(R45="bitte auswählen","",VLOOKUP(R45,'F. ND u. OPEX-Pauschale'!$B$3:$F$43,5,FALSE)) -> 
B46: 41 | C46: bitte auswählen | E46: =IF(C46="bitte auswählen","",VLOOKUP(C46,'[2]F. ND u. OPEX-Pauschale'!$B$2:$F$43,5,FALSE)) ->  | R46: bitte auswählen | T46: =IF(R46="bitte auswählen","",VLOOKUP(R46,'F. ND u. OPEX-Pauschale'!$B$3:$F$43,5,FALSE)) -> 
B47: 42 | C47: bitte auswählen | E47: =IF(C47="bitte auswählen","",VLOOKUP(C47,'[2]F. ND u. OPEX-Pauschale'!$B$2:$F$43,5,FALSE)) ->  | R47: bitte auswählen | T47: =IF(R47="bitte auswählen","",VLOOKUP(R47,'F. ND u. OPEX-Pauschale'!$B$3:$F$43,5,FALSE)) -> 
B48: 43 | C48: bitte auswählen | E48: =IF(C48="bitte auswählen","",VLOOKUP(C48,'[2]F. ND u. OPEX-Pauschale'!$B$2:$F$43,5,FALSE)) ->  | R48: bitte auswählen | T48: =IF(R48="bitte auswählen","",VLOOKUP(R48,'F. ND u. OPEX-Pauschale'!$B$3:$F$43,5,FALSE)) -> 
B49: 44 | C49: bitte auswählen | E49: =IF(C49="bitte auswählen","",VLOOKUP(C49,'[2]F. ND u. OPEX-Pauschale'!$B$2:$F$43,5,FALSE)) ->  | R49: bitte auswählen | T49: =IF(R49="bitte auswählen","",VLOOKUP(R49,'F. ND u. OPEX-Pauschale'!$B$3:$F$43,5,FALSE)) -> 
B50: 45 | C50: bitte auswählen | E50: =IF(C50="bitte auswählen","",VLOOKUP(C50,'[2]F. ND u. OPEX-Pauschale'!$B$2:$F$43,5,FALSE)) ->  | R50: bitte auswählen | T50: =IF(R50="bitte auswählen","",VLOOKUP(R50,'F. ND u. OPEX-Pauschale'!$B$3:$F$43,5,FALSE)) -> 
B51: 46 | C51: bitte auswählen | E51: =IF(C51="bitte auswählen","",VLOOKUP(C51,'[2]F. ND u. OPEX-Pauschale'!$B$2:$F$43,5,FALSE)) ->  | R51: bitte auswählen | T51: =IF(R51="bitte auswählen","",VLOOKUP(R51,'F. ND u. OPEX-Pauschale'!$B$3:$F$43,5,FALSE)) -> 
B52: 47 | C52: bitte auswählen | E52: =IF(C52="bitte auswählen","",VLOOKUP(C52,'[2]F. ND u. OPEX-Pauschale'!$B$2:$F$43,5,FALSE)) ->  | R52: bitte auswählen | T52: =IF(R52="bitte auswählen","",VLOOKUP(R52,'F. ND u. OPEX-Pauschale'!$B$3:$F$43,5,FALSE)) -> 
B53: 48 | C53: bitte auswählen | E53: =IF(C53="bitte auswählen","",VLOOKUP(C53,'[2]F. ND u. OPEX-Pauschale'!$B$2:$F$43,5,FALSE)) ->  | R53: bitte auswählen | T53: =IF(R53="bitte auswählen","",VLOOKUP(R53,'F. ND u. OPEX-Pauschale'!$B$3:$F$43,5,FALSE)) -> 
B54: 49 | C54: bitte auswählen | E54: =IF(C54="bitte auswählen","",VLOOKUP(C54,'[2]F. ND u. OPEX-Pauschale'!$B$2:$F$43,5,FALSE)) ->  | R54: bitte auswählen | T54: =IF(R54="bitte auswählen","",VLOOKUP(R54,'F. ND u. OPEX-Pauschale'!$B$3:$F$43,5,FALSE)) -> 
B55: 50 | C55: bitte auswählen | E55: =IF(C55="bitte auswählen","",VLOOKUP(C55,'[2]F. ND u. OPEX-Pauschale'!$B$2:$F$43,5,FALSE)) ->  | R55: bitte auswählen | T55: =IF(R55="bitte auswählen","",VLOOKUP(R55,'F. ND u. OPEX-Pauschale'!$B$3:$F$43,5,FALSE)) -> 
B56: 51 | C56: bitte auswählen | E56: =IF(C56="bitte auswählen","",VLOOKUP(C56,'[2]F. ND u. OPEX-Pauschale'!$B$2:$F$43,5,FALSE)) ->  | R56: bitte auswählen | T56: =IF(R56="bitte auswählen","",VLOOKUP(R56,'F. ND u. OPEX-Pauschale'!$B$3:$F$43,5,FALSE)) -> 
B57: 52 | C57: bitte auswählen | E57: =IF(C57="bitte auswählen","",VLOOKUP(C57,'[2]F. ND u. OPEX-Pauschale'!$B$2:$F$43,5,FALSE)) ->  | R57: bitte auswählen | T57: =IF(R57="bitte auswählen","",VLOOKUP(R57,'F. ND u. OPEX-Pauschale'!$B$3:$F$43,5,FALSE)) -> 
B58: 53 | C58: bitte auswählen | E58: =IF(C58="bitte auswählen","",VLOOKUP(C58,'[2]F. ND u. OPEX-Pauschale'!$B$2:$F$43,5,FALSE)) ->  | R58: bitte auswählen | T58: =IF(R58="bitte auswählen","",VLOOKUP(R58,'F. ND u. OPEX-Pauschale'!$B$3:$F$43,5,FALSE)) -> 
B59: 54 | C59: bitte auswählen | E59: =IF(C59="bitte auswählen","",VLOOKUP(C59,'[2]F. ND u. OPEX-Pauschale'!$B$2:$F$43,5,FALSE)) ->  | R59: bitte auswählen | T59: =IF(R59="bitte auswählen","",VLOOKUP(R59,'F. ND u. OPEX-Pauschale'!$B$3:$F$43,5,FALSE)) -> 
B60: 55 | C60: bitte auswählen | E60: =IF(C60="bitte auswählen","",VLOOKUP(C60,'[2]F. ND u. OPEX-Pauschale'!$B$2:$F$43,5,FALSE)) ->  | R60: bitte auswählen | T60: =IF(R60="bitte auswählen","",VLOOKUP(R60,'F. ND u. OPEX-Pauschale'!$B$3:$F$43,5,FALSE)) -> 
B61: 56 | C61: bitte auswählen | E61: =IF(C61="bitte auswählen","",VLOOKUP(C61,'[2]F. ND u. OPEX-Pauschale'!$B$2:$F$43,5,FALSE)) ->  | R61: bitte auswählen | T61: =IF(R61="bitte auswählen","",VLOOKUP(R61,'F. ND u. OPEX-Pauschale'!$B$3:$F$43,5,FALSE)) -> 
B62: 57 | C62: bitte auswählen | E62: =IF(C62="bitte auswählen","",VLOOKUP(C62,'[2]F. ND u. OPEX-Pauschale'!$B$2:$F$43,5,FALSE)) ->  | R62: bitte auswählen | T62: =IF(R62="bitte auswählen","",VLOOKUP(R62,'F. ND u. OPEX-Pauschale'!$B$3:$F$43,5,FALSE)) -> 
B63: 58 | C63: bitte auswählen | E63: =IF(C63="bitte auswählen","",VLOOKUP(C63,'[2]F. ND u. OPEX-Pauschale'!$B$2:$F$43,5,FALSE)) ->  | R63: bitte auswählen | T63: =IF(R63="bitte auswählen","",VLOOKUP(R63,'F. ND u. OPEX-Pauschale'!$B$3:$F$43,5,FALSE)) -> 
B64: 59 | C64: bitte auswählen | E64: =IF(C64="bitte auswählen","",VLOOKUP(C64,'[2]F. ND u. OPEX-Pauschale'!$B$2:$F$43,5,FALSE)) ->  | R64: bitte auswählen | T64: =IF(R64="bitte auswählen","",VLOOKUP(R64,'F. ND u. OPEX-Pauschale'!$B$3:$F$43,5,FALSE)) -> 
B65: 60 | C65: bitte auswählen | E65: =IF(C65="bitte auswählen","",VLOOKUP(C65,'[2]F. ND u. OPEX-Pauschale'!$B$2:$F$43,5,FALSE)) ->  | R65: bitte auswählen | T65: =IF(R65="bitte auswählen","",VLOOKUP(R65,'F. ND u. OPEX-Pauschale'!$B$3:$F$43,5,FALSE)) -> 
B66: 61 | C66: bitte auswählen | E66: =IF(C66="bitte auswählen","",VLOOKUP(C66,'[2]F. ND u. OPEX-Pauschale'!$B$2:$F$43,5,FALSE)) ->  | R66: bitte auswählen | T66: =IF(R66="bitte auswählen","",VLOOKUP(R66,'F. ND u. OPEX-Pauschale'!$B$3:$F$43,5,FALSE)) -> 
B67: 62 | C67: bitte auswählen | E67: =IF(C67="bitte auswählen","",VLOOKUP(C67,'[2]F. ND u. OPEX-Pauschale'!$B$2:$F$43,5,FALSE)) ->  | R67: bitte auswählen | T67: =IF(R67="bitte auswählen","",VLOOKUP(R67,'F. ND u. OPEX-Pauschale'!$B$3:$F$43,5,FALSE)) -> 
B68: 63 | C68: bitte auswählen | E68: =IF(C68="bitte auswählen","",VLOOKUP(C68,'[2]F. ND u. OPEX-Pauschale'!$B$2:$F$43,5,FALSE)) ->  | R68: bitte auswählen | T68: =IF(R68="bitte auswählen","",VLOOKUP(R68,'F. ND u. OPEX-Pauschale'!$B$3:$F$43,5,FALSE)) -> 
B69: 64 | C69: bitte auswählen | E69: =IF(C69="bitte auswählen","",VLOOKUP(C69,'[2]F. ND u. OPEX-Pauschale'!$B$2:$F$43,5,FALSE)) ->  | R69: bitte auswählen | T69: =IF(R69="bitte auswählen","",VLOOKUP(R69,'F. ND u. OPEX-Pauschale'!$B$3:$F$43,5,FALSE)) -> 
B70: 65 | C70: bitte auswählen | E70: =IF(C70="bitte auswählen","",VLOOKUP(C70,'[2]F. ND u. OPEX-Pauschale'!$B$2:$F$43,5,FALSE)) ->  | R70: bitte auswählen | T70: =IF(R70="bitte auswählen","",VLOOKUP(R70,'F. ND u. OPEX-Pauschale'!$B$3:$F$43,5,FALSE)) -> 
B71: 66 | C71: bitte auswählen | E71: =IF(C71="bitte auswählen","",VLOOKUP(C71,'[2]F. ND u. OPEX-Pauschale'!$B$2:$F$43,5,FALSE)) ->  | R71: bitte auswählen | T71: =IF(R71="bitte auswählen","",VLOOKUP(R71,'F. ND u. OPEX-Pauschale'!$B$3:$F$43,5,FALSE)) -> 
B72: 67 | C72: bitte auswählen | E72: =IF(C72="bitte auswählen","",VLOOKUP(C72,'[2]F. ND u. OPEX-Pauschale'!$B$2:$F$43,5,FALSE)) ->  | R72: bitte auswählen | T72: =IF(R72="bitte auswählen","",VLOOKUP(R72,'F. ND u. OPEX-Pauschale'!$B$3:$F$43,5,FALSE)) -> 
B73: 68 | C73: bitte auswählen | E73: =IF(C73="bitte auswählen","",VLOOKUP(C73,'[2]F. ND u. OPEX-Pauschale'!$B$2:$F$43,5,FALSE)) ->  | R73: bitte auswählen | T73: =IF(R73="bitte auswählen","",VLOOKUP(R73,'F. ND u. OPEX-Pauschale'!$B$3:$F$43,5,FALSE)) -> 
B74: 69 | C74: bitte auswählen | E74: =IF(C74="bitte auswählen","",VLOOKUP(C74,'[2]F. ND u. OPEX-Pauschale'!$B$2:$F$43,5,FALSE)) ->  | R74: bitte auswählen | T74: =IF(R74="bitte auswählen","",VLOOKUP(R74,'F. ND u. OPEX-Pauschale'!$B$3:$F$43,5,FALSE)) -> 
B75: 70 | C75: bitte auswählen | E75: =IF(C75="bitte auswählen","",VLOOKUP(C75,'[2]F. ND u. OPEX-Pauschale'!$B$2:$F$43,5,FALSE)) ->  | R75: bitte auswählen | T75: =IF(R75="bitte auswählen","",VLOOKUP(R75,'F. ND u. OPEX-Pauschale'!$B$3:$F$43,5,FALSE)) -> 
B76: 71 | C76: bitte auswählen | E76: =IF(C76="bitte auswählen","",VLOOKUP(C76,'[2]F. ND u. OPEX-Pauschale'!$B$2:$F$43,5,FALSE)) ->  | R76: bitte auswählen | T76: =IF(R76="bitte auswählen","",VLOOKUP(R76,'F. ND u. OPEX-Pauschale'!$B$3:$F$43,5,FALSE)) -> 
B77: 72 | C77: bitte auswählen | E77: =IF(C77="bitte auswählen","",VLOOKUP(C77,'[2]F. ND u. OPEX-Pauschale'!$B$2:$F$43,5,FALSE)) ->  | R77: bitte auswählen | T77: =IF(R77="bitte auswählen","",VLOOKUP(R77,'F. ND u. OPEX-Pauschale'!$B$3:$F$43,5,FALSE)) -> 
B78: 73 | C78: bitte auswählen | E78: =IF(C78="bitte auswählen","",VLOOKUP(C78,'[2]F. ND u. OPEX-Pauschale'!$B$2:$F$43,5,FALSE)) ->  | R78: bitte auswählen | T78: =IF(R78="bitte auswählen","",VLOOKUP(R78,'F. ND u. OPEX-Pauschale'!$B$3:$F$43,5,FALSE)) -> 
B79: 74 | C79: bitte auswählen | E79: =IF(C79="bitte auswählen","",VLOOKUP(C79,'[2]F. ND u. OPEX-Pauschale'!$B$2:$F$43,5,FALSE)) ->  | R79: bitte auswählen | T79: =IF(R79="bitte auswählen","",VLOOKUP(R79,'F. ND u. OPEX-Pauschale'!$B$3:$F$43,5,FALSE)) -> 
B80: 75 | C80: bitte auswählen | E80: =IF(C80="bitte auswählen","",VLOOKUP(C80,'[2]F. ND u. OPEX-Pauschale'!$B$2:$F$43,5,FALSE)) ->  | R80: bitte auswählen | T80: =IF(R80="bitte auswählen","",VLOOKUP(R80,'F. ND u. OPEX-Pauschale'!$B$3:$F$43,5,FALSE)) -> 
B81: 76 | C81: bitte auswählen | E81: =IF(C81="bitte auswählen","",VLOOKUP(C81,'[2]F. ND u. OPEX-Pauschale'!$B$2:$F$43,5,FALSE)) ->  | R81: bitte auswählen | T81: =IF(R81="bitte auswählen","",VLOOKUP(R81,'F. ND u. OPEX-Pauschale'!$B$3:$F$43,5,FALSE)) -> 
B82: 77 | C82: bitte auswählen | E82: =IF(C82="bitte auswählen","",VLOOKUP(C82,'[2]F. ND u. OPEX-Pauschale'!$B$2:$F$43,5,FALSE)) ->  | R82: bitte auswählen | T82: =IF(R82="bitte auswählen","",VLOOKUP(R82,'F. ND u. OPEX-Pauschale'!$B$3:$F$43,5,FALSE)) -> 
B83: 78 | C83: bitte auswählen | E83: =IF(C83="bitte auswählen","",VLOOKUP(C83,'[2]F. ND u. OPEX-Pauschale'!$B$2:$F$43,5,FALSE)) ->  | R83: bitte auswählen | T83: =IF(R83="bitte auswählen","",VLOOKUP(R83,'F. ND u. OPEX-Pauschale'!$B$3:$F$43,5,FALSE)) -> 
B84: 79 | C84: bitte auswählen | E84: =IF(C84="bitte auswählen","",VLOOKUP(C84,'[2]F. ND u. OPEX-Pauschale'!$B$2:$F$43,5,FALSE)) ->  | R84: bitte auswählen | T84: =IF(R84="bitte auswählen","",VLOOKUP(R84,'F. ND u. OPEX-Pauschale'!$B$3:$F$43,5,FALSE)) -> 
B85: 80 | C85: bitte auswählen | E85: =IF(C85="bitte auswählen","",VLOOKUP(C85,'[2]F. ND u. OPEX-Pauschale'!$B$2:$F$43,5,FALSE)) ->  | R85: bitte auswählen | T85: =IF(R85="bitte auswählen","",VLOOKUP(R85,'F. ND u. OPEX-Pauschale'!$B$3:$F$43,5,FALSE)) -> 
B86: 81 | C86: bitte auswählen | E86: =IF(C86="bitte auswählen","",VLOOKUP(C86,'[2]F. ND u. OPEX-Pauschale'!$B$2:$F$43,5,FALSE)) ->  | R86: bitte auswählen | T86: =IF(R86="bitte auswählen","",VLOOKUP(R86,'F. ND u. OPEX-Pauschale'!$B$3:$F$43,5,FALSE)) -> 
B87: 82 | C87: bitte auswählen | E87: =IF(C87="bitte auswählen","",VLOOKUP(C87,'[2]F. ND u. OPEX-Pauschale'!$B$2:$F$43,5,FALSE)) ->  | R87: bitte auswählen | T87: =IF(R87="bitte auswählen","",VLOOKUP(R87,'F. ND u. OPEX-Pauschale'!$B$3:$F$43,5,FALSE)) -> 
B88: 83 | C88: bitte auswählen | E88: =IF(C88="bitte auswählen","",VLOOKUP(C88,'[2]F. ND u. OPEX-Pauschale'!$B$2:$F$43,5,FALSE)) ->  | R88: bitte auswählen | T88: =IF(R88="bitte auswählen","",VLOOKUP(R88,'F. ND u. OPEX-Pauschale'!$B$3:$F$43,5,FALSE)) -> 
B89: 84 | C89: bitte auswählen | E89: =IF(C89="bitte auswählen","",VLOOKUP(C89,'[2]F. ND u. OPEX-Pauschale'!$B$2:$F$43,5,FALSE)) ->  | R89: bitte auswählen | T89: =IF(R89="bitte auswählen","",VLOOKUP(R89,'F. ND u. OPEX-Pauschale'!$B$3:$F$43,5,FALSE)) -> 
B90: 85 | C90: bitte auswählen | E90: =IF(C90="bitte auswählen","",VLOOKUP(C90,'[2]F. ND u. OPEX-Pauschale'!$B$2:$F$43,5,FALSE)) ->  | R90: bitte auswählen | T90: =IF(R90="bitte auswählen","",VLOOKUP(R90,'F. ND u. OPEX-Pauschale'!$B$3:$F$43,5,FALSE)) -> 
B91: 86 | C91: bitte auswählen | E91: =IF(C91="bitte auswählen","",VLOOKUP(C91,'[2]F. ND u. OPEX-Pauschale'!$B$2:$F$43,5,FALSE)) ->  | R91: bitte auswählen | T91: =IF(R91="bitte auswählen","",VLOOKUP(R91,'F. ND u. OPEX-Pauschale'!$B$3:$F$43,5,FALSE)) -> 
B92: 87 | C92: bitte auswählen | E92: =IF(C92="bitte auswählen","",VLOOKUP(C92,'[2]F. ND u. OPEX-Pauschale'!$B$2:$F$43,5,FALSE)) ->  | R92: bitte auswählen | T92: =IF(R92="bitte auswählen","",VLOOKUP(R92,'F. ND u. OPEX-Pauschale'!$B$3:$F$43,5,FALSE)) -> 
B93: 88 | C93: bitte auswählen | E93: =IF(C93="bitte auswählen","",VLOOKUP(C93,'[2]F. ND u. OPEX-Pauschale'!$B$2:$F$43,5,FALSE)) ->  | R93: bitte auswählen | T93: =IF(R93="bitte auswählen","",VLOOKUP(R93,'F. ND u. OPEX-Pauschale'!$B$3:$F$43,5,FALSE)) -> 
B94: 89 | C94: bitte auswählen | E94: =IF(C94="bitte auswählen","",VLOOKUP(C94,'[2]F. ND u. OPEX-Pauschale'!$B$2:$F$43,5,FALSE)) ->  | R94: bitte auswählen | T94: =IF(R94="bitte auswählen","",VLOOKUP(R94,'F. ND u. OPEX-Pauschale'!$B$3:$F$43,5,FALSE)) -> 
B95: 90 | C95: bitte auswählen | E95: =IF(C95="bitte auswählen","",VLOOKUP(C95,'[2]F. ND u. OPEX-Pauschale'!$B$2:$F$43,5,FALSE)) ->  | R95: bitte auswählen | T95: =IF(R95="bitte auswählen","",VLOOKUP(R95,'F. ND u. OPEX-Pauschale'!$B$3:$F$43,5,FALSE)) -> 
B96: 91 | C96: bitte auswählen | E96: =IF(C96="bitte auswählen","",VLOOKUP(C96,'[2]F. ND u. OPEX-Pauschale'!$B$2:$F$43,5,FALSE)) ->  | R96: bitte auswählen | T96: =IF(R96="bitte auswählen","",VLOOKUP(R96,'F. ND u. OPEX-Pauschale'!$B$3:$F$43,5,FALSE)) -> 
B97: 92 | C97: bitte auswählen | E97: =IF(C97="bitte auswählen","",VLOOKUP(C97,'[2]F. ND u. OPEX-Pauschale'!$B$2:$F$43,5,FALSE)) ->  | R97: bitte auswählen | T97: =IF(R97="bitte auswählen","",VLOOKUP(R97,'F. ND u. OPEX-Pauschale'!$B$3:$F$43,5,FALSE)) -> 
B98: 93 | C98: bitte auswählen | E98: =IF(C98="bitte auswählen","",VLOOKUP(C98,'[2]F. ND u. OPEX-Pauschale'!$B$2:$F$43,5,FALSE)) ->  | R98: bitte auswählen | T98: =IF(R98="bitte auswählen","",VLOOKUP(R98,'F. ND u. OPEX-Pauschale'!$B$3:$F$43,5,FALSE)) -> 
B99: 94 | C99: bitte auswählen | E99: =IF(C99="bitte auswählen","",VLOOKUP(C99,'[2]F. ND u. OPEX-Pauschale'!$B$2:$F$43,5,FALSE)) ->  | R99: bitte auswählen | T99: =IF(R99="bitte auswählen","",VLOOKUP(R99,'F. ND u. OPEX-Pauschale'!$B$3:$F$43,5,FALSE)) -> 
B100: 95 | C100: bitte auswählen | E100: =IF(C100="bitte auswählen","",VLOOKUP(C100,'[2]F. ND u. OPEX-Pauschale'!$B$2:$F$43,5,FALSE)) ->  | R100: bitte auswählen | T100: =IF(R100="bitte auswählen","",VLOOKUP(R100,'F. ND u. OPEX-Pauschale'!$B$3:$F$43,5,FALSE)) -> 
B101: 96 | C101: bitte auswählen | E101: =IF(C101="bitte auswählen","",VLOOKUP(C101,'[2]F. ND u. OPEX-Pauschale'!$B$2:$F$43,5,FALSE)) ->  | R101: bitte auswählen | T101: =IF(R101="bitte auswählen","",VLOOKUP(R101,'F. ND u. OPEX-Pauschale'!$B$3:$F$43,5,FALSE)) -> 
B102: 97 | C102: bitte auswählen | E102: =IF(C102="bitte auswählen","",VLOOKUP(C102,'[2]F. ND u. OPEX-Pauschale'!$B$2:$F$43,5,FALSE)) ->  | R102: bitte auswählen | T102: =IF(R102="bitte auswählen","",VLOOKUP(R102,'F. ND u. OPEX-Pauschale'!$B$3:$F$43,5,FALSE)) -> 
B103: 98 | C103: bitte auswählen | E103: =IF(C103="bitte auswählen","",VLOOKUP(C103,'[2]F. ND u. OPEX-Pauschale'!$B$2:$F$43,5,FALSE)) ->  | R103: bitte auswählen | T103: =IF(R103="bitte auswählen","",VLOOKUP(R103,'F. ND u. OPEX-Pauschale'!$B$3:$F$43,5,FALSE)) -> 
B104: 99 | C104: bitte auswählen | E104: =IF(C104="bitte auswählen","",VLOOKUP(C104,'[2]F. ND u. OPEX-Pauschale'!$B$2:$F$43,5,FALSE)) ->  | R104: bitte auswählen | T104: =IF(R104="bitte auswählen","",VLOOKUP(R104,'F. ND u. OPEX-Pauschale'!$B$3:$F$43,5,FALSE)) -> 
B105: 100 | C105: bitte auswählen | E105: =IF(C105="bitte auswählen","",VLOOKUP(C105,'[2]F. ND u. OPEX-Pauschale'!$B$2:$F$43,5,FALSE)) ->  | R105: bitte auswählen | T105: =IF(R105="bitte auswählen","",VLOOKUP(R105,'F. ND u. OPEX-Pauschale'!$B$3:$F$43,5,FALSE)) -> 
B106: 101 | C106: bitte auswählen | E106: =IF(C106="bitte auswählen","",VLOOKUP(C106,'[2]F. ND u. OPEX-Pauschale'!$B$2:$F$43,5,FALSE)) ->  | R106: bitte auswählen | T106: =IF(R106="bitte auswählen","",VLOOKUP(R106,'F. ND u. OPEX-Pauschale'!$B$3:$F$43,5,FALSE)) -> 
B107: 102 | C107: bitte auswählen | E107: =IF(C107="bitte auswählen","",VLOOKUP(C107,'[2]F. ND u. OPEX-Pauschale'!$B$2:$F$43,5,FALSE)) ->  | R107: bitte auswählen | T107: =IF(R107="bitte auswählen","",VLOOKUP(R107,'F. ND u. OPEX-Pauschale'!$B$3:$F$43,5,FALSE)) -> 
B108: 103 | C108: bitte auswählen | E108: =IF(C108="bitte auswählen","",VLOOKUP(C108,'[2]F. ND u. OPEX-Pauschale'!$B$2:$F$43,5,FALSE)) ->  | R108: bitte auswählen | T108: =IF(R108="bitte auswählen","",VLOOKUP(R108,'F. ND u. OPEX-Pauschale'!$B$3:$F$43,5,FALSE)) -> 
B109: 104 | C109: bitte auswählen | E109: =IF(C109="bitte auswählen","",VLOOKUP(C109,'[2]F. ND u. OPEX-Pauschale'!$B$2:$F$43,5,FALSE)) ->  | R109: bitte auswählen | T109: =IF(R109="bitte auswählen","",VLOOKUP(R109,'F. ND u. OPEX-Pauschale'!$B$3:$F$43,5,FALSE)) -> 
B110: 105 | C110: bitte auswählen | E110: =IF(C110="bitte auswählen","",VLOOKUP(C110,'[2]F. ND u. OPEX-Pauschale'!$B$2:$F$43,5,FALSE)) ->  | R110: bitte auswählen | T110: =IF(R110="bitte auswählen","",VLOOKUP(R110,'F. ND u. OPEX-Pauschale'!$B$3:$F$43,5,FALSE)) -> 
B111: 106 | C111: bitte auswählen | E111: =IF(C111="bitte auswählen","",VLOOKUP(C111,'[2]F. ND u. OPEX-Pauschale'!$B$2:$F$43,5,FALSE)) ->  | R111: bitte auswählen | T111: =IF(R111="bitte auswählen","",VLOOKUP(R111,'F. ND u. OPEX-Pauschale'!$B$3:$F$43,5,FALSE)) -> 
B112: 107 | C112: bitte auswählen | E112: =IF(C112="bitte auswählen","",VLOOKUP(C112,'[2]F. ND u. OPEX-Pauschale'!$B$2:$F$43,5,FALSE)) ->  | R112: bitte auswählen | T112: =IF(R112="bitte auswählen","",VLOOKUP(R112,'F. ND u. OPEX-Pauschale'!$B$3:$F$43,5,FALSE)) -> 
B113: 108 | C113: bitte auswählen | E113: =IF(C113="bitte auswählen","",VLOOKUP(C113,'[2]F. ND u. OPEX-Pauschale'!$B$2:$F$43,5,FALSE)) ->  | R113: bitte auswählen | T113: =IF(R113="bitte auswählen","",VLOOKUP(R113,'F. ND u. OPEX-Pauschale'!$B$3:$F$43,5,FALSE)) -> 
B114: 109 | C114: bitte auswählen | E114: =IF(C114="bitte auswählen","",VLOOKUP(C114,'[2]F. ND u. OPEX-Pauschale'!$B$2:$F$43,5,FALSE)) ->  | R114: bitte auswählen | T114: =IF(R114="bitte auswählen","",VLOOKUP(R114,'F. ND u. OPEX-Pauschale'!$B$3:$F$43,5,FALSE)) -> 
B115: 110 | C115: bitte auswählen | E115: =IF(C115="bitte auswählen","",VLOOKUP(C115,'[2]F. ND u. OPEX-Pauschale'!$B$2:$F$43,5,FALSE)) ->  | R115: bitte auswählen | T115: =IF(R115="bitte auswählen","",VLOOKUP(R115,'F. ND u. OPEX-Pauschale'!$B$3:$F$43,5,FALSE)) -> 
B116: 111 | C116: bitte auswählen | E116: =IF(C116="bitte auswählen","",VLOOKUP(C116,'[2]F. ND u. OPEX-Pauschale'!$B$2:$F$43,5,FALSE)) ->  | R116: bitte auswählen | T116: =IF(R116="bitte auswählen","",VLOOKUP(R116,'F. ND u. OPEX-Pauschale'!$B$3:$F$43,5,FALSE)) -> 
B117: 112 | C117: bitte auswählen | E117: =IF(C117="bitte auswählen","",VLOOKUP(C117,'[2]F. ND u. OPEX-Pauschale'!$B$2:$F$43,5,FALSE)) ->  | R117: bitte auswählen | T117: =IF(R117="bitte auswählen","",VLOOKUP(R117,'F. ND u. OPEX-Pauschale'!$B$3:$F$43,5,FALSE)) -> 
B118: 113 | C118: bitte auswählen | E118: =IF(C118="bitte auswählen","",VLOOKUP(C118,'[2]F. ND u. OPEX-Pauschale'!$B$2:$F$43,5,FALSE)) ->  | R118: bitte auswählen | T118: =IF(R118="bitte auswählen","",VLOOKUP(R118,'F. ND u. OPEX-Pauschale'!$B$3:$F$43,5,FALSE)) -> 
B119: 114 | C119: bitte auswählen | E119: =IF(C119="bitte auswählen","",VLOOKUP(C119,'[2]F. ND u. OPEX-Pauschale'!$B$2:$F$43,5,FALSE)) ->  | R119: bitte auswählen | T119: =IF(R119="bitte auswählen","",VLOOKUP(R119,'F. ND u. OPEX-Pauschale'!$B$3:$F$43,5,FALSE)) -> 
B120: 115 | C120: bitte auswählen | E120: =IF(C120="bitte auswählen","",VLOOKUP(C120,'[2]F. ND u. OPEX-Pauschale'!$B$2:$F$43,5,FALSE)) ->  | R120: bitte auswählen | T120: =IF(R120="bitte auswählen","",VLOOKUP(R120,'F. ND u. OPEX-Pauschale'!$B$3:$F$43,5,FALSE)) -> 
B121: 116 | C121: bitte auswählen | E121: =IF(C121="bitte auswählen","",VLOOKUP(C121,'[2]F. ND u. OPEX-Pauschale'!$B$2:$F$43,5,FALSE)) ->  | R121: bitte auswählen | T121: =IF(R121="bitte auswählen","",VLOOKUP(R121,'F. ND u. OPEX-Pauschale'!$B$3:$F$43,5,FALSE)) -> 
B122: 117 | C122: bitte auswählen | E122: =IF(C122="bitte auswählen","",VLOOKUP(C122,'[2]F. ND u. OPEX-Pauschale'!$B$2:$F$43,5,FALSE)) ->  | R122: bitte auswählen | T122: =IF(R122="bitte auswählen","",VLOOKUP(R122,'F. ND u. OPEX-Pauschale'!$B$3:$F$43,5,FALSE)) -> 
B123: 118 | C123: bitte auswählen | E123: =IF(C123="bitte auswählen","",VLOOKUP(C123,'[2]F. ND u. OPEX-Pauschale'!$B$2:$F$43,5,FALSE)) ->  | R123: bitte auswählen | T123: =IF(R123="bitte auswählen","",VLOOKUP(R123,'F. ND u. OPEX-Pauschale'!$B$3:$F$43,5,FALSE)) -> 
B124: 119 | C124: bitte auswählen | E124: =IF(C124="bitte auswählen","",VLOOKUP(C124,'[2]F. ND u. OPEX-Pauschale'!$B$2:$F$43,5,FALSE)) ->  | R124: bitte auswählen | T124: =IF(R124="bitte auswählen","",VLOOKUP(R124,'F. ND u. OPEX-Pauschale'!$B$3:$F$43,5,FALSE)) -> 
B125: 120 | C125: bitte auswählen | E125: =IF(C125="bitte auswählen","",VLOOKUP(C125,'[2]F. ND u. OPEX-Pauschale'!$B$2:$F$43,5,FALSE)) ->  | R125: bitte auswählen | T125: =IF(R125="bitte auswählen","",VLOOKUP(R125,'F. ND u. OPEX-Pauschale'!$B$3:$F$43,5,FALSE)) -> 
B126: 121 | C126: bitte auswählen | E126: =IF(C126="bitte auswählen","",VLOOKUP(C126,'[2]F. ND u. OPEX-Pauschale'!$B$2:$F$43,5,FALSE)) ->  | R126: bitte auswählen | T126: =IF(R126="bitte auswählen","",VLOOKUP(R126,'F. ND u. OPEX-Pauschale'!$B$3:$F$43,5,FALSE)) -> 
B127: 122 | C127: bitte auswählen | E127: =IF(C127="bitte auswählen","",VLOOKUP(C127,'[2]F. ND u. OPEX-Pauschale'!$B$2:$F$43,5,FALSE)) ->  | R127: bitte auswählen | T127: =IF(R127="bitte auswählen","",VLOOKUP(R127,'F. ND u. OPEX-Pauschale'!$B$3:$F$43,5,FALSE)) -> 
B128: 123 | C128: bitte auswählen | E128: =IF(C128="bitte auswählen","",VLOOKUP(C128,'[2]F. ND u. OPEX-Pauschale'!$B$2:$F$43,5,FALSE)) ->  | R128: bitte auswählen | T128: =IF(R128="bitte auswählen","",VLOOKUP(R128,'F. ND u. OPEX-Pauschale'!$B$3:$F$43,5,FALSE)) -> 
B129: 124 | C129: bitte auswählen | E129: =IF(C129="bitte auswählen","",VLOOKUP(C129,'[2]F. ND u. OPEX-Pauschale'!$B$2:$F$43,5,FALSE)) ->  | R129: bitte auswählen | T129: =IF(R129="bitte auswählen","",VLOOKUP(R129,'F. ND u. OPEX-Pauschale'!$B$3:$F$43,5,FALSE)) -> 
B130: 125 | C130: bitte auswählen | E130: =IF(C130="bitte auswählen","",VLOOKUP(C130,'[2]F. ND u. OPEX-Pauschale'!$B$2:$F$43,5,FALSE)) ->  | R130: bitte auswählen | T130: =IF(R130="bitte auswählen","",VLOOKUP(R130,'F. ND u. OPEX-Pauschale'!$B$3:$F$43,5,FALSE)) -> 
B131: 126 | C131: bitte auswählen | E131: =IF(C131="bitte auswählen","",VLOOKUP(C131,'[2]F. ND u. OPEX-Pauschale'!$B$2:$F$43,5,FALSE)) ->  | R131: bitte auswählen | T131: =IF(R131="bitte auswählen","",VLOOKUP(R131,'F. ND u. OPEX-Pauschale'!$B$3:$F$43,5,FALSE)) -> 
B132: 127 | C132: bitte auswählen | E132: =IF(C132="bitte auswählen","",VLOOKUP(C132,'[2]F. ND u. OPEX-Pauschale'!$B$2:$F$43,5,FALSE)) ->  | R132: bitte auswählen | T132: =IF(R132="bitte auswählen","",VLOOKUP(R132,'F. ND u. OPEX-Pauschale'!$B$3:$F$43,5,FALSE)) -> 
B133: 128 | C133: bitte auswählen | E133: =IF(C133="bitte auswählen","",VLOOKUP(C133,'[2]F. ND u. OPEX-Pauschale'!$B$2:$F$43,5,FALSE)) ->  | R133: bitte auswählen | T133: =IF(R133="bitte auswählen","",VLOOKUP(R133,'F. ND u. OPEX-Pauschale'!$B$3:$F$43,5,FALSE)) -> 
B134: 129 | C134: bitte auswählen | E134: =IF(C134="bitte auswählen","",VLOOKUP(C134,'[2]F. ND u. OPEX-Pauschale'!$B$2:$F$43,5,FALSE)) ->  | R134: bitte auswählen | T134: =IF(R134="bitte auswählen","",VLOOKUP(R134,'F. ND u. OPEX-Pauschale'!$B$3:$F$43,5,FALSE)) -> 
B135: 130 | C135: bitte auswählen | E135: =IF(C135="bitte auswählen","",VLOOKUP(C135,'[2]F. ND u. OPEX-Pauschale'!$B$2:$F$43,5,FALSE)) ->  | R135: bitte auswählen | T135: =IF(R135="bitte auswählen","",VLOOKUP(R135,'F. ND u. OPEX-Pauschale'!$B$3:$F$43,5,FALSE)) -> 
B136: 131 | C136: bitte auswählen | E136: =IF(C136="bitte auswählen","",VLOOKUP(C136,'[2]F. ND u. OPEX-Pauschale'!$B$2:$F$43,5,FALSE)) ->  | R136: bitte auswählen | T136: =IF(R136="bitte auswählen","",VLOOKUP(R136,'F. ND u. OPEX-Pauschale'!$B$3:$F$43,5,FALSE)) -> 
B137: 132 | C137: bitte auswählen | E137: =IF(C137="bitte auswählen","",VLOOKUP(C137,'[2]F. ND u. OPEX-Pauschale'!$B$2:$F$43,5,FALSE)) ->  | R137: bitte auswählen | T137: =IF(R137="bitte auswählen","",VLOOKUP(R137,'F. ND u. OPEX-Pauschale'!$B$3:$F$43,5,FALSE)) -> 
B138: 133 | C138: bitte auswählen | E138: =IF(C138="bitte auswählen","",VLOOKUP(C138,'[2]F. ND u. OPEX-Pauschale'!$B$2:$F$43,5,FALSE)) ->  | R138: bitte auswählen | T138: =IF(R138="bitte auswählen","",VLOOKUP(R138,'F. ND u. OPEX-Pauschale'!$B$3:$F$43,5,FALSE)) -> 
B139: 134 | C139: bitte auswählen | E139: =IF(C139="bitte auswählen","",VLOOKUP(C139,'[2]F. ND u. OPEX-Pauschale'!$B$2:$F$43,5,FALSE)) ->  | R139: bitte auswählen | T139: =IF(R139="bitte auswählen","",VLOOKUP(R139,'F. ND u. OPEX-Pauschale'!$B$3:$F$43,5,FALSE)) -> 
B140: 135 | C140: bitte auswählen | E140: =IF(C140="bitte auswählen","",VLOOKUP(C140,'[2]F. ND u. OPEX-Pauschale'!$B$2:$F$43,5,FALSE)) ->  | R140: bitte auswählen | T140: =IF(R140="bitte auswählen","",VLOOKUP(R140,'F. ND u. OPEX-Pauschale'!$B$3:$F$43,5,FALSE)) -> 
B141: 136 | C141: bitte auswählen | E141: =IF(C141="bitte auswählen","",VLOOKUP(C141,'[2]F. ND u. OPEX-Pauschale'!$B$2:$F$43,5,FALSE)) ->  | R141: bitte auswählen | T141: =IF(R141="bitte auswählen","",VLOOKUP(R141,'F. ND u. OPEX-Pauschale'!$B$3:$F$43,5,FALSE)) -> 
B142: 137 | C142: bitte auswählen | E142: =IF(C142="bitte auswählen","",VLOOKUP(C142,'[2]F. ND u. OPEX-Pauschale'!$B$2:$F$43,5,FALSE)) ->  | R142: bitte auswählen | T142: =IF(R142="bitte auswählen","",VLOOKUP(R142,'F. ND u. OPEX-Pauschale'!$B$3:$F$43,5,FALSE)) -> 
B143: 138 | C143: bitte auswählen | E143: =IF(C143="bitte auswählen","",VLOOKUP(C143,'[2]F. ND u. OPEX-Pauschale'!$B$2:$F$43,5,FALSE)) ->  | R143: bitte auswählen | T143: =IF(R143="bitte auswählen","",VLOOKUP(R143,'F. ND u. OPEX-Pauschale'!$B$3:$F$43,5,FALSE)) -> 
B144: 139 | C144: bitte auswählen | E144: =IF(C144="bitte auswählen","",VLOOKUP(C144,'[2]F. ND u. OPEX-Pauschale'!$B$2:$F$43,5,FALSE)) ->  | R144: bitte auswählen | T144: =IF(R144="bitte auswählen","",VLOOKUP(R144,'F. ND u. OPEX-Pauschale'!$B$3:$F$43,5,FALSE)) -> 
B145: 140 | C145: bitte auswählen | E145: =IF(C145="bitte auswählen","",VLOOKUP(C145,'[2]F. ND u. OPEX-Pauschale'!$B$2:$F$43,5,FALSE)) ->  | R145: bitte auswählen | T145: =IF(R145="bitte auswählen","",VLOOKUP(R145,'F. ND u. OPEX-Pauschale'!$B$3:$F$43,5,FALSE)) -> 
B146: 141 | C146: bitte auswählen | E146: =IF(C146="bitte auswählen","",VLOOKUP(C146,'[2]F. ND u. OPEX-Pauschale'!$B$2:$F$43,5,FALSE)) ->  | R146: bitte auswählen | T146: =IF(R146="bitte auswählen","",VLOOKUP(R146,'F. ND u. OPEX-Pauschale'!$B$3:$F$43,5,FALSE)) -> 
B147: 142 | C147: bitte auswählen | E147: =IF(C147="bitte auswählen","",VLOOKUP(C147,'[2]F. ND u. OPEX-Pauschale'!$B$2:$F$43,5,FALSE)) ->  | R147: bitte auswählen | T147: =IF(R147="bitte auswählen","",VLOOKUP(R147,'F. ND u. OPEX-Pauschale'!$B$3:$F$43,5,FALSE)) -> 
B148: 143 | C148: bitte auswählen | E148: =IF(C148="bitte auswählen","",VLOOKUP(C148,'[2]F. ND u. OPEX-Pauschale'!$B$2:$F$43,5,FALSE)) ->  | R148: bitte auswählen | T148: =IF(R148="bitte auswählen","",VLOOKUP(R148,'F. ND u. OPEX-Pauschale'!$B$3:$F$43,5,FALSE)) -> 
B149: 144 | C149: bitte auswählen | E149: =IF(C149="bitte auswählen","",VLOOKUP(C149,'[2]F. ND u. OPEX-Pauschale'!$B$2:$F$43,5,FALSE)) ->  | R149: bitte auswählen | T149: =IF(R149="bitte auswählen","",VLOOKUP(R149,'F. ND u. OPEX-Pauschale'!$B$3:$F$43,5,FALSE)) -> 
B150: weitere Zeilen einfügbar
R211: bitte auswählen
R212: 1 | S212: 1 | X212: 2007
C213: bitte auswählen | R213: 2 | S213: 2 | X213: 2008
C214: 1 | I214: 2007 | R214: 3 | S214: 3 | X214: 2009
C215: 2 | I215: 2008 | R215: 4 | S215: 4 | X215: 2010
C216: 3 | I216: 2009 | R216: 5 | S216: 5 | X216: 2011
C217: 4 | I217: 2010 | R217: 6 | S217: 6 | X217: 2012
C218: 5 | I218: 2011 | R218: 7 | S218: 7 | X218: 2013
C219: 6 | I219: 2012 | R219: 8 | S219: 8 | X219: 2014
C220: 7 | I220: 2013 | R220: 9 | S220: 9 | X220: 2015
C221: 8 | I221: 2014 | R221: 10 | S221: 10 | X221: 2016
C222: 9 | I222: 2015 | R222: 11 | S222: 11 | X222: 2017
C223: 10 | I223: 2016 | R223: 12 | S223: 12 | X223: 2018
C224: 11 | I224: 2017 | R224: 13 | X224: 2019
C225: 12 | I225: 2018 | R225: 14 | X225: 2020
C226: 13 | I226: 2019 | R226: 15 | X226: 2021
C227: 15 | I227: 2020 | R227: 16 | X227: 2022
C228: 16 | I228: 2021 | R228: 17 | X228: 2023
C229: 17 | I229: 2022 | R229: 18 | X229: 2024
C230: 18 | I230: 2023 | R230: 19 | X230: 2025
C231: 19 | I231: 2024 | R231: 20 | X231: 2026
C232: 20 | I232: 2025 | R232: 21 | X232: 2027
C233: 21 | I233: 2026 | R233: 22 | X233: 2028
C234: 22 | I234: 2027 | R234: 23 | X234: 2029
C235: 23 | I235: 2028 | R235: 24 | X235: 2030
C236: 24 | I236: 2029 | R236: 25 | X236: 2031
C237: 25 | I237: 2030 | R237: 26 | X237: 2032
C238: 26 | I238: 2031 | R238: 27 | X238: 2033
C239: 27 | I239: 2032 | R239: 28 | X239: 2034
C240: 28 | I240: 2033 | R240: 29 | X240: 2035
C241: 29 | I241: 2034 | R241: 30 | X241: 2036
C242: 30 | I242: 2035 | R242: 31 | X242: 2037
C243: 31 | I243: 2036 | R243: 32 | X243: 2038
C244: 32 | I244: 2037 | R244: 33 | X244: 2039
C245: 33 | I245: 2038 | R245: 34 | X245: 2040
C246: 34 | I246: 2039 | R246: 35
C247: 35 | I247: 2040 | R247: 36
C248: 36 | R248: 37
C249: 37 | R249: 38
C250: 38 | R250: 39
C251: 39 | R251: 40
C252: 40
C253: 41

Sheet D. Treibenergie
B2: D. Kosten für Treibenergie (voraussichtliche Werte)
B4: Jahr | C4: Kosten in Euro [gesamt] | E4: Erläuterung: Bitte die Kosten für Gas, Strom (sofern als Treibenergie eingesetzt)
B5: 2019 | C5: 0 | E5: und für CO2-Zertifikate eintragen
B6: =B5+1 -> 2020 | C6: 0
B7: =B6+1 -> 2021 | C7: 0
B8: 2022 | C8: 0
B9: 2023 | C9: 0
B10: 2024 | C10: 0
B11: 2025 | C11: 0
B12: 2026 | C12: 0
B13: 2027 | C13: 0
B14: 2028 | C14: 0
B15: 2029 | C15: 0
B16: 2030 | C16: 0
B17: 2031 | C17: 0
B18: 2032 | C18: 0
B19: 2033 | C19: 0
B20: 2034 | C20: 0
B21: 2035 | C21: 0
B22: 2036 | C22: 0
B23: 2037 | C23: 0
B24: 2038 | C24: 0
B25: 2039 | C25: 0
B26: 2040 | C26: 0
B27: 2041 | C27: 0
B28: 2042 | C28: 0
B29: 2043 | C29: 0
B30: 2044 | C30: 0
B31: 2045 | C31: 0
B32: 2046 | C32: 0
B33: 2047 | C33: 0
B34: 2048 | C34: 0
B35: 2049 | C35: 0
B36: 2050 | C36: 0
B37: 2051 | C37: 0
B38: 2052 | C38: 0
B39: 2053 | C39: 0
B40: 2054 | C40: 0
B41: 2055 | C41: 0
B42: 2056 | C42: 0
B43: 2057 | C43: 0
B44: 2058 | C44: 0
B45: 2059 | C45: 0
B46: 2060 | C46: 0
B47: 2061 | C47: 0
B48: 2062 | C48: 0
B49: 2063 | C49: 0
B50: 2064 | C50: 0
B51: 2065 | C51: 0
B52: 2066 | C52: 0
B53: 2067 | C53: 0
B54: 2068 | C54: 0
B55: 2069 | C55: 0
B56: 2070 | C56: 0
B57: 2071 | C57: 0
B58: 2072 | C58: 0
B59: 2073 | C59: 0
B60: 2074 | C60: 0
B61: 2075 | C61: 0
B62: 2076 | C62: 0
B63: 2077 | C63: 0
B64: 2078 | C64: 0
B65: 2079 | C65: 0
B66: 2080 | C66: 0
B67: 2081 | C67: 0
B68: 2082 | C68: 0
B69: 2083 | C69: 0
B70: 2084 | C70: 0
B71: =B70+1 -> 2085 | C71: 0
B72: 2086 | C72: 0
B73: 2087 | C73: 0
B74: 2088 | C74: 0
B75: 2089 | C75: 0
B76: 2090 | C76: 0
B77: 2091 | C77: 0
B78: 2092 | C78: 0
B79: 2093 | C79: 0
B80: 2094 | C80: 0
B81: 2095 | C81: 0
B82: 2096 | C82: 0
B83: 2097 | C83: 0
B84: 2098 | C84: 0
B85: 2099 | C85: 0
B86: 2100 | C86: 0
B87: 2101 | C87: 0
B88: 2102 | C88: 0
B89: 2103 | C89: 0

Sheet E. BKZ
B1: E. Baukostenzuschüsse / Netzanschlusskostenbeiträge
C2: Zugang | D2: Auflösung
D3: 2016 | E3: =D3+1 -> 2017 | F3: 2018 | G3: 2019 | H3: 2020 | I3: 2021 | J3: 2022 | K3: 2023 | L3: 2024 | M3: 2025 | N3: 2026 | O3: 2027 | P3: 2028 | Q3: 2029 | R3: 2030 | S3: 2031 | T3: 2032 | U3: 2033 | V3: 2034 | W3: 2035 | X3: 2036 | Y3: 2037 | Z3: 2038 | AA3: 2039 | AB3: 2040 | AC3: 2041 | AD3: 2042 | AE3: 2043 | AF3: 2044 | AG3: 2045 | AH3: 2046 | AI3: 2047 | AJ3: 2048 | AK3: 2049 | AL3: 2050 | AM3: =AL3+1 -> 2051 | AN3: 2052 | AO3: 2053 | AP3: 2054 | AQ3: 2055 | AR3: 2056 | AS3: 2057 | AT3: 2058 | AU3: 2059 | AV3: 2060 | AW3: 2061 | AX3: 2062 | AY3: 2063 | AZ3: 2064 | BA3: 2065 | BB3: 2066 | BC3: 2067 | BD3: 2068 | BE3: 2069 | BF3: 2070 | BG3: 2071 | BH3: 2072 | BI3: 2073 | BJ3: 2074 | BK3: 2075 | BL3: 2076 | BM3: 2077 | BN3: 2078 | BO3: 2079 | BP3: 2080 | BQ3: 2081 | BR3: 2082 | BS3: 2083 | BT3: 2084 | BU3: 2085 | BV3: 2086 | BW3: 2087 | BX3: 2088 | BY3: 2089 | BZ3: 2090 | CA3: 2091 | CB3: 2092 | CC3: 2093 | CD3: 2094 | CE3: 2095 | CF3: 2096 | CG3: 2097 | CH3: 2098 | CI3: 2099 | CJ3: 2100
B4: 2019 | C4: 0 | D4: =IF(OR(D$3<$B4,D$3>=$B4+$D$91),"",$C4/$D$91) ->  | G4: 0 | H4: 0 | I4: 0 | J4: 0 | K4: 0 | L4: 0 | M4: 0 | N4: 0 | O4: 0 | P4: 0 | Q4: 0 | R4: 0 | S4: 0 | T4: 0 | U4: 0 | V4: 0 | W4: 0 | X4: 0 | Y4: 0 | Z4: 0 | AJ4: =IF(OR(AJ$3<$B4,AJ$3>=$B4+$D$91),"",$C4/$D$91) ->  | BP4: =IF(OR(BP$3<$B4,BP$3>=$B4+$D$91),"",$C4/$D$91) -> 
B5: =B4+1 -> 2020 | C5: 0 | E5: =IF(OR(E$3<$B5,E$3>=$B5+$D$91),"",$C5/$D$91) ->  | H5: 0 | I5: 0 | J5: 0 | K5: 0 | L5: 0 | M5: 0 | N5: 0 | O5: 0 | P5: 0 | Q5: 0 | R5: 0 | S5: 0 | T5: 0 | U5: 0 | V5: 0 | W5: 0 | X5: 0 | Y5: 0 | Z5: 0 | AA5: 0 | AK5: =IF(OR(AK$3<$B5,AK$3>=$B5+$D$91),"",$C5/$D$91) ->  | BQ5: =IF(OR(BQ$3<$B5,BQ$3>=$B5+$D$91),"",$C5/$D$91) -> 
B6: =B5+1 -> 2021 | C6: 0 | F6: =IF(OR(F$3<$B6,F$3>=$B6+$D$91),"",$C6/$D$91) ->  | I6: 0 | J6: 0 | K6: 0 | L6: 0 | M6: 0 | N6: 0 | O6: 0 | P6: 0 | Q6: 0 | R6: 0 | S6: 0 | T6: 0 | U6: 0 | V6: 0 | W6: 0 | X6: 0 | Y6: 0 | Z6: 0 | AA6: 0 | AB6: 0 | AL6: =IF(OR(AL$3<$B6,AL$3>=$B6+$D$91),"",$C6/$D$91) ->  | BR6: =IF(OR(BR$3<$B6,BR$3>=$B6+$D$91),"",$C6/$D$91) -> 
B7: 2022 | C7: 0 | G7: =IF(OR(G$3<$B7,G$3>=$B7+$D$91),"",$C7/$D$91) ->  | J7: 0 | K7: 0 | L7: 0 | M7: 0 | N7: 0 | O7: 0 | P7: 0 | Q7: 0 | R7: 0 | S7: 0 | T7: 0 | U7: 0 | V7: 0 | W7: 0 | X7: 0 | Y7: 0 | Z7: 0 | AA7: 0 | AB7: 0 | AC7: 0 | AM7: =IF(OR(AM$3<$B7,AM$3>=$B7+$D$91),"",$C7/$D$91) ->  | BS7: =IF(OR(BS$3<$B7,BS$3>=$B7+$D$91),"",$C7/$D$91) -> 
B8: 2023 | C8: 0 | H8: =IF(OR(H$3<$B8,H$3>=$B8+$D$91),"",$C8/$D$91) ->  | K8: 0 | L8: 0 | M8: 0 | N8: 0 | O8: 0 | P8: 0 | Q8: 0 | R8: 0 | S8: 0 | T8: 0 | U8: 0 | V8: 0 | W8: 0 | X8: 0 | Y8: 0 | Z8: 0 | AA8: 0 | AB8: 0 | AC8: 0 | AD8: 0 | AN8: =IF(OR(AN$3<$B8,AN$3>=$B8+$D$91),"",$C8/$D$91) ->  | BT8: =IF(OR(BT$3<$B8,BT$3>=$B8+$D$91),"",$C8/$D$91) -> 
B9: 2024 | C9: 0 | I9: =IF(OR(I$3<$B9,I$3>=$B9+$D$91),"",$C9/$D$91) ->  | L9: 0 | M9: 0 | N9: 0 | O9: 0 | P9: 0 | Q9: 0 | R9: 0 | S9: 0 | T9: 0 | U9: 0 | V9: 0 | W9: 0 | X9: 0 | Y9: 0 | Z9: 0 | AA9: 0 | AB9: 0 | AC9: 0 | AD9: 0 | AE9: 0 | AO9: =IF(OR(AO$3<$B9,AO$3>=$B9+$D$91),"",$C9/$D$91) ->  | BU9: =IF(OR(BU$3<$B9,BU$3>=$B9+$D$91),"",$C9/$D$91) -> 
B10: 2025 | C10: 0 | J10: =IF(OR(J$3<$B10,J$3>=$B10+$D$91),"",$C10/$D$91) ->  | M10: 0 | N10: 0 | O10: 0 | P10: 0 | Q10: 0 | R10: 0 | S10: 0 | T10: 0 | U10: 0 | V10: 0 | W10: 0 | X10: 0 | Y10: 0 | Z10: 0 | AA10: 0 | AB10: 0 | AC10: 0 | AD10: 0 | AE10: 0 | AF10: 0 | AP10: =IF(OR(AP$3<$B10,AP$3>=$B10+$D$91),"",$C10/$D$91) ->  | BV10: =IF(OR(BV$3<$B10,BV$3>=$B10+$D$91),"",$C10/$D$91) -> 
B11: 2026 | C11: 0 | K11: =IF(OR(K$3<$B11,K$3>=$B11+$D$91),"",$C11/$D$91) ->  | N11: 0 | O11: 0 | P11: 0 | Q11: 0 | R11: 0 | S11: 0 | T11: 0 | U11: 0 | V11: 0 | W11: 0 | X11: 0 | Y11: 0 | Z11: 0 | AA11: 0 | AB11: 0 | AC11: 0 | AD11: 0 | AE11: 0 | AF11: 0 | AG11: 0 | AQ11: =IF(OR(AQ$3<$B11,AQ$3>=$B11+$D$91),"",$C11/$D$91) ->  | BW11: =IF(OR(BW$3<$B11,BW$3>=$B11+$D$91),"",$C11/$D$91) -> 
B12: 2027 | C12: 0 | L12: =IF(OR(L$3<$B12,L$3>=$B12+$D$91),"",$C12/$D$91) ->  | O12: 0 | P12: 0 | Q12: 0 | R12: 0 | S12: 0 | T12: 0 | U12: 0 | V12: 0 | W12: 0 | X12: 0 | Y12: 0 | Z12: 0 | AA12: 0 | AB12: 0 | AC12: 0 | AD12: 0 | AE12: 0 | AF12: 0 | AG12: 0 | AH12: 0 | AR12: =IF(OR(AR$3<$B12,AR$3>=$B12+$D$91),"",$C12/$D$91) ->  | BX12: =IF(OR(BX$3<$B12,BX$3>=$B12+$D$91),"",$C12/$D$91) -> 
B13: 2028 | C13: 0 | M13: =IF(OR(M$3<$B13,M$3>=$B13+$D$91),"",$C13/$D$91) ->  | P13: 0 | Q13: 0 | R13: 0 | S13: 0 | T13: 0 | U13: 0 | V13: 0 | W13: 0 | X13: 0 | Y13: 0 | Z13: 0 | AA13: 0 | AB13: 0 | AC13: 0 | AD13: 0 | AE13: 0 | AF13: 0 | AG13: 0 | AH13: 0 | AI13: 0 | AS13: =IF(OR(AS$3<$B13,AS$3>=$B13+$D$91),"",$C13/$D$91) ->  | BY13: =IF(OR(BY$3<$B13,BY$3>=$B13+$D$91),"",$C13/$D$91) -> 
B14: 2029 | C14: 0 | N14: =IF(OR(N$3<$B14,N$3>=$B14+$D$91),"",$C14/$D$91) ->  | Q14: 0 | R14: 0 | S14: 0 | T14: 0 | U14: 0 | V14: 0 | W14: 0 | X14: 0 | Y14: 0 | Z14: 0 | AA14: 0 | AB14: 0 | AC14: 0 | AD14: 0 | AE14: 0 | AF14: 0 | AG14: 0 | AH14: 0 | AI14: 0 | AJ14: 0 | AT14: =IF(OR(AT$3<$B14,AT$3>=$B14+$D$91),"",$C14/$D$91) ->  | BZ14: =IF(OR(BZ$3<$B14,BZ$3>=$B14+$D$91),"",$C14/$D$91) -> 
B15: 2030 | C15: 0 | O15: =IF(OR(O$3<$B15,O$3>=$B15+$D$91),"",$C15/$D$91) ->  | R15: 0 | S15: 0 | T15: 0 | U15: 0 | V15: 0 | W15: 0 | X15: 0 | Y15: 0 | Z15: 0 | AA15: 0 | AB15: 0 | AC15: 0 | AD15: 0 | AE15: 0 | AF15: 0 | AG15: 0 | AH15: 0 | AI15: 0 | AJ15: 0 | AK15: 0 | AU15: =IF(OR(AU$3<$B15,AU$3>=$B15+$D$91),"",$C15/$D$91) ->  | CA15: =IF(OR(CA$3<$B15,CA$3>=$B15+$D$91),"",$C15/$D$91) -> 
B16: 2031 | C16: 0 | P16: =IF(OR(P$3<$B16,P$3>=$B16+$D$91),"",$C16/$D$91) ->  | S16: 0 | T16: 0 | U16: 0 | V16: 0 | W16: 0 | X16: 0 | Y16: 0 | Z16: 0 | AA16: 0 | AB16: 0 | AC16: 0 | AD16: 0 | AE16: 0 | AF16: 0 | AG16: 0 | AH16: 0 | AI16: 0 | AJ16: 0 | AK16: 0 | AL16: 0 | AV16: =IF(OR(AV$3<$B16,AV$3>=$B16+$D$91),"",$C16/$D$91) ->  | CB16: =IF(OR(CB$3<$B16,CB$3>=$B16+$D$91),"",$C16/$D$91) -> 
B17: 2032 | C17: 0 | Q17: =IF(OR(Q$3<$B17,Q$3>=$B17+$D$91),"",$C17/$D$91) ->  | T17: 0 | U17: 0 | V17: 0 | W17: 0 | X17: 0 | Y17: 0 | Z17: 0 | AA17: 0 | AB17: 0 | AC17: 0 | AD17: 0 | AE17: 0 | AF17: 0 | AG17: 0 | AH17: 0 | AI17: 0 | AJ17: 0 | AK17: 0 | AL17: 0 | AM17: 0 | AW17: =IF(OR(AW$3<$B17,AW$3>=$B17+$D$91),"",$C17/$D$91) ->  | CC17: =IF(OR(CC$3<$B17,CC$3>=$B17+$D$91),"",$C17/$D$91) -> 
B18: 2033 | C18: 0 | R18: =IF(OR(R$3<$B18,R$3>=$B18+$D$91),"",$C18/$D$91) ->  | U18: 0 | V18: 0 | W18: 0 | X18: 0 | Y18: 0 | Z18: 0 | AA18: 0 | AB18: 0 | AC18: 0 | AD18: 0 | AE18: 0 | AF18: 0 | AG18: 0 | AH18: 0 | AI18: 0 | AJ18: 0 | AK18: 0 | AL18: 0 | AM18: 0 | AN18: 0 | AX18: =IF(OR(AX$3<$B18,AX$3>=$B18+$D$91),"",$C18/$D$91) ->  | CD18: =IF(OR(CD$3<$B18,CD$3>=$B18+$D$91),"",$C18/$D$91) -> 
B19: 2034 | C19: 0 | S19: =IF(OR(S$3<$B19,S$3>=$B19+$D$91),"",$C19/$D$91) ->  | V19: 0 | W19: 0 | X19: 0 | Y19: 0 | Z19: 0 | AA19: 0 | AB19: 0 | AC19: =IF(OR(AC$3<$B19,AC$3>=$B19+$D$91),"",$C19/$D$91) -> 0 | AD19: 0 | AE19: 0 | AF19: 0 | AG19: 0 | AH19: 0 | AI19: 0 | AJ19: 0 | AK19: 0 | AL19: 0 | AM19: =IF(OR(AM$3<$B19,AM$3>=$B19+$D$91),"",$C19/$D$91) -> 0 | AN19: 0 | AO19: 0 | AW19: =IF(OR(AW$3<$B19,AW$3>=$B19+$D$91),"",$C19/$D$91) ->  | BG19: =IF(OR(BG$3<$B19,BG$3>=$B19+$D$91),"",$C19/$D$91) ->  | BQ19: =IF(OR(BQ$3<$B19,BQ$3>=$B19+$D$91),"",$C19/$D$91) ->  | CA19: =IF(OR(CA$3<$B19,CA$3>=$B19+$D$91),"",$C19/$D$91) -> 
B20: 2035 | C20: 0 | W20: 0 | X20: 0 | Y20: 0 | Z20: 0 | AA20: 0 | AB20: 0 | AC20: 0 | AD20: 0 | AE20: 0 | AF20: 0 | AG20: 0 | AH20: 0 | AI20: 0 | AJ20: 0 | AK20: 0 | AL20: 0 | AM20: 0 | AN20: 0 | AO20: 0 | AP20: 0
B21: 2036 | C21: 0 | T21: =IF(OR(T$3<$B21,T$3>=$B21+$D$91),"",$C21/$D$91) ->  | X21: 0 | Y21: 0 | Z21: 0 | AA21: 0 | AB21: 0 | AC21: 0 | AD21: =IF(OR(AD$3<$B21,AD$3>=$B21+$D$91),"",$C21/$D$91) -> 0 | AE21: 0 | AF21: 0 | AG21: 0 | AH21: 0 | AI21: 0 | AJ21: 0 | AK21: 0 | AL21: 0 | AM21: 0 | AN21: =IF(OR(AN$3<$B21,AN$3>=$B21+$D$91),"",$C21/$D$91) -> 0 | AO21: 0 | AP21: 0 | AQ21: 0 | AX21: =IF(OR(AX$3<$B21,AX$3>=$B21+$D$91),"",$C21/$D$91) ->  | BH21: =IF(OR(BH$3<$B21,BH$3>=$B21+$D$91),"",$C21/$D$91) ->  | BR21: =IF(OR(BR$3<$B21,BR$3>=$B21+$D$91),"",$C21/$D$91) ->  | CB21: =IF(OR(CB$3<$B21,CB$3>=$B21+$D$91),"",$C21/$D$91) -> 
B22: 2037 | C22: 0 | Y22: 0 | Z22: 0 | AA22: 0 | AB22: 0 | AC22: 0 | AD22: 0 | AE22: 0 | AF22: 0 | AG22: 0 | AH22: 0 | AI22: 0 | AJ22: 0 | AK22: 0 | AL22: 0 | AM22: 0 | AN22: 0 | AO22: 0 | AP22: 0 | AQ22: 0 | AR22: 0
B23: 2038 | C23: 0 | Z23: 0 | AA23: 0 | AB23: 0 | AC23: 0 | AD23: 0 | AE23: 0 | AF23: 0 | AG23: 0 | AH23: 0 | AI23: 0 | AJ23: 0 | AK23: 0 | AL23: 0 | AM23: 0 | AN23: 0 | AO23: 0 | AP23: 0 | AQ23: 0 | AR23: 0 | AS23: 0
B24: 2039 | C24: 0 | AA24: 0 | AB24: 0 | AC24: 0 | AD24: 0 | AE24: 0 | AF24: 0 | AG24: 0 | AH24: 0 | AI24: 0 | AJ24: 0 | AK24: 0 | AL24: 0 | AM24: 0 | AN24: 0 | AO24: 0 | AP24: 0 | AQ24: 0 | AR24: 0 | AS24: 0 | AT24: 0
B25: 2040 | C25: 0 | U25: =IF(OR(U$3<$B25,U$3>=$B25+$D$91),"",$C25/$D$91) ->  | AB25: 0 | AC25: 0 | AD25: 0 | AE25: =IF(OR(AE$3<$B25,AE$3>=$B25+$D$91),"",$C25/$D$91) -> 0 | AF25: 0 | AG25: 0 | AH25: 0 | AI25: 0 | AJ25: 0 | AK25: 0 | AL25: 0 | AM25: 0 | AN25: 0 | AO25: =IF(OR(AO$3<$B25,AO$3>=$B25+$D$91),"",$C25/$D$91) -> 0 | AP25: 0 | AQ25: 0 | AR25: 0 | AS25: 0 | AT25: 0 | AU25: 0 | AY25: =IF(OR(AY$3<$B25,AY$3>=$B25+$D$91),"",$C25/$D$91) ->  | BI25: =IF(OR(BI$3<$B25,BI$3>=$B25+$D$91),"",$C25/$D$91) ->  | BS25: =IF(OR(BS$3<$B25,BS$3>=$B25+$D$91),"",$C25/$D$91) ->  | CC25: =IF(OR(CC$3<$B25,CC$3>=$B25+$D$91),"",$C25/$D$91) -> 
B26: 2041 | C26: 0 | AC26: 0 | AD26: 0 | AE26: 0 | AF26: 0 | AG26: 0 | AH26: 0 | AI26: 0 | AJ26: 0 | AK26: 0 | AL26: 0 | AM26: 0 | AN26: 0 | AO26: 0 | AP26: 0 | AQ26: 0 | AR26: 0 | AS26: 0 | AT26: 0 | AU26: 0 | AV26: 0
B27: 2042 | C27: 0 | AD27: 0 | AE27: 0 | AF27: 0 | AG27: 0 | AH27: 0 | AI27: 0 | AJ27: 0 | AK27: 0 | AL27: 0 | AM27: 0 | AN27: 0 | AO27: 0 | AP27: 0 | AQ27: 0 | AR27: 0 | AS27: 0 | AT27: 0 | AU27: 0 | AV27: 0 | AW27: 0
B28: 2043 | C28: 0 | AE28: 0 | AF28: 0 | AG28: 0 | AH28: 0 | AI28: 0 | AJ28: 0 | AK28: 0 | AL28: 0 | AM28: 0 | AN28: 0 | AO28: 0 | AP28: 0 | AQ28: 0 | AR28: 0 | AS28: 0 | AT28: 0 | AU28: 0 | AV28: 0 | AW28: 0 | AX28: 0
B29: 2044 | C29: 0 | AF29: 0 | AG29: 0 | AH29: 0 | AI29: 0 | AJ29: 0 | AK29: 0 | AL29: 0 | AM29: 0 | AN29: 0 | AO29: 0 | AP29: 0 | AQ29: 0 | AR29: 0 | AS29: 0 | AT29: 0 | AU29: 0 | AV29: 0 | AW29: 0 | AX29: 0 | AY29: 0
B30: 2045 | C30: 0 | AG30: 0 | AH30: 0 | AI30: 0 | AJ30: 0 | AK30: 0 | AL30: 0 | AM30: 0 | AN30: 0 | AO30: 0 | AP30: 0 | AQ30: 0 | AR30: 0 | AS30: 0 | AT30: 0 | AU30: 0 | AV30: 0 | AW30: 0 | AX30: 0 | AY30: 0 | AZ30: 0
B31: 2046 | C31: 0 | AH31: 0 | AI31: 0 | AJ31: 0 | AK31: 0 | AL31: 0 | AM31: 0 | AN31: 0 | AO31: 0 | AP31: 0 | AQ31: 0 | AR31: 0 | AS31: 0 | AT31: 0 | AU31: 0 | AV31: 0 | AW31: 0 | AX31: 0 | AY31: 0 | AZ31: 0 | BA31: 0
B32: 2047 | C32: 0 | AI32: 0 | AJ32: 0 | AK32: 0 | AL32: 0 | AM32: 0 | AN32: 0 | AO32: 0 | AP32: 0 | AQ32: 0 | AR32: 0 | AS32: 0 | AT32: 0 | AU32: 0 | AV32: 0 | AW32: 0 | AX32: 0 | AY32: 0 | AZ32: 0 | BA32: 0 | BB32: 0
B33: 2048 | C33: 0 | AJ33: 0 | AK33: 0 | AL33: 0 | AM33: 0 | AN33: 0 | AO33: 0 | AP33: 0 | AQ33: 0 | AR33: 0 | AS33: 0 | AT33: 0 | AU33: 0 | AV33: 0 | AW33: 0 | AX33: 0 | AY33: 0 | AZ33: 0 | BA33: 0 | BB33: 0 | BC33: 0
B34: 2049 | C34: 0 | AG34: =IF(OR(AG$3<$B34,AG$3>=$B34+$D$91),"",$C34/$D$91) ->  | AK34: 0 | AL34: 0 | AM34: 0 | AN34: 0 | AO34: 0 | AP34: 0 | AQ34: =IF(OR(AQ$3<$B34,AQ$3>=$B34+$D$91),"",$C34/$D$91) -> 0 | AR34: 0 | AS34: 0 | AT34: 0 | AU34: 0 | AV34: 0 | AW34: 0 | AX34: 0 | AY34: 0 | AZ34: 0 | BA34: =IF(OR(BA$3<$B34,BA$3>=$B34+$D$91),"",$C34/$D$91) -> 0 | BB34: 0 | BC34: 0 | BD34: 0 | BK34: =IF(OR(BK$3<$B34,BK$3>=$B34+$D$91),"",$C34/$D$91) ->  | BU34: =IF(OR(BU$3<$B34,BU$3>=$B34+$D$91),"",$C34/$D$91) ->  | CE34: =IF(OR(CE$3<$B34,CE$3>=$B34+$D$91),"",$C34/$D$91) -> 
B35: 2050 | C35: 0 | AL35: 0 | AM35: 0 | AN35: 0 | AO35: 0 | AP35: 0 | AQ35: 0 | AR35: 0 | AS35: 0 | AT35: 0 | AU35: 0 | AV35: 0 | AW35: 0 | AX35: 0 | AY35: 0 | AZ35: 0 | BA35: 0 | BB35: 0 | BC35: 0 | BD35: 0 | BE35: 0
B36: 2051 | C36: 0 | AM36: 0 | AN36: 0 | AO36: 0 | AP36: 0 | AQ36: 0 | AR36: 0 | AS36: 0 | AT36: 0 | AU36: 0 | AV36: 0 | AW36: 0 | AX36: 0 | AY36: 0 | AZ36: 0 | BA36: 0 | BB36: 0 | BC36: 0 | BD36: 0 | BE36: 0 | BF36: 0
B37: 2052 | C37: 0 | AN37: 0 | AO37: 0 | AP37: 0 | AQ37: 0 | AR37: 0 | AS37: 0 | AT37: 0 | AU37: 0 | AV37: 0 | AW37: 0 | AX37: 0 | AY37: 0 | AZ37: 0 | BA37: 0 | BB37: 0 | BC37: 0 | BD37: 0 | BE37: 0 | BF37: 0 | BG37: 0
B38: 2053 | C38: 0 | AO38: 0 | AP38: 0 | AQ38: 0 | AR38: 0 | AS38: 0 | AT38: 0 | AU38: 0 | AV38: 0 | AW38: 0 | AX38: 0 | AY38: 0 | AZ38: 0 | BA38: 0 | BB38: 0 | BC38: 0 | BD38: 0 | BE38: 0 | BF38: 0 | BG38: 0 | BH38: 0
B39: 2054 | C39: 0 | AP39: 0 | AQ39: 0 | AR39: 0 | AS39: 0 | AT39: 0 | AU39: 0 | AV39: 0 | AW39: 0 | AX39: 0 | AY39: 0 | AZ39: 0 | BA39: 0 | BB39: 0 | BC39: 0 | BD39: 0 | BE39: 0 | BF39: 0 | BG39: 0 | BH39: 0 | BI39: 0
B40: 2055 | C40: 0 | AQ40: 0 | AR40: 0 | AS40: 0 | AT40: 0 | AU40: 0 | AV40: 0 | AW40: 0 | AX40: 0 | AY40: 0 | AZ40: 0 | BA40: 0 | BB40: 0 | BC40: 0 | BD40: 0 | BE40: 0 | BF40: 0 | BG40: 0 | BH40: 0 | BI40: 0 | BJ40: 0
B41: 2056 | C41: 0 | AR41: 0 | AS41: 0 | AT41: 0 | AU41: 0 | AV41: 0 | AW41: 0 | AX41: 0 | AY41: 0 | AZ41: 0 | BA41: 0 | BB41: 0 | BC41: 0 | BD41: 0 | BE41: 0 | BF41: 0 | BG41: 0 | BH41: 0 | BI41: 0 | BJ41: 0 | BK41: 0
B42: 2057 | C42: 0 | AS42: 0 | AT42: 0 | AU42: 0 | AV42: 0 | AW42: 0 | AX42: 0 | AY42: 0 | AZ42: 0 | BA42: 0 | BB42: 0 | BC42: 0 | BD42: 0 | BE42: 0 | BF42: 0 | BG42: 0 | BH42: 0 | BI42: 0 | BJ42: 0 | BK42: 0 | BL42: 0
B43: 2058 | C43: 0 | AT43: 0 | AU43: 0 | AV43: 0 | AW43: 0 | AX43: 0 | AY43: 0 | AZ43: 0 | BA43: 0 | BB43: 0 | BC43: 0 | BD43: 0 | BE43: 0 | BF43: 0 | BG43: 0 | BH43: 0 | BI43: 0 | BJ43: 0 | BK43: 0 | BL43: 0 | BM43: 0
B44: 2059 | C44: 0 | AG44: =IF(OR(AG$3<$B44,AG$3>=$B44+$D$91),"",$C44/$D$91) ->  | AQ44: =IF(OR(AQ$3<$B44,AQ$3>=$B44+$D$91),"",$C44/$D$91) ->  | AU44: 0 | AV44: 0 | AW44: 0 | AX44: 0 | AY44: 0 | AZ44: 0 | BA44: =IF(OR(BA$3<$B44,BA$3>=$B44+$D$91),"",$C44/$D$91) -> 0 | BB44: 0 | BC44: 0 | BD44: 0 | BE44: 0 | BF44: 0 | BG44: 0 | BH44: 0 | BI44: 0 | BJ44: 0 | BK44: =IF(OR(BK$3<$B44,BK$3>=$B44+$D$91),"",$C44/$D$91) -> 0 | BL44: 0 | BM44: 0 | BN44: 0 | BU44: =IF(OR(BU$3<$B44,BU$3>=$B44+$D$91),"",$C44/$D$91) ->  | CE44: =IF(OR(CE$3<$B44,CE$3>=$B44+$D$91),"",$C44/$D$91) -> 
B45: 2060 | C45: 0 | AV45: 0 | AW45: 0 | AX45: 0 | AY45: 0 | AZ45: 0 | BA45: 0 | BB45: 0 | BC45: 0 | BD45: 0 | BE45: 0 | BF45: 0 | BG45: 0 | BH45: 0 | BI45: 0 | BJ45: 0 | BK45: 0 | BL45: 0 | BM45: 0 | BN45: 0 | BO45: 0
B46: 2061 | C46: 0 | AW46: 0 | AX46: 0 | AY46: 0 | AZ46: 0 | BA46: 0 | BB46: 0 | BC46: 0 | BD46: 0 | BE46: 0 | BF46: 0 | BG46: 0 | BH46: 0 | BI46: 0 | BJ46: 0 | BK46: 0 | BL46: 0 | BM46: 0 | BN46: 0 | BO46: 0 | BP46: 0
B47: 2062 | C47: 0 | AX47: 0 | AY47: 0 | AZ47: 0 | BA47: 0 | BB47: 0 | BC47: 0 | BD47: 0 | BE47: 0 | BF47: 0 | BG47: 0 | BH47: 0 | BI47: 0 | BJ47: 0 | BK47: 0 | BL47: 0 | BM47: 0 | BN47: 0 | BO47: 0 | BP47: 0 | BQ47: 0
B48: 2063 | C48: 0 | AY48: 0 | AZ48: 0 | BA48: 0 | BB48: 0 | BC48: 0 | BD48: 0 | BE48: 0 | BF48: 0 | BG48: 0 | BH48: 0 | BI48: 0 | BJ48: 0 | BK48: 0 | BL48: 0 | BM48: 0 | BN48: 0 | BO48: 0 | BP48: 0 | BQ48: 0 | BR48: 0
B49: 2064 | C49: 0 | AZ49: 0 | BA49: 0 | BB49: 0 | BC49: 0 | BD49: 0 | BE49: 0 | BF49: 0 | BG49: 0 | BH49: 0 | BI49: 0 | BJ49: 0 | BK49: 0 | BL49: 0 | BM49: 0 | BN49: 0 | BO49: 0 | BP49: 0 | BQ49: 0 | BR49: 0 | BS49: 0
B50: 2065 | C50: 0 | BA50: 0 | BB50: 0 | BC50: 0 | BD50: 0 | BE50: 0 | BF50: 0 | BG50: 0 | BH50: 0 | BI50: 0 | BJ50: 0 | BK50: 0 | BL50: 0 | BM50: 0 | BN50: 0 | BO50: 0 | BP50: 0 | BQ50: 0 | BR50: 0 | BS50: 0 | BT50: 0
B51: 2066 | C51: 0 | BB51: 0 | BC51: 0 | BD51: 0 | BE51: 0 | BF51: 0 | BG51: 0 | BH51: 0 | BI51: 0 | BJ51: 0 | BK51: 0 | BL51: 0 | BM51: 0 | BN51: 0 | BO51: 0 | BP51: 0 | BQ51: 0 | BR51: 0 | BS51: 0 | BT51: 0 | BU51: 0
B52: 2067 | C52: 0 | BC52: 0 | BD52: 0 | BE52: 0 | BF52: 0 | BG52: 0 | BH52: 0 | BI52: 0 | BJ52: 0 | BK52: 0 | BL52: 0 | BM52: 0 | BN52: 0 | BO52: 0 | BP52: 0 | BQ52: 0 | BR52: 0 | BS52: 0 | BT52: 0 | BU52: 0 | BV52: 0
B53: 2068 | C53: 0 | BD53: 0 | BE53: 0 | BF53: 0 | BG53: 0 | BH53: 0 | BI53: 0 | BJ53: 0 | BK53: 0 | BL53: 0 | BM53: 0 | BN53: 0 | BO53: 0 | BP53: 0 | BQ53: 0 | BR53: 0 | BS53: 0 | BT53: 0 | BU53: 0 | BV53: 0 | BW53: 0
B54: 2069 | C54: 0 | AG54: =IF(OR(AG$3<$B54,AG$3>=$B54+$D$91),"",$C54/$D$91) ->  | AQ54: =IF(OR(AQ$3<$B54,AQ$3>=$B54+$D$91),"",$C54/$D$91) ->  | BA54: =IF(OR(BA$3<$B54,BA$3>=$B54+$D$91),"",$C54/$D$91) ->  | BE54: 0 | BF54: 0 | BG54: 0 | BH54: 0 | BI54: 0 | BJ54: 0 | BK54: =IF(OR(BK$3<$B54,BK$3>=$B54+$D$91),"",$C54/$D$91) -> 0 | BL54: 0 | BM54: 0 | BN54: 0 | BO54: 0 | BP54: 0 | BQ54: 0 | BR54: 0 | BS54: 0 | BT54: 0 | BU54: =IF(OR(BU$3<$B54,BU$3>=$B54+$D$91),"",$C54/$D$91) -> 0 | BV54: 0 | BW54: 0 | BX54: 0 | CE54: =IF(OR(CE$3<$B54,CE$3>=$B54+$D$91),"",$C54/$D$91) -> 
B55: 2070 | C55: 0 | BF55: 0 | BG55: 0 | BH55: 0 | BI55: 0 | BJ55: 0 | BK55: 0 | BL55: 0 | BM55: 0 | BN55: 0 | BO55: 0 | BP55: 0 | BQ55: 0 | BR55: 0 | BS55: 0 | BT55: 0 | BU55: 0 | BV55: 0 | BW55: 0 | BX55: 0 | BY55: 0
B56: 2071 | C56: 0 | BG56: 0 | BH56: 0 | BI56: 0 | BJ56: 0 | BK56: 0 | BL56: 0 | BM56: 0 | BN56: 0 | BO56: 0 | BP56: 0 | BQ56: 0 | BR56: 0 | BS56: 0 | BT56: 0 | BU56: 0 | BV56: 0 | BW56: 0 | BX56: 0 | BY56: 0 | BZ56: 0
B57: 2072 | C57: 0 | BH57: 0 | BI57: 0 | BJ57: 0 | BK57: 0 | BL57: 0 | BM57: 0 | BN57: 0 | BO57: 0 | BP57: 0 | BQ57: 0 | BR57: 0 | BS57: 0 | BT57: 0 | BU57: 0 | BV57: 0 | BW57: 0 | BX57: 0 | BY57: 0 | BZ57: 0 | CA57: 0
B58: 2073 | C58: 0 | BI58: 0 | BJ58: 0 | BK58: 0 | BL58: 0 | BM58: 0 | BN58: 0 | BO58: 0 | BP58: 0 | BQ58: 0 | BR58: 0 | BS58: 0 | BT58: 0 | BU58: 0 | BV58: 0 | BW58: 0 | BX58: 0 | BY58: 0 | BZ58: 0 | CA58: 0 | CB58: 0
B59: 2074 | C59: 0 | BJ59: 0 | BK59: 0 | BL59: 0 | BM59: 0 | BN59: 0 | BO59: 0 | BP59: 0 | BQ59: 0 | BR59: 0 | BS59: 0 | BT59: 0 | BU59: 0 | BV59: 0 | BW59: 0 | BX59: 0 | BY59: 0 | BZ59: 0 | CA59: 0 | CB59: 0 | CC59: 0
B60: 2075 | C60: 0 | BK60: 0 | BL60: 0 | BM60: 0 | BN60: 0 | BO60: 0 | BP60: 0 | BQ60: 0 | BR60: 0 | BS60: 0 | BT60: 0 | BU60: 0 | BV60: 0 | BW60: 0 | BX60: 0 | BY60: 0 | BZ60: 0 | CA60: 0 | CB60: 0 | CC60: 0 | CD60: 0
B61: 2076 | C61: 0 | BL61: 0 | BM61: 0 | BN61: 0 | BO61: 0 | BP61: 0 | BQ61: 0 | BR61: 0 | BS61: 0 | BT61: 0 | BU61: 0 | BV61: 0 | BW61: 0 | BX61: 0 | BY61: 0 | BZ61: 0 | CA61: 0 | CB61: 0 | CC61: 0 | CD61: 0 | CE61: 0
B62: 2077 | C62: 0 | BM62: 0 | BN62: 0 | BO62: 0 | BP62: 0 | BQ62: 0 | BR62: 0 | BS62: 0 | BT62: 0 | BU62: 0 | BV62: 0 | BW62: 0 | BX62: 0 | BY62: 0 | BZ62: 0 | CA62: 0 | CB62: 0 | CC62: 0 | CD62: 0 | CE62: 0 | CF62: 0
B63: 2078 | C63: 0 | BN63: 0 | BO63: 0 | BP63: 0 | BQ63: 0 | BR63: 0 | BS63: 0 | BT63: 0 | BU63: 0 | BV63: 0 | BW63: 0 | BX63: 0 | BY63: 0 | BZ63: 0 | CA63: 0 | CB63: 0 | CC63: 0 | CD63: 0 | CE63: 0 | CF63: 0 | CG63: 0
B64: 2079 | C64: 0 | AG64: =IF(OR(AG$3<$B64,AG$3>=$B64+$D$91),"",$C64/$D$91) ->  | AQ64: =IF(OR(AQ$3<$B64,AQ$3>=$B64+$D$91),"",$C64/$D$91) ->  | BA64: =IF(OR(BA$3<$B64,BA$3>=$B64+$D$91),"",$C64/$D$91) ->  | BK64: =IF(OR(BK$3<$B64,BK$3>=$B64+$D$91),"",$C64/$D$91) ->  | BO64: 0 | BP64: 0 | BQ64: 0 | BR64: 0 | BS64: 0 | BT64: 0 | BU64: =IF(OR(BU$3<$B64,BU$3>=$B64+$D$91),"",$C64/$D$91) -> 0 | BV64: 0 | BW64: 0 | BX64: 0 | BY64: 0 | BZ64: 0 | CA64: 0 | CB64: 0 | CC64: 0 | CD64: 0 | CE64: =IF(OR(CE$3<$B64,CE$3>=$B64+$D$91),"",$C64/$D$91) -> 0 | CF64: 0 | CG64: 0 | CH64: 0
B65: 2080 | C65: 0 | BP65: 0 | BQ65: 0 | BR65: 0 | BS65: 0 | BT65: 0 | BU65: 0 | BV65: 0 | BW65: 0 | BX65: 0 | BY65: 0 | BZ65: 0 | CA65: 0 | CB65: 0 | CC65: 0 | CD65: 0 | CE65: 0 | CF65: 0 | CG65: 0 | CH65: 0 | CI65: 0
B66: 2081 | C66: 0 | BQ66: 0 | BR66: 0 | BS66: 0 | BT66: 0 | BU66: 0 | BV66: 0 | BW66: 0 | BX66: 0 | BY66: 0 | BZ66: 0 | CA66: 0 | CB66: 0 | CC66: 0 | CD66: 0 | CE66: 0 | CF66: 0 | CG66: 0 | CH66: 0 | CI66: 0 | CJ66: 0
B67: 2082 | C67: 0 | BR67: 0 | BS67: 0 | BT67: 0 | BU67: 0 | BV67: 0 | BW67: 0 | BX67: 0 | BY67: 0 | BZ67: 0 | CA67: 0 | CB67: 0 | CC67: 0 | CD67: 0 | CE67: 0 | CF67: 0 | CG67: 0 | CH67: 0 | CI67: 0 | CJ67: 0
B68: 2083 | C68: 0 | BS68: 0 | BT68: 0 | BU68: 0 | BV68: 0 | BW68: 0 | BX68: 0 | BY68: 0 | BZ68: 0 | CA68: 0 | CB68: 0 | CC68: 0 | CD68: 0 | CE68: 0 | CF68: 0 | CG68: 0 | CH68: 0 | CI68: 0 | CJ68: 0
B69: 2084 | C69: 0 | BT69: 0 | BU69: 0 | BV69: 0 | BW69: 0 | BX69: 0 | BY69: 0 | BZ69: 0 | CA69: 0 | CB69: 0 | CC69: 0 | CD69: 0 | CE69: 0 | CF69: 0 | CG69: 0 | CH69: 0 | CI69: 0 | CJ69: 0
B70: =B69+1 -> 2085 | C70: 0 | BU70: 0 | BV70: 0 | BW70: 0 | BX70: 0 | BY70: 0 | BZ70: 0 | CA70: 0 | CB70: 0 | CC70: 0 | CD70: 0 | CE70: 0 | CF70: 0 | CG70: 0 | CH70: 0 | CI70: 0 | CJ70: 0
B71: 2086 | C71: 0 | BV71: 0 | BW71: 0 | BX71: 0 | BY71: 0 | BZ71: 0 | CA71: 0 | CB71: 0 | CC71: 0 | CD71: 0 | CE71: 0 | CF71: 0 | CG71: 0 | CH71: 0 | CI71: 0 | CJ71: 0
B72: 2087 | C72: 0 | BW72: 0 | BX72: 0 | BY72: 0 | BZ72: 0 | CA72: 0 | CB72: 0 | CC72: 0 | CD72: 0 | CE72: 0 | CF72: 0 | CG72: 0 | CH72: 0 | CI72: 0 | CJ72: 0
B73: 2088 | C73: 0 | BX73: 0 | BY73: 0 | BZ73: 0 | CA73: 0 | CB73: 0 | CC73: 0 | CD73: 0 | CE73: 0 | CF73: 0 | CG73: 0 | CH73: 0 | CI73: 0 | CJ73: 0
B74: 2089 | C74: 0 | AG74: =IF(OR(AG$3<$B74,AG$3>=$B74+$D$91),"",$C74/$D$91) ->  | AQ74: =IF(OR(AQ$3<$B74,AQ$3>=$B74+$D$91),"",$C74/$D$91) ->  | BA74: =IF(OR(BA$3<$B74,BA$3>=$B74+$D$91),"",$C74/$D$91) ->  | BK74: =IF(OR(BK$3<$B74,BK$3>=$B74+$D$91),"",$C74/$D$91) ->  | BU74: =IF(OR(BU$3<$B74,BU$3>=$B74+$D$91),"",$C74/$D$91) ->  | BY74: 0 | BZ74: 0 | CA74: 0 | CB74: 0 | CC74: 0 | CD74: 0 | CE74: =IF(OR(CE$3<$B74,CE$3>=$B74+$D$91),"",$C74/$D$91) -> 0 | CF74: 0 | CG74: 0 | CH74: 0 | CI74: 0 | CJ74: 0
B75: 2090 | C75: 0 | BZ75: 0 | CA75: 0 | CB75: 0 | CC75: 0 | CD75: 0 | CE75: 0 | CF75: 0 | CG75: 0 | CH75: 0 | CI75: 0 | CJ75: 0
B76: 2091 | C76: 0 | CA76: 0 | CB76: 0 | CC76: 0 | CD76: 0 | CE76: 0 | CF76: 0 | CG76: 0 | CH76: 0 | CI76: 0 | CJ76: 0
B77: 2092 | C77: 0 | CB77: 0 | CC77: 0 | CD77: 0 | CE77: 0 | CF77: 0 | CG77: 0 | CH77: 0 | CI77: 0 | CJ77: 0
B78: 2093 | C78: 0 | CC78: 0 | CD78: 0 | CE78: 0 | CF78: 0 | CG78: 0 | CH78: 0 | CI78: 0 | CJ78: 0
B79: 2094 | C79: 0 | CD79: 0 | CE79: 0 | CF79: 0 | CG79: 0 | CH79: 0 | CI79: 0 | CJ79: 0
B80: 2095 | C80: 0 | CE80: 0 | CF80: 0 | CG80: 0 | CH80: 0 | CI80: 0 | CJ80: 0
B81: 2096 | C81: 0 | CF81: 0 | CG81: 0 | CH81: 0 | CI81: 0 | CJ81: 0
B82: 2097 | C82: 0 | CG82: 0 | CH82: 0 | CI82: 0 | CJ82: 0
B83: 2098 | C83: 0 | CH83: 0 | CI83: 0 | CJ83: 0
B84: 2099 | C84: 0 | CI84: 0 | CJ84: 0
B85: 2100 | C85: 0 | CJ85: 0
B86: 2101 | C86: 0
B87: 2102 | C87: 0
B88: 2103 | C88: 0
C89: Auflösungsbetrag: | D89: =SUM(D4:D88) -> 0 | E89: 0 | F89: 0 | G89: 0 | H89: 0 | I89: 0 | J89: 0 | K89: 0 | L89: 0 | M89: 0 | N89: 0 | O89: 0 | P89: 0 | Q89: 0 | R89: 0 | S89: 0 | T89: 0 | U89: 0 | V89: 0 | W89: 0 | X89: 0 | Y89: 0 | Z89: 0 | AA89: 0 | AB89: 0 | AC89: 0 | AD89: 0 | AE89: 0 | AF89: 0 | AG89: 0 | AH89: 0 | AI89: 0 | AJ89: =SUM(AJ4:AJ88) -> 0 | AK89: 0 | AL89: 0 | AM89: 0 | AN89: 0 | AO89: 0 | AP89: 0 | AQ89: 0 | AR89: 0 | AS89: 0 | AT89: 0 | AU89: 0 | AV89: 0 | AW89: 0 | AX89: 0 | AY89: 0 | AZ89: 0 | BA89: 0 | BB89: 0 | BC89: 0 | BD89: 0 | BE89: 0 | BF89: 0 | BG89: 0 | BH89: 0 | BI89: 0 | BJ89: 0 | BK89: 0 | BL89: 0 | BM89: 0 | BN89: 0 | BO89: 0 | BP89: =SUM(BP4:BP88) -> 0 | BQ89: 0 | BR89: 0 | BS89: 0 | BT89: 0 | BU89: 0 | BV89: 0 | BW89: 0 | BX89: 0 | BY89: 0 | BZ89: 0 | CA89: 0 | CB89: 0 | CC89: 0 | CD89: 0 | CE89: 0 | CF89: 0 | CG89: 0 | CH89: 0 | CI89: 0 | CJ89: 0
B91: Auflösungsdauer | D91: 20

Sheet F. ND u. OPEX-Pauschale
B1: F. Kategorie Investitionsbudget
B2: Anlagengruppennummer | C2: Anlagengruppe | D2: Untergrenze Nutzungsdauer | E2: Obergrenze Nutzungsdauer | F2: Netzbetreiber spezifische Nutzungsdauer | G2: Betriebskosten-Pauschale
B3: 1 | C3: Grundstücke | G3: 0.008 | H3: m²
B4: 2 | C4: Grundstücksanlagen, Bauten für Transportwesen | D4: 25 | E4: 35 | F4: =D4 -> 25 | G4: 0.008 | H4: keine Einheit
B5: 3 | C5: Betriebsgebäude | D5: 50 | E5: 60 | F5: =D5 -> 50 | G5: 0.008 | H5: m²
B6: 4 | C6: Verwaltungsgebäude | D6: 60 | E6: 70 | F6: 60 | G6: 0.008 | H6: m²
B7: 5 | C7: Gleisanlagen, Eisenbahnwagen | D7: 23 | E7: 27 | F7: 23 | G7: 0.008 | H7: keine Einheit
B8: 6 | C8: Geschäftsausstattung (ohne EDV, Werkzeuge/Geräte) | D8: 8 | E8: 10 | F8: 8 | G8: 0.008 | H8: keine Einheit
B9: 7 | C9: Werkzeuge/ Geräte | D9: 14 | E9: 18 | F9: 14 | G9: 0.008 | H9: keine Einheit
B10: 8 | C10: Lagereinrichtung | D10: 14 | E10: 25 | F10: 14 | G10: 0.008 | H10: m²
B11: 9 | C11: Hardware | D11: 4 | E11: 8 | F11: 4 | G11: 0.008 | H11: keine Einheit
B12: 10 | C12: Software | D12: 3 | E12: 5 | F12: 3 | G12: 0.008 | H12: keine Einheit
B13: 11 | C13: Leichtfahrzeuge | D13: 5 | E13: 5 | F13: 5 | G13: 0.008 | H13: Stück
B14: 12 | C14: Schwerfahrzeuge | D14: 8 | E14: 8 | F14: 8 | G14: 0.008 | H14: Stück
B15: 13 | C15: Gasbehälter | D15: 45 | E15: 55 | F15: 45 | G15: 0.008 | H15: m³
B16: 14 | C16: Erdgasverdichtung | D16: 25 | E16: 25 | F16: 25 | G16: 0.015 | H16: keine Einheit
B17: 15 | C17: Gasreinigungsanlage | D17: 25 | E17: 25 | F17: 25 | G17: 0.015 | H17: Stück
B18: 16 | C18: Piping und Armaturen | D18: 25 | E18: 25 | F18: 25 | G18: 0.015 | H18: Stück
B19: 17 | C19: Gasmessanlage | D19: 25 | E19: 25 | F19: 25 | G19: 0.015 | H19: Stück
B20: 18 | C20: Sicherheitseinrichtungen | D20: 25 | E20: 25 | F20: 25 | G20: 0.015 | H20: Stück
B21: 19 | C21: Leit- und Energietechnik | D21: 20 | E21: 20 | F21: 20 | G21: 0.015 | H21: keine Einheit
B22: 20 | C22: Nebenanlagen | D22: 25 | E22: 25 | F22: 25 | G22: 0.015 | H22: Stück
B23: 21 | C23: Gebäude, Verkehrswege | D23: 25 | E23: 60 | F23: 25 | G23: 0.015 | H23: keine Einheit
B24: 22 | C24: Stahlleitungen - PE ummantelt | D24: 45 | E24: 55 | F24: 45 | G24: 0.008 | H24: keine Einheit
B25: 23 | C25: Stahlleitungen - kathodisch geschützt | D25: 55 | E25: 65 | F25: 55 | G25: 0.008 | H25: km
B26: 24 | C26: Stahlleitungen - bituminiert | D26: 45 | E26: 55 | F26: 45 | G26: 0.008 | H26: km
B27: 25 | C27: Grauguss (> DN 150) | D27: 45 | E27: 55 | F27: 45 | G27: 0.008 | H27: km
B28: 26 | C28: Duktiler Guss | D28: 45 | E28: 55 | F28: 45 | G28: 0.008 | H28: km
B29: 27 | C29: Polyethylen (PE - HD) | D29: 45 | E29: 55 | F29: 45 | G29: 0.008 | H29: km
B30: 28 | C30: Polyvynilchlorid (PVC) | D30: 30 | E30: 40 | F30: 30 | G30: 0.008 | H30: Stück
B31: 29 | C31: Armaturen / Armaturenstationen | D31: 45 | E31: 45 | F31: 45 | G31: 0.008 | H31: Stück
B32: 30 | C32: Molchschleusen | D32: 45 | E32: 45 | F32: 45 | G32: 0.008 | H32: Stück
B33: 31 | C33: Sicherheitseinrichtungen | D33: 45 | E33: 45 | F33: 45 | G33: 0.008 | H33: Stück
B34: 32 | C34: Gaszähler der Verteilung | D34: 8 | E34: 16 | F34: 8 | G34: 0.017 | H34: Stück
B35: 33 | C35: Hausdruckregler / Zählerregler | D35: 15 | E35: 25 | F35: 15 | G35: 0.017 | H35: Stück
B36: 34 | C36: Messeinrichtung | D36: 45 | E36: 45 | F36: 45 | G36: 0.017 | H36: keine Einheit
B37: 35 | C37: Regeleinrichtung | D37: 45 | E37: 45 | F37: 45 | G37: 0.017 | H37: Stück
B38: 36 | C38: Sicherheitseinrichtungen | D38: 20 | E38: 30 | F38: 20 | G38: 0.017 | H38: keine Einheit
B39: 37 | C39: Leit- und Energietechnik | D39: 10 | E39: 30 | F39: 10 | G39: 0.017 | H39: Stück
B40: 38 | C40: Verdichter in Gasmischanlagen je nach Einsatzdauer | D40: 15 | E40: 30 | F40: 15 | G40: 0.017 | H40: Stück
B41: 39 | C41: Nebenanlagen | D41: 15 | E41: 30 | F41: 15 | G41: 0.017 | H41: m²
B42: 40 | C42: Gebäude | D42: 60 | E42: 60 | F42: 60 | G42: 0.017 | H42: Stück
B43: 41 | C43: Fernwirkanlagen | D43: 15 | E43: 20 | F43: 15 | G43: 0.008

Sheet F. ND u. OPEX-Pauschale_AiB
B1: F. Kategorie Investitionsbudget
B2: Anlagengruppennummer | C2: Anlagengruppe | D2: Untergrenze Nutzungsdauer | E2: Obergrenze Nutzungsdauer | F2: Netzbetreiber spezifische Nutzungsdauer | G2: Betriebskosten-Pauschale
B3: 1 | C3: Grundstücke | G3: 0.002 | H3: m²
B4: 2 | C4: Grundstücksanlagen, Bauten für Transportwesen | D4: 25 | E4: 35 | F4: =D4 -> 25 | G4: 0.002 | H4: keine Einheit
B5: 3 | C5: Betriebsgebäude | D5: 50 | E5: 60 | F5: =D5 -> 50 | G5: 0.002 | H5: m²
B6: 4 | C6: Verwaltungsgebäude | D6: 60 | E6: 70 | F6: 60 | G6: 0.002 | H6: m²
B7: 5 | C7: Gleisanlagen, Eisenbahnwagen | D7: 23 | E7: 27 | F7: 23 | G7: 0.002 | H7: keine Einheit
B8: 6 | C8: Geschäftsausstattung (ohne EDV, Werkzeuge/Geräte) | D8: 8 | E8: 10 | F8: 8 | G8: 0.002 | H8: keine Einheit
B9: 7 | C9: Werkzeuge/ Geräte | D9: 14 | E9: 18 | F9: 14 | G9: 0.002 | H9: keine Einheit
B10: 8 | C10: Lagereinrichtung | D10: 14 | E10: 25 | F10: 14 | G10: 0.002 | H10: m²
B11: 9 | C11: Hardware | D11: 4 | E11: 8 | F11: 4 | G11: 0.002 | H11: keine Einheit
B12: 10 | C12: Software | D12: 3 | E12: 5 | F12: 3 | G12: 0.002 | H12: keine Einheit
B13: 11 | C13: Leichtfahrzeuge | D13: 5 | E13: 5 | F13: 5 | G13: 0.002 | H13: Stück
B14: 12 | C14: Schwerfahrzeuge | D14: 8 | E14: 8 | F14: 8 | G14: 0.002 | H14: Stück
B15: 13 | C15: Gasbehälter | D15: 45 | E15: 55 | F15: 45 | G15: 0.002 | H15: m³
B16: 14 | C16: Erdgasverdichtung | D16: 25 | E16: 25 | F16: 25 | G16: 0.015 | H16: keine Einheit
B17: 15 | C17: Gasreinigungsanlage | D17: 25 | E17: 25 | F17: 25 | G17: 0.015 | H17: Stück
B18: 16 | C18: Piping und Armaturen | D18: 25 | E18: 25 | F18: 25 | G18: 0.015 | H18: Stück
B19: 17 | C19: Gasmessanlage | D19: 25 | E19: 25 | F19: 25 | G19: 0.015 | H19: Stück
B20: 18 | C20: Sicherheitseinrichtungen | D20: 25 | E20: 25 | F20: 25 | G20: 0.015 | H20: Stück
B21: 19 | C21: Leit- und Energietechnik | D21: 20 | E21: 20 | F21: 20 | G21: 0.015 | H21: keine Einheit
B22: 20 | C22: Nebenanlagen | D22: 25 | E22: 25 | F22: 25 | G22: 0.015 | H22: Stück
B23: 21 | C23: Gebäude, Verkehrswege | D23: 25 | E23: 60 | F23: 25 | G23: 0.015 | H23: keine Einheit
B24: 22 | C24: Stahlleitungen - PE ummantelt | D24: 45 | E24: 55 | F24: 45 | G24: 0.002 | H24: keine Einheit
B25: 23 | C25: Stahlleitungen - kathodisch geschützt | D25: 55 | E25: 65 | F25: 55 | G25: 0.002 | H25: km
B26: 24 | C26: Stahlleitungen - bituminiert | D26: 45 | E26: 55 | F26: 45 | G26: 0.002 | H26: km
B27: 25 | C27: Grauguss (> DN 150) | D27: 45 | E27: 55 | F27: 45 | G27: 0.002 | H27: km
B28: 26 | C28: Duktiler Guss | D28: 45 | E28: 55 | F28: 45 | G28: 0.002 | H28: km
B29: 27 | C29: Polyethylen (PE - HD) | D29: 45 | E29: 55 | F29: 45 | G29: 0.002 | H29: km
B30: 28 | C30: Polyvynilchlorid (PVC) | D30: 30 | E30: 40 | F30: 30 | G30: 0.002 | H30: Stück
B31: 29 | C31: Armaturen / Armaturenstationen | D31: 45 | E31: 45 | F31: 45 | G31: 0.002 | H31: Stück
B32: 30 | C32: Molchschleusen | D32: 45 | E32: 45 | F32: 45 | G32: 0.002 | H32: Stück
B33: 31 | C33: Sicherheitseinrichtungen | D33: 45 | E33: 45 | F33: 45 | G33: 0.002 | H33: Stück
B34: 32 | C34: Gaszähler der Verteilung | D34: 8 | E34: 16 | F34: 8 | G34: 0.017 | H34: Stück
B35: 33 | C35: Hausdruckregler / Zählerregler | D35: 15 | E35: 25 | F35: 15 | G35: 0.017 | H35: Stück
B36: 34 | C36: Messeinrichtung | D36: 45 | E36: 45 | F36: 45 | G36: 0.017 | H36: keine Einheit
B37: 35 | C37: Regeleinrichtung | D37: 45 | E37: 45 | F37: 45 | G37: 0.017 | H37: Stück
B38: 36 | C38: Sicherheitseinrichtungen | D38: 20 | E38: 30 | F38: 20 | G38: 0.017 | H38: keine Einheit
B39: 37 | C39: Leit- und Energietechnik | D39: 10 | E39: 30 | F39: 10 | G39: 0.017 | H39: Stück
B40: 38 | C40: Verdichter in Gasmischanlagen je nach Einsatzdauer | D40: 15 | E40: 30 | F40: 15 | G40: 0.017 | H40: Stück
B41: 39 | C41: Nebenanlagen | D41: 15 | E41: 30 | F41: 15 | G41: 0.017 | H41: m²
B42: 40 | C42: Gebäude | D42: 60 | E42: 60 | F42: 60 | G42: 0.017 | H42: Stück
B43: 41 | C43: Fernwirkanlagen | D43: 15 | E43: 20 | F43: 15 | G43: 0.002

Sheet G. Erläuterungen
A1: G. Erläuterungen
A2: Tabelle | B2: Zelle | C2: Anmerkung
A3: Bitte wählen
A4: Bitte wählen
A5: Bitte wählen
A6: Bitte wählen
A7: Bitte wählen
A8: Bitte wählen
A9: Bitte wählen
A10: Bitte wählen
A11: Bitte wählen
A12: Bitte wählen
A13: Bitte wählen
A14: Bitte wählen
A15: Bitte wählen
A16: Bitte wählen
A17: Bitte wählen
A18: Bitte wählen
A19: Bitte wählen
A20: Bitte wählen
A21: Bitte wählen
A22: Bitte wählen
A23: Bitte wählen
A24: Bitte wählen
A25: Bitte wählen
A26: Bitte wählen
A27: Bitte wählen
A28: Bitte wählen
A29: Bitte wählen
A30: Bitte wählen
A31: Bitte wählen
A32: Bitte wählen
A33: Bitte wählen
A34: Bitte wählen
A35: Bitte wählen
A36: Bitte wählen
A37: Bitte wählen
A38: Bitte wählen
A39: Bitte wählen
A40: Bitte wählen
A41: Bitte wählen
A42: Bitte wählen
A43: Bitte wählen
A44: Bitte wählen
A45: Bitte wählen
A46: Bitte wählen
A47: Bitte wählen
A48: Bitte wählen
A49: Bitte wählen
A50: Bitte wählen
A51: Bitte wählen
A52: Bitte wählen
A53: Bitte wählen
A54: Bitte wählen
A55: Bitte wählen
A56: Bitte wählen
A57: Bitte wählen
A58: Bitte wählen
A59: Bitte wählen
A60: Bitte wählen
A61: Bitte wählen
A62: Bitte wählen
A63: Bitte wählen
A64: Bitte wählen
A65: Bitte wählen
A66: Bitte wählen
A67: Bitte wählen
A68: Bitte wählen
A69: Bitte wählen
A70: Bitte wählen
A71: Bitte wählen
A72: Bitte wählen
A73: Bitte wählen
A74: Bitte wählen
A75: Bitte wählen
A210: Bitte wählen
A211: A. Allgemeine Informationen
A212: B. Parameter
A213: C. Kostendaten
A214: C.1 Kostendaten Verdichtung
A215: C.2 Kostendaten Rohr PE
A216: C.3 Kostendaten Rohr PE kath
A217: C.4 Kostendaten Regelein.
A218: C.5 Übrige Anlagen
A219: D. BKZ
A220: E. Kategorie Investitionsbudget
A221: F. ND u. OPEX-Pauschale

Sheet SAV
A1: lfd. Nr. gem. Investitionsplan | B1: Anschaffungs- und Herstellungs- kosten gesamt [€] | F1: Jahr der Aktivierung | G1: Monat der Aktivierung | H1: Anlagengruppen- nummer (s. F. ND) | I1: Nutzungsdauer (s. F. ND) | J1: Kürzung kostenmindernde Erlöse | K1: um kostenmindernden Erlöse gekürzte Zugänge AK/HK | L1: geprüfte Nutzungsdauer | M1: Jahresabschreibung | N1: Jahr Abschreibungsende | O1: Monat Abschreibungsende | P1: Jahr | Q1: voraussichtliche Aktivierung in Anlagengruppe (s. F. ND) | R1: Zugänge | S1: Umbuchungen / Abgänge | T1: Umbuchung aus Anlagen im Bau erfolgt? | U1: Umbuchungsjahr der AiB | V1: Summe Zugänge aus AiB | W1: Summe Umbuchungen / Abgänge aus AiB

Sheet C. Kostendaten
B1: C. Kostendaten (voraussichtliche Werte)
E2: Grundstücke | F2: Grundstücksanlagen, Bauten für Transportwesen | G2: Betriebsgebäude | H2: Verwaltungsgebäude | I2: Gleisanlagen, Eisenbahnwagen | J2: Geschäftsausstattung (ohne EDV, Werkzeuge/Geräte) | K2: Werkzeuge/ Geräte | L2: Lagereinrichtung | M2: Hardware | N2: Software | O2: Leichtfahrzeuge | P2: Schwerfahrzeuge | Q2: Gasbehälter | R2: Erdgasverdichtung | S2: Gasreinigungsanlage | T2: Piping und Armaturen | U2: Gasmessanlage | V2: Sicherheitseinrichtungen | W2: Leit- und Energietechnik | X2: Nebenanlagen | Y2: Gebäude, Verkehrswege | Z2: Stahlleitungen - PE ummantelt | AA2: Stahlleitungen - kathodisch geschützt | AB2: Stahlleitungen - bituminiert | AC2: Grauguss (> DN 150) | AD2: Duktiler Guss | AE2: Polyethylen (PE - HD) | AF2: Polyvynilchlorid (PVC) | AG2: Armaturen / Armaturenstationen | AH2: Molchschleusen | AI2: Sicherheitseinrichtungen | AJ2: Gaszähler der Verteilung | AK2: Hausdruckregler / Zählerregler | AL2: Messeinrichtung | AM2: Regeleinrichtung | AN2: Sicherheitseinrichtungen | AO2: Leit- und Energietechnik | AP2: Verdichter in Gasmischanlagen je nach Einsatzdauer | AQ2: Nebenanlagen | AR2: Gebäude | AS2: Fernwirkanlagen
C3: Jahr | D3: Summe | E3: I. Allgemeine Anlagen | Q3: II. Gasbehälter | R3: III. Erdgasverdichteranlagen | Z3: IV. Rohrleitungen / Hausanschlussleitungen | AJ3: V. Mess-, Regel- und Zähleranlagen | AS3: VI. Fern- wirkanlagen
B4: Anlagengruppennr. | E4: 1 | F4: 2 | G4: 3 | H4: 4 | I4: 5 | J4: 6 | K4: 7 | L4: 8 | M4: 9 | N4: 10 | O4: 11 | P4: 12 | Q4: 13 | R4: 14 | S4: 15 | T4: 16 | U4: 17 | V4: 18 | W4: 19 | X4: 20 | Y4: 21 | Z4: 22 | AA4: 23 | AB4: 24 | AC4: 25 | AD4: 26 | AE4: 27 | AF4: 28 | AG4: 29 | AH4: 30 | AI4: 31 | AJ4: 32 | AK4: 33 | AL4: 34 | AM4: 35 | AN4: 36 | AO4: 37 | AP4: 38 | AQ4: 39 | AR4: 40 | AS4: 41
B5: Summe Plan AK/HK | D5: =SUM(E5,F5,G5,H5,I5,J5,K5,L5,M5,N5,O5,P5,Q5,R5,S5,T5,U5,V5,W5,X5,Z5,AA5)+SUM(AB5,AC5,AD5,AE5,AF5,AG5,AH5,AI5,AJ5,AK5,AL5,AM5,AN5,AO5,AP5,AQ5,AR5,AS5) -> 0 | E5: =SUMPRODUCT(('C.5 Übrige Anlagen'!$C$6:$C$149='C. Kostendaten'!E4)*('C.5 Übrige Anlagen'!$H$6:$H$149)) -> 0 | F5: =SUMPRODUCT(('C.5 Übrige Anlagen'!$C$6:$C$149='C. Kostendaten'!F4)*('C.5 Übrige Anlagen'!$H$6:$H$149)) -> 0 | G5: =SUMPRODUCT(('C.5 Übrige Anlagen'!$C$6:$C$149='C. Kostendaten'!G4)*('C.5 Übrige Anlagen'!$H$6:$H$149)) -> 0 | H5: =SUMPRODUCT(('C.5 Übrige Anlagen'!$C$6:$C$149='C. Kostendaten'!H4)*('C.5 Übrige Anlagen'!$H$6:$H$149)) -> 0 | I5: =SUMPRODUCT(('C.5 Übrige Anlagen'!$C$6:$C$149='C. Kostendaten'!I4)*('C.5 Übrige Anlagen'!$H$6:$H$149)) -> 0 | J5: =SUMPRODUCT(('C.5 Übrige Anlagen'!$C$6:$C$149='C. Kostendaten'!J4)*('C.5 Übrige Anlagen'!$H$6:$H$149)) -> 0 | K5: =SUMPRODUCT(('C.5 Übrige Anlagen'!$C$6:$C$149='C. Kostendaten'!K4)*('C.5 Übrige Anlagen'!$H$6:$H$149)) -> 0 | L5: =SUMPRODUCT(('C.5 Übrige Anlagen'!$C$6:$C$149='C. Kostendaten'!L4)*('C.5 Übrige Anlagen'!$H$6:$H$149)) -> 0 | M5: =SUMPRODUCT(('C.5 Übrige Anlagen'!$C$6:$C$149='C. Kostendaten'!M4)*('C.5 Übrige Anlagen'!$H$6:$H$149)) -> 0 | N5: =SUMPRODUCT(('C.5 Übrige Anlagen'!$C$6:$C$149='C. Kostendaten'!N4)*('C.5 Übrige Anlagen'!$H$6:$H$149)) -> 0 | O5: =SUMPRODUCT(('C.5 Übrige Anlagen'!$C$6:$C$149='C. Kostendaten'!O4)*('C.5 Übrige Anlagen'!$H$6:$H$149)) -> 0 | P5: =SUMPRODUCT(('C.5 Übrige Anlagen'!$C$6:$C$149='C. Kostendaten'!P4)*('C.5 Übrige Anlagen'!$H$6:$H$149)) -> 0 | Q5: =SUMPRODUCT(('C.5 Übrige Anlagen'!$C$6:$C$149='C. Kostendaten'!Q4)*('C.5 Übrige Anlagen'!$H$6:$H$149)) -> 0 | R5: ='C.1 Kostendaten Verdichtung'!C4 -> 0 | S5: =SUMPRODUCT(('C.5 Übrige Anlagen'!$C$6:$C$149='C. Kostendaten'!S4)*('C.5 Übrige Anlagen'!$H$6:$H$149)) -> 0 | T5: =SUMPRODUCT(('C.5 Übrige Anlagen'!$C$6:$C$149='C. Kostendaten'!T4)*('C.5 Übrige Anlagen'!$H$6:$H$149)) -> 0 | U5: =SUMPRODUCT(('C.5 Übrige Anlagen'!$C$6:$C$149='C. Kostendaten'!U4)*('C.5 Übrige Anlagen'!$H$6:$H$149)) -> 0 | V5: =SUMPRODUCT(('C.5 Übrige Anlagen'!$C$6:$C$149='C. Kostendaten'!V4)*('C.5 Übrige Anlagen'!$H$6:$H$149)) -> 0 | W5: =SUMPRODUCT(('C.5 Übrige Anlagen'!$C$6:$C$149='C. Kostendaten'!W4)*('C.5 Übrige Anlagen'!$H$6:$H$149)) -> 0 | X5: =SUMPRODUCT(('C.5 Übrige Anlagen'!$C$6:$C$149='C. Kostendaten'!X4)*('C.5 Übrige Anlagen'!$H$6:$H$149)) -> 0 | Y5: =SUMPRODUCT(('C.5 Übrige Anlagen'!$C$6:$C$149='C. Kostendaten'!Y4)*('C.5 Übrige Anlagen'!$H$6:$H$149)) -> 0 | Z5: ='C.2 Kostendaten Rohr PE'!C4 -> 0 | AA5: ='C.3 Kostendaten Rohr kath'!C4 -> 0 | AB5: =SUMPRODUCT(('C.5 Übrige Anlagen'!$C$6:$C$149='C. Kostendaten'!AB4)*('C.5 Übrige Anlagen'!$H$6:$H$149)) -> 0 | AC5: =SUMPRODUCT(('C.5 Übrige Anlagen'!$C$6:$C$149='C. Kostendaten'!AC4)*('C.5 Übrige Anlagen'!$H$6:$H$149)) -> 0 | AD5: =SUMPRODUCT(('C.5 Übrige Anlagen'!$C$6:$C$149='C. Kostendaten'!AD4)*('C.5 Übrige Anlagen'!$H$6:$H$149)) -> 0 | AE5: =SUMPRODUCT(('C.5 Übrige Anlagen'!$C$6:$C$149='C. Kostendaten'!AE4)*('C.5 Übrige Anlagen'!$H$6:$H$149)) -> 0 | AF5: =SUMPRODUCT(('C.5 Übrige Anlagen'!$C$6:$C$149='C. Kostendaten'!AF4)*('C.5 Übrige Anlagen'!$H$6:$H$149)) -> 0 | AG5: =SUMPRODUCT(('C.5 Übrige Anlagen'!$C$6:$C$149='C. Kostendaten'!AG4)*('C.5 Übrige Anlagen'!$H$6:$H$149)) -> 0 | AH5: =SUMPRODUCT(('C.5 Übrige Anlagen'!$C$6:$C$149='C. Kostendaten'!AH4)*('C.5 Übrige Anlagen'!$H$6:$H$149)) -> 0 | AI5: =SUMPRODUCT(('C.5 Übrige Anlagen'!$C$6:$C$149='C. Kostendaten'!AI4)*('C.5 Übrige Anlagen'!$H$6:$H$149)) -> 0 | AJ5: =SUMPRODUCT(('C.5 Übrige Anlagen'!$C$6:$C$149='C. Kostendaten'!AJ4)*('C.5 Übrige Anlagen'!$H$6:$H$149)) -> 0 | AK5: =SUMPRODUCT(('C.5 Übrige Anlagen'!$C$6:$C$149='C. Kostendaten'!AK4)*('C.5 Übrige Anlagen'!$H$6:$H$149)) -> 0 | AL5: =SUMPRODUCT(('C.5 Übrige Anlagen'!$C$6:$C$149='C. Kostendaten'!AL4)*('C.5 Übrige Anlagen'!$H$6:$H$149)) -> 0 | AM5: ='C.4 Kostendaten Regelein.'!C4 -> 0 | AN5: =SUMPRODUCT(('C.5 Übrige Anlagen'!$C$6:$C$149='C. Kostendaten'!AN4)*('C.5 Übrige Anlagen'!$H$6:$H$149)) -> 0 | AO5: =SUMPRODUCT(('C.5 Übrige Anlagen'!$C$6:$C$149='C. Kostendaten'!AO4)*('C.5 Übrige Anlagen'!$H$6:$H$149)) -> 0 | AP5: =SUMPRODUCT(('C.5 Übrige Anlagen'!$C$6:$C$149='C. Kostendaten'!AP4)*('C.5 Übrige Anlagen'!$H$6:$H$149)) -> 0 | AQ5: =SUMPRODUCT(('C.5 Übrige Anlagen'!$C$6:$C$149='C. Kostendaten'!AQ4)*('C.5 Übrige Anlagen'!$H$6:$H$149)) -> 0 | AR5: =SUMPRODUCT(('C.5 Übrige Anlagen'!$C$6:$C$149='C. Kostendaten'!AR4)*('C.5 Übrige Anlagen'!$H$6:$H$149)) -> 0 | AS5: =SUMPRODUCT(('C.5 Übrige Anlagen'!$C$6:$C$149='C. Kostendaten'!AS4)*('C.5 Übrige Anlagen'!$H$6:$H$149)) -> 0
B6: Anlagen im Bau 2019 - Anfangsbestand | C6: 2019 | D6: =SUM(E6:AS6) -> 0 | E6: =SUMPRODUCT(('C.5 Übrige Anlagen'!$M$6:$M$149='C. Kostendaten'!E$4)*('C.5 Übrige Anlagen'!$L$6:$L$149<=2015)*'C.5 Übrige Anlagen'!$N$6:$N$149)-SUMPRODUCT(('C.5 Übrige Anlagen'!$M$6:$M$149='C. Kostendaten'!E$4)*('C.5 Übrige Anlagen'!$L$6:$L$149<=2015)*'C.5 Übrige Anlagen'!$O$6:$O$149) -> 0 | F6: =SUMPRODUCT(('C.5 Übrige Anlagen'!$M$6:$M$149='C. Kostendaten'!F$4)*('C.5 Übrige Anlagen'!$L$6:$L$149<=2015)*'C.5 Übrige Anlagen'!$N$6:$N$149)-SUMPRODUCT(('C.5 Übrige Anlagen'!$M$6:$M$149='C. Kostendaten'!F$4)*('C.5 Übrige Anlagen'!$L$6:$L$149<=2015)*'C.5 Übrige Anlagen'!$O$6:$O$149) -> 0 | G6: =SUMPRODUCT(('C.5 Übrige Anlagen'!$M$6:$M$149='C. Kostendaten'!G$4)*('C.5 Übrige Anlagen'!$L$6:$L$149<=2015)*'C.5 Übrige Anlagen'!$N$6:$N$149)-SUMPRODUCT(('C.5 Übrige Anlagen'!$M$6:$M$149='C. Kostendaten'!G$4)*('C.5 Übrige Anlagen'!$L$6:$L$149<=2015)*'C.5 Übrige Anlagen'!$O$6:$O$149) -> 0 | H6: =SUMPRODUCT(('C.5 Übrige Anlagen'!$M$6:$M$149='C. Kostendaten'!H$4)*('C.5 Übrige Anlagen'!$L$6:$L$149<=2015)*'C.5 Übrige Anlagen'!$N$6:$N$149)-SUMPRODUCT(('C.5 Übrige Anlagen'!$M$6:$M$149='C. Kostendaten'!H$4)*('C.5 Übrige Anlagen'!$L$6:$L$149<=2015)*'C.5 Übrige Anlagen'!$O$6:$O$149) -> 0 | I6: =SUMPRODUCT(('C.5 Übrige Anlagen'!$M$6:$M$149='C. Kostendaten'!I$4)*('C.5 Übrige Anlagen'!$L$6:$L$149<=2015)*'C.5 Übrige Anlagen'!$N$6:$N$149)-SUMPRODUCT(('C.5 Übrige Anlagen'!$M$6:$M$149='C. Kostendaten'!I$4)*('C.5 Übrige Anlagen'!$L$6:$L$149<=2015)*'C.5 Übrige Anlagen'!$O$6:$O$149) -> 0 | J6: =SUMPRODUCT(('C.5 Übrige Anlagen'!$M$6:$M$149='C. Kostendaten'!J$4)*('C.5 Übrige Anlagen'!$L$6:$L$149<=2015)*'C.5 Übrige Anlagen'!$N$6:$N$149)-SUMPRODUCT(('C.5 Übrige Anlagen'!$M$6:$M$149='C. Kostendaten'!J$4)*('C.5 Übrige Anlagen'!$L$6:$L$149<=2015)*'C.5 Übrige Anlagen'!$O$6:$O$149) -> 0 | K6: =SUMPRODUCT(('C.5 Übrige Anlagen'!$M$6:$M$149='C. Kostendaten'!K$4)*('C.5 Übrige Anlagen'!$L$6:$L$149<=2015)*'C.5 Übrige Anlagen'!$N$6:$N$149)-SUMPRODUCT(('C.5 Übrige Anlagen'!$M$6:$M$149='C. Kostendaten'!K$4)*('C.5 Übrige Anlagen'!$L$6:$L$149<=2015)*'C.5 Übrige Anlagen'!$O$6:$O$149) -> 0 | L6: =SUMPRODUCT(('C.5 Übrige Anlagen'!$M$6:$M$149='C. Kostendaten'!L$4)*('C.5 Übrige Anlagen'!$L$6:$L$149<=2015)*'C.5 Übrige Anlagen'!$N$6:$N$149)-SUMPRODUCT(('C.5 Übrige Anlagen'!$M$6:$M$149='C. Kostendaten'!L$4)*('C.5 Übrige Anlagen'!$L$6:$L$149<=2015)*'C.5 Übrige Anlagen'!$O$6:$O$149) -> 0 | M6: =SUMPRODUCT(('C.5 Übrige Anlagen'!$M$6:$M$149='C. Kostendaten'!M$4)*('C.5 Übrige Anlagen'!$L$6:$L$149<=2015)*'C.5 Übrige Anlagen'!$N$6:$N$149)-SUMPRODUCT(('C.5 Übrige Anlagen'!$M$6:$M$149='C. Kostendaten'!M$4)*('C.5 Übrige Anlagen'!$L$6:$L$149<=2015)*'C.5 Übrige Anlagen'!$O$6:$O$149) -> 0 | N6: =SUMPRODUCT(('C.5 Übrige Anlagen'!$M$6:$M$149='C. Kostendaten'!N$4)*('C.5 Übrige Anlagen'!$L$6:$L$149<=2015)*'C.5 Übrige Anlagen'!$N$6:$N$149)-SUMPRODUCT(('C.5 Übrige Anlagen'!$M$6:$M$149='C. Kostendaten'!N$4)*('C.5 Übrige Anlagen'!$L$6:$L$149<=2015)*'C.5 Übrige Anlagen'!$O$6:$O$149) -> 0 | O6: =SUMPRODUCT(('C.5 Übrige Anlagen'!$M$6:$M$149='C. Kostendaten'!O$4)*('C.5 Übrige Anlagen'!$L$6:$L$149<=2015)*'C.5 Übrige Anlagen'!$N$6:$N$149)-SUMPRODUCT(('C.5 Übrige Anlagen'!$M$6:$M$149='C. Kostendaten'!O$4)*('C.5 Übrige Anlagen'!$L$6:$L$149<=2015)*'C.5 Übrige Anlagen'!$O$6:$O$149) -> 0 | P6: =SUMPRODUCT(('C.5 Übrige Anlagen'!$M$6:$M$149='C. Kostendaten'!P$4)*('C.5 Übrige Anlagen'!$L$6:$L$149<=2015)*'C.5 Übrige Anlagen'!$N$6:$N$149)-SUMPRODUCT(('C.5 Übrige Anlagen'!$M$6:$M$149='C. Kostendaten'!P$4)*('C.5 Übrige Anlagen'!$L$6:$L$149<=2015)*'C.5 Übrige Anlagen'!$O$6:$O$149) -> 0 | Q6: =SUMPRODUCT(('C.5 Übrige Anlagen'!$M$6:$M$149='C. Kostendaten'!Q$4)*('C.5 Übrige Anlagen'!$L$6:$L$149<=2015)*'C.5 Übrige Anlagen'!$N$6:$N$149)-SUMPRODUCT(('C.5 Übrige Anlagen'!$M$6:$M$149='C. Kostendaten'!Q$4)*('C.5 Übrige Anlagen'!$L$6:$L$149<=2015)*'C.5 Übrige Anlagen'!$O$6:$O$149) -> 0 | R6: =SUMPRODUCT(('C.1 Kostendaten Verdichtung'!$O$6:$O$149='C. Kostendaten'!R$4)*('C.1 Kostendaten Verdichtung'!$N$6:$N$149<=2015)*'C.1 Kostendaten Verdichtung'!$P$6:$P$149)-SUMPRODUCT(('C.1 Kostendaten Verdichtung'!$O$6:$O$149='C. Kostendaten'!R$4)*('C.1 Kostendaten Verdichtung'!$N$6:$N$149<=2015)*'C.1 Kostendaten Verdichtung'!$Q$6:$Q$149) -> 0 | S6: =SUMPRODUCT(('C.5 Übrige Anlagen'!$M$6:$M$149='C. Kostendaten'!S$4)*('C.5 Übrige Anlagen'!$L$6:$L$149<=2015)*'C.5 Übrige Anlagen'!$N$6:$N$149)-SUMPRODUCT(('C.5 Übrige Anlagen'!$M$6:$M$149='C. Kostendaten'!S$4)*('C.5 Übrige Anlagen'!$L$6:$L$149<=2015)*'C.5 Übrige Anlagen'!$O$6:$O$149) -> 0 | T6: =SUMPRODUCT(('C.5 Übrige Anlagen'!$M$6:$M$149='C. Kostendaten'!T$4)*('C.5 Übrige Anlagen'!$L$6:$L$149<=2015)*'C.5 Übrige Anlagen'!$N$6:$N$149)-SUMPRODUCT(('C.5 Übrige Anlagen'!$M$6:$M$149='C. Kostendaten'!T$4)*('C.5 Übrige Anlagen'!$L$6:$L$149<=2015)*'C.5 Übrige Anlagen'!$O$6:$O$149) -> 0 | U6: =SUMPRODUCT(('C.5 Übrige Anlagen'!$M$6:$M$149='C. Kostendaten'!U$4)*('C.5 Übrige Anlagen'!$L$6:$L$149<=2015)*'C.5 Übrige Anlagen'!$N$6:$N$149)-SUMPRODUCT(('C.5 Übrige Anlagen'!$M$6:$M$149='C. Kostendaten'!U$4)*('C.5 Übrige Anlagen'!$L$6:$L$149<=2015)*'C.5 Übrige Anlagen'!$O$6:$O$149) -> 0 | V6: =SUMPRODUCT(('C.5 Übrige Anlagen'!$M$6:$M$149='C. Kostendaten'!V$4)*('C.5 Übrige Anlagen'!$L$6:$L$149<=2015)*'C.5 Übrige Anlagen'!$N$6:$N$149)-SUMPRODUCT(('C.5 Übrige Anlagen'!$M$6:$M$149='C. Kostendaten'!V$4)*('C.5 Übrige Anlagen'!$L$6:$L$149<=2015)*'C.5 Übrige Anlagen'!$O$6:$O$149) -> 0 | W6: =SUMPRODUCT(('C.5 Übrige Anlagen'!$M$6:$M$149='C. Kostendaten'!W$4)*('C.5 Übrige Anlagen'!$L$6:$L$149<=2015)*'C.5 Übrige Anlagen'!$N$6:$N$149)-SUMPRODUCT(('C.5 Übrige Anlagen'!$M$6:$M$149='C. Kostendaten'!W$4)*('C.5 Übrige Anlagen'!$L$6:$L$149<=2015)*'C.5 Übrige Anlagen'!$O$6:$O$149) -> 0 | X6: =SUMPRODUCT(('C.5 Übrige Anlagen'!$M$6:$M$149='C. Kostendaten'!X$4)*('C.5 Übrige Anlagen'!$L$6:$L$149<=2015)*'C.5 Übrige Anlagen'!$N$6:$N$149)-SUMPRODUCT(('C.5 Übrige Anlagen'!$M$6:$M$149='C. Kostendaten'!X$4)*('C.5 Übrige Anlagen'!$L$6:$L$149<=2015)*'C.5 Übrige Anlagen'!$O$6:$O$149) -> 0 | Y6: =SUMPRODUCT(('C.5 Übrige Anlagen'!$M$6:$M$149='C. Kostendaten'!Y$4)*('C.5 Übrige Anlagen'!$L$6:$L$149<=2015)*'C.5 Übrige Anlagen'!$N$6:$N$149)-SUMPRODUCT(('C.5 Übrige Anlagen'!$M$6:$M$149='C. Kostendaten'!Y$4)*('C.5 Übrige Anlagen'!$L$6:$L$149<=2015)*'C.5 Übrige Anlagen'!$O$6:$O$149) -> 0 | Z6: =SUMPRODUCT(('C.2 Kostendaten Rohr PE'!$V$6:$V$149='C. Kostendaten'!Z$4)*('C.2 Kostendaten Rohr PE'!$U$6:$U$149<=2015)*'C.2 Kostendaten Rohr PE'!$W$6:$W$149)-SUMPRODUCT(('C.2 Kostendaten Rohr PE'!$V$6:$V$149='C. Kostendaten'!Z$4)*('C.2 Kostendaten Rohr PE'!$U$6:$U$149<=2015)*'C.2 Kostendaten Rohr PE'!$X$6:$X$149) -> 0 | AA6: =SUMPRODUCT(('C.3 Kostendaten Rohr kath'!$V$6:$V$149='C. Kostendaten'!AA$4)*('C.3 Kostendaten Rohr kath'!$U$6:$U$149<=2015)*'C.3 Kostendaten Rohr kath'!$W$6:$W$149)-SUMPRODUCT(('C.3 Kostendaten Rohr kath'!$V$6:$V$149='C. Kostendaten'!AA$4)*('C.3 Kostendaten Rohr kath'!$U$6:$U$149<=2015)*'C.3 Kostendaten Rohr kath'!$X$6:$X$149) -> 0 | AB6: =SUMPRODUCT(('C.5 Übrige Anlagen'!$M$6:$M$149='C. Kostendaten'!AB$4)*('C.5 Übrige Anlagen'!$L$6:$L$149<=2015)*'C.5 Übrige Anlagen'!$N$6:$N$149)-SUMPRODUCT(('C.5 Übrige Anlagen'!$M$6:$M$149='C. Kostendaten'!AB$4)*('C.5 Übrige Anlagen'!$L$6:$L$149<=2015)*'C.5 Übrige Anlagen'!$O$6:$O$149) -> 0 | AC6: =SUMPRODUCT(('C.5 Übrige Anlagen'!$M$6:$M$149='C. Kostendaten'!AC$4)*('C.5 Übrige Anlagen'!$L$6:$L$149<=2015)*'C.5 Übrige Anlagen'!$N$6:$N$149)-SUMPRODUCT(('C.5 Übrige Anlagen'!$M$6:$M$149='C. Kostendaten'!AC$4)*('C.5 Übrige Anlagen'!$L$6:$L$149<=2015)*'C.5 Übrige Anlagen'!$O$6:$O$149) -> 0 | AD6: =SUMPRODUCT(('C.5 Übrige Anlagen'!$M$6:$M$149='C. Kostendaten'!AD$4)*('C.5 Übrige Anlagen'!$L$6:$L$149<=2015)*'C.5 Übrige Anlagen'!$N$6:$N$149)-SUMPRODUCT(('C.5 Übrige Anlagen'!$M$6:$M$149='C. Kostendaten'!AD$4)*('C.5 Übrige Anlagen'!$L$6:$L$149<=2015)*'C.5 Übrige Anlagen'!$O$6:$O$149) -> 0 | AE6: =SUMPRODUCT(('C.5 Übrige Anlagen'!$M$6:$M$149='C. Kostendaten'!AE$4)*('C.5 Übrige Anlagen'!$L$6:$L$149<=2015)*'C.5 Übrige Anlagen'!$N$6:$N$149)-SUMPRODUCT(('C.5 Übrige Anlagen'!$M$6:$M$149='C. Kostendaten'!AE$4)*('C.5 Übrige Anlagen'!$L$6:$L$149<=2015)*'C.5 Übrige Anlagen'!$O$6:$O$149) -> 0 | AF6: =SUMPRODUCT(('C.5 Übrige Anlagen'!$M$6:$M$149='C. Kostendaten'!AF$4)*('C.5 Übrige Anlagen'!$L$6:$L$149<=2015)*'C.5 Übrige Anlagen'!$N$6:$N$149)-SUMPRODUCT(('C.5 Übrige Anlagen'!$M$6:$M$149='C. Kostendaten'!AF$4)*('C.5 Übrige Anlagen'!$L$6:$L$149<=2015)*'C.5 Übrige Anlagen'!$O$6:$O$149) -> 0 | AG6: =SUMPRODUCT(('C.5 Übrige Anlagen'!$M$6:$M$149='C. Kostendaten'!AG$4)*('C.5 Übrige Anlagen'!$L$6:$L$149<=2015)*'C.5 Übrige Anlagen'!$N$6:$N$149)-SUMPRODUCT(('C.5 Übrige Anlagen'!$M$6:$M$149='C. Kostendaten'!AG$4)*('C.5 Übrige Anlagen'!$L$6:$L$149<=2015)*'C.5 Übrige Anlagen'!$O$6:$O$149) -> 0 | AH6: =SUMPRODUCT(('C.5 Übrige Anlagen'!$M$6:$M$149='C. Kostendaten'!AH$4)*('C.5 Übrige Anlagen'!$L$6:$L$149<=2015)*'C.5 Übrige Anlagen'!$N$6:$N$149)-SUMPRODUCT(('C.5 Übrige Anlagen'!$M$6:$M$149='C. Kostendaten'!AH$4)*('C.5 Übrige Anlagen'!$L$6:$L$149<=2015)*'C.5 Übrige Anlagen'!$O$6:$O$149) -> 0 | AI6: =SUMPRODUCT(('C.5 Übrige Anlagen'!$M$6:$M$149='C. Kostendaten'!AI$4)*('C.5 Übrige Anlagen'!$L$6:$L$149<=2015)*'C.5 Übrige Anlagen'!$N$6:$N$149)-SUMPRODUCT(('C.5 Übrige Anlagen'!$M$6:$M$149='C. Kostendaten'!AI$4)*('C.5 Übrige Anlagen'!$L$6:$L$149<=2015)*'C.5 Übrige Anlagen'!$O$6:$O$149) -> 0 | AJ6: =SUMPRODUCT(('C.5 Übrige Anlagen'!$M$6:$M$149='C. Kostendaten'!AJ$4)*('C.5 Übrige Anlagen'!$L$6:$L$149<=2015)*'C.5 Übrige Anlagen'!$N$6:$N$149)-SUMPRODUCT(('C.5 Übrige Anlagen'!$M$6:$M$149='C. Kostendaten'!AJ$4)*('C.5 Übrige Anlagen'!$L$6:$L$149<=2015)*'C.5 Übrige Anlagen'!$O$6:$O$149) -> 0 | AK6: =SUMPRODUCT(('C.5 Übrige Anlagen'!$M$6:$M$149='C. Kostendaten'!AK$4)*('C.5 Übrige Anlagen'!$L$6:$L$149<=2015)*'C.5 Übrige Anlagen'!$N$6:$N$149)-SUMPRODUCT(('C.5 Übrige Anlagen'!$M$6:$M$149='C. Kostendaten'!AK$4)*('C.5 Übrige Anlagen'!$L$6:$L$149<=2015)*'C.5 Übrige Anlagen'!$O$6:$O$149) -> 0 | AL6: =SUMPRODUCT(('C.5 Übrige Anlagen'!$M$6:$M$149='C. Kostendaten'!AL$4)*('C.5 Übrige Anlagen'!$L$6:$L$149<=2015)*'C.5 Übrige Anlagen'!$N$6:$N$149)-SUMPRODUCT(('C.5 Übrige Anlagen'!$M$6:$M$149='C. Kostendaten'!AL$4)*('C.5 Übrige Anlagen'!$L$6:$L$149<=2015)*'C.5 Übrige Anlagen'!$O$6:$O$149) -> 0 | AM6: =SUMPRODUCT(('C.4 Kostendaten Regelein.'!$O$6:$O$149='C. Kostendaten'!AM$4)*('C.4 Kostendaten Regelein.'!$N$6:$N$149<=2015)*'C.4 Kostendaten Regelein.'!$P$6:$P$149)-SUMPRODUCT(('C.4 Kostendaten Regelein.'!$O$6:$O$149='C. Kostendaten'!AM$4)*('C.4 Kostendaten Regelein.'!$N$6:$N$149<=2015)*'C.4 Kostendaten Regelein.'!$Q$6:$Q$149) -> 0 | AN6: =SUMPRODUCT(('C.5 Übrige Anlagen'!$M$6:$M$149='C. Kostendaten'!AN$4)*('C.5 Übrige Anlagen'!$L$6:$L$149<=2015)*'C.5 Übrige Anlagen'!$N$6:$N$149)-SUMPRODUCT(('C.5 Übrige Anlagen'!$M$6:$M$149='C. Kostendaten'!AN$4)*('C.5 Übrige Anlagen'!$L$6:$L$149<=2015)*'C.5 Übrige Anlagen'!$O$6:$O$149) -> 0 | AO6: =SUMPRODUCT(('C.5 Übrige Anlagen'!$M$6:$M$149='C. Kostendaten'!AO$4)*('C.5 Übrige Anlagen'!$L$6:$L$149<=2015)*'C.5 Übrige Anlagen'!$N$6:$N$149)-SUMPRODUCT(('C.5 Übrige Anlagen'!$M$6:$M$149='C. Kostendaten'!AO$4)*('C.5 Übrige Anlagen'!$L$6:$L$149<=2015)*'C.5 Übrige Anlagen'!$O$6:$O$149) -> 0 | AP6: =SUMPRODUCT(('C.5 Übrige Anlagen'!$M$6:$M$149='C. Kostendaten'!AP$4)*('C.5 Übrige Anlagen'!$L$6:$L$149<=2015)*'C.5 Übrige Anlagen'!$N$6:$N$149)-SUMPRODUCT(('C.5 Übrige Anlagen'!$M$6:$M$149='C. Kostendaten'!AP$4)*('C.5 Übrige Anlagen'!$L$6:$L$149<=2015)*'C.5 Übrige Anlagen'!$O$6:$O$149) -> 0 | AQ6: =SUMPRODUCT(('C.5 Übrige Anlagen'!$M$6:$M$149='C. Kostendaten'!AQ$4)*('C.5 Übrige Anlagen'!$L$6:$L$149<=2015)*'C.5 Übrige Anlagen'!$N$6:$N$149)-SUMPRODUCT(('C.5 Übrige Anlagen'!$M$6:$M$149='C. Kostendaten'!AQ$4)*('C.5 Übrige Anlagen'!$L$6:$L$149<=2015)*'C.5 Übrige Anlagen'!$O$6:$O$149) -> 0 | AR6: =SUMPRODUCT(('C.5 Übrige Anlagen'!$M$6:$M$149='C. Kostendaten'!AR$4)*('C.5 Übrige Anlagen'!$L$6:$L$149<=2015)*'C.5 Übrige Anlagen'!$N$6:$N$149)-SUMPRODUCT(('C.5 Übrige Anlagen'!$M$6:$M$149='C. Kostendaten'!AR$4)*('C.5 Übrige Anlagen'!$L$6:$L$149<=2015)*'C.5 Übrige Anlagen'!$O$6:$O$149) -> 0 | AS6: =SUMPRODUCT(('C.5 Übrige Anlagen'!$M$6:$M$149='C. Kostendaten'!AS$4)*('C.5 Übrige Anlagen'!$L$6:$L$149<=2015)*'C.5 Übrige Anlagen'!$N$6:$N$149)-SUMPRODUCT(('C.5 Übrige Anlagen'!$M$6:$M$149='C. Kostendaten'!AS$4)*('C.5 Übrige Anlagen'!$L$6:$L$149<=2015)*'C.5 Übrige Anlagen'!$O$6:$O$149) -> 0
B7: Anlagen im Bau 2019 - Zugänge | C7: 2019 | D7: =SUM(E7:AS7) -> 0 | E7: =SUMPRODUCT(('C.5 Übrige Anlagen'!$M$6:$M$149='C. Kostendaten'!E$4)*('C.5 Übrige Anlagen'!$L$6:$L$149='C. Kostendaten'!$C7)*'C.5 Übrige Anlagen'!$N$6:$N$149) -> 0 | F7: =SUMPRODUCT(('C.5 Übrige Anlagen'!$M$6:$M$149='C. Kostendaten'!F$4)*('C.5 Übrige Anlagen'!$L$6:$L$149='C. Kostendaten'!$C7)*'C.5 Übrige Anlagen'!$N$6:$N$149) -> 0 | G7: =SUMPRODUCT(('C.5 Übrige Anlagen'!$M$6:$M$149='C. Kostendaten'!G$4)*('C.5 Übrige Anlagen'!$L$6:$L$149='C. Kostendaten'!$C7)*'C.5 Übrige Anlagen'!$N$6:$N$149) -> 0 | H7: =SUMPRODUCT(('C.5 Übrige Anlagen'!$M$6:$M$149='C. Kostendaten'!H$4)*('C.5 Übrige Anlagen'!$L$6:$L$149='C. Kostendaten'!$C7)*'C.5 Übrige Anlagen'!$N$6:$N$149) -> 0 | I7: =SUMPRODUCT(('C.5 Übrige Anlagen'!$M$6:$M$149='C. Kostendaten'!I$4)*('C.5 Übrige Anlagen'!$L$6:$L$149='C. Kostendaten'!$C7)*'C.5 Übrige Anlagen'!$N$6:$N$149) -> 0 | J7: =SUMPRODUCT(('C.5 Übrige Anlagen'!$M$6:$M$149='C. Kostendaten'!J$4)*('C.5 Übrige Anlagen'!$L$6:$L$149='C. Kostendaten'!$C7)*'C.5 Übrige Anlagen'!$N$6:$N$149) -> 0 | K7: =SUMPRODUCT(('C.5 Übrige Anlagen'!$M$6:$M$149='C. Kostendaten'!K$4)*('C.5 Übrige Anlagen'!$L$6:$L$149='C. Kostendaten'!$C7)*'C.5 Übrige Anlagen'!$N$6:$N$149) -> 0 | L7: =SUMPRODUCT(('C.5 Übrige Anlagen'!$M$6:$M$149='C. Kostendaten'!L$4)*('C.5 Übrige Anlagen'!$L$6:$L$149='C. Kostendaten'!$C7)*'C.5 Übrige Anlagen'!$N$6:$N$149) -> 0 | M7: =SUMPRODUCT(('C.5 Übrige Anlagen'!$M$6:$M$149='C. Kostendaten'!M$4)*('C.5 Übrige Anlagen'!$L$6:$L$149='C. Kostendaten'!$C7)*'C.5 Übrige Anlagen'!$N$6:$N$149) -> 0 | N7: =SUMPRODUCT(('C.5 Übrige Anlagen'!$M$6:$M$149='C. Kostendaten'!N$4)*('C.5 Übrige Anlagen'!$L$6:$L$149='C. Kostendaten'!$C7)*'C.5 Übrige Anlagen'!$N$6:$N$149) -> 0 | O7: =SUMPRODUCT(('C.5 Übrige Anlagen'!$M$6:$M$149='C. Kostendaten'!O$4)*('C.5 Übrige Anlagen'!$L$6:$L$149='C. Kostendaten'!$C7)*'C.5 Übrige Anlagen'!$N$6:$N$149) -> 0 | P7: =SUMPRODUCT(('C.5 Übrige Anlagen'!$M$6:$M$149='C. Kostendaten'!P$4)*('C.5 Übrige Anlagen'!$L$6:$L$149='C. Kostendaten'!$C7)*'C.5 Übrige Anlagen'!$N$6:$N$149) -> 0 | Q7: =SUMPRODUCT(('C.5 Übrige Anlagen'!$M$6:$M$149='C. Kostendaten'!Q$4)*('C.5 Übrige Anlagen'!$L$6:$L$149='C. Kostendaten'!$C7)*'C.5 Übrige Anlagen'!$N$6:$N$149) -> 0 | R7: =SUMPRODUCT(('C.1 Kostendaten Verdichtung'!$O$6:$O$149='C. Kostendaten'!R$4)*('C.1 Kostendaten Verdichtung'!$N$6:$N$149='C. Kostendaten'!$C7)*'C.1 Kostendaten Verdichtung'!$P$6:$P$149) -> 0 | S7: =SUMPRODUCT(('C.5 Übrige Anlagen'!$M$6:$M$149='C. Kostendaten'!S$4)*('C.5 Übrige Anlagen'!$L$6:$L$149='C. Kostendaten'!$C7)*'C.5 Übrige Anlagen'!$N$6:$N$149) -> 0 | T7: =SUMPRODUCT(('C.5 Übrige Anlagen'!$M$6:$M$149='C. Kostendaten'!T$4)*('C.5 Übrige Anlagen'!$L$6:$L$149='C. Kostendaten'!$C7)*'C.5 Übrige Anlagen'!$N$6:$N$149) -> 0 | U7: =SUMPRODUCT(('C.5 Übrige Anlagen'!$M$6:$M$149='C. Kostendaten'!U$4)*('C.5 Übrige Anlagen'!$L$6:$L$149='C. Kostendaten'!$C7)*'C.5 Übrige Anlagen'!$N$6:$N$149) -> 0 | V7: =SUMPRODUCT(('C.5 Übrige Anlagen'!$M$6:$M$149='C. Kostendaten'!V$4)*('C.5 Übrige Anlagen'!$L$6:$L$149='C. Kostendaten'!$C7)*'C.5 Übrige Anlagen'!$N$6:$N$149) -> 0 | W7: =SUMPRODUCT(('C.5 Übrige Anlagen'!$M$6:$M$149='C. Kostendaten'!W$4)*('C.5 Übrige Anlagen'!$L$6:$L$149='C. Kostendaten'!$C7)*'C.5 Übrige Anlagen'!$N$6:$N$149) -> 0 | X7: =SUMPRODUCT(('C.5 Übrige Anlagen'!$M$6:$M$149='C. Kostendaten'!X$4)*('C.5 Übrige Anlagen'!$L$6:$L$149='C. Kostendaten'!$C7)*'C.5 Übrige Anlagen'!$N$6:$N$149) -> 0 | Y7: =SUMPRODUCT(('C.5 Übrige Anlagen'!$M$6:$M$149='C. Kostendaten'!Y$4)*('C.5 Übrige Anlagen'!$L$6:$L$149='C. Kostendaten'!$C7)*'C.5 Übrige Anlagen'!$N$6:$N$149) -> 0 | Z7: =SUMPRODUCT(('C.2 Kostendaten Rohr PE'!$V$6:$V$149='C. Kostendaten'!Z$4)*('C.2 Kostendaten Rohr PE'!$U$6:$U$149='C. Kostendaten'!$C7)*'C.2 Kostendaten Rohr PE'!$W$6:$W$149) -> 0 | AA7: =SUMPRODUCT(('C.3 Kostendaten Rohr kath'!$V$6:$V$149='C. Kostendaten'!AA$4)*('C.3 Kostendaten Rohr kath'!$U$6:$U$149='C. Kostendaten'!$C7)*'C.3 Kostendaten Rohr kath'!$W$6:$W$149) -> 0 | AB7: =SUMPRODUCT(('C.5 Übrige Anlagen'!$M$6:$M$149='C. Kostendaten'!AB$4)*('C.5 Übrige Anlagen'!$L$6:$L$149='C. Kostendaten'!$C7)*'C.5 Übrige Anlagen'!$N$6:$N$149) -> 0 | AC7: =SUMPRODUCT(('C.5 Übrige Anlagen'!$M$6:$M$149='C. Kostendaten'!AC$4)*('C.5 Übrige Anlagen'!$L$6:$L$149='C. Kostendaten'!$C7)*'C.5 Übrige Anlagen'!$N$6:$N$149) -> 0 | AD7: =SUMPRODUCT(('C.5 Übrige Anlagen'!$M$6:$M$149='C. Kostendaten'!AD$4)*('C.5 Übrige Anlagen'!$L$6:$L$149='C. Kostendaten'!$C7)*'C.5 Übrige Anlagen'!$N$6:$N$149) -> 0 | AE7: =SUMPRODUCT(('C.5 Übrige Anlagen'!$M$6:$M$149='C. Kostendaten'!AE$4)*('C.5 Übrige Anlagen'!$L$6:$L$149='C. Kostendaten'!$C7)*'C.5 Übrige Anlagen'!$N$6:$N$149) -> 0 | AF7: =SUMPRODUCT(('C.5 Übrige Anlagen'!$M$6:$M$149='C. Kostendaten'!AF$4)*('C.5 Übrige Anlagen'!$L$6:$L$149='C. Kostendaten'!$C7)*'C.5 Übrige Anlagen'!$N$6:$N$149) -> 0 | AG7: =SUMPRODUCT(('C.5 Übrige Anlagen'!$M$6:$M$149='C. Kostendaten'!AG$4)*('C.5 Übrige Anlagen'!$L$6:$L$149='C. Kostendaten'!$C7)*'C.5 Übrige Anlagen'!$N$6:$N$149) -> 0 | AH7: =SUMPRODUCT(('C.5 Übrige Anlagen'!$M$6:$M$149='C. Kostendaten'!AH$4)*('C.5 Übrige Anlagen'!$L$6:$L$149='C. Kostendaten'!$C7)*'C.5 Übrige Anlagen'!$N$6:$N$149) -> 0 | AI7: =SUMPRODUCT(('C.5 Übrige Anlagen'!$M$6:$M$149='C. Kostendaten'!AI$4)*('C.5 Übrige Anlagen'!$L$6:$L$149='C. Kostendaten'!$C7)*'C.5 Übrige Anlagen'!$N$6:$N$149) -> 0 | AJ7: =SUMPRODUCT(('C.5 Übrige Anlagen'!$M$6:$M$149='C. Kostendaten'!AJ$4)*('C.5 Übrige Anlagen'!$L$6:$L$149='C. Kostendaten'!$C7)*'C.5 Übrige Anlagen'!$N$6:$N$149) -> 0 | AK7: =SUMPRODUCT(('C.5 Übrige Anlagen'!$M$6:$M$149='C. Kostendaten'!AK$4)*('C.5 Übrige Anlagen'!$L$6:$L$149='C. Kostendaten'!$C7)*'C.5 Übrige Anlagen'!$N$6:$N$149) -> 0 | AL7: =SUMPRODUCT(('C.5 Übrige Anlagen'!$M$6:$M$149='C. Kostendaten'!AL$4)*('C.5 Übrige Anlagen'!$L$6:$L$149='C. Kostendaten'!$C7)*'C.5 Übrige Anlagen'!$N$6:$N$149) -> 0 | AM7: =SUMPRODUCT(('C.4 Kostendaten Regelein.'!$O$6:$O$149='C. Kostendaten'!AM$4)*('C.4 Kostendaten Regelein.'!$N$6:$N$149='C. Kostendaten'!$C7)*'C.4 Kostendaten Regelein.'!$P$6:$P$149) -> 0 | AN7: =SUMPRODUCT(('C.5 Übrige Anlagen'!$M$6:$M$149='C. Kostendaten'!AN$4)*('C.5 Übrige Anlagen'!$L$6:$L$149='C. Kostendaten'!$C7)*'C.5 Übrige Anlagen'!$N$6:$N$149) -> 0 | AO7: =SUMPRODUCT(('C.5 Übrige Anlagen'!$M$6:$M$149='C. Kostendaten'!AO$4)*('C.5 Übrige Anlagen'!$L$6:$L$149='C. Kostendaten'!$C7)*'C.5 Übrige Anlagen'!$N$6:$N$149) -> 0 | AP7: =SUMPRODUCT(('C.5 Übrige Anlagen'!$M$6:$M$149='C. Kostendaten'!AP$4)*('C.5 Übrige Anlagen'!$L$6:$L$149='C. Kostendaten'!$C7)*'C.5 Übrige Anlagen'!$N$6:$N$149) -> 0 | AQ7: =SUMPRODUCT(('C.5 Übrige Anlagen'!$M$6:$M$149='C. Kostendaten'!AQ$4)*('C.5 Übrige Anlagen'!$L$6:$L$149='C. Kostendaten'!$C7)*'C.5 Übrige Anlagen'!$N$6:$N$149) -> 0 | AR7: =SUMPRODUCT(('C.5 Übrige Anlagen'!$M$6:$M$149='C. Kostendaten'!AR$4)*('C.5 Übrige Anlagen'!$L$6:$L$149='C. Kostendaten'!$C7)*'C.5 Übrige Anlagen'!$N$6:$N$149) -> 0 | AS7: =SUMPRODUCT(('C.5 Übrige Anlagen'!$M$6:$M$149='C. Kostendaten'!AS$4)*('C.5 Übrige Anlagen'!$L$6:$L$149='C. Kostendaten'!$C7)*'C.5 Übrige Anlagen'!$N$6:$N$149) -> 0
B8: Anlagen im Bau 2019 - Abgänge/Umbuchungen | C8: 2019 | D8: =SUM(E8:AS8) -> 0 | E8: =SUMPRODUCT(('C.5 Übrige Anlagen'!$M$6:$M$149='C. Kostendaten'!E$4)*('C.5 Übrige Anlagen'!$L$6:$L$149='C. Kostendaten'!$C8)*'C.5 Übrige Anlagen'!$O$6:$O$149) -> 0 | F8: =SUMPRODUCT(('C.5 Übrige Anlagen'!$M$6:$M$149='C. Kostendaten'!F$4)*('C.5 Übrige Anlagen'!$L$6:$L$149='C. Kostendaten'!$C8)*'C.5 Übrige Anlagen'!$O$6:$O$149) -> 0 | G8: =SUMPRODUCT(('C.5 Übrige Anlagen'!$M$6:$M$149='C. Kostendaten'!G$4)*('C.5 Übrige Anlagen'!$L$6:$L$149='C. Kostendaten'!$C8)*'C.5 Übrige Anlagen'!$O$6:$O$149) -> 0 | H8: =SUMPRODUCT(('C.5 Übrige Anlagen'!$M$6:$M$149='C. Kostendaten'!H$4)*('C.5 Übrige Anlagen'!$L$6:$L$149='C. Kostendaten'!$C8)*'C.5 Übrige Anlagen'!$O$6:$O$149) -> 0 | I8: =SUMPRODUCT(('C.5 Übrige Anlagen'!$M$6:$M$149='C. Kostendaten'!I$4)*('C.5 Übrige Anlagen'!$L$6:$L$149='C. Kostendaten'!$C8)*'C.5 Übrige Anlagen'!$O$6:$O$149) -> 0 | J8: =SUMPRODUCT(('C.5 Übrige Anlagen'!$M$6:$M$149='C. Kostendaten'!J$4)*('C.5 Übrige Anlagen'!$L$6:$L$149='C. Kostendaten'!$C8)*'C.5 Übrige Anlagen'!$O$6:$O$149) -> 0 | K8: =SUMPRODUCT(('C.5 Übrige Anlagen'!$M$6:$M$149='C. Kostendaten'!K$4)*('C.5 Übrige Anlagen'!$L$6:$L$149='C. Kostendaten'!$C8)*'C.5 Übrige Anlagen'!$O$6:$O$149) -> 0 | L8: =SUMPRODUCT(('C.5 Übrige Anlagen'!$M$6:$M$149='C. Kostendaten'!L$4)*('C.5 Übrige Anlagen'!$L$6:$L$149='C. Kostendaten'!$C8)*'C.5 Übrige Anlagen'!$O$6:$O$149) -> 0 | M8: =SUMPRODUCT(('C.5 Übrige Anlagen'!$M$6:$M$149='C. Kostendaten'!M$4)*('C.5 Übrige Anlagen'!$L$6:$L$149='C. Kostendaten'!$C8)*'C.5 Übrige Anlagen'!$O$6:$O$149) -> 0 | N8: =SUMPRODUCT(('C.5 Übrige Anlagen'!$M$6:$M$149='C. Kostendaten'!N$4)*('C.5 Übrige Anlagen'!$L$6:$L$149='C. Kostendaten'!$C8)*'C.5 Übrige Anlagen'!$O$6:$O$149) -> 0 | O8: =SUMPRODUCT(('C.5 Übrige Anlagen'!$M$6:$M$149='C. Kostendaten'!O$4)*('C.5 Übrige Anlagen'!$L$6:$L$149='C. Kostendaten'!$C8)*'C.5 Übrige Anlagen'!$O$6:$O$149) -> 0 | P8: =SUMPRODUCT(('C.5 Übrige Anlagen'!$M$6:$M$149='C. Kostendaten'!P$4)*('C.5 Übrige Anlagen'!$L$6:$L$149='C. Kostendaten'!$C8)*'C.5 Übrige Anlagen'!$O$6:$O$149) -> 0 | Q8: =SUMPRODUCT(('C.5 Übrige Anlagen'!$M$6:$M$149='C. Kostendaten'!Q$4)*('C.5 Übrige Anlagen'!$L$6:$L$149='C. Kostendaten'!$C8)*'C.5 Übrige Anlagen'!$O$6:$O$149) -> 0 | R8: =SUMPRODUCT(('C.1 Kostendaten Verdichtung'!$O$6:$O$149='C. Kostendaten'!R$4)*('C.1 Kostendaten Verdichtung'!$N$6:$N$149='C. Kostendaten'!$C8)*'C.1 Kostendaten Verdichtung'!$Q$6:$Q$149) -> 0 | S8: =SUMPRODUCT(('C.5 Übrige Anlagen'!$M$6:$M$149='C. Kostendaten'!S$4)*('C.5 Übrige Anlagen'!$L$6:$L$149='C. Kostendaten'!$C8)*'C.5 Übrige Anlagen'!$O$6:$O$149) -> 0 | T8: =SUMPRODUCT(('C.5 Übrige Anlagen'!$M$6:$M$149='C. Kostendaten'!T$4)*('C.5 Übrige Anlagen'!$L$6:$L$149='C. Kostendaten'!$C8)*'C.5 Übrige Anlagen'!$O$6:$O$149) -> 0 | U8: =SUMPRODUCT(('C.5 Übrige Anlagen'!$M$6:$M$149='C. Kostendaten'!U$4)*('C.5 Übrige Anlagen'!$L$6:$L$149='C. Kostendaten'!$C8)*'C.5 Übrige Anlagen'!$O$6:$O$149) -> 0 | V8: =SUMPRODUCT(('C.5 Übrige Anlagen'!$M$6:$M$149='C. Kostendaten'!V$4)*('C.5 Übrige Anlagen'!$L$6:$L$149='C. Kostendaten'!$C8)*'C.5 Übrige Anlagen'!$O$6:$O$149) -> 0 | W8: =SUMPRODUCT(('C.5 Übrige Anlagen'!$M$6:$M$149='C. Kostendaten'!W$4)*('C.5 Übrige Anlagen'!$L$6:$L$149='C. Kostendaten'!$C8)*'C.5 Übrige Anlagen'!$O$6:$O$149) -> 0 | X8: =SUMPRODUCT(('C.5 Übrige Anlagen'!$M$6:$M$149='C. Kostendaten'!X$4)*('C.5 Übrige Anlagen'!$L$6:$L$149='C. Kostendaten'!$C8)*'C.5 Übrige Anlagen'!$O$6:$O$149) -> 0 | Y8: =SUMPRODUCT(('C.5 Übrige Anlagen'!$M$6:$M$149='C. Kostendaten'!Y$4)*('C.5 Übrige Anlagen'!$L$6:$L$149='C. Kostendaten'!$C8)*'C.5 Übrige Anlagen'!$O$6:$O$149) -> 0 | Z8: =SUMPRODUCT(('C.2 Kostendaten Rohr PE'!$V$6:$V$149='C. Kostendaten'!Z$4)*('C.2 Kostendaten Rohr PE'!$U$6:$U$149='C. Kostendaten'!$C8)*'C.2 Kostendaten Rohr PE'!$X$6:$X$149) -> 0 | AA8: =SUMPRODUCT(('C.3 Kostendaten Rohr kath'!$V$6:$V$149='C. Kostendaten'!AA$4)*('C.3 Kostendaten Rohr kath'!$U$6:$U$149='C. Kostendaten'!$C8)*'C.3 Kostendaten Rohr kath'!$X$6:$X$149) -> 0 | AB8: =SUMPRODUCT(('C.5 Übrige Anlagen'!$M$6:$M$149='C. Kostendaten'!AB$4)*('C.5 Übrige Anlagen'!$L$6:$L$149='C. Kostendaten'!$C8)*'C.5 Übrige Anlagen'!$O$6:$O$149) -> 0 | AC8: =SUMPRODUCT(('C.5 Übrige Anlagen'!$M$6:$M$149='C. Kostendaten'!AC$4)*('C.5 Übrige Anlagen'!$L$6:$L$149='C. Kostendaten'!$C8)*'C.5 Übrige Anlagen'!$O$6:$O$149) -> 0 | AD8: =SUMPRODUCT(('C.5 Übrige Anlagen'!$M$6:$M$149='C. Kostendaten'!AD$4)*('C.5 Übrige Anlagen'!$L$6:$L$149='C. Kostendaten'!$C8)*'C.5 Übrige Anlagen'!$O$6:$O$149) -> 0 | AE8: =SUMPRODUCT(('C.5 Übrige Anlagen'!$M$6:$M$149='C. Kostendaten'!AE$4)*('C.5 Übrige Anlagen'!$L$6:$L$149='C. Kostendaten'!$C8)*'C.5 Übrige Anlagen'!$O$6:$O$149) -> 0 | AF8: =SUMPRODUCT(('C.5 Übrige Anlagen'!$M$6:$M$149='C. Kostendaten'!AF$4)*('C.5 Übrige Anlagen'!$L$6:$L$149='C. Kostendaten'!$C8)*'C.5 Übrige Anlagen'!$O$6:$O$149) -> 0 | AG8: =SUMPRODUCT(('C.5 Übrige Anlagen'!$M$6:$M$149='C. Kostendaten'!AG$4)*('C.5 Übrige Anlagen'!$L$6:$L$149='C. Kostendaten'!$C8)*'C.5 Übrige Anlagen'!$O$6:$O$149) -> 0 | AH8: =SUMPRODUCT(('C.5 Übrige Anlagen'!$M$6:$M$149='C. Kostendaten'!AH$4)*('C.5 Übrige Anlagen'!$L$6:$L$149='C. Kostendaten'!$C8)*'C.5 Übrige Anlagen'!$O$6:$O$149) -> 0 | AI8: =SUMPRODUCT(('C.5 Übrige Anlagen'!$M$6:$M$149='C. Kostendaten'!AI$4)*('C.5 Übrige Anlagen'!$L$6:$L$149='C. Kostendaten'!$C8)*'C.5 Übrige Anlagen'!$O$6:$O$149) -> 0 | AJ8: =SUMPRODUCT(('C.5 Übrige Anlagen'!$M$6:$M$149='C. Kostendaten'!AJ$4)*('C.5 Übrige Anlagen'!$L$6:$L$149='C. Kostendaten'!$C8)*'C.5 Übrige Anlagen'!$O$6:$O$149) -> 0 | AK8: =SUMPRODUCT(('C.5 Übrige Anlagen'!$M$6:$M$149='C. Kostendaten'!AK$4)*('C.5 Übrige Anlagen'!$L$6:$L$149='C. Kostendaten'!$C8)*'C.5 Übrige Anlagen'!$O$6:$O$149) -> 0 | AL8: =SUMPRODUCT(('C.5 Übrige Anlagen'!$M$6:$M$149='C. Kostendaten'!AL$4)*('C.5 Übrige Anlagen'!$L$6:$L$149='C. Kostendaten'!$C8)*'C.5 Übrige Anlagen'!$O$6:$O$149) -> 0 | AM8: =SUMPRODUCT(('C.4 Kostendaten Regelein.'!$O$6:$O$149='C. Kostendaten'!AM$4)*('C.4 Kostendaten Regelein.'!$N$6:$N$149='C. Kostendaten'!$C8)*'C.4 Kostendaten Regelein.'!$Q$6:$Q$149) -> 0 | AN8: =SUMPRODUCT(('C.5 Übrige Anlagen'!$M$6:$M$149='C. Kostendaten'!AN$4)*('C.5 Übrige Anlagen'!$L$6:$L$149='C. Kostendaten'!$C8)*'C.5 Übrige Anlagen'!$O$6:$O$149) -> 0 | AO8: =SUMPRODUCT(('C.5 Übrige Anlagen'!$M$6:$M$149='C. Kostendaten'!AO$4)*('C.5 Übrige Anlagen'!$L$6:$L$149='C. Kostendaten'!$C8)*'C.5 Übrige Anlagen'!$O$6:$O$149) -> 0 | AP8: =SUMPRODUCT(('C.5 Übrige Anlagen'!$M$6:$M$149='C. Kostendaten'!AP$4)*('C.5 Übrige Anlagen'!$L$6:$L$149='C. Kostendaten'!$C8)*'C.5 Übrige Anlagen'!$O$6:$O$149) -> 0 | AQ8: =SUMPRODUCT(('C.5 Übrige Anlagen'!$M$6:$M$149='C. Kostendaten'!AQ$4)*('C.5 Übrige Anlagen'!$L$6:$L$149='C. Kostendaten'!$C8)*'C.5 Übrige Anlagen'!$O$6:$O$149) -> 0 | AR8: =SUMPRODUCT(('C.5 Übrige Anlagen'!$M$6:$M$149='C. Kostendaten'!AR$4)*('C.5 Übrige Anlagen'!$L$6:$L$149='C. Kostendaten'!$C8)*'C.5 Übrige Anlagen'!$O$6:$O$149) -> 0 | AS8: =SUMPRODUCT(('C.5 Übrige Anlagen'!$M$6:$M$149='C. Kostendaten'!AS$4)*('C.5 Übrige Anlagen'!$L$6:$L$149='C. Kostendaten'!$C8)*'C.5 Übrige Anlagen'!$O$6:$O$149) -> 0
B9: Anlagen im Bau 2020 - Anfangsbestand | C9: 2020 | D9: 0 | E9: =E6+E7-E8 -> 0 | F9: =F6+F7-F8 -> 0 | G9: 0 | H9: 0 | I9: 0 | J9: 0 | K9: 0 | L9: 0 | M9: 0 | N9: 0 | O9: 0 | P9: 0 | Q9: 0 | R9: 0 | S9: 0 | T9: 0 | U9: 0 | V9: 0 | W9: 0 | X9: 0 | Y9: 0 | Z9: 0 | AA9: 0 | AB9: 0 | AC9: 0 | AD9: 0 | AE9: 0 | AF9: 0 | AG9: 0 | AH9: 0 | AI9: 0 | AJ9: 0 | AK9: 0 | AL9: 0 | AM9: 0 | AN9: 0 | AO9: 0 | AP9: 0 | AQ9: 0 | AR9: 0 | AS9: 0
B10: Anlagen im Bau 2020 - Zugänge | C10: 2020 | D10: 0 | E10: =SUMPRODUCT(('C.5 Übrige Anlagen'!$M$6:$M$149='C. Kostendaten'!E$4)*('C.5 Übrige Anlagen'!$L$6:$L$149='C. Kostendaten'!$C10)*'C.5 Übrige Anlagen'!$N$6:$N$149) -> 0 | F10: =SUMPRODUCT(('C.5 Übrige Anlagen'!$M$6:$M$149='C. Kostendaten'!F$4)*('C.5 Übrige Anlagen'!$L$6:$L$149='C. Kostendaten'!$C10)*'C.5 Übrige Anlagen'!$N$6:$N$149) -> 0 | G10: =SUMPRODUCT(('C.5 Übrige Anlagen'!$M$6:$M$149='C. Kostendaten'!G$4)*('C.5 Übrige Anlagen'!$L$6:$L$149='C. Kostendaten'!$C10)*'C.5 Übrige Anlagen'!$N$6:$N$149) -> 0 | H10: =SUMPRODUCT(('C.5 Übrige Anlagen'!$M$6:$M$149='C. Kostendaten'!H$4)*('C.5 Übrige Anlagen'!$L$6:$L$149='C. Kostendaten'!$C10)*'C.5 Übrige Anlagen'!$N$6:$N$149) -> 0 | I10: =SUMPRODUCT(('C.5 Übrige Anlagen'!$M$6:$M$149='C. Kostendaten'!I$4)*('C.5 Übrige Anlagen'!$L$6:$L$149='C. Kostendaten'!$C10)*'C.5 Übrige Anlagen'!$N$6:$N$149) -> 0 | J10: =SUMPRODUCT(('C.5 Übrige Anlagen'!$M$6:$M$149='C. Kostendaten'!J$4)*('C.5 Übrige Anlagen'!$L$6:$L$149='C. Kostendaten'!$C10)*'C.5 Übrige Anlagen'!$N$6:$N$149) -> 0 | K10: =SUMPRODUCT(('C.5 Übrige Anlagen'!$M$6:$M$149='C. Kostendaten'!K$4)*('C.5 Übrige Anlagen'!$L$6:$L$149='C. Kostendaten'!$C10)*'C.5 Übrige Anlagen'!$N$6:$N$149) -> 0 | L10: =SUMPRODUCT(('C.5 Übrige Anlagen'!$M$6:$M$149='C. Kostendaten'!L$4)*('C.5 Übrige Anlagen'!$L$6:$L$149='C. Kostendaten'!$C10)*'C.5 Übrige Anlagen'!$N$6:$N$149) -> 0 | M10: =SUMPRODUCT(('C.5 Übrige Anlagen'!$M$6:$M$149='C. Kostendaten'!M$4)*('C.5 Übrige Anlagen'!$L$6:$L$149='C. Kostendaten'!$C10)*'C.5 Übrige Anlagen'!$N$6:$N$149) -> 0 | N10: =SUMPRODUCT(('C.5 Übrige Anlagen'!$M$6:$M$149='C. Kostendaten'!N$4)*('C.5 Übrige Anlagen'!$L$6:$L$149='C. Kostendaten'!$C10)*'C.5 Übrige Anlagen'!$N$6:$N$149) -> 0 | O10: =SUMPRODUCT(('C.5 Übrige Anlagen'!$M$6:$M$149='C. Kostendaten'!O$4)*('C.5 Übrige Anlagen'!$L$6:$L$149='C. Kostendaten'!$C10)*'C.5 Übrige Anlagen'!$N$6:$N$149) -> 0 | P10: =SUMPRODUCT(('C.5 Übrige Anlagen'!$M$6:$M$149='C. Kostendaten'!P$4)*('C.5 Übrige Anlagen'!$L$6:$L$149='C. Kostendaten'!$C10)*'C.5 Übrige Anlagen'!$N$6:$N$149) -> 0 | Q10: =SUMPRODUCT(('C.5 Übrige Anlagen'!$M$6:$M$149='C. Kostendaten'!Q$4)*('C.5 Übrige Anlagen'!$L$6:$L$149='C. Kostendaten'!$C10)*'C.5 Übrige Anlagen'!$N$6:$N$149) -> 0 | R10: =SUMPRODUCT(('C.1 Kostendaten Verdichtung'!$O$6:$O$149='C. Kostendaten'!R$4)*('C.1 Kostendaten Verdichtung'!$N$6:$N$149='C. Kostendaten'!$C10)*'C.1 Kostendaten Verdichtung'!$P$6:$P$149) -> 0 | S10: =SUMPRODUCT(('C.5 Übrige Anlagen'!$M$6:$M$149='C. Kostendaten'!S$4)*('C.5 Übrige Anlagen'!$L$6:$L$149='C. Kostendaten'!$C10)*'C.5 Übrige Anlagen'!$N$6:$N$149) -> 0 | T10: =SUMPRODUCT(('C.5 Übrige Anlagen'!$M$6:$M$149='C. Kostendaten'!T$4)*('C.5 Übrige Anlagen'!$L$6:$L$149='C. Kostendaten'!$C10)*'C.5 Übrige Anlagen'!$N$6:$N$149) -> 0 | U10: =SUMPRODUCT(('C.5 Übrige Anlagen'!$M$6:$M$149='C. Kostendaten'!U$4)*('C.5 Übrige Anlagen'!$L$6:$L$149='C. Kostendaten'!$C10)*'C.5 Übrige Anlagen'!$N$6:$N$149) -> 0 | V10: =SUMPRODUCT(('C.5 Übrige Anlagen'!$M$6:$M$149='C. Kostendaten'!V$4)*('C.5 Übrige Anlagen'!$L$6:$L$149='C. Kostendaten'!$C10)*'C.5 Übrige Anlagen'!$N$6:$N$149) -> 0 | W10: =SUMPRODUCT(('C.5 Übrige Anlagen'!$M$6:$M$149='C. Kostendaten'!W$4)*('C.5 Übrige Anlagen'!$L$6:$L$149='C. Kostendaten'!$C10)*'C.5 Übrige Anlagen'!$N$6:$N$149) -> 0 | X10: =SUMPRODUCT(('C.5 Übrige Anlagen'!$M$6:$M$149='C. Kostendaten'!X$4)*('C.5 Übrige Anlagen'!$L$6:$L$149='C. Kostendaten'!$C10)*'C.5 Übrige Anlagen'!$N$6:$N$149) -> 0 | Y10: =SUMPRODUCT(('C.5 Übrige Anlagen'!$M$6:$M$149='C. Kostendaten'!Y$4)*('C.5 Übrige Anlagen'!$L$6:$L$149='C. Kostendaten'!$C10)*'C.5 Übrige Anlagen'!$N$6:$N$149) -> 0 | Z10: =SUMPRODUCT(('C.2 Kostendaten Rohr PE'!$V$6:$V$149='C. Kostendaten'!Z$4)*('C.2 Kostendaten Rohr PE'!$U$6:$U$149='C. Kostendaten'!$C10)*'C.2 Kostendaten Rohr PE'!$W$6:$W$149) -> 0 | AA10: =SUMPRODUCT(('C.3 Kostendaten Rohr kath'!$V$6:$V$149='C. Kostendaten'!AA$4)*('C.3 Kostendaten Rohr kath'!$U$6:$U$149='C. Kostendaten'!$C10)*'C.3 Kostendaten Rohr kath'!$W$6:$W$149) -> 0 | AB10: =SUMPRODUCT(('C.5 Übrige Anlagen'!$M$6:$M$149='C. Kostendaten'!AB$4)*('C.5 Übrige Anlagen'!$L$6:$L$149='C. Kostendaten'!$C10)*'C.5 Übrige Anlagen'!$N$6:$N$149) -> 0 | AC10: =SUMPRODUCT(('C.5 Übrige Anlagen'!$M$6:$M$149='C. Kostendaten'!AC$4)*('C.5 Übrige Anlagen'!$L$6:$L$149='C. Kostendaten'!$C10)*'C.5 Übrige Anlagen'!$N$6:$N$149) -> 0 | AD10: =SUMPRODUCT(('C.5 Übrige Anlagen'!$M$6:$M$149='C. Kostendaten'!AD$4)*('C.5 Übrige Anlagen'!$L$6:$L$149='C. Kostendaten'!$C10)*'C.5 Übrige Anlagen'!$N$6:$N$149) -> 0 | AE10: =SUMPRODUCT(('C.5 Übrige Anlagen'!$M$6:$M$149='C. Kostendaten'!AE$4)*('C.5 Übrige Anlagen'!$L$6:$L$149='C. Kostendaten'!$C10)*'C.5 Übrige Anlagen'!$N$6:$N$149) -> 0 | AF10: =SUMPRODUCT(('C.5 Übrige Anlagen'!$M$6:$M$149='C. Kostendaten'!AF$4)*('C.5 Übrige Anlagen'!$L$6:$L$149='C. Kostendaten'!$C10)*'C.5 Übrige Anlagen'!$N$6:$N$149) -> 0 | AG10: =SUMPRODUCT(('C.5 Übrige Anlagen'!$M$6:$M$149='C. Kostendaten'!AG$4)*('C.5 Übrige Anlagen'!$L$6:$L$149='C. Kostendaten'!$C10)*'C.5 Übrige Anlagen'!$N$6:$N$149) -> 0 | AH10: =SUMPRODUCT(('C.5 Übrige Anlagen'!$M$6:$M$149='C. Kostendaten'!AH$4)*('C.5 Übrige Anlagen'!$L$6:$L$149='C. Kostendaten'!$C10)*'C.5 Übrige Anlagen'!$N$6:$N$149) -> 0 | AI10: =SUMPRODUCT(('C.5 Übrige Anlagen'!$M$6:$M$149='C. Kostendaten'!AI$4)*('C.5 Übrige Anlagen'!$L$6:$L$149='C. Kostendaten'!$C10)*'C.5 Übrige Anlagen'!$N$6:$N$149) -> 0 | AJ10: =SUMPRODUCT(('C.5 Übrige Anlagen'!$M$6:$M$149='C. Kostendaten'!AJ$4)*('C.5 Übrige Anlagen'!$L$6:$L$149='C. Kostendaten'!$C10)*'C.5 Übrige Anlagen'!$N$6:$N$149) -> 0 | AK10: =SUMPRODUCT(('C.5 Übrige Anlagen'!$M$6:$M$149='C. Kostendaten'!AK$4)*('C.5 Übrige Anlagen'!$L$6:$L$149='C. Kostendaten'!$C10)*'C.5 Übrige Anlagen'!$N$6:$N$149) -> 0 | AL10: =SUMPRODUCT(('C.5 Übrige Anlagen'!$M$6:$M$149='C. Kostendaten'!AL$4)*('C.5 Übrige Anlagen'!$L$6:$L$149='C. Kostendaten'!$C10)*'C.5 Übrige Anlagen'!$N$6:$N$149) -> 0 | AM10: =SUMPRODUCT(('C.4 Kostendaten Regelein.'!$O$6:$O$149='C. Kostendaten'!AM$4)*('C.4 Kostendaten Regelein.'!$N$6:$N$149='C. Kostendaten'!$C10)*'C.4 Kostendaten Regelein.'!$P$6:$P$149) -> 0 | AN10: =SUMPRODUCT(('C.5 Übrige Anlagen'!$M$6:$M$149='C. Kostendaten'!AN$4)*('C.5 Übrige Anlagen'!$L$6:$L$149='C. Kostendaten'!$C10)*'C.5 Übrige Anlagen'!$N$6:$N$149) -> 0 | AO10: =SUMPRODUCT(('C.5 Übrige Anlagen'!$M$6:$M$149='C. Kostendaten'!AO$4)*('C.5 Übrige Anlagen'!$L$6:$L$149='C. Kostendaten'!$C10)*'C.5 Übrige Anlagen'!$N$6:$N$149) -> 0 | AP10: =SUMPRODUCT(('C.5 Übrige Anlagen'!$M$6:$M$149='C. Kostendaten'!AP$4)*('C.5 Übrige Anlagen'!$L$6:$L$149='C. Kostendaten'!$C10)*'C.5 Übrige Anlagen'!$N$6:$N$149) -> 0 | AQ10: =SUMPRODUCT(('C.5 Übrige Anlagen'!$M$6:$M$149='C. Kostendaten'!AQ$4)*('C.5 Übrige Anlagen'!$L$6:$L$149='C. Kostendaten'!$C10)*'C.5 Übrige Anlagen'!$N$6:$N$149) -> 0 | AR10: =SUMPRODUCT(('C.5 Übrige Anlagen'!$M$6:$M$149='C. Kostendaten'!AR$4)*('C.5 Übrige Anlagen'!$L$6:$L$149='C. Kostendaten'!$C10)*'C.5 Übrige Anlagen'!$N$6:$N$149) -> 0 | AS10: =SUMPRODUCT(('C.5 Übrige Anlagen'!$M$6:$M$149='C. Kostendaten'!AS$4)*('C.5 Übrige Anlagen'!$L$6:$L$149='C. Kostendaten'!$C10)*'C.5 Übrige Anlagen'!$N$6:$N$149) -> 0
B11: Anlagen im Bau 2020 - Abgänge/Umbuchungen | C11: 2020 | D11: 0 | E11: =SUMPRODUCT(('C.5 Übrige Anlagen'!$M$6:$M$149='C. Kostendaten'!E$4)*('C.5 Übrige Anlagen'!$L$6:$L$149='C. Kostendaten'!$C11)*'C.5 Übrige Anlagen'!$O$6:$O$149) -> 0 | F11: =SUMPRODUCT(('C.5 Übrige Anlagen'!$M$6:$M$149='C. Kostendaten'!F$4)*('C.5 Übrige Anlagen'!$L$6:$L$149='C. Kostendaten'!$C11)*'C.5 Übrige Anlagen'!$O$6:$O$149) -> 0 | G11: =SUMPRODUCT(('C.5 Übrige Anlagen'!$M$6:$M$149='C. Kostendaten'!G$4)*('C.5 Übrige Anlagen'!$L$6:$L$149='C. Kostendaten'!$C11)*'C.5 Übrige Anlagen'!$O$6:$O$149) -> 0 | H11: =SUMPRODUCT(('C.5 Übrige Anlagen'!$M$6:$M$149='C. Kostendaten'!H$4)*('C.5 Übrige Anlagen'!$L$6:$L$149='C. Kostendaten'!$C11)*'C.5 Übrige Anlagen'!$O$6:$O$149) -> 0 | I11: =SUMPRODUCT(('C.5 Übrige Anlagen'!$M$6:$M$149='C. Kostendaten'!I$4)*('C.5 Übrige Anlagen'!$L$6:$L$149='C. Kostendaten'!$C11)*'C.5 Übrige Anlagen'!$O$6:$O$149) -> 0 | J11: =SUMPRODUCT(('C.5 Übrige Anlagen'!$M$6:$M$149='C. Kostendaten'!J$4)*('C.5 Übrige Anlagen'!$L$6:$L$149='C. Kostendaten'!$C11)*'C.5 Übrige Anlagen'!$O$6:$O$149) -> 0 | K11: =SUMPRODUCT(('C.5 Übrige Anlagen'!$M$6:$M$149='C. Kostendaten'!K$4)*('C.5 Übrige Anlagen'!$L$6:$L$149='C. Kostendaten'!$C11)*'C.5 Übrige Anlagen'!$O$6:$O$149) -> 0 | L11: =SUMPRODUCT(('C.5 Übrige Anlagen'!$M$6:$M$149='C. Kostendaten'!L$4)*('C.5 Übrige Anlagen'!$L$6:$L$149='C. Kostendaten'!$C11)*'C.5 Übrige Anlagen'!$O$6:$O$149) -> 0 | M11: =SUMPRODUCT(('C.5 Übrige Anlagen'!$M$6:$M$149='C. Kostendaten'!M$4)*('C.5 Übrige Anlagen'!$L$6:$L$149='C. Kostendaten'!$C11)*'C.5 Übrige Anlagen'!$O$6:$O$149) -> 0 | N11: =SUMPRODUCT(('C.5 Übrige Anlagen'!$M$6:$M$149='C. Kostendaten'!N$4)*('C.5 Übrige Anlagen'!$L$6:$L$149='C. Kostendaten'!$C11)*'C.5 Übrige Anlagen'!$O$6:$O$149) -> 0 | O11: =SUMPRODUCT(('C.5 Übrige Anlagen'!$M$6:$M$149='C. Kostendaten'!O$4)*('C.5 Übrige Anlagen'!$L$6:$L$149='C. Kostendaten'!$C11)*'C.5 Übrige Anlagen'!$O$6:$O$149) -> 0 | P11: =SUMPRODUCT(('C.5 Übrige Anlagen'!$M$6:$M$149='C. Kostendaten'!P$4)*('C.5 Übrige Anlagen'!$L$6:$L$149='C. Kostendaten'!$C11)*'C.5 Übrige Anlagen'!$O$6:$O$149) -> 0 | Q11: =SUMPRODUCT(('C.5 Übrige Anlagen'!$M$6:$M$149='C. Kostendaten'!Q$4)*('C.5 Übrige Anlagen'!$L$6:$L$149='C. Kostendaten'!$C11)*'C.5 Übrige Anlagen'!$O$6:$O$149) -> 0 | R11: =SUMPRODUCT(('C.1 Kostendaten Verdichtung'!$O$6:$O$149='C. Kostendaten'!R$4)*('C.1 Kostendaten Verdichtung'!$N$6:$N$149='C. Kostendaten'!$C11)*'C.1 Kostendaten Verdichtung'!$Q$6:$Q$149) -> 0 | S11: =SUMPRODUCT(('C.5 Übrige Anlagen'!$M$6:$M$149='C. Kostendaten'!S$4)*('C.5 Übrige Anlagen'!$L$6:$L$149='C. Kostendaten'!$C11)*'C.5 Übrige Anlagen'!$O$6:$O$149) -> 0 | T11: =SUMPRODUCT(('C.5 Übrige Anlagen'!$M$6:$M$149='C. Kostendaten'!T$4)*('C.5 Übrige Anlagen'!$L$6:$L$149='C. Kostendaten'!$C11)*'C.5 Übrige Anlagen'!$O$6:$O$149) -> 0 | U11: =SUMPRODUCT(('C.5 Übrige Anlagen'!$M$6:$M$149='C. Kostendaten'!U$4)*('C.5 Übrige Anlagen'!$L$6:$L$149='C. Kostendaten'!$C11)*'C.5 Übrige Anlagen'!$O$6:$O$149) -> 0 | V11: =SUMPRODUCT(('C.5 Übrige Anlagen'!$M$6:$M$149='C. Kostendaten'!V$4)*('C.5 Übrige Anlagen'!$L$6:$L$149='C. Kostendaten'!$C11)*'C.5 Übrige Anlagen'!$O$6:$O$149) -> 0 | W11: =SUMPRODUCT(('C.5 Übrige Anlagen'!$M$6:$M$149='C. Kostendaten'!W$4)*('C.5 Übrige Anlagen'!$L$6:$L$149='C. Kostendaten'!$C11)*'C.5 Übrige Anlagen'!$O$6:$O$149) -> 0 | X11: =SUMPRODUCT(('C.5 Übrige Anlagen'!$M$6:$M$149='C. Kostendaten'!X$4)*('C.5 Übrige Anlagen'!$L$6:$L$149='C. Kostendaten'!$C11)*'C.5 Übrige Anlagen'!$O$6:$O$149) -> 0 | Y11: =SUMPRODUCT(('C.5 Übrige Anlagen'!$M$6:$M$149='C. Kostendaten'!Y$4)*('C.5 Übrige Anlagen'!$L$6:$L$149='C. Kostendaten'!$C11)*'C.5 Übrige Anlagen'!$O$6:$O$149) -> 0 | Z11: =SUMPRODUCT(('C.2 Kostendaten Rohr PE'!$V$6:$V$149='C. Kostendaten'!Z$4)*('C.2 Kostendaten Rohr PE'!$U$6:$U$149='C. Kostendaten'!$C11)*'C.2 Kostendaten Rohr PE'!$X$6:$X$149) -> 0 | AA11: =SUMPRODUCT(('C.3 Kostendaten Rohr kath'!$V$6:$V$149='C. Kostendaten'!AA$4)*('C.3 Kostendaten Rohr kath'!$U$6:$U$149='C. Kostendaten'!$C11)*'C.3 Kostendaten Rohr kath'!$X$6:$X$149) -> 0 | AB11: =SUMPRODUCT(('C.5 Übrige Anlagen'!$M$6:$M$149='C. Kostendaten'!AB$4)*('C.5 Übrige Anlagen'!$L$6:$L$149='C. Kostendaten'!$C11)*'C.5 Übrige Anlagen'!$O$6:$O$149) -> 0 | AC11: =SUMPRODUCT(('C.5 Übrige Anlagen'!$M$6:$M$149='C. Kostendaten'!AC$4)*('C.5 Übrige Anlagen'!$L$6:$L$149='C. Kostendaten'!$C11)*'C.5 Übrige Anlagen'!$O$6:$O$149) -> 0 | AD11: =SUMPRODUCT(('C.5 Übrige Anlagen'!$M$6:$M$149='C. Kostendaten'!AD$4)*('C.5 Übrige Anlagen'!$L$6:$L$149='C. Kostendaten'!$C11)*'C.5 Übrige Anlagen'!$O$6:$O$149) -> 0 | AE11: =SUMPRODUCT(('C.5 Übrige Anlagen'!$M$6:$M$149='C. Kostendaten'!AE$4)*('C.5 Übrige Anlagen'!$L$6:$L$149='C. Kostendaten'!$C11)*'C.5 Übrige Anlagen'!$O$6:$O$149) -> 0 | AF11: =SUMPRODUCT(('C.5 Übrige Anlagen'!$M$6:$M$149='C. Kostendaten'!AF$4)*('C.5 Übrige Anlagen'!$L$6:$L$149='C. Kostendaten'!$C11)*'C.5 Übrige Anlagen'!$O$6:$O$149) -> 0 | AG11: =SUMPRODUCT(('C.5 Übrige Anlagen'!$M$6:$M$149='C. Kostendaten'!AG$4)*('C.5 Übrige Anlagen'!$L$6:$L$149='C. Kostendaten'!$C11)*'C.5 Übrige Anlagen'!$O$6:$O$149) -> 0 | AH11: =SUMPRODUCT(('C.5 Übrige Anlagen'!$M$6:$M$149='C. Kostendaten'!AH$4)*('C.5 Übrige Anlagen'!$L$6:$L$149='C. Kostendaten'!$C11)*'C.5 Übrige Anlagen'!$O$6:$O$149) -> 0 | AI11: =SUMPRODUCT(('C.5 Übrige Anlagen'!$M$6:$M$149='C. Kostendaten'!AI$4)*('C.5 Übrige Anlagen'!$L$6:$L$149='C. Kostendaten'!$C11)*'C.5 Übrige Anlagen'!$O$6:$O$149) -> 0 | AJ11: =SUMPRODUCT(('C.5 Übrige Anlagen'!$M$6:$M$149='C. Kostendaten'!AJ$4)*('C.5 Übrige Anlagen'!$L$6:$L$149='C. Kostendaten'!$C11)*'C.5 Übrige Anlagen'!$O$6:$O$149) -> 0 | AK11: =SUMPRODUCT(('C.5 Übrige Anlagen'!$M$6:$M$149='C. Kostendaten'!AK$4)*('C.5 Übrige Anlagen'!$L$6:$L$149='C. Kostendaten'!$C11)*'C.5 Übrige Anlagen'!$O$6:$O$149) -> 0 | AL11: =SUMPRODUCT(('C.5 Übrige Anlagen'!$M$6:$M$149='C. Kostendaten'!AL$4)*('C.5 Übrige Anlagen'!$L$6:$L$149='C. Kostendaten'!$C11)*'C.5 Übrige Anlagen'!$O$6:$O$149) -> 0 | AM11: =SUMPRODUCT(('C.4 Kostendaten Regelein.'!$O$6:$O$149='C. Kostendaten'!AM$4)*('C.4 Kostendaten Regelein.'!$N$6:$N$149='C. Kostendaten'!$C11)*'C.4 Kostendaten Regelein.'!$Q$6:$Q$149) -> 0 | AN11: =SUMPRODUCT(('C.5 Übrige Anlagen'!$M$6:$M$149='C. Kostendaten'!AN$4)*('C.5 Übrige Anlagen'!$L$6:$L$149='C. Kostendaten'!$C11)*'C.5 Übrige Anlagen'!$O$6:$O$149) -> 0 | AO11: =SUMPRODUCT(('C.5 Übrige Anlagen'!$M$6:$M$149='C. Kostendaten'!AO$4)*('C.5 Übrige Anlagen'!$L$6:$L$149='C. Kostendaten'!$C11)*'C.5 Übrige Anlagen'!$O$6:$O$149) -> 0 | AP11: =SUMPRODUCT(('C.5 Übrige Anlagen'!$M$6:$M$149='C. Kostendaten'!AP$4)*('C.5 Übrige Anlagen'!$L$6:$L$149='C. Kostendaten'!$C11)*'C.5 Übrige Anlagen'!$O$6:$O$149) -> 0 | AQ11: =SUMPRODUCT(('C.5 Übrige Anlagen'!$M$6:$M$149='C. Kostendaten'!AQ$4)*('C.5 Übrige Anlagen'!$L$6:$L$149='C. Kostendaten'!$C11)*'C.5 Übrige Anlagen'!$O$6:$O$149) -> 0 | AR11: =SUMPRODUCT(('C.5 Übrige Anlagen'!$M$6:$M$149='C. Kostendaten'!AR$4)*('C.5 Übrige Anlagen'!$L$6:$L$149='C. Kostendaten'!$C11)*'C.5 Übrige Anlagen'!$O$6:$O$149) -> 0 | AS11: =SUMPRODUCT(('C.5 Übrige Anlagen'!$M$6:$M$149='C. Kostendaten'!AS$4)*('C.5 Übrige Anlagen'!$L$6:$L$149='C. Kostendaten'!$C11)*'C.5 Übrige Anlagen'!$O$6:$O$149) -> 0
B12: Anlagen im Bau 2021 - Anfangsbestand | C12: 2021 | D12: 0 | E12: =E9+E10-E11 -> 0 | F12: 0 | G12: 0 | H12: 0 | I12: 0 | J12: 0 | K12: 0 | L12: 0 | M12: 0 | N12: 0 | O12: 0 | P12: 0 | Q12: 0 | R12: 0 | S12: 0 | T12: 0 | U12: 0 | V12: 0 | W12: 0 | X12: 0 | Y12: 0 | Z12: 0 | AA12: 0 | AB12: 0 | AC12: 0 | AD12: 0 | AE12: 0 | AF12: 0 | AG12: 0 | AH12: 0 | AI12: 0 | AJ12: 0 | AK12: 0 | AL12: 0 | AM12: 0 | AN12: 0 | AO12: 0 | AP12: 0 | AQ12: 0 | AR12: 0 | AS12: 0
B13: Anlagen im Bau 2021 - Zugänge | C13: 2021 | D13: 0 | E13: =SUMPRODUCT(('C.5 Übrige Anlagen'!$M$6:$M$149='C. Kostendaten'!E$4)*('C.5 Übrige Anlagen'!$L$6:$L$149='C. Kostendaten'!$C13)*'C.5 Übrige Anlagen'!$N$6:$N$149) -> 0 | F13: =SUMPRODUCT(('C.5 Übrige Anlagen'!$M$6:$M$149='C. Kostendaten'!F$4)*('C.5 Übrige Anlagen'!$L$6:$L$149='C. Kostendaten'!$C13)*'C.5 Übrige Anlagen'!$N$6:$N$149) -> 0 | G13: =SUMPRODUCT(('C.5 Übrige Anlagen'!$M$6:$M$149='C. Kostendaten'!G$4)*('C.5 Übrige Anlagen'!$L$6:$L$149='C. Kostendaten'!$C13)*'C.5 Übrige Anlagen'!$N$6:$N$149) -> 0 | H13: =SUMPRODUCT(('C.5 Übrige Anlagen'!$M$6:$M$149='C. Kostendaten'!H$4)*('C.5 Übrige Anlagen'!$L$6:$L$149='C. Kostendaten'!$C13)*'C.5 Übrige Anlagen'!$N$6:$N$149) -> 0 | I13: =SUMPRODUCT(('C.5 Übrige Anlagen'!$M$6:$M$149='C. Kostendaten'!I$4)*('C.5 Übrige Anlagen'!$L$6:$L$149='C. Kostendaten'!$C13)*'C.5 Übrige Anlagen'!$N$6:$N$149) -> 0 | J13: =SUMPRODUCT(('C.5 Übrige Anlagen'!$M$6:$M$149='C. Kostendaten'!J$4)*('C.5 Übrige Anlagen'!$L$6:$L$149='C. Kostendaten'!$C13)*'C.5 Übrige Anlagen'!$N$6:$N$149) -> 0 | K13: =SUMPRODUCT(('C.5 Übrige Anlagen'!$M$6:$M$149='C. Kostendaten'!K$4)*('C.5 Übrige Anlagen'!$L$6:$L$149='C. Kostendaten'!$C13)*'C.5 Übrige Anlagen'!$N$6:$N$149) -> 0 | L13: =SUMPRODUCT(('C.5 Übrige Anlagen'!$M$6:$M$149='C. Kostendaten'!L$4)*('C.5 Übrige Anlagen'!$L$6:$L$149='C. Kostendaten'!$C13)*'C.5 Übrige Anlagen'!$N$6:$N$149) -> 0 | M13: =SUMPRODUCT(('C.5 Übrige Anlagen'!$M$6:$M$149='C. Kostendaten'!M$4)*('C.5 Übrige Anlagen'!$L$6:$L$149='C. Kostendaten'!$C13)*'C.5 Übrige Anlagen'!$N$6:$N$149) -> 0 | N13: =SUMPRODUCT(('C.5 Übrige Anlagen'!$M$6:$M$149='C. Kostendaten'!N$4)*('C.5 Übrige Anlagen'!$L$6:$L$149='C. Kostendaten'!$C13)*'C.5 Übrige Anlagen'!$N$6:$N$149) -> 0 | O13: =SUMPRODUCT(('C.5 Übrige Anlagen'!$M$6:$M$149='C. Kostendaten'!O$4)*('C.5 Übrige Anlagen'!$L$6:$L$149='C. Kostendaten'!$C13)*'C.5 Übrige Anlagen'!$N$6:$N$149) -> 0 | P13: =SUMPRODUCT(('C.5 Übrige Anlagen'!$M$6:$M$149='C. Kostendaten'!P$4)*('C.5 Übrige Anlagen'!$L$6:$L$149='C. Kostendaten'!$C13)*'C.5 Übrige Anlagen'!$N$6:$N$149) -> 0 | Q13: =SUMPRODUCT(('C.5 Übrige Anlagen'!$M$6:$M$149='C. Kostendaten'!Q$4)*('C.5 Übrige Anlagen'!$L$6:$L$149='C. Kostendaten'!$C13)*'C.5 Übrige Anlagen'!$N$6:$N$149) -> 0 | R13: =SUMPRODUCT(('C.1 Kostendaten Verdichtung'!$O$6:$O$149='C. Kostendaten'!R$4)*('C.1 Kostendaten Verdichtung'!$N$6:$N$149='C. Kostendaten'!$C13)*'C.1 Kostendaten Verdichtung'!$P$6:$P$149) -> 0 | S13: =SUMPRODUCT(('C.5 Übrige Anlagen'!$M$6:$M$149='C. Kostendaten'!S$4)*('C.5 Übrige Anlagen'!$L$6:$L$149='C. Kostendaten'!$C13)*'C.5 Übrige Anlagen'!$N$6:$N$149) -> 0 | T13: =SUMPRODUCT(('C.5 Übrige Anlagen'!$M$6:$M$149='C. Kostendaten'!T$4)*('C.5 Übrige Anlagen'!$L$6:$L$149='C. Kostendaten'!$C13)*'C.5 Übrige Anlagen'!$N$6:$N$149) -> 0 | U13: =SUMPRODUCT(('C.5 Übrige Anlagen'!$M$6:$M$149='C. Kostendaten'!U$4)*('C.5 Übrige Anlagen'!$L$6:$L$149='C. Kostendaten'!$C13)*'C.5 Übrige Anlagen'!$N$6:$N$149) -> 0 | V13: =SUMPRODUCT(('C.5 Übrige Anlagen'!$M$6:$M$149='C. Kostendaten'!V$4)*('C.5 Übrige Anlagen'!$L$6:$L$149='C. Kostendaten'!$C13)*'C.5 Übrige Anlagen'!$N$6:$N$149) -> 0 | W13: =SUMPRODUCT(('C.5 Übrige Anlagen'!$M$6:$M$149='C. Kostendaten'!W$4)*('C.5 Übrige Anlagen'!$L$6:$L$149='C. Kostendaten'!$C13)*'C.5 Übrige Anlagen'!$N$6:$N$149) -> 0 | X13: =SUMPRODUCT(('C.5 Übrige Anlagen'!$M$6:$M$149='C. Kostendaten'!X$4)*('C.5 Übrige Anlagen'!$L$6:$L$149='C. Kostendaten'!$C13)*'C.5 Übrige Anlagen'!$N$6:$N$149) -> 0 | Y13: =SUMPRODUCT(('C.5 Übrige Anlagen'!$M$6:$M$149='C. Kostendaten'!Y$4)*('C.5 Übrige Anlagen'!$L$6:$L$149='C. Kostendaten'!$C13)*'C.5 Übrige Anlagen'!$N$6:$N$149) -> 0 | Z13: =SUMPRODUCT(('C.2 Kostendaten Rohr PE'!$V$6:$V$149='C. Kostendaten'!Z$4)*('C.2 Kostendaten Rohr PE'!$U$6:$U$149='C. Kostendaten'!$C13)*'C.2 Kostendaten Rohr PE'!$W$6:$W$149) -> 0 | AA13: =SUMPRODUCT(('C.3 Kostendaten Rohr kath'!$V$6:$V$149='C. Kostendaten'!AA$4)*('C.3 Kostendaten Rohr kath'!$U$6:$U$149='C. Kostendaten'!$C13)*'C.3 Kostendaten Rohr kath'!$W$6:$W$149) -> 0 | AB13: =SUMPRODUCT(('C.5 Übrige Anlagen'!$M$6:$M$149='C. Kostendaten'!AB$4)*('C.5 Übrige Anlagen'!$L$6:$L$149='C. Kostendaten'!$C13)*'C.5 Übrige Anlagen'!$N$6:$N$149) -> 0 | AC13: =SUMPRODUCT(('C.5 Übrige Anlagen'!$M$6:$M$149='C. Kostendaten'!AC$4)*('C.5 Übrige Anlagen'!$L$6:$L$149='C. Kostendaten'!$C13)*'C.5 Übrige Anlagen'!$N$6:$N$149) -> 0 | AD13: =SUMPRODUCT(('C.5 Übrige Anlagen'!$M$6:$M$149='C. Kostendaten'!AD$4)*('C.5 Übrige Anlagen'!$L$6:$L$149='C. Kostendaten'!$C13)*'C.5 Übrige Anlagen'!$N$6:$N$149) -> 0 | AE13: =SUMPRODUCT(('C.5 Übrige Anlagen'!$M$6:$M$149='C. Kostendaten'!AE$4)*('C.5 Übrige Anlagen'!$L$6:$L$149='C. Kostendaten'!$C13)*'C.5 Übrige Anlagen'!$N$6:$N$149) -> 0 | AF13: =SUMPRODUCT(('C.5 Übrige Anlagen'!$M$6:$M$149='C. Kostendaten'!AF$4)*('C.5 Übrige Anlagen'!$L$6:$L$149='C. Kostendaten'!$C13)*'C.5 Übrige Anlagen'!$N$6:$N$149) -> 0 | AG13: =SUMPRODUCT(('C.5 Übrige Anlagen'!$M$6:$M$149='C. Kostendaten'!AG$4)*('C.5 Übrige Anlagen'!$L$6:$L$149='C. Kostendaten'!$C13)*'C.5 Übrige Anlagen'!$N$6:$N$149) -> 0 | AH13: =SUMPRODUCT(('C.5 Übrige Anlagen'!$M$6:$M$149='C. Kostendaten'!AH$4)*('C.5 Übrige Anlagen'!$L$6:$L$149='C. Kostendaten'!$C13)*'C.5 Übrige Anlagen'!$N$6:$N$149) -> 0 | AI13: =SUMPRODUCT(('C.5 Übrige Anlagen'!$M$6:$M$149='C. Kostendaten'!AI$4)*('C.5 Übrige Anlagen'!$L$6:$L$149='C. Kostendaten'!$C13)*'C.5 Übrige Anlagen'!$N$6:$N$149) -> 0 | AJ13: =SUMPRODUCT(('C.5 Übrige Anlagen'!$M$6:$M$149='C. Kostendaten'!AJ$4)*('C.5 Übrige Anlagen'!$L$6:$L$149='C. Kostendaten'!$C13)*'C.5 Übrige Anlagen'!$N$6:$N$149) -> 0 | AK13: =SUMPRODUCT(('C.5 Übrige Anlagen'!$M$6:$M$149='C. Kostendaten'!AK$4)*('C.5 Übrige Anlagen'!$L$6:$L$149='C. Kostendaten'!$C13)*'C.5 Übrige Anlagen'!$N$6:$N$149) -> 0 | AL13: =SUMPRODUCT(('C.5 Übrige Anlagen'!$M$6:$M$149='C. Kostendaten'!AL$4)*('C.5 Übrige Anlagen'!$L$6:$L$149='C. Kostendaten'!$C13)*'C.5 Übrige Anlagen'!$N$6:$N$149) -> 0 | AM13: =SUMPRODUCT(('C.4 Kostendaten Regelein.'!$O$6:$O$149='C. Kostendaten'!AM$4)*('C.4 Kostendaten Regelein.'!$N$6:$N$149='C. Kostendaten'!$C13)*'C.4 Kostendaten Regelein.'!$P$6:$P$149) -> 0 | AN13: =SUMPRODUCT(('C.5 Übrige Anlagen'!$M$6:$M$149='C. Kostendaten'!AN$4)*('C.5 Übrige Anlagen'!$L$6:$L$149='C. Kostendaten'!$C13)*'C.5 Übrige Anlagen'!$N$6:$N$149) -> 0 | AO13: =SUMPRODUCT(('C.5 Übrige Anlagen'!$M$6:$M$149='C. Kostendaten'!AO$4)*('C.5 Übrige Anlagen'!$L$6:$L$149='C. Kostendaten'!$C13)*'C.5 Übrige Anlagen'!$N$6:$N$149) -> 0 | AP13: =SUMPRODUCT(('C.5 Übrige Anlagen'!$M$6:$M$149='C. Kostendaten'!AP$4)*('C.5 Übrige Anlagen'!$L$6:$L$149='C. Kostendaten'!$C13)*'C.5 Übrige Anlagen'!$N$6:$N$149) -> 0 | AQ13: =SUMPRODUCT(('C.5 Übrige Anlagen'!$M$6:$M$149='C. Kostendaten'!AQ$4)*('C.5 Übrige Anlagen'!$L$6:$L$149='C. Kostendaten'!$C13)*'C.5 Übrige Anlagen'!$N$6:$N$149) -> 0 | AR13: =SUMPRODUCT(('C.5 Übrige Anlagen'!$M$6:$M$149='C. Kostendaten'!AR$4)*('C.5 Übrige Anlagen'!$L$6:$L$149='C. Kostendaten'!$C13)*'C.5 Übrige Anlagen'!$N$6:$N$149) -> 0 | AS13: =SUMPRODUCT(('C.5 Übrige Anlagen'!$M$6:$M$149='C. Kostendaten'!AS$4)*('C.5 Übrige Anlagen'!$L$6:$L$149='C. Kostendaten'!$C13)*'C.5 Übrige Anlagen'!$N$6:$N$149) -> 0
B14: Anlagen im Bau 2021 - Abgänge/Umbuchungen | C14: 2021 | D14: 0 | E14: =SUMPRODUCT(('C.5 Übrige Anlagen'!$M$6:$M$149='C. Kostendaten'!E$4)*('C.5 Übrige Anlagen'!$L$6:$L$149='C. Kostendaten'!$C14)*'C.5 Übrige Anlagen'!$O$6:$O$149) -> 0 | F14: =SUMPRODUCT(('C.5 Übrige Anlagen'!$M$6:$M$149='C. Kostendaten'!F$4)*('C.5 Übrige Anlagen'!$L$6:$L$149='C. Kostendaten'!$C14)*'C.5 Übrige Anlagen'!$O$6:$O$149) -> 0 | G14: =SUMPRODUCT(('C.5 Übrige Anlagen'!$M$6:$M$149='C. Kostendaten'!G$4)*('C.5 Übrige Anlagen'!$L$6:$L$149='C. Kostendaten'!$C14)*'C.5 Übrige Anlagen'!$O$6:$O$149) -> 0 | H14: =SUMPRODUCT(('C.5 Übrige Anlagen'!$M$6:$M$149='C. Kostendaten'!H$4)*('C.5 Übrige Anlagen'!$L$6:$L$149='C. Kostendaten'!$C14)*'C.5 Übrige Anlagen'!$O$6:$O$149) -> 0 | I14: =SUMPRODUCT(('C.5 Übrige Anlagen'!$M$6:$M$149='C. Kostendaten'!I$4)*('C.5 Übrige Anlagen'!$L$6:$L$149='C. Kostendaten'!$C14)*'C.5 Übrige Anlagen'!$O$6:$O$149) -> 0 | J14: =SUMPRODUCT(('C.5 Übrige Anlagen'!$M$6:$M$149='C. Kostendaten'!J$4)*('C.5 Übrige Anlagen'!$L$6:$L$149='C. Kostendaten'!$C14)*'C.5 Übrige Anlagen'!$O$6:$O$149) -> 0 | K14: =SUMPRODUCT(('C.5 Übrige Anlagen'!$M$6:$M$149='C. Kostendaten'!K$4)*('C.5 Übrige Anlagen'!$L$6:$L$149='C. Kostendaten'!$C14)*'C.5 Übrige Anlagen'!$O$6:$O$149) -> 0 | L14: =SUMPRODUCT(('C.5 Übrige Anlagen'!$M$6:$M$149='C. Kostendaten'!L$4)*('C.5 Übrige Anlagen'!$L$6:$L$149='C. Kostendaten'!$C14)*'C.5 Übrige Anlagen'!$O$6:$O$149) -> 0 | M14: =SUMPRODUCT(('C.5 Übrige Anlagen'!$M$6:$M$149='C. Kostendaten'!M$4)*('C.5 Übrige Anlagen'!$L$6:$L$149='C. Kostendaten'!$C14)*'C.5 Übrige Anlagen'!$O$6:$O$149) -> 0 | N14: =SUMPRODUCT(('C.5 Übrige Anlagen'!$M$6:$M$149='C. Kostendaten'!N$4)*('C.5 Übrige Anlagen'!$L$6:$L$149='C. Kostendaten'!$C14)*'C.5 Übrige Anlagen'!$O$6:$O$149) -> 0 | O14: =SUMPRODUCT(('C.5 Übrige Anlagen'!$M$6:$M$149='C. Kostendaten'!O$4)*('C.5 Übrige Anlagen'!$L$6:$L$149='C. Kostendaten'!$C14)*'C.5 Übrige Anlagen'!$O$6:$O$149) -> 0 | P14: =SUMPRODUCT(('C.5 Übrige Anlagen'!$M$6:$M$149='C. Kostendaten'!P$4)*('C.5 Übrige Anlagen'!$L$6:$L$149='C. Kostendaten'!$C14)*'C.5 Übrige Anlagen'!$O$6:$O$149) -> 0 | Q14: =SUMPRODUCT(('C.5 Übrige Anlagen'!$M$6:$M$149='C. Kostendaten'!Q$4)*('C.5 Übrige Anlagen'!$L$6:$L$149='C. Kostendaten'!$C14)*'C.5 Übrige Anlagen'!$O$6:$O$149) -> 0 | R14: =SUMPRODUCT(('C.1 Kostendaten Verdichtung'!$O$6:$O$149='C. Kostendaten'!R$4)*('C.1 Kostendaten Verdichtung'!$N$6:$N$149='C. Kostendaten'!$C14)*'C.1 Kostendaten Verdichtung'!$Q$6:$Q$149) -> 0 | S14: =SUMPRODUCT(('C.5 Übrige Anlagen'!$M$6:$M$149='C. Kostendaten'!S$4)*('C.5 Übrige Anlagen'!$L$6:$L$149='C. Kostendaten'!$C14)*'C.5 Übrige Anlagen'!$O$6:$O$149) -> 0 | T14: =SUMPRODUCT(('C.5 Übrige Anlagen'!$M$6:$M$149='C. Kostendaten'!T$4)*('C.5 Übrige Anlagen'!$L$6:$L$149='C. Kostendaten'!$C14)*'C.5 Übrige Anlagen'!$O$6:$O$149) -> 0 | U14: =SUMPRODUCT(('C.5 Übrige Anlagen'!$M$6:$M$149='C. Kostendaten'!U$4)*('C.5 Übrige Anlagen'!$L$6:$L$149='C. Kostendaten'!$C14)*'C.5 Übrige Anlagen'!$O$6:$O$149) -> 0 | V14: =SUMPRODUCT(('C.5 Übrige Anlagen'!$M$6:$M$149='C. Kostendaten'!V$4)*('C.5 Übrige Anlagen'!$L$6:$L$149='C. Kostendaten'!$C14)*'C.5 Übrige Anlagen'!$O$6:$O$149) -> 0 | W14: =SUMPRODUCT(('C.5 Übrige Anlagen'!$M$6:$M$149='C. Kostendaten'!W$4)*('C.5 Übrige Anlagen'!$L$6:$L$149='C. Kostendaten'!$C14)*'C.5 Übrige Anlagen'!$O$6:$O$149) -> 0 | X14: =SUMPRODUCT(('C.5 Übrige Anlagen'!$M$6:$M$149='C. Kostendaten'!X$4)*('C.5 Übrige Anlagen'!$L$6:$L$149='C. Kostendaten'!$C14)*'C.5 Übrige Anlagen'!$O$6:$O$149) -> 0 | Y14: =SUMPRODUCT(('C.5 Übrige Anlagen'!$M$6:$M$149='C. Kostendaten'!Y$4)*('C.5 Übrige Anlagen'!$L$6:$L$149='C. Kostendaten'!$C14)*'C.5 Übrige Anlagen'!$O$6:$O$149) -> 0 | Z14: =SUMPRODUCT(('C.2 Kostendaten Rohr PE'!$V$6:$V$149='C. Kostendaten'!Z$4)*('C.2 Kostendaten Rohr PE'!$U$6:$U$149='C. Kostendaten'!$C14)*'C.2 Kostendaten Rohr PE'!$X$6:$X$149) -> 0 | AA14: =SUMPRODUCT(('C.3 Kostendaten Rohr kath'!$V$6:$V$149='C. Kostendaten'!AA$4)*('C.3 Kostendaten Rohr kath'!$U$6:$U$149='C. Kostendaten'!$C14)*'C.3 Kostendaten Rohr kath'!$X$6:$X$149) -> 0 | AB14: =SUMPRODUCT(('C.5 Übrige Anlagen'!$M$6:$M$149='C. Kostendaten'!AB$4)*('C.5 Übrige Anlagen'!$L$6:$L$149='C. Kostendaten'!$C14)*'C.5 Übrige Anlagen'!$O$6:$O$149) -> 0 | AC14: =SUMPRODUCT(('C.5 Übrige Anlagen'!$M$6:$M$149='C. Kostendaten'!AC$4)*('C.5 Übrige Anlagen'!$L$6:$L$149='C. Kostendaten'!$C14)*'C.5 Übrige Anlagen'!$O$6:$O$149) -> 0 | AD14: =SUMPRODUCT(('C.5 Übrige Anlagen'!$M$6:$M$149='C. Kostendaten'!AD$4)*('C.5 Übrige Anlagen'!$L$6:$L$149='C. Kostendaten'!$C14)*'C.5 Übrige Anlagen'!$O$6:$O$149) -> 0 | AE14: =SUMPRODUCT(('C.5 Übrige Anlagen'!$M$6:$M$149='C. Kostendaten'!AE$4)*('C.5 Übrige Anlagen'!$L$6:$L$149='C. Kostendaten'!$C14)*'C.5 Übrige Anlagen'!$O$6:$O$149) -> 0 | AF14: =SUMPRODUCT(('C.5 Übrige Anlagen'!$M$6:$M$149='C. Kostendaten'!AF$4)*('C.5 Übrige Anlagen'!$L$6:$L$149='C. Kostendaten'!$C14)*'C.5 Übrige Anlagen'!$O$6:$O$149) -> 0 | AG14: =SUMPRODUCT(('C.5 Übrige Anlagen'!$M$6:$M$149='C. Kostendaten'!AG$4)*('C.5 Übrige Anlagen'!$L$6:$L$149='C. Kostendaten'!$C14)*'C.5 Übrige Anlagen'!$O$6:$O$149) -> 0 | AH14: =SUMPRODUCT(('C.5 Übrige Anlagen'!$M$6:$M$149='C. Kostendaten'!AH$4)*('C.5 Übrige Anlagen'!$L$6:$L$149='C. Kostendaten'!$C14)*'C.5 Übrige Anlagen'!$O$6:$O$149) -> 0 | AI14: =SUMPRODUCT(('C.5 Übrige Anlagen'!$M$6:$M$149='C. Kostendaten'!AI$4)*('C.5 Übrige Anlagen'!$L$6:$L$149='C. Kostendaten'!$C14)*'C.5 Übrige Anlagen'!$O$6:$O$149) -> 0 | AJ14: =SUMPRODUCT(('C.5 Übrige Anlagen'!$M$6:$M$149='C. Kostendaten'!AJ$4)*('C.5 Übrige Anlagen'!$L$6:$L$149='C. Kostendaten'!$C14)*'C.5 Übrige Anlagen'!$O$6:$O$149) -> 0 | AK14: =SUMPRODUCT(('C.5 Übrige Anlagen'!$M$6:$M$149='C. Kostendaten'!AK$4)*('C.5 Übrige Anlagen'!$L$6:$L$149='C. Kostendaten'!$C14)*'C.5 Übrige Anlagen'!$O$6:$O$149) -> 0 | AL14: =SUMPRODUCT(('C.5 Übrige Anlagen'!$M$6:$M$149='C. Kostendaten'!AL$4)*('C.5 Übrige Anlagen'!$L$6:$L$149='C. Kostendaten'!$C14)*'C.5 Übrige Anlagen'!$O$6:$O$149) -> 0 | AM14: =SUMPRODUCT(('C.4 Kostendaten Regelein.'!$O$6:$O$149='C. Kostendaten'!AM$4)*('C.4 Kostendaten Regelein.'!$N$6:$N$149='C. Kostendaten'!$C14)*'C.4 Kostendaten Regelein.'!$Q$6:$Q$149) -> 0 | AN14: =SUMPRODUCT(('C.5 Übrige Anlagen'!$M$6:$M$149='C. Kostendaten'!AN$4)*('C.5 Übrige Anlagen'!$L$6:$L$149='C. Kostendaten'!$C14)*'C.5 Übrige Anlagen'!$O$6:$O$149) -> 0 | AO14: =SUMPRODUCT(('C.5 Übrige Anlagen'!$M$6:$M$149='C. Kostendaten'!AO$4)*('C.5 Übrige Anlagen'!$L$6:$L$149='C. Kostendaten'!$C14)*'C.5 Übrige Anlagen'!$O$6:$O$149) -> 0 | AP14: =SUMPRODUCT(('C.5 Übrige Anlagen'!$M$6:$M$149='C. Kostendaten'!AP$4)*('C.5 Übrige Anlagen'!$L$6:$L$149='C. Kostendaten'!$C14)*'C.5 Übrige Anlagen'!$O$6:$O$149) -> 0 | AQ14: =SUMPRODUCT(('C.5 Übrige Anlagen'!$M$6:$M$149='C. Kostendaten'!AQ$4)*('C.5 Übrige Anlagen'!$L$6:$L$149='C. Kostendaten'!$C14)*'C.5 Übrige Anlagen'!$O$6:$O$149) -> 0 | AR14: =SUMPRODUCT(('C.5 Übrige Anlagen'!$M$6:$M$149='C. Kostendaten'!AR$4)*('C.5 Übrige Anlagen'!$L$6:$L$149='C. Kostendaten'!$C14)*'C.5 Übrige Anlagen'!$O$6:$O$149) -> 0 | AS14: =SUMPRODUCT(('C.5 Übrige Anlagen'!$M$6:$M$149='C. Kostendaten'!AS$4)*('C.5 Übrige Anlagen'!$L$6:$L$149='C. Kostendaten'!$C14)*'C.5 Übrige Anlagen'!$O$6:$O$149) -> 0
B15: Anlagen im Bau 2022 - Anfangsbestand | C15: 2022 | D15: 0 | E15: =E12+E13-E14 -> 0 | F15: 0 | G15: 0 | H15: 0 | I15: 0 | J15: 0 | K15: 0 | L15: 0 | M15: 0 | N15: 0 | O15: 0 | P15: 0 | Q15: 0 | R15: 0 | S15: 0 | T15: 0 | U15: 0 | V15: 0 | W15: 0 | X15: 0 | Y15: 0 | Z15: 0 | AA15: 0 | AB15: 0 | AC15: 0 | AD15: 0 | AE15: 0 | AF15: 0 | AG15: 0 | AH15: 0 | AI15: 0 | AJ15: 0 | AK15: 0 | AL15: 0 | AM15: 0 | AN15: 0 | AO15: 0 | AP15: 0 | AQ15: 0 | AR15: 0 | AS15: 0
B16: Anlagen im Bau 2022 - Zugänge | C16: 2022 | D16: 0 | E16: =SUMPRODUCT(('C.5 Übrige Anlagen'!$M$6:$M$149='C. Kostendaten'!E$4)*('C.5 Übrige Anlagen'!$L$6:$L$149='C. Kostendaten'!$C16)*'C.5 Übrige Anlagen'!$N$6:$N$149) -> 0 | F16: =SUMPRODUCT(('C.5 Übrige Anlagen'!$M$6:$M$149='C. Kostendaten'!F$4)*('C.5 Übrige Anlagen'!$L$6:$L$149='C. Kostendaten'!$C16)*'C.5 Übrige Anlagen'!$N$6:$N$149) -> 0 | G16: =SUMPRODUCT(('C.5 Übrige Anlagen'!$M$6:$M$149='C. Kostendaten'!G$4)*('C.5 Übrige Anlagen'!$L$6:$L$149='C. Kostendaten'!$C16)*'C.5 Übrige Anlagen'!$N$6:$N$149) -> 0 | H16: =SUMPRODUCT(('C.5 Übrige Anlagen'!$M$6:$M$149='C. Kostendaten'!H$4)*('C.5 Übrige Anlagen'!$L$6:$L$149='C. Kostendaten'!$C16)*'C.5 Übrige Anlagen'!$N$6:$N$149) -> 0 | I16: =SUMPRODUCT(('C.5 Übrige Anlagen'!$M$6:$M$149='C. Kostendaten'!I$4)*('C.5 Übrige Anlagen'!$L$6:$L$149='C. Kostendaten'!$C16)*'C.5 Übrige Anlagen'!$N$6:$N$149) -> 0 | J16: =SUMPRODUCT(('C.5 Übrige Anlagen'!$M$6:$M$149='C. Kostendaten'!J$4)*('C.5 Übrige Anlagen'!$L$6:$L$149='C. Kostendaten'!$C16)*'C.5 Übrige Anlagen'!$N$6:$N$149) -> 0 | K16: =SUMPRODUCT(('C.5 Übrige Anlagen'!$M$6:$M$149='C. Kostendaten'!K$4)*('C.5 Übrige Anlagen'!$L$6:$L$149='C. Kostendaten'!$C16)*'C.5 Übrige Anlagen'!$N$6:$N$149) -> 0 | L16: =SUMPRODUCT(('C.5 Übrige Anlagen'!$M$6:$M$149='C. Kostendaten'!L$4)*('C.5 Übrige Anlagen'!$L$6:$L$149='C. Kostendaten'!$C16)*'C.5 Übrige Anlagen'!$N$6:$N$149) -> 0 | M16: =SUMPRODUCT(('C.5 Übrige Anlagen'!$M$6:$M$149='C. Kostendaten'!M$4)*('C.5 Übrige Anlagen'!$L$6:$L$149='C. Kostendaten'!$C16)*'C.5 Übrige Anlagen'!$N$6:$N$149) -> 0 | N16: =SUMPRODUCT(('C.5 Übrige Anlagen'!$M$6:$M$149='C. Kostendaten'!N$4)*('C.5 Übrige Anlagen'!$L$6:$L$149='C. Kostendaten'!$C16)*'C.5 Übrige Anlagen'!$N$6:$N$149) -> 0 | O16: =SUMPRODUCT(('C.5 Übrige Anlagen'!$M$6:$M$149='C. Kostendaten'!O$4)*('C.5 Übrige Anlagen'!$L$6:$L$149='C. Kostendaten'!$C16)*'C.5 Übrige Anlagen'!$N$6:$N$149) -> 0 | P16: =SUMPRODUCT(('C.5 Übrige Anlagen'!$M$6:$M$149='C. Kostendaten'!P$4)*('C.5 Übrige Anlagen'!$L$6:$L$149='C. Kostendaten'!$C16)*'C.5 Übrige Anlagen'!$N$6:$N$149) -> 0 | Q16: =SUMPRODUCT(('C.5 Übrige Anlagen'!$M$6:$M$149='C. Kostendaten'!Q$4)*('C.5 Übrige Anlagen'!$L$6:$L$149='C. Kostendaten'!$C16)*'C.5 Übrige Anlagen'!$N$6:$N$149) -> 0 | R16: =SUMPRODUCT(('C.1 Kostendaten Verdichtung'!$O$6:$O$149='C. Kostendaten'!R$4)*('C.1 Kostendaten Verdichtung'!$N$6:$N$149='C. Kostendaten'!$C16)*'C.1 Kostendaten Verdichtung'!$P$6:$P$149) -> 0 | S16: =SUMPRODUCT(('C.5 Übrige Anlagen'!$M$6:$M$149='C. Kostendaten'!S$4)*('C.5 Übrige Anlagen'!$L$6:$L$149='C. Kostendaten'!$C16)*'C.5 Übrige Anlagen'!$N$6:$N$149) -> 0 | T16: =SUMPRODUCT(('C.5 Übrige Anlagen'!$M$6:$M$149='C. Kostendaten'!T$4)*('C.5 Übrige Anlagen'!$L$6:$L$149='C. Kostendaten'!$C16)*'C.5 Übrige Anlagen'!$N$6:$N$149) -> 0 | U16: =SUMPRODUCT(('C.5 Übrige Anlagen'!$M$6:$M$149='C. Kostendaten'!U$4)*('C.5 Übrige Anlagen'!$L$6:$L$149='C. Kostendaten'!$C16)*'C.5 Übrige Anlagen'!$N$6:$N$149) -> 0 | V16: =SUMPRODUCT(('C.5 Übrige Anlagen'!$M$6:$M$149='C. Kostendaten'!V$4)*('C.5 Übrige Anlagen'!$L$6:$L$149='C. Kostendaten'!$C16)*'C.5 Übrige Anlagen'!$N$6:$N$149) -> 0 | W16: =SUMPRODUCT(('C.5 Übrige Anlagen'!$M$6:$M$149='C. Kostendaten'!W$4)*('C.5 Übrige Anlagen'!$L$6:$L$149='C. Kostendaten'!$C16)*'C.5 Übrige Anlagen'!$N$6:$N$149) -> 0 | X16: =SUMPRODUCT(('C.5 Übrige Anlagen'!$M$6:$M$149='C. Kostendaten'!X$4)*('C.5 Übrige Anlagen'!$L$6:$L$149='C. Kostendaten'!$C16)*'C.5 Übrige Anlagen'!$N$6:$N$149) -> 0 | Y16: =SUMPRODUCT(('C.5 Übrige Anlagen'!$M$6:$M$149='C. Kostendaten'!Y$4)*('C.5 Übrige Anlagen'!$L$6:$L$149='C. Kostendaten'!$C16)*'C.5 Übrige Anlagen'!$N$6:$N$149) -> 0 | Z16: =SUMPRODUCT(('C.2 Kostendaten Rohr PE'!$V$6:$V$149='C. Kostendaten'!Z$4)*('C.2 Kostendaten Rohr PE'!$U$6:$U$149='C. Kostendaten'!$C16)*'C.2 Kostendaten Rohr PE'!$W$6:$W$149) -> 0 | AA16: =SUMPRODUCT(('C.3 Kostendaten Rohr kath'!$V$6:$V$149='C. Kostendaten'!AA$4)*('C.3 Kostendaten Rohr kath'!$U$6:$U$149='C. Kostendaten'!$C16)*'C.3 Kostendaten Rohr kath'!$W$6:$W$149) -> 0 | AB16: =SUMPRODUCT(('C.5 Übrige Anlagen'!$M$6:$M$149='C. Kostendaten'!AB$4)*('C.5 Übrige Anlagen'!$L$6:$L$149='C. Kostendaten'!$C16)*'C.5 Übrige Anlagen'!$N$6:$N$149) -> 0 | AC16: =SUMPRODUCT(('C.5 Übrige Anlagen'!$M$6:$M$149='C. Kostendaten'!AC$4)*('C.5 Übrige Anlagen'!$L$6:$L$149='C. Kostendaten'!$C16)*'C.5 Übrige Anlagen'!$N$6:$N$149) -> 0 | AD16: =SUMPRODUCT(('C.5 Übrige Anlagen'!$M$6:$M$149='C. Kostendaten'!AD$4)*('C.5 Übrige Anlagen'!$L$6:$L$149='C. Kostendaten'!$C16)*'C.5 Übrige Anlagen'!$N$6:$N$149) -> 0 | AE16: =SUMPRODUCT(('C.5 Übrige Anlagen'!$M$6:$M$149='C. Kostendaten'!AE$4)*('C.5 Übrige Anlagen'!$L$6:$L$149='C. Kostendaten'!$C16)*'C.5 Übrige Anlagen'!$N$6:$N$149) -> 0 | AF16: =SUMPRODUCT(('C.5 Übrige Anlagen'!$M$6:$M$149='C. Kostendaten'!AF$4)*('C.5 Übrige Anlagen'!$L$6:$L$149='C. Kostendaten'!$C16)*'C.5 Übrige Anlagen'!$N$6:$N$149) -> 0 | AG16: =SUMPRODUCT(('C.5 Übrige Anlagen'!$M$6:$M$149='C. Kostendaten'!AG$4)*('C.5 Übrige Anlagen'!$L$6:$L$149='C. Kostendaten'!$C16)*'C.5 Übrige Anlagen'!$N$6:$N$149) -> 0 | AH16: =SUMPRODUCT(('C.5 Übrige Anlagen'!$M$6:$M$149='C. Kostendaten'!AH$4)*('C.5 Übrige Anlagen'!$L$6:$L$149='C. Kostendaten'!$C16)*'C.5 Übrige Anlagen'!$N$6:$N$149) -> 0 | AI16: =SUMPRODUCT(('C.5 Übrige Anlagen'!$M$6:$M$149='C. Kostendaten'!AI$4)*('C.5 Übrige Anlagen'!$L$6:$L$149='C. Kostendaten'!$C16)*'C.5 Übrige Anlagen'!$N$6:$N$149) -> 0 | AJ16: =SUMPRODUCT(('C.5 Übrige Anlagen'!$M$6:$M$149='C. Kostendaten'!AJ$4)*('C.5 Übrige Anlagen'!$L$6:$L$149='C. Kostendaten'!$C16)*'C.5 Übrige Anlagen'!$N$6:$N$149) -> 0 | AK16: =SUMPRODUCT(('C.5 Übrige Anlagen'!$M$6:$M$149='C. Kostendaten'!AK$4)*('C.5 Übrige Anlagen'!$L$6:$L$149='C. Kostendaten'!$C16)*'C.5 Übrige Anlagen'!$N$6:$N$149) -> 0 | AL16: =SUMPRODUCT(('C.5 Übrige Anlagen'!$M$6:$M$149='C. Kostendaten'!AL$4)*('C.5 Übrige Anlagen'!$L$6:$L$149='C. Kostendaten'!$C16)*'C.5 Übrige Anlagen'!$N$6:$N$149) -> 0 | AM16: =SUMPRODUCT(('C.4 Kostendaten Regelein.'!$O$6:$O$149='C. Kostendaten'!AM$4)*('C.4 Kostendaten Regelein.'!$N$6:$N$149='C. Kostendaten'!$C16)*'C.4 Kostendaten Regelein.'!$P$6:$P$149) -> 0 | AN16: =SUMPRODUCT(('C.5 Übrige Anlagen'!$M$6:$M$149='C. Kostendaten'!AN$4)*('C.5 Übrige Anlagen'!$L$6:$L$149='C. Kostendaten'!$C16)*'C.5 Übrige Anlagen'!$N$6:$N$149) -> 0 | AO16: =SUMPRODUCT(('C.5 Übrige Anlagen'!$M$6:$M$149='C. Kostendaten'!AO$4)*('C.5 Übrige Anlagen'!$L$6:$L$149='C. Kostendaten'!$C16)*'C.5 Übrige Anlagen'!$N$6:$N$149) -> 0 | AP16: =SUMPRODUCT(('C.5 Übrige Anlagen'!$M$6:$M$149='C. Kostendaten'!AP$4)*('C.5 Übrige Anlagen'!$L$6:$L$149='C. Kostendaten'!$C16)*'C.5 Übrige Anlagen'!$N$6:$N$149) -> 0 | AQ16: =SUMPRODUCT(('C.5 Übrige Anlagen'!$M$6:$M$149='C. Kostendaten'!AQ$4)*('C.5 Übrige Anlagen'!$L$6:$L$149='C. Kostendaten'!$C16)*'C.5 Übrige Anlagen'!$N$6:$N$149) -> 0 | AR16: =SUMPRODUCT(('C.5 Übrige Anlagen'!$M$6:$M$149='C. Kostendaten'!AR$4)*('C.5 Übrige Anlagen'!$L$6:$L$149='C. Kostendaten'!$C16)*'C.5 Übrige Anlagen'!$N$6:$N$149) -> 0 | AS16: =SUMPRODUCT(('C.5 Übrige Anlagen'!$M$6:$M$149='C. Kostendaten'!AS$4)*('C.5 Übrige Anlagen'!$L$6:$L$149='C. Kostendaten'!$C16)*'C.5 Übrige Anlagen'!$N$6:$N$149) -> 0
B17: Anlagen im Bau 2022 - Abgänge/Umbuchungen | C17: 2022 | D17: 0 | E17: =SUMPRODUCT(('C.5 Übrige Anlagen'!$M$6:$M$149='C. Kostendaten'!E$4)*('C.5 Übrige Anlagen'!$L$6:$L$149='C. Kostendaten'!$C17)*'C.5 Übrige Anlagen'!$O$6:$O$149) -> 0 | F17: =SUMPRODUCT(('C.5 Übrige Anlagen'!$M$6:$M$149='C. Kostendaten'!F$4)*('C.5 Übrige Anlagen'!$L$6:$L$149='C. Kostendaten'!$C17)*'C.5 Übrige Anlagen'!$O$6:$O$149) -> 0 | G17: =SUMPRODUCT(('C.5 Übrige Anlagen'!$M$6:$M$149='C. Kostendaten'!G$4)*('C.5 Übrige Anlagen'!$L$6:$L$149='C. Kostendaten'!$C17)*'C.5 Übrige Anlagen'!$O$6:$O$149) -> 0 | H17: =SUMPRODUCT(('C.5 Übrige Anlagen'!$M$6:$M$149='C. Kostendaten'!H$4)*('C.5 Übrige Anlagen'!$L$6:$L$149='C. Kostendaten'!$C17)*'C.5 Übrige Anlagen'!$O$6:$O$149) -> 0 | I17: =SUMPRODUCT(('C.5 Übrige Anlagen'!$M$6:$M$149='C. Kostendaten'!I$4)*('C.5 Übrige Anlagen'!$L$6:$L$149='C. Kostendaten'!$C17)*'C.5 Übrige Anlagen'!$O$6:$O$149) -> 0 | J17: =SUMPRODUCT(('C.5 Übrige Anlagen'!$M$6:$M$149='C. Kostendaten'!J$4)*('C.5 Übrige Anlagen'!$L$6:$L$149='C. Kostendaten'!$C17)*'C.5 Übrige Anlagen'!$O$6:$O$149) -> 0 | K17: =SUMPRODUCT(('C.5 Übrige Anlagen'!$M$6:$M$149='C. Kostendaten'!K$4)*('C.5 Übrige Anlagen'!$L$6:$L$149='C. Kostendaten'!$C17)*'C.5 Übrige Anlagen'!$O$6:$O$149) -> 0 | L17: =SUMPRODUCT(('C.5 Übrige Anlagen'!$M$6:$M$149='C. Kostendaten'!L$4)*('C.5 Übrige Anlagen'!$L$6:$L$149='C. Kostendaten'!$C17)*'C.5 Übrige Anlagen'!$O$6:$O$149) -> 0 | M17: =SUMPRODUCT(('C.5 Übrige Anlagen'!$M$6:$M$149='C. Kostendaten'!M$4)*('C.5 Übrige Anlagen'!$L$6:$L$149='C. Kostendaten'!$C17)*'C.5 Übrige Anlagen'!$O$6:$O$149) -> 0 | N17: =SUMPRODUCT(('C.5 Übrige Anlagen'!$M$6:$M$149='C. Kostendaten'!N$4)*('C.5 Übrige Anlagen'!$L$6:$L$149='C. Kostendaten'!$C17)*'C.5 Übrige Anlagen'!$O$6:$O$149) -> 0 | O17: =SUMPRODUCT(('C.5 Übrige Anlagen'!$M$6:$M$149='C. Kostendaten'!O$4)*('C.5 Übrige Anlagen'!$L$6:$L$149='C. Kostendaten'!$C17)*'C.5 Übrige Anlagen'!$O$6:$O$149) -> 0 | P17: =SUMPRODUCT(('C.5 Übrige Anlagen'!$M$6:$M$149='C. Kostendaten'!P$4)*('C.5 Übrige Anlagen'!$L$6:$L$149='C. Kostendaten'!$C17)*'C.5 Übrige Anlagen'!$O$6:$O$149) -> 0 | Q17: =SUMPRODUCT(('C.5 Übrige Anlagen'!$M$6:$M$149='C. Kostendaten'!Q$4)*('C.5 Übrige Anlagen'!$L$6:$L$149='C. Kostendaten'!$C17)*'C.5 Übrige Anlagen'!$O$6:$O$149) -> 0 | R17: =SUMPRODUCT(('C.1 Kostendaten Verdichtung'!$O$6:$O$149='C. Kostendaten'!R$4)*('C.1 Kostendaten Verdichtung'!$N$6:$N$149='C. Kostendaten'!$C17)*'C.1 Kostendaten Verdichtung'!$Q$6:$Q$149) -> 0 | S17: =SUMPRODUCT(('C.5 Übrige Anlagen'!$M$6:$M$149='C. Kostendaten'!S$4)*('C.5 Übrige Anlagen'!$L$6:$L$149='C. Kostendaten'!$C17)*'C.5 Übrige Anlagen'!$O$6:$O$149) -> 0 | T17: =SUMPRODUCT(('C.5 Übrige Anlagen'!$M$6:$M$149='C. Kostendaten'!T$4)*('C.5 Übrige Anlagen'!$L$6:$L$149='C. Kostendaten'!$C17)*'C.5 Übrige Anlagen'!$O$6:$O$149) -> 0 | U17: =SUMPRODUCT(('C.5 Übrige Anlagen'!$M$6:$M$149='C. Kostendaten'!U$4)*('C.5 Übrige Anlagen'!$L$6:$L$149='C. Kostendaten'!$C17)*'C.5 Übrige Anlagen'!$O$6:$O$149) -> 0 | V17: =SUMPRODUCT(('C.5 Übrige Anlagen'!$M$6:$M$149='C. Kostendaten'!V$4)*('C.5 Übrige Anlagen'!$L$6:$L$149='C. Kostendaten'!$C17)*'C.5 Übrige Anlagen'!$O$6:$O$149) -> 0 | W17: =SUMPRODUCT(('C.5 Übrige Anlagen'!$M$6:$M$149='C. Kostendaten'!W$4)*('C.5 Übrige Anlagen'!$L$6:$L$149='C. Kostendaten'!$C17)*'C.5 Übrige Anlagen'!$O$6:$O$149) -> 0 | X17: =SUMPRODUCT(('C.5 Übrige Anlagen'!$M$6:$M$149='C. Kostendaten'!X$4)*('C.5 Übrige Anlagen'!$L$6:$L$149='C. Kostendaten'!$C17)*'C.5 Übrige Anlagen'!$O$6:$O$149) -> 0 | Y17: =SUMPRODUCT(('C.5 Übrige Anlagen'!$M$6:$M$149='C. Kostendaten'!Y$4)*('C.5 Übrige Anlagen'!$L$6:$L$149='C. Kostendaten'!$C17)*'C.5 Übrige Anlagen'!$O$6:$O$149) -> 0 | Z17: =SUMPRODUCT(('C.2 Kostendaten Rohr PE'!$V$6:$V$149='C. Kostendaten'!Z$4)*('C.2 Kostendaten Rohr PE'!$U$6:$U$149='C. Kostendaten'!$C17)*'C.2 Kostendaten Rohr PE'!$X$6:$X$149) -> 0 | AA17: =SUMPRODUCT(('C.3 Kostendaten Rohr kath'!$V$6:$V$149='C. Kostendaten'!AA$4)*('C.3 Kostendaten Rohr kath'!$U$6:$U$149='C. Kostendaten'!$C17)*'C.3 Kostendaten Rohr kath'!$X$6:$X$149) -> 0 | AB17: =SUMPRODUCT(('C.5 Übrige Anlagen'!$M$6:$M$149='C. Kostendaten'!AB$4)*('C.5 Übrige Anlagen'!$L$6:$L$149='C. Kostendaten'!$C17)*'C.5 Übrige Anlagen'!$O$6:$O$149) -> 0 | AC17: =SUMPRODUCT(('C.5 Übrige Anlagen'!$M$6:$M$149='C. Kostendaten'!AC$4)*('C.5 Übrige Anlagen'!$L$6:$L$149='C. Kostendaten'!$C17)*'C.5 Übrige Anlagen'!$O$6:$O$149) -> 0 | AD17: =SUMPRODUCT(('C.5 Übrige Anlagen'!$M$6:$M$149='C. Kostendaten'!AD$4)*('C.5 Übrige Anlagen'!$L$6:$L$149='C. Kostendaten'!$C17)*'C.5 Übrige Anlagen'!$O$6:$O$149) -> 0 | AE17: =SUMPRODUCT(('C.5 Übrige Anlagen'!$M$6:$M$149='C. Kostendaten'!AE$4)*('C.5 Übrige Anlagen'!$L$6:$L$149='C. Kostendaten'!$C17)*'C.5 Übrige Anlagen'!$O$6:$O$149) -> 0 | AF17: =SUMPRODUCT(('C.5 Übrige Anlagen'!$M$6:$M$149='C. Kostendaten'!AF$4)*('C.5 Übrige Anlagen'!$L$6:$L$149='C. Kostendaten'!$C17)*'C.5 Übrige Anlagen'!$O$6:$O$149) -> 0 | AG17: =SUMPRODUCT(('C.5 Übrige Anlagen'!$M$6:$M$149='C. Kostendaten'!AG$4)*('C.5 Übrige Anlagen'!$L$6:$L$149='C. Kostendaten'!$C17)*'C.5 Übrige Anlagen'!$O$6:$O$149) -> 0 | AH17: =SUMPRODUCT(('C.5 Übrige Anlagen'!$M$6:$M$149='C. Kostendaten'!AH$4)*('C.5 Übrige Anlagen'!$L$6:$L$149='C. Kostendaten'!$C17)*'C.5 Übrige Anlagen'!$O$6:$O$149) -> 0 | AI17: =SUMPRODUCT(('C.5 Übrige Anlagen'!$M$6:$M$149='C. Kostendaten'!AI$4)*('C.5 Übrige Anlagen'!$L$6:$L$149='C. Kostendaten'!$C17)*'C.5 Übrige Anlagen'!$O$6:$O$149) -> 0 | AJ17: =SUMPRODUCT(('C.5 Übrige Anlagen'!$M$6:$M$149='C. Kostendaten'!AJ$4)*('C.5 Übrige Anlagen'!$L$6:$L$149='C. Kostendaten'!$C17)*'C.5 Übrige Anlagen'!$O$6:$O$149) -> 0 | AK17: =SUMPRODUCT(('C.5 Übrige Anlagen'!$M$6:$M$149='C. Kostendaten'!AK$4)*('C.5 Übrige Anlagen'!$L$6:$L$149='C. Kostendaten'!$C17)*'C.5 Übrige Anlagen'!$O$6:$O$149) -> 0 | AL17: =SUMPRODUCT(('C.5 Übrige Anlagen'!$M$6:$M$149='C. Kostendaten'!AL$4)*('C.5 Übrige Anlagen'!$L$6:$L$149='C. Kostendaten'!$C17)*'C.5 Übrige Anlagen'!$O$6:$O$149) -> 0 | AM17: =SUMPRODUCT(('C.4 Kostendaten Regelein.'!$O$6:$O$149='C. Kostendaten'!AM$4)*('C.4 Kostendaten Regelein.'!$N$6:$N$149='C. Kostendaten'!$C17)*'C.4 Kostendaten Regelein.'!$Q$6:$Q$149) -> 0 | AN17: =SUMPRODUCT(('C.5 Übrige Anlagen'!$M$6:$M$149='C. Kostendaten'!AN$4)*('C.5 Übrige Anlagen'!$L$6:$L$149='C. Kostendaten'!$C17)*'C.5 Übrige Anlagen'!$O$6:$O$149) -> 0 | AO17: =SUMPRODUCT(('C.5 Übrige Anlagen'!$M$6:$M$149='C. Kostendaten'!AO$4)*('C.5 Übrige Anlagen'!$L$6:$L$149='C. Kostendaten'!$C17)*'C.5 Übrige Anlagen'!$O$6:$O$149) -> 0 | AP17: =SUMPRODUCT(('C.5 Übrige Anlagen'!$M$6:$M$149='C. Kostendaten'!AP$4)*('C.5 Übrige Anlagen'!$L$6:$L$149='C. Kostendaten'!$C17)*'C.5 Übrige Anlagen'!$O$6:$O$149) -> 0 | AQ17: =SUMPRODUCT(('C.5 Übrige Anlagen'!$M$6:$M$149='C. Kostendaten'!AQ$4)*('C.5 Übrige Anlagen'!$L$6:$L$149='C. Kostendaten'!$C17)*'C.5 Übrige Anlagen'!$O$6:$O$149) -> 0 | AR17: =SUMPRODUCT(('C.5 Übrige Anlagen'!$M$6:$M$149='C. Kostendaten'!AR$4)*('C.5 Übrige Anlagen'!$L$6:$L$149='C. Kostendaten'!$C17)*'C.5 Übrige Anlagen'!$O$6:$O$149) -> 0 | AS17: =SUMPRODUCT(('C.5 Übrige Anlagen'!$M$6:$M$149='C. Kostendaten'!AS$4)*('C.5 Übrige Anlagen'!$L$6:$L$149='C. Kostendaten'!$C17)*'C.5 Übrige Anlagen'!$O$6:$O$149) -> 0
B18: Anlagen im Bau 2023 - Anfangsbestand | C18: 2023 | D18: 0 | E18: =E15+E16-E17 -> 0 | F18: 0 | G18: 0 | H18: 0 | I18: 0 | J18: 0 | K18: 0 | L18: 0 | M18: 0 | N18: 0 | O18: 0 | P18: 0 | Q18: 0 | R18: 0 | S18: 0 | T18: 0 | U18: 0 | V18: 0 | W18: 0 | X18: 0 | Y18: 0 | Z18: 0 | AA18: 0 | AB18: 0 | AC18: 0 | AD18: 0 | AE18: 0 | AF18: 0 | AG18: 0 | AH18: 0 | AI18: 0 | AJ18: 0 | AK18: 0 | AL18: 0 | AM18: 0 | AN18: 0 | AO18: 0 | AP18: 0 | AQ18: 0 | AR18: 0 | AS18: 0
B19: Anlagen im Bau 2023 - Zugänge | C19: 2023 | D19: 0 | E19: =SUMPRODUCT(('C.5 Übrige Anlagen'!$M$6:$M$149='C. Kostendaten'!E$4)*('C.5 Übrige Anlagen'!$L$6:$L$149='C. Kostendaten'!$C19)*'C.5 Übrige Anlagen'!$N$6:$N$149) -> 0 | F19: =SUMPRODUCT(('C.5 Übrige Anlagen'!$M$6:$M$149='C. Kostendaten'!F$4)*('C.5 Übrige Anlagen'!$L$6:$L$149='C. Kostendaten'!$C19)*'C.5 Übrige Anlagen'!$N$6:$N$149) -> 0 | G19: =SUMPRODUCT(('C.5 Übrige Anlagen'!$M$6:$M$149='C. Kostendaten'!G$4)*('C.5 Übrige Anlagen'!$L$6:$L$149='C. Kostendaten'!$C19)*'C.5 Übrige Anlagen'!$N$6:$N$149) -> 0 | H19: =SUMPRODUCT(('C.5 Übrige Anlagen'!$M$6:$M$149='C. Kostendaten'!H$4)*('C.5 Übrige Anlagen'!$L$6:$L$149='C. Kostendaten'!$C19)*'C.5 Übrige Anlagen'!$N$6:$N$149) -> 0 | I19: =SUMPRODUCT(('C.5 Übrige Anlagen'!$M$6:$M$149='C. Kostendaten'!I$4)*('C.5 Übrige Anlagen'!$L$6:$L$149='C. Kostendaten'!$C19)*'C.5 Übrige Anlagen'!$N$6:$N$149) -> 0 | J19: =SUMPRODUCT(('C.5 Übrige Anlagen'!$M$6:$M$149='C. Kostendaten'!J$4)*('C.5 Übrige Anlagen'!$L$6:$L$149='C. Kostendaten'!$C19)*'C.5 Übrige Anlagen'!$N$6:$N$149) -> 0 | K19: =SUMPRODUCT(('C.5 Übrige Anlagen'!$M$6:$M$149='C. Kostendaten'!K$4)*('C.5 Übrige Anlagen'!$L$6:$L$149='C. Kostendaten'!$C19)*'C.5 Übrige Anlagen'!$N$6:$N$149) -> 0 | L19: =SUMPRODUCT(('C.5 Übrige Anlagen'!$M$6:$M$149='C. Kostendaten'!L$4)*('C.5 Übrige Anlagen'!$L$6:$L$149='C. Kostendaten'!$C19)*'C.5 Übrige Anlagen'!$N$6:$N$149) -> 0 | M19: =SUMPRODUCT(('C.5 Übrige Anlagen'!$M$6:$M$149='C. Kostendaten'!M$4)*('C.5 Übrige Anlagen'!$L$6:$L$149='C. Kostendaten'!$C19)*'C.5 Übrige Anlagen'!$N$6:$N$149) -> 0 | N19: =SUMPRODUCT(('C.5 Übrige Anlagen'!$M$6:$M$149='C. Kostendaten'!N$4)*('C.5 Übrige Anlagen'!$L$6:$L$149='C. Kostendaten'!$C19)*'C.5 Übrige Anlagen'!$N$6:$N$149) -> 0 | O19: =SUMPRODUCT(('C.5 Übrige Anlagen'!$M$6:$M$149='C. Kostendaten'!O$4)*('C.5 Übrige Anlagen'!$L$6:$L$149='C. Kostendaten'!$C19)*'C.5 Übrige Anlagen'!$N$6:$N$149) -> 0 | P19: =SUMPRODUCT(('C.5 Übrige Anlagen'!$M$6:$M$149='C. Kostendaten'!P$4)*('C.5 Übrige Anlagen'!$L$6:$L$149='C. Kostendaten'!$C19)*'C.5 Übrige Anlagen'!$N$6:$N$149) -> 0 | Q19: =SUMPRODUCT(('C.5 Übrige Anlagen'!$M$6:$M$149='C. Kostendaten'!Q$4)*('C.5 Übrige Anlagen'!$L$6:$L$149='C. Kostendaten'!$C19)*'C.5 Übrige Anlagen'!$N$6:$N$149) -> 0 | R19: =SUMPRODUCT(('C.1 Kostendaten Verdichtung'!$O$6:$O$149='C. Kostendaten'!R$4)*('C.1 Kostendaten Verdichtung'!$N$6:$N$149='C. Kostendaten'!$C19)*'C.1 Kostendaten Verdichtung'!$P$6:$P$149) -> 0 | S19: =SUMPRODUCT(('C.5 Übrige Anlagen'!$M$6:$M$149='C. Kostendaten'!S$4)*('C.5 Übrige Anlagen'!$L$6:$L$149='C. Kostendaten'!$C19)*'C.5 Übrige Anlagen'!$N$6:$N$149) -> 0 | T19: =SUMPRODUCT(('C.5 Übrige Anlagen'!$M$6:$M$149='C. Kostendaten'!T$4)*('C.5 Übrige Anlagen'!$L$6:$L$149='C. Kostendaten'!$C19)*'C.5 Übrige Anlagen'!$N$6:$N$149) -> 0 | U19: =SUMPRODUCT(('C.5 Übrige Anlagen'!$M$6:$M$149='C. Kostendaten'!U$4)*('C.5 Übrige Anlagen'!$L$6:$L$149='C. Kostendaten'!$C19)*'C.5 Übrige Anlagen'!$N$6:$N$149) -> 0 | V19: =SUMPRODUCT(('C.5 Übrige Anlagen'!$M$6:$M$149='C. Kostendaten'!V$4)*('C.5 Übrige Anlagen'!$L$6:$L$149='C. Kostendaten'!$C19)*'C.5 Übrige Anlagen'!$N$6:$N$149) -> 0 | W19: =SUMPRODUCT(('C.5 Übrige Anlagen'!$M$6:$M$149='C. Kostendaten'!W$4)*('C.5 Übrige Anlagen'!$L$6:$L$149='C. Kostendaten'!$C19)*'C.5 Übrige Anlagen'!$N$6:$N$149) -> 0 | X19: =SUMPRODUCT(('C.5 Übrige Anlagen'!$M$6:$M$149='C. Kostendaten'!X$4)*('C.5 Übrige Anlagen'!$L$6:$L$149='C. Kostendaten'!$C19)*'C.5 Übrige Anlagen'!$N$6:$N$149) -> 0 | Y19: =SUMPRODUCT(('C.5 Übrige Anlagen'!$M$6:$M$149='C. Kostendaten'!Y$4)*('C.5 Übrige Anlagen'!$L$6:$L$149='C. Kostendaten'!$C19)*'C.5 Übrige Anlagen'!$N$6:$N$149) -> 0 | Z19: =SUMPRODUCT(('C.2 Kostendaten Rohr PE'!$V$6:$V$149='C. Kostendaten'!Z$4)*('C.2 Kostendaten Rohr PE'!$U$6:$U$149='C. Kostendaten'!$C19)*'C.2 Kostendaten Rohr PE'!$W$6:$W$149) -> 0 | AA19: =SUMPRODUCT(('C.3 Kostendaten Rohr kath'!$V$6:$V$149='C. Kostendaten'!AA$4)*('C.3 Kostendaten Rohr kath'!$U$6:$U$149='C. Kostendaten'!$C19)*'C.3 Kostendaten Rohr kath'!$W$6:$W$149) -> 0 | AB19: =SUMPRODUCT(('C.5 Übrige Anlagen'!$M$6:$M$149='C. Kostendaten'!AB$4)*('C.5 Übrige Anlagen'!$L$6:$L$149='C. Kostendaten'!$C19)*'C.5 Übrige Anlagen'!$N$6:$N$149) -> 0 | AC19: =SUMPRODUCT(('C.5 Übrige Anlagen'!$M$6:$M$149='C. Kostendaten'!AC$4)*('C.5 Übrige Anlagen'!$L$6:$L$149='C. Kostendaten'!$C19)*'C.5 Übrige Anlagen'!$N$6:$N$149) -> 0 | AD19: =SUMPRODUCT(('C.5 Übrige Anlagen'!$M$6:$M$149='C. Kostendaten'!AD$4)*('C.5 Übrige Anlagen'!$L$6:$L$149='C. Kostendaten'!$C19)*'C.5 Übrige Anlagen'!$N$6:$N$149) -> 0 | AE19: =SUMPRODUCT(('C.5 Übrige Anlagen'!$M$6:$M$149='C. Kostendaten'!AE$4)*('C.5 Übrige Anlagen'!$L$6:$L$149='C. Kostendaten'!$C19)*'C.5 Übrige Anlagen'!$N$6:$N$149) -> 0 | AF19: =SUMPRODUCT(('C.5 Übrige Anlagen'!$M$6:$M$149='C. Kostendaten'!AF$4)*('C.5 Übrige Anlagen'!$L$6:$L$149='C. Kostendaten'!$C19)*'C.5 Übrige Anlagen'!$N$6:$N$149) -> 0 | AG19: =SUMPRODUCT(('C.5 Übrige Anlagen'!$M$6:$M$149='C. Kostendaten'!AG$4)*('C.5 Übrige Anlagen'!$L$6:$L$149='C. Kostendaten'!$C19)*'C.5 Übrige Anlagen'!$N$6:$N$149) -> 0 | AH19: =SUMPRODUCT(('C.5 Übrige Anlagen'!$M$6:$M$149='C. Kostendaten'!AH$4)*('C.5 Übrige Anlagen'!$L$6:$L$149='C. Kostendaten'!$C19)*'C.5 Übrige Anlagen'!$N$6:$N$149) -> 0 | AI19: =SUMPRODUCT(('C.5 Übrige Anlagen'!$M$6:$M$149='C. Kostendaten'!AI$4)*('C.5 Übrige Anlagen'!$L$6:$L$149='C. Kostendaten'!$C19)*'C.5 Übrige Anlagen'!$N$6:$N$149) -> 0 | AJ19: =SUMPRODUCT(('C.5 Übrige Anlagen'!$M$6:$M$149='C. Kostendaten'!AJ$4)*('C.5 Übrige Anlagen'!$L$6:$L$149='C. Kostendaten'!$C19)*'C.5 Übrige Anlagen'!$N$6:$N$149) -> 0 | AK19: =SUMPRODUCT(('C.5 Übrige Anlagen'!$M$6:$M$149='C. Kostendaten'!AK$4)*('C.5 Übrige Anlagen'!$L$6:$L$149='C. Kostendaten'!$C19)*'C.5 Übrige Anlagen'!$N$6:$N$149) -> 0 | AL19: =SUMPRODUCT(('C.5 Übrige Anlagen'!$M$6:$M$149='C. Kostendaten'!AL$4)*('C.5 Übrige Anlagen'!$L$6:$L$149='C. Kostendaten'!$C19)*'C.5 Übrige Anlagen'!$N$6:$N$149) -> 0 | AM19: =SUMPRODUCT(('C.4 Kostendaten Regelein.'!$O$6:$O$149='C. Kostendaten'!AM$4)*('C.4 Kostendaten Regelein.'!$N$6:$N$149='C. Kostendaten'!$C19)*'C.4 Kostendaten Regelein.'!$P$6:$P$149) -> 0 | AN19: =SUMPRODUCT(('C.5 Übrige Anlagen'!$M$6:$M$149='C. Kostendaten'!AN$4)*('C.5 Übrige Anlagen'!$L$6:$L$149='C. Kostendaten'!$C19)*'C.5 Übrige Anlagen'!$N$6:$N$149) -> 0 | AO19: =SUMPRODUCT(('C.5 Übrige Anlagen'!$M$6:$M$149='C. Kostendaten'!AO$4)*('C.5 Übrige Anlagen'!$L$6:$L$149='C. Kostendaten'!$C19)*'C.5 Übrige Anlagen'!$N$6:$N$149) -> 0 | AP19: =SUMPRODUCT(('C.5 Übrige Anlagen'!$M$6:$M$149='C. Kostendaten'!AP$4)*('C.5 Übrige Anlagen'!$L$6:$L$149='C. Kostendaten'!$C19)*'C.5 Übrige Anlagen'!$N$6:$N$149) -> 0 | AQ19: =SUMPRODUCT(('C.5 Übrige Anlagen'!$M$6:$M$149='C. Kostendaten'!AQ$4)*('C.5 Übrige Anlagen'!$L$6:$L$149='C. Kostendaten'!$C19)*'C.5 Übrige Anlagen'!$N$6:$N$149) -> 0 | AR19: =SUMPRODUCT(('C.5 Übrige Anlagen'!$M$6:$M$149='C. Kostendaten'!AR$4)*('C.5 Übrige Anlagen'!$L$6:$L$149='C. Kostendaten'!$C19)*'C.5 Übrige Anlagen'!$N$6:$N$149) -> 0 | AS19: =SUMPRODUCT(('C.5 Übrige Anlagen'!$M$6:$M$149='C. Kostendaten'!AS$4)*('C.5 Übrige Anlagen'!$L$6:$L$149='C. Kostendaten'!$C19)*'C.5 Übrige Anlagen'!$N$6:$N$149) -> 0
B20: Anlagen im Bau 2023 - Abgänge/Umbuchungen | C20: 2023 | D20: 0 | E20: =SUMPRODUCT(('C.5 Übrige Anlagen'!$M$6:$M$149='C. Kostendaten'!E$4)*('C.5 Übrige Anlagen'!$L$6:$L$149='C. Kostendaten'!$C20)*'C.5 Übrige Anlagen'!$O$6:$O$149) -> 0 | F20: =SUMPRODUCT(('C.5 Übrige Anlagen'!$M$6:$M$149='C. Kostendaten'!F$4)*('C.5 Übrige Anlagen'!$L$6:$L$149='C. Kostendaten'!$C20)*'C.5 Übrige Anlagen'!$O$6:$O$149) -> 0 | G20: =SUMPRODUCT(('C.5 Übrige Anlagen'!$M$6:$M$149='C. Kostendaten'!G$4)*('C.5 Übrige Anlagen'!$L$6:$L$149='C. Kostendaten'!$C20)*'C.5 Übrige Anlagen'!$O$6:$O$149) -> 0 | H20: =SUMPRODUCT(('C.5 Übrige Anlagen'!$M$6:$M$149='C. Kostendaten'!H$4)*('C.5 Übrige Anlagen'!$L$6:$L$149='C. Kostendaten'!$C20)*'C.5 Übrige Anlagen'!$O$6:$O$149) -> 0 | I20: =SUMPRODUCT(('C.5 Übrige Anlagen'!$M$6:$M$149='C. Kostendaten'!I$4)*('C.5 Übrige Anlagen'!$L$6:$L$149='C. Kostendaten'!$C20)*'C.5 Übrige Anlagen'!$O$6:$O$149) -> 0 | J20: =SUMPRODUCT(('C.5 Übrige Anlagen'!$M$6:$M$149='C. Kostendaten'!J$4)*('C.5 Übrige Anlagen'!$L$6:$L$149='C. Kostendaten'!$C20)*'C.5 Übrige Anlagen'!$O$6:$O$149) -> 0 | K20: =SUMPRODUCT(('C.5 Übrige Anlagen'!$M$6:$M$149='C. Kostendaten'!K$4)*('C.5 Übrige Anlagen'!$L$6:$L$149='C. Kostendaten'!$C20)*'C.5 Übrige Anlagen'!$O$6:$O$149) -> 0 | L20: =SUMPRODUCT(('C.5 Übrige Anlagen'!$M$6:$M$149='C. Kostendaten'!L$4)*('C.5 Übrige Anlagen'!$L$6:$L$149='C. Kostendaten'!$C20)*'C.5 Übrige Anlagen'!$O$6:$O$149) -> 0 | M20: =SUMPRODUCT(('C.5 Übrige Anlagen'!$M$6:$M$149='C. Kostendaten'!M$4)*('C.5 Übrige Anlagen'!$L$6:$L$149='C. Kostendaten'!$C20)*'C.5 Übrige Anlagen'!$O$6:$O$149) -> 0 | N20: =SUMPRODUCT(('C.5 Übrige Anlagen'!$M$6:$M$149='C. Kostendaten'!N$4)*('C.5 Übrige Anlagen'!$L$6:$L$149='C. Kostendaten'!$C20)*'C.5 Übrige Anlagen'!$O$6:$O$149) -> 0 | O20: =SUMPRODUCT(('C.5 Übrige Anlagen'!$M$6:$M$149='C. Kostendaten'!O$4)*('C.5 Übrige Anlagen'!$L$6:$L$149='C. Kostendaten'!$C20)*'C.5 Übrige Anlagen'!$O$6:$O$149) -> 0 | P20: =SUMPRODUCT(('C.5 Übrige Anlagen'!$M$6:$M$149='C. Kostendaten'!P$4)*('C.5 Übrige Anlagen'!$L$6:$L$149='C. Kostendaten'!$C20)*'C.5 Übrige Anlagen'!$O$6:$O$149) -> 0 | Q20: =SUMPRODUCT(('C.5 Übrige Anlagen'!$M$6:$M$149='C. Kostendaten'!Q$4)*('C.5 Übrige Anlagen'!$L$6:$L$149='C. Kostendaten'!$C20)*'C.5 Übrige Anlagen'!$O$6:$O$149) -> 0 | R20: =SUMPRODUCT(('C.1 Kostendaten Verdichtung'!$O$6:$O$149='C. Kostendaten'!R$4)*('C.1 Kostendaten Verdichtung'!$N$6:$N$149='C. Kostendaten'!$C20)*'C.1 Kostendaten Verdichtung'!$Q$6:$Q$149) -> 0 | S20: =SUMPRODUCT(('C.5 Übrige Anlagen'!$M$6:$M$149='C. Kostendaten'!S$4)*('C.5 Übrige Anlagen'!$L$6:$L$149='C. Kostendaten'!$C20)*'C.5 Übrige Anlagen'!$O$6:$O$149) -> 0 | T20: =SUMPRODUCT(('C.5 Übrige Anlagen'!$M$6:$M$149='C. Kostendaten'!T$4)*('C.5 Übrige Anlagen'!$L$6:$L$149='C. Kostendaten'!$C20)*'C.5 Übrige Anlagen'!$O$6:$O$149) -> 0 | U20: =SUMPRODUCT(('C.5 Übrige Anlagen'!$M$6:$M$149='C. Kostendaten'!U$4)*('C.5 Übrige Anlagen'!$L$6:$L$149='C. Kostendaten'!$C20)*'C.5 Übrige Anlagen'!$O$6:$O$149) -> 0 | V20: =SUMPRODUCT(('C.5 Übrige Anlagen'!$M$6:$M$149='C. Kostendaten'!V$4)*('C.5 Übrige Anlagen'!$L$6:$L$149='C. Kostendaten'!$C20)*'C.5 Übrige Anlagen'!$O$6:$O$149) -> 0 | W20: =SUMPRODUCT(('C.5 Übrige Anlagen'!$M$6:$M$149='C. Kostendaten'!W$4)*('C.5 Übrige Anlagen'!$L$6:$L$149='C. Kostendaten'!$C20)*'C.5 Übrige Anlagen'!$O$6:$O$149) -> 0 | X20: =SUMPRODUCT(('C.5 Übrige Anlagen'!$M$6:$M$149='C. Kostendaten'!X$4)*('C.5 Übrige Anlagen'!$L$6:$L$149='C. Kostendaten'!$C20)*'C.5 Übrige Anlagen'!$O$6:$O$149) -> 0 | Y20: =SUMPRODUCT(('C.5 Übrige Anlagen'!$M$6:$M$149='C. Kostendaten'!Y$4)*('C.5 Übrige Anlagen'!$L$6:$L$149='C. Kostendaten'!$C20)*'C.5 Übrige Anlagen'!$O$6:$O$149) -> 0 | Z20: =SUMPRODUCT(('C.2 Kostendaten Rohr PE'!$V$6:$V$149='C. Kostendaten'!Z$4)*('C.2 Kostendaten Rohr PE'!$U$6:$U$149='C. Kostendaten'!$C20)*'C.2 Kostendaten Rohr PE'!$X$6:$X$149) -> 0 | AA20: =SUMPRODUCT(('C.3 Kostendaten Rohr kath'!$V$6:$V$149='C. Kostendaten'!AA$4)*('C.3 Kostendaten Rohr kath'!$U$6:$U$149='C. Kostendaten'!$C20)*'C.3 Kostendaten Rohr kath'!$X$6:$X$149) -> 0 | AB20: =SUMPRODUCT(('C.5 Übrige Anlagen'!$M$6:$M$149='C. Kostendaten'!AB$4)*('C.5 Übrige Anlagen'!$L$6:$L$149='C. Kostendaten'!$C20)*'C.5 Übrige Anlagen'!$O$6:$O$149) -> 0 | AC20: =SUMPRODUCT(('C.5 Übrige Anlagen'!$M$6:$M$149='C. Kostendaten'!AC$4)*('C.5 Übrige Anlagen'!$L$6:$L$149='C. Kostendaten'!$C20)*'C.5 Übrige Anlagen'!$O$6:$O$149) -> 0 | AD20: =SUMPRODUCT(('C.5 Übrige Anlagen'!$M$6:$M$149='C. Kostendaten'!AD$4)*('C.5 Übrige Anlagen'!$L$6:$L$149='C. Kostendaten'!$C20)*'C.5 Übrige Anlagen'!$O$6:$O$149) -> 0 | AE20: =SUMPRODUCT(('C.5 Übrige Anlagen'!$M$6:$M$149='C. Kostendaten'!AE$4)*('C.5 Übrige Anlagen'!$L$6:$L$149='C. Kostendaten'!$C20)*'C.5 Übrige Anlagen'!$O$6:$O$149) -> 0 | AF20: =SUMPRODUCT(('C.5 Übrige Anlagen'!$M$6:$M$149='C. Kostendaten'!AF$4)*('C.5 Übrige Anlagen'!$L$6:$L$149='C. Kostendaten'!$C20)*'C.5 Übrige Anlagen'!$O$6:$O$149) -> 0 | AG20: =SUMPRODUCT(('C.5 Übrige Anlagen'!$M$6:$M$149='C. Kostendaten'!AG$4)*('C.5 Übrige Anlagen'!$L$6:$L$149='C. Kostendaten'!$C20)*'C.5 Übrige Anlagen'!$O$6:$O$149) -> 0 | AH20: =SUMPRODUCT(('C.5 Übrige Anlagen'!$M$6:$M$149='C. Kostendaten'!AH$4)*('C.5 Übrige Anlagen'!$L$6:$L$149='C. Kostendaten'!$C20)*'C.5 Übrige Anlagen'!$O$6:$O$149) -> 0 | AI20: =SUMPRODUCT(('C.5 Übrige Anlagen'!$M$6:$M$149='C. Kostendaten'!AI$4)*('C.5 Übrige Anlagen'!$L$6:$L$149='C. Kostendaten'!$C20)*'C.5 Übrige Anlagen'!$O$6:$O$149) -> 0 | AJ20: =SUMPRODUCT(('C.5 Übrige Anlagen'!$M$6:$M$149='C. Kostendaten'!AJ$4)*('C.5 Übrige Anlagen'!$L$6:$L$149='C. Kostendaten'!$C20)*'C.5 Übrige Anlagen'!$O$6:$O$149) -> 0 | AK20: =SUMPRODUCT(('C.5 Übrige Anlagen'!$M$6:$M$149='C. Kostendaten'!AK$4)*('C.5 Übrige Anlagen'!$L$6:$L$149='C. Kostendaten'!$C20)*'C.5 Übrige Anlagen'!$O$6:$O$149) -> 0 | AL20: =SUMPRODUCT(('C.5 Übrige Anlagen'!$M$6:$M$149='C. Kostendaten'!AL$4)*('C.5 Übrige Anlagen'!$L$6:$L$149='C. Kostendaten'!$C20)*'C.5 Übrige Anlagen'!$O$6:$O$149) -> 0 | AM20: =SUMPRODUCT(('C.4 Kostendaten Regelein.'!$O$6:$O$149='C. Kostendaten'!AM$4)*('C.4 Kostendaten Regelein.'!$N$6:$N$149='C. Kostendaten'!$C20)*'C.4 Kostendaten Regelein.'!$Q$6:$Q$149) -> 0 | AN20: =SUMPRODUCT(('C.5 Übrige Anlagen'!$M$6:$M$149='C. Kostendaten'!AN$4)*('C.5 Übrige Anlagen'!$L$6:$L$149='C. Kostendaten'!$C20)*'C.5 Übrige Anlagen'!$O$6:$O$149) -> 0 | AO20: =SUMPRODUCT(('C.5 Übrige Anlagen'!$M$6:$M$149='C. Kostendaten'!AO$4)*('C.5 Übrige Anlagen'!$L$6:$L$149='C. Kostendaten'!$C20)*'C.5 Übrige Anlagen'!$O$6:$O$149) -> 0 | AP20: =SUMPRODUCT(('C.5 Übrige Anlagen'!$M$6:$M$149='C. Kostendaten'!AP$4)*('C.5 Übrige Anlagen'!$L$6:$L$149='C. Kostendaten'!$C20)*'C.5 Übrige Anlagen'!$O$6:$O$149) -> 0 | AQ20: =SUMPRODUCT(('C.5 Übrige Anlagen'!$M$6:$M$149='C. Kostendaten'!AQ$4)*('C.5 Übrige Anlagen'!$L$6:$L$149='C. Kostendaten'!$C20)*'C.5 Übrige Anlagen'!$O$6:$O$149) -> 0 | AR20: =SUMPRODUCT(('C.5 Übrige Anlagen'!$M$6:$M$149='C. Kostendaten'!AR$4)*('C.5 Übrige Anlagen'!$L$6:$L$149='C. Kostendaten'!$C20)*'C.5 Übrige Anlagen'!$O$6:$O$149) -> 0 | AS20: =SUMPRODUCT(('C.5 Übrige Anlagen'!$M$6:$M$149='C. Kostendaten'!AS$4)*('C.5 Übrige Anlagen'!$L$6:$L$149='C. Kostendaten'!$C20)*'C.5 Übrige Anlagen'!$O$6:$O$149) -> 0
B21: Anlagen im Bau 2024 - Anfangsbestand | C21: 2024 | D21: 0 | E21: =E18+E19-E20 -> 0 | F21: 0 | G21: 0 | H21: 0 | I21: 0 | J21: 0 | K21: 0 | L21: 0 | M21: 0 | N21: 0 | O21: 0 | P21: 0 | Q21: 0 | R21: 0 | S21: 0 | T21: 0 | U21: 0 | V21: 0 | W21: 0 | X21: 0 | Y21: 0 | Z21: 0 | AA21: 0 | AB21: 0 | AC21: 0 | AD21: 0 | AE21: 0 | AF21: 0 | AG21: 0 | AH21: 0 | AI21: 0 | AJ21: 0 | AK21: 0 | AL21: 0 | AM21: 0 | AN21: 0 | AO21: 0 | AP21: 0 | AQ21: 0 | AR21: 0 | AS21: 0
B22: Anlagen im Bau 2024 - Zugänge | C22: 2024 | D22: 0 | E22: =SUMPRODUCT(('C.5 Übrige Anlagen'!$M$6:$M$149='C. Kostendaten'!E$4)*('C.5 Übrige Anlagen'!$L$6:$L$149='C. Kostendaten'!$C22)*'C.5 Übrige Anlagen'!$N$6:$N$149) -> 0 | F22: =SUMPRODUCT(('C.5 Übrige Anlagen'!$M$6:$M$149='C. Kostendaten'!F$4)*('C.5 Übrige Anlagen'!$L$6:$L$149='C. Kostendaten'!$C22)*'C.5 Übrige Anlagen'!$N$6:$N$149) -> 0 | G22: =SUMPRODUCT(('C.5 Übrige Anlagen'!$M$6:$M$149='C. Kostendaten'!G$4)*('C.5 Übrige Anlagen'!$L$6:$L$149='C. Kostendaten'!$C22)*'C.5 Übrige Anlagen'!$N$6:$N$149) -> 0 | H22: =SUMPRODUCT(('C.5 Übrige Anlagen'!$M$6:$M$149='C. Kostendaten'!H$4)*('C.5 Übrige Anlagen'!$L$6:$L$149='C. Kostendaten'!$C22)*'C.5 Übrige Anlagen'!$N$6:$N$149) -> 0 | I22: =SUMPRODUCT(('C.5 Übrige Anlagen'!$M$6:$M$149='C. Kostendaten'!I$4)*('C.5 Übrige Anlagen'!$L$6:$L$149='C. Kostendaten'!$C22)*'C.5 Übrige Anlagen'!$N$6:$N$149) -> 0 | J22: =SUMPRODUCT(('C.5 Übrige Anlagen'!$M$6:$M$149='C. Kostendaten'!J$4)*('C.5 Übrige Anlagen'!$L$6:$L$149='C. Kostendaten'!$C22)*'C.5 Übrige Anlagen'!$N$6:$N$149) -> 0 | K22: =SUMPRODUCT(('C.5 Übrige Anlagen'!$M$6:$M$149='C. Kostendaten'!K$4)*('C.5 Übrige Anlagen'!$L$6:$L$149='C. Kostendaten'!$C22)*'C.5 Übrige Anlagen'!$N$6:$N$149) -> 0 | L22: =SUMPRODUCT(('C.5 Übrige Anlagen'!$M$6:$M$149='C. Kostendaten'!L$4)*('C.5 Übrige Anlagen'!$L$6:$L$149='C. Kostendaten'!$C22)*'C.5 Übrige Anlagen'!$N$6:$N$149) -> 0 | M22: =SUMPRODUCT(('C.5 Übrige Anlagen'!$M$6:$M$149='C. Kostendaten'!M$4)*('C.5 Übrige Anlagen'!$L$6:$L$149='C. Kostendaten'!$C22)*'C.5 Übrige Anlagen'!$N$6:$N$149) -> 0 | N22: =SUMPRODUCT(('C.5 Übrige Anlagen'!$M$6:$M$149='C. Kostendaten'!N$4)*('C.5 Übrige Anlagen'!$L$6:$L$149='C. Kostendaten'!$C22)*'C.5 Übrige Anlagen'!$N$6:$N$149) -> 0 | O22: =SUMPRODUCT(('C.5 Übrige Anlagen'!$M$6:$M$149='C. Kostendaten'!O$4)*('C.5 Übrige Anlagen'!$L$6:$L$149='C. Kostendaten'!$C22)*'C.5 Übrige Anlagen'!$N$6:$N$149) -> 0 | P22: =SUMPRODUCT(('C.5 Übrige Anlagen'!$M$6:$M$149='C. Kostendaten'!P$4)*('C.5 Übrige Anlagen'!$L$6:$L$149='C. Kostendaten'!$C22)*'C.5 Übrige Anlagen'!$N$6:$N$149) -> 0 | Q22: =SUMPRODUCT(('C.5 Übrige Anlagen'!$M$6:$M$149='C. Kostendaten'!Q$4)*('C.5 Übrige Anlagen'!$L$6:$L$149='C. Kostendaten'!$C22)*'C.5 Übrige Anlagen'!$N$6:$N$149) -> 0 | R22: =SUMPRODUCT(('C.1 Kostendaten Verdichtung'!$O$6:$O$149='C. Kostendaten'!R$4)*('C.1 Kostendaten Verdichtung'!$N$6:$N$149='C. Kostendaten'!$C22)*'C.1 Kostendaten Verdichtung'!$P$6:$P$149) -> 0 | S22: =SUMPRODUCT(('C.5 Übrige Anlagen'!$M$6:$M$149='C. Kostendaten'!S$4)*('C.5 Übrige Anlagen'!$L$6:$L$149='C. Kostendaten'!$C22)*'C.5 Übrige Anlagen'!$N$6:$N$149) -> 0 | T22: =SUMPRODUCT(('C.5 Übrige Anlagen'!$M$6:$M$149='C. Kostendaten'!T$4)*('C.5 Übrige Anlagen'!$L$6:$L$149='C. Kostendaten'!$C22)*'C.5 Übrige Anlagen'!$N$6:$N$149) -> 0 | U22: =SUMPRODUCT(('C.5 Übrige Anlagen'!$M$6:$M$149='C. Kostendaten'!U$4)*('C.5 Übrige Anlagen'!$L$6:$L$149='C. Kostendaten'!$C22)*'C.5 Übrige Anlagen'!$N$6:$N$149) -> 0 | V22: =SUMPRODUCT(('C.5 Übrige Anlagen'!$M$6:$M$149='C. Kostendaten'!V$4)*('C.5 Übrige Anlagen'!$L$6:$L$149='C. Kostendaten'!$C22)*'C.5 Übrige Anlagen'!$N$6:$N$149) -> 0 | W22: =SUMPRODUCT(('C.5 Übrige Anlagen'!$M$6:$M$149='C. Kostendaten'!W$4)*('C.5 Übrige Anlagen'!$L$6:$L$149='C. Kostendaten'!$C22)*'C.5 Übrige Anlagen'!$N$6:$N$149) -> 0 | X22: =SUMPRODUCT(('C.5 Übrige Anlagen'!$M$6:$M$149='C. Kostendaten'!X$4)*('C.5 Übrige Anlagen'!$L$6:$L$149='C. Kostendaten'!$C22)*'C.5 Übrige Anlagen'!$N$6:$N$149) -> 0 | Y22: =SUMPRODUCT(('C.5 Übrige Anlagen'!$M$6:$M$149='C. Kostendaten'!Y$4)*('C.5 Übrige Anlagen'!$L$6:$L$149='C. Kostendaten'!$C22)*'C.5 Übrige Anlagen'!$N$6:$N$149) -> 0 | Z22: =SUMPRODUCT(('C.2 Kostendaten Rohr PE'!$V$6:$V$149='C. Kostendaten'!Z$4)*('C.2 Kostendaten Rohr PE'!$U$6:$U$149='C. Kostendaten'!$C22)*'C.2 Kostendaten Rohr PE'!$W$6:$W$149) -> 0 | AA22: =SUMPRODUCT(('C.3 Kostendaten Rohr kath'!$V$6:$V$149='C. Kostendaten'!AA$4)*('C.3 Kostendaten Rohr kath'!$U$6:$U$149='C. Kostendaten'!$C22)*'C.3 Kostendaten Rohr kath'!$W$6:$W$149) -> 0 | AB22: =SUMPRODUCT(('C.5 Übrige Anlagen'!$M$6:$M$149='C. Kostendaten'!AB$4)*('C.5 Übrige Anlagen'!$L$6:$L$149='C. Kostendaten'!$C22)*'C.5 Übrige Anlagen'!$N$6:$N$149) -> 0 | AC22: =SUMPRODUCT(('C.5 Übrige Anlagen'!$M$6:$M$149='C. Kostendaten'!AC$4)*('C.5 Übrige Anlagen'!$L$6:$L$149='C. Kostendaten'!$C22)*'C.5 Übrige Anlagen'!$N$6:$N$149) -> 0 | AD22: =SUMPRODUCT(('C.5 Übrige Anlagen'!$M$6:$M$149='C. Kostendaten'!AD$4)*('C.5 Übrige Anlagen'!$L$6:$L$149='C. Kostendaten'!$C22)*'C.5 Übrige Anlagen'!$N$6:$N$149) -> 0 | AE22: =SUMPRODUCT(('C.5 Übrige Anlagen'!$M$6:$M$149='C. Kostendaten'!AE$4)*('C.5 Übrige Anlagen'!$L$6:$L$149='C. Kostendaten'!$C22)*'C.5 Übrige Anlagen'!$N$6:$N$149) -> 0 | AF22: =SUMPRODUCT(('C.5 Übrige Anlagen'!$M$6:$M$149='C. Kostendaten'!AF$4)*('C.5 Übrige Anlagen'!$L$6:$L$149='C. Kostendaten'!$C22)*'C.5 Übrige Anlagen'!$N$6:$N$149) -> 0 | AG22: =SUMPRODUCT(('C.5 Übrige Anlagen'!$M$6:$M$149='C. Kostendaten'!AG$4)*('C.5 Übrige Anlagen'!$L$6:$L$149='C. Kostendaten'!$C22)*'C.5 Übrige Anlagen'!$N$6:$N$149) -> 0 | AH22: =SUMPRODUCT(('C.5 Übrige Anlagen'!$M$6:$M$149='C. Kostendaten'!AH$4)*('C.5 Übrige Anlagen'!$L$6:$L$149='C. Kostendaten'!$C22)*'C.5 Übrige Anlagen'!$N$6:$N$149) -> 0 | AI22: =SUMPRODUCT(('C.5 Übrige Anlagen'!$M$6:$M$149='C. Kostendaten'!AI$4)*('C.5 Übrige Anlagen'!$L$6:$L$149='C. Kostendaten'!$C22)*'C.5 Übrige Anlagen'!$N$6:$N$149) -> 0 | AJ22: =SUMPRODUCT(('C.5 Übrige Anlagen'!$M$6:$M$149='C. Kostendaten'!AJ$4)*('C.5 Übrige Anlagen'!$L$6:$L$149='C. Kostendaten'!$C22)*'C.5 Übrige Anlagen'!$N$6:$N$149) -> 0 | AK22: =SUMPRODUCT(('C.5 Übrige Anlagen'!$M$6:$M$149='C. Kostendaten'!AK$4)*('C.5 Übrige Anlagen'!$L$6:$L$149='C. Kostendaten'!$C22)*'C.5 Übrige Anlagen'!$N$6:$N$149) -> 0 | AL22: =SUMPRODUCT(('C.5 Übrige Anlagen'!$M$6:$M$149='C. Kostendaten'!AL$4)*('C.5 Übrige Anlagen'!$L$6:$L$149='C. Kostendaten'!$C22)*'C.5 Übrige Anlagen'!$N$6:$N$149) -> 0 | AM22: =SUMPRODUCT(('C.4 Kostendaten Regelein.'!$O$6:$O$149='C. Kostendaten'!AM$4)*('C.4 Kostendaten Regelein.'!$N$6:$N$149='C. Kostendaten'!$C22)*'C.4 Kostendaten Regelein.'!$P$6:$P$149) -> 0 | AN22: =SUMPRODUCT(('C.5 Übrige Anlagen'!$M$6:$M$149='C. Kostendaten'!AN$4)*('C.5 Übrige Anlagen'!$L$6:$L$149='C. Kostendaten'!$C22)*'C.5 Übrige Anlagen'!$N$6:$N$149) -> 0 | AO22: =SUMPRODUCT(('C.5 Übrige Anlagen'!$M$6:$M$149='C. Kostendaten'!AO$4)*('C.5 Übrige Anlagen'!$L$6:$L$149='C. Kostendaten'!$C22)*'C.5 Übrige Anlagen'!$N$6:$N$149) -> 0 | AP22: =SUMPRODUCT(('C.5 Übrige Anlagen'!$M$6:$M$149='C. Kostendaten'!AP$4)*('C.5 Übrige Anlagen'!$L$6:$L$149='C. Kostendaten'!$C22)*'C.5 Übrige Anlagen'!$N$6:$N$149) -> 0 | AQ22: =SUMPRODUCT(('C.5 Übrige Anlagen'!$M$6:$M$149='C. Kostendaten'!AQ$4)*('C.5 Übrige Anlagen'!$L$6:$L$149='C. Kostendaten'!$C22)*'C.5 Übrige Anlagen'!$N$6:$N$149) -> 0 | AR22: =SUMPRODUCT(('C.5 Übrige Anlagen'!$M$6:$M$149='C. Kostendaten'!AR$4)*('C.5 Übrige Anlagen'!$L$6:$L$149='C. Kostendaten'!$C22)*'C.5 Übrige Anlagen'!$N$6:$N$149) -> 0 | AS22: =SUMPRODUCT(('C.5 Übrige Anlagen'!$M$6:$M$149='C. Kostendaten'!AS$4)*('C.5 Übrige Anlagen'!$L$6:$L$149='C. Kostendaten'!$C22)*'C.5 Übrige Anlagen'!$N$6:$N$149) -> 0
B23: Anlagen im Bau 2024 - Abgänge/Umbuchungen | C23: 2024 | D23: 0 | E23: =SUMPRODUCT(('C.5 Übrige Anlagen'!$M$6:$M$149='C. Kostendaten'!E$4)*('C.5 Übrige Anlagen'!$L$6:$L$149='C. Kostendaten'!$C23)*'C.5 Übrige Anlagen'!$O$6:$O$149) -> 0 | F23: =SUMPRODUCT(('C.5 Übrige Anlagen'!$M$6:$M$149='C. Kostendaten'!F$4)*('C.5 Übrige Anlagen'!$L$6:$L$149='C. Kostendaten'!$C23)*'C.5 Übrige Anlagen'!$O$6:$O$149) -> 0 | G23: =SUMPRODUCT(('C.5 Übrige Anlagen'!$M$6:$M$149='C. Kostendaten'!G$4)*('C.5 Übrige Anlagen'!$L$6:$L$149='C. Kostendaten'!$C23)*'C.5 Übrige Anlagen'!$O$6:$O$149) -> 0 | H23: =SUMPRODUCT(('C.5 Übrige Anlagen'!$M$6:$M$149='C. Kostendaten'!H$4)*('C.5 Übrige Anlagen'!$L$6:$L$149='C. Kostendaten'!$C23)*'C.5 Übrige Anlagen'!$O$6:$O$149) -> 0 | I23: =SUMPRODUCT(('C.5 Übrige Anlagen'!$M$6:$M$149='C. Kostendaten'!I$4)*('C.5 Übrige Anlagen'!$L$6:$L$149='C. Kostendaten'!$C23)*'C.5 Übrige Anlagen'!$O$6:$O$149) -> 0 | J23: =SUMPRODUCT(('C.5 Übrige Anlagen'!$M$6:$M$149='C. Kostendaten'!J$4)*('C.5 Übrige Anlagen'!$L$6:$L$149='C. Kostendaten'!$C23)*'C.5 Übrige Anlagen'!$O$6:$O$149) -> 0 | K23: =SUMPRODUCT(('C.5 Übrige Anlagen'!$M$6:$M$149='C. Kostendaten'!K$4)*('C.5 Übrige Anlagen'!$L$6:$L$149='C. Kostendaten'!$C23)*'C.5 Übrige Anlagen'!$O$6:$O$149) -> 0 | L23: =SUMPRODUCT(('C.5 Übrige Anlagen'!$M$6:$M$149='C. Kostendaten'!L$4)*('C.5 Übrige Anlagen'!$L$6:$L$149='C. Kostendaten'!$C23)*'C.5 Übrige Anlagen'!$O$6:$O$149) -> 0 | M23: =SUMPRODUCT(('C.5 Übrige Anlagen'!$M$6:$M$149='C. Kostendaten'!M$4)*('C.5 Übrige Anlagen'!$L$6:$L$149='C. Kostendaten'!$C23)*'C.5 Übrige Anlagen'!$O$6:$O$149) -> 0 | N23: =SUMPRODUCT(('C.5 Übrige Anlagen'!$M$6:$M$149='C. Kostendaten'!N$4)*('C.5 Übrige Anlagen'!$L$6:$L$149='C. Kostendaten'!$C23)*'C.5 Übrige Anlagen'!$O$6:$O$149) -> 0 | O23: =SUMPRODUCT(('C.5 Übrige Anlagen'!$M$6:$M$149='C. Kostendaten'!O$4)*('C.5 Übrige Anlagen'!$L$6:$L$149='C. Kostendaten'!$C23)*'C.5 Übrige Anlagen'!$O$6:$O$149) -> 0 | P23: =SUMPRODUCT(('C.5 Übrige Anlagen'!$M$6:$M$149='C. Kostendaten'!P$4)*('C.5 Übrige Anlagen'!$L$6:$L$149='C. Kostendaten'!$C23)*'C.5 Übrige Anlagen'!$O$6:$O$149) -> 0 | Q23: =SUMPRODUCT(('C.5 Übrige Anlagen'!$M$6:$M$149='C. Kostendaten'!Q$4)*('C.5 Übrige Anlagen'!$L$6:$L$149='C. Kostendaten'!$C23)*'C.5 Übrige Anlagen'!$O$6:$O$149) -> 0 | R23: =SUMPRODUCT(('C.1 Kostendaten Verdichtung'!$O$6:$O$149='C. Kostendaten'!R$4)*('C.1 Kostendaten Verdichtung'!$N$6:$N$149='C. Kostendaten'!$C23)*'C.1 Kostendaten Verdichtung'!$Q$6:$Q$149) -> 0 | S23: =SUMPRODUCT(('C.5 Übrige Anlagen'!$M$6:$M$149='C. Kostendaten'!S$4)*('C.5 Übrige Anlagen'!$L$6:$L$149='C. Kostendaten'!$C23)*'C.5 Übrige Anlagen'!$O$6:$O$149) -> 0 | T23: =SUMPRODUCT(('C.5 Übrige Anlagen'!$M$6:$M$149='C. Kostendaten'!T$4)*('C.5 Übrige Anlagen'!$L$6:$L$149='C. Kostendaten'!$C23)*'C.5 Übrige Anlagen'!$O$6:$O$149) -> 0 | U23: =SUMPRODUCT(('C.5 Übrige Anlagen'!$M$6:$M$149='C. Kostendaten'!U$4)*('C.5 Übrige Anlagen'!$L$6:$L$149='C. Kostendaten'!$C23)*'C.5 Übrige Anlagen'!$O$6:$O$149) -> 0 | V23: =SUMPRODUCT(('C.5 Übrige Anlagen'!$M$6:$M$149='C. Kostendaten'!V$4)*('C.5 Übrige Anlagen'!$L$6:$L$149='C. Kostendaten'!$C23)*'C.5 Übrige Anlagen'!$O$6:$O$149) -> 0 | W23: =SUMPRODUCT(('C.5 Übrige Anlagen'!$M$6:$M$149='C. Kostendaten'!W$4)*('C.5 Übrige Anlagen'!$L$6:$L$149='C. Kostendaten'!$C23)*'C.5 Übrige Anlagen'!$O$6:$O$149) -> 0 | X23: =SUMPRODUCT(('C.5 Übrige Anlagen'!$M$6:$M$149='C. Kostendaten'!X$4)*('C.5 Übrige Anlagen'!$L$6:$L$149='C. Kostendaten'!$C23)*'C.5 Übrige Anlagen'!$O$6:$O$149) -> 0 | Y23: =SUMPRODUCT(('C.5 Übrige Anlagen'!$M$6:$M$149='C. Kostendaten'!Y$4)*('C.5 Übrige Anlagen'!$L$6:$L$149='C. Kostendaten'!$C23)*'C.5 Übrige Anlagen'!$O$6:$O$149) -> 0 | Z23: =SUMPRODUCT(('C.2 Kostendaten Rohr PE'!$V$6:$V$149='C. Kostendaten'!Z$4)*('C.2 Kostendaten Rohr PE'!$U$6:$U$149='C. Kostendaten'!$C23)*'C.2 Kostendaten Rohr PE'!$X$6:$X$149) -> 0 | AA23: =SUMPRODUCT(('C.3 Kostendaten Rohr kath'!$V$6:$V$149='C. Kostendaten'!AA$4)*('C.3 Kostendaten Rohr kath'!$U$6:$U$149='C. Kostendaten'!$C23)*'C.3 Kostendaten Rohr kath'!$X$6:$X$149) -> 0 | AB23: =SUMPRODUCT(('C.5 Übrige Anlagen'!$M$6:$M$149='C. Kostendaten'!AB$4)*('C.5 Übrige Anlagen'!$L$6:$L$149='C. Kostendaten'!$C23)*'C.5 Übrige Anlagen'!$O$6:$O$149) -> 0 | AC23: =SUMPRODUCT(('C.5 Übrige Anlagen'!$M$6:$M$149='C. Kostendaten'!AC$4)*('C.5 Übrige Anlagen'!$L$6:$L$149='C. Kostendaten'!$C23)*'C.5 Übrige Anlagen'!$O$6:$O$149) -> 0 | AD23: =SUMPRODUCT(('C.5 Übrige Anlagen'!$M$6:$M$149='C. Kostendaten'!AD$4)*('C.5 Übrige Anlagen'!$L$6:$L$149='C. Kostendaten'!$C23)*'C.5 Übrige Anlagen'!$O$6:$O$149) -> 0 | AE23: =SUMPRODUCT(('C.5 Übrige Anlagen'!$M$6:$M$149='C. Kostendaten'!AE$4)*('C.5 Übrige Anlagen'!$L$6:$L$149='C. Kostendaten'!$C23)*'C.5 Übrige Anlagen'!$O$6:$O$149) -> 0 | AF23: =SUMPRODUCT(('C.5 Übrige Anlagen'!$M$6:$M$149='C. Kostendaten'!AF$4)*('C.5 Übrige Anlagen'!$L$6:$L$149='C. Kostendaten'!$C23)*'C.5 Übrige Anlagen'!$O$6:$O$149) -> 0 | AG23: =SUMPRODUCT(('C.5 Übrige Anlagen'!$M$6:$M$149='C. Kostendaten'!AG$4)*('C.5 Übrige Anlagen'!$L$6:$L$149='C. Kostendaten'!$C23)*'C.5 Übrige Anlagen'!$O$6:$O$149) -> 0 | AH23: =SUMPRODUCT(('C.5 Übrige Anlagen'!$M$6:$M$149='C. Kostendaten'!AH$4)*('C.5 Übrige Anlagen'!$L$6:$L$149='C. Kostendaten'!$C23)*'C.5 Übrige Anlagen'!$O$6:$O$149) -> 0 | AI23: =SUMPRODUCT(('C.5 Übrige Anlagen'!$M$6:$M$149='C. Kostendaten'!AI$4)*('C.5 Übrige Anlagen'!$L$6:$L$149='C. Kostendaten'!$C23)*'C.5 Übrige Anlagen'!$O$6:$O$149) -> 0 | AJ23: =SUMPRODUCT(('C.5 Übrige Anlagen'!$M$6:$M$149='C. Kostendaten'!AJ$4)*('C.5 Übrige Anlagen'!$L$6:$L$149='C. Kostendaten'!$C23)*'C.5 Übrige Anlagen'!$O$6:$O$149) -> 0 | AK23: =SUMPRODUCT(('C.5 Übrige Anlagen'!$M$6:$M$149='C. Kostendaten'!AK$4)*('C.5 Übrige Anlagen'!$L$6:$L$149='C. Kostendaten'!$C23)*'C.5 Übrige Anlagen'!$O$6:$O$149) -> 0 | AL23: =SUMPRODUCT(('C.5 Übrige Anlagen'!$M$6:$M$149='C. Kostendaten'!AL$4)*('C.5 Übrige Anlagen'!$L$6:$L$149='C. Kostendaten'!$C23)*'C.5 Übrige Anlagen'!$O$6:$O$149) -> 0 | AM23: =SUMPRODUCT(('C.4 Kostendaten Regelein.'!$O$6:$O$149='C. Kostendaten'!AM$4)*('C.4 Kostendaten Regelein.'!$N$6:$N$149='C. Kostendaten'!$C23)*'C.4 Kostendaten Regelein.'!$Q$6:$Q$149) -> 0 | AN23: =SUMPRODUCT(('C.5 Übrige Anlagen'!$M$6:$M$149='C. Kostendaten'!AN$4)*('C.5 Übrige Anlagen'!$L$6:$L$149='C. Kostendaten'!$C23)*'C.5 Übrige Anlagen'!$O$6:$O$149) -> 0 | AO23: =SUMPRODUCT(('C.5 Übrige Anlagen'!$M$6:$M$149='C. Kostendaten'!AO$4)*('C.5 Übrige Anlagen'!$L$6:$L$149='C. Kostendaten'!$C23)*'C.5 Übrige Anlagen'!$O$6:$O$149) -> 0 | AP23: =SUMPRODUCT(('C.5 Übrige Anlagen'!$M$6:$M$149='C. Kostendaten'!AP$4)*('C.5 Übrige Anlagen'!$L$6:$L$149='C. Kostendaten'!$C23)*'C.5 Übrige Anlagen'!$O$6:$O$149) -> 0 | AQ23: =SUMPRODUCT(('C.5 Übrige Anlagen'!$M$6:$M$149='C. Kostendaten'!AQ$4)*('C.5 Übrige Anlagen'!$L$6:$L$149='C. Kostendaten'!$C23)*'C.5 Übrige Anlagen'!$O$6:$O$149) -> 0 | AR23: =SUMPRODUCT(('C.5 Übrige Anlagen'!$M$6:$M$149='C. Kostendaten'!AR$4)*('C.5 Übrige Anlagen'!$L$6:$L$149='C. Kostendaten'!$C23)*'C.5 Übrige Anlagen'!$O$6:$O$149) -> 0 | AS23: =SUMPRODUCT(('C.5 Übrige Anlagen'!$M$6:$M$149='C. Kostendaten'!AS$4)*('C.5 Übrige Anlagen'!$L$6:$L$149='C. Kostendaten'!$C23)*'C.5 Übrige Anlagen'!$O$6:$O$149) -> 0
B24: Anlagen im Bau 2025 - Anfangsbestand | C24: 2025 | D24: 0 | E24: =E21+E22-E23 -> 0 | F24: 0 | G24: 0 | H24: 0 | I24: 0 | J24: 0 | K24: 0 | L24: 0 | M24: 0 | N24: 0 | O24: 0 | P24: 0 | Q24: 0 | R24: 0 | S24: 0 | T24: 0 | U24: 0 | V24: 0 | W24: 0 | X24: 0 | Y24: 0 | Z24: 0 | AA24: 0 | AB24: 0 | AC24: 0 | AD24: 0 | AE24: 0 | AF24: 0 | AG24: 0 | AH24: 0 | AI24: 0 | AJ24: 0 | AK24: 0 | AL24: 0 | AM24: 0 | AN24: 0 | AO24: 0 | AP24: 0 | AQ24: 0 | AR24: 0 | AS24: 0
B25: Anlagen im Bau 2025 - Zugänge | C25: 2025 | D25: 0 | E25: =SUMPRODUCT(('C.5 Übrige Anlagen'!$M$6:$M$149='C. Kostendaten'!E$4)*('C.5 Übrige Anlagen'!$L$6:$L$149='C. Kostendaten'!$C25)*'C.5 Übrige Anlagen'!$N$6:$N$149) -> 0 | F25: =SUMPRODUCT(('C.5 Übrige Anlagen'!$M$6:$M$149='C. Kostendaten'!F$4)*('C.5 Übrige Anlagen'!$L$6:$L$149='C. Kostendaten'!$C25)*'C.5 Übrige Anlagen'!$N$6:$N$149) -> 0 | G25: =SUMPRODUCT(('C.5 Übrige Anlagen'!$M$6:$M$149='C. Kostendaten'!G$4)*('C.5 Übrige Anlagen'!$L$6:$L$149='C. Kostendaten'!$C25)*'C.5 Übrige Anlagen'!$N$6:$N$149) -> 0 | H25: =SUMPRODUCT(('C.5 Übrige Anlagen'!$M$6:$M$149='C. Kostendaten'!H$4)*('C.5 Übrige Anlagen'!$L$6:$L$149='C. Kostendaten'!$C25)*'C.5 Übrige Anlagen'!$N$6:$N$149) -> 0 | I25: =SUMPRODUCT(('C.5 Übrige Anlagen'!$M$6:$M$149='C. Kostendaten'!I$4)*('C.5 Übrige Anlagen'!$L$6:$L$149='C. Kostendaten'!$C25)*'C.5 Übrige Anlagen'!$N$6:$N$149) -> 0 | J25: =SUMPRODUCT(('C.5 Übrige Anlagen'!$M$6:$M$149='C. Kostendaten'!J$4)*('C.5 Übrige Anlagen'!$L$6:$L$149='C. Kostendaten'!$C25)*'C.5 Übrige Anlagen'!$N$6:$N$149) -> 0 | K25: =SUMPRODUCT(('C.5 Übrige Anlagen'!$M$6:$M$149='C. Kostendaten'!K$4)*('C.5 Übrige Anlagen'!$L$6:$L$149='C. Kostendaten'!$C25)*'C.5 Übrige Anlagen'!$N$6:$N$149) -> 0 | L25: =SUMPRODUCT(('C.5 Übrige Anlagen'!$M$6:$M$149='C. Kostendaten'!L$4)*('C.5 Übrige Anlagen'!$L$6:$L$149='C. Kostendaten'!$C25)*'C.5 Übrige Anlagen'!$N$6:$N$149) -> 0 | M25: =SUMPRODUCT(('C.5 Übrige Anlagen'!$M$6:$M$149='C. Kostendaten'!M$4)*('C.5 Übrige Anlagen'!$L$6:$L$149='C. Kostendaten'!$C25)*'C.5 Übrige Anlagen'!$N$6:$N$149) -> 0 | N25: =SUMPRODUCT(('C.5 Übrige Anlagen'!$M$6:$M$149='C. Kostendaten'!N$4)*('C.5 Übrige Anlagen'!$L$6:$L$149='C. Kostendaten'!$C25)*'C.5 Übrige Anlagen'!$N$6:$N$149) -> 0 | O25: =SUMPRODUCT(('C.5 Übrige Anlagen'!$M$6:$M$149='C. Kostendaten'!O$4)*('C.5 Übrige Anlagen'!$L$6:$L$149='C. Kostendaten'!$C25)*'C.5 Übrige Anlagen'!$N$6:$N$149) -> 0 | P25: =SUMPRODUCT(('C.5 Übrige Anlagen'!$M$6:$M$149='C. Kostendaten'!P$4)*('C.5 Übrige Anlagen'!$L$6:$L$149='C. Kostendaten'!$C25)*'C.5 Übrige Anlagen'!$N$6:$N$149) -> 0 | Q25: =SUMPRODUCT(('C.5 Übrige Anlagen'!$M$6:$M$149='C. Kostendaten'!Q$4)*('C.5 Übrige Anlagen'!$L$6:$L$149='C. Kostendaten'!$C25)*'C.5 Übrige Anlagen'!$N$6:$N$149) -> 0 | R25: =SUMPRODUCT(('C.1 Kostendaten Verdichtung'!$O$6:$O$149='C. Kostendaten'!R$4)*('C.1 Kostendaten Verdichtung'!$N$6:$N$149='C. Kostendaten'!$C25)*'C.1 Kostendaten Verdichtung'!$P$6:$P$149) -> 0 | S25: =SUMPRODUCT(('C.5 Übrige Anlagen'!$M$6:$M$149='C. Kostendaten'!S$4)*('C.5 Übrige Anlagen'!$L$6:$L$149='C. Kostendaten'!$C25)*'C.5 Übrige Anlagen'!$N$6:$N$149) -> 0 | T25: =SUMPRODUCT(('C.5 Übrige Anlagen'!$M$6:$M$149='C. Kostendaten'!T$4)*('C.5 Übrige Anlagen'!$L$6:$L$149='C. Kostendaten'!$C25)*'C.5 Übrige Anlagen'!$N$6:$N$149) -> 0 | U25: =SUMPRODUCT(('C.5 Übrige Anlagen'!$M$6:$M$149='C. Kostendaten'!U$4)*('C.5 Übrige Anlagen'!$L$6:$L$149='C. Kostendaten'!$C25)*'C.5 Übrige Anlagen'!$N$6:$N$149) -> 0 | V25: =SUMPRODUCT(('C.5 Übrige Anlagen'!$M$6:$M$149='C. Kostendaten'!V$4)*('C.5 Übrige Anlagen'!$L$6:$L$149='C. Kostendaten'!$C25)*'C.5 Übrige Anlagen'!$N$6:$N$149) -> 0 | W25: =SUMPRODUCT(('C.5 Übrige Anlagen'!$M$6:$M$149='C. Kostendaten'!W$4)*('C.5 Übrige Anlagen'!$L$6:$L$149='C. Kostendaten'!$C25)*'C.5 Übrige Anlagen'!$N$6:$N$149) -> 0 | X25: =SUMPRODUCT(('C.5 Übrige Anlagen'!$M$6:$M$149='C. Kostendaten'!X$4)*('C.5 Übrige Anlagen'!$L$6:$L$149='C. Kostendaten'!$C25)*'C.5 Übrige Anlagen'!$N$6:$N$149) -> 0 | Y25: =SUMPRODUCT(('C.5 Übrige Anlagen'!$M$6:$M$149='C. Kostendaten'!Y$4)*('C.5 Übrige Anlagen'!$L$6:$L$149='C. Kostendaten'!$C25)*'C.5 Übrige Anlagen'!$N$6:$N$149) -> 0 | Z25: =SUMPRODUCT(('C.2 Kostendaten Rohr PE'!$V$6:$V$149='C. Kostendaten'!Z$4)*('C.2 Kostendaten Rohr PE'!$U$6:$U$149='C. Kostendaten'!$C25)*'C.2 Kostendaten Rohr PE'!$W$6:$W$149) -> 0 | AA25: =SUMPRODUCT(('C.3 Kostendaten Rohr kath'!$V$6:$V$149='C. Kostendaten'!AA$4)*('C.3 Kostendaten Rohr kath'!$U$6:$U$149='C. Kostendaten'!$C25)*'C.3 Kostendaten Rohr kath'!$W$6:$W$149) -> 0 | AB25: =SUMPRODUCT(('C.5 Übrige Anlagen'!$M$6:$M$149='C. Kostendaten'!AB$4)*('C.5 Übrige Anlagen'!$L$6:$L$149='C. Kostendaten'!$C25)*'C.5 Übrige Anlagen'!$N$6:$N$149) -> 0 | AC25: =SUMPRODUCT(('C.5 Übrige Anlagen'!$M$6:$M$149='C. Kostendaten'!AC$4)*('C.5 Übrige Anlagen'!$L$6:$L$149='C. Kostendaten'!$C25)*'C.5 Übrige Anlagen'!$N$6:$N$149) -> 0 | AD25: =SUMPRODUCT(('C.5 Übrige Anlagen'!$M$6:$M$149='C. Kostendaten'!AD$4)*('C.5 Übrige Anlagen'!$L$6:$L$149='C. Kostendaten'!$C25)*'C.5 Übrige Anlagen'!$N$6:$N$149) -> 0 | AE25: =SUMPRODUCT(('C.5 Übrige Anlagen'!$M$6:$M$149='C. Kostendaten'!AE$4)*('C.5 Übrige Anlagen'!$L$6:$L$149='C. Kostendaten'!$C25)*'C.5 Übrige Anlagen'!$N$6:$N$149) -> 0 | AF25: =SUMPRODUCT(('C.5 Übrige Anlagen'!$M$6:$M$149='C. Kostendaten'!AF$4)*('C.5 Übrige Anlagen'!$L$6:$L$149='C. Kostendaten'!$C25)*'C.5 Übrige Anlagen'!$N$6:$N$149) -> 0 | AG25: =SUMPRODUCT(('C.5 Übrige Anlagen'!$M$6:$M$149='C. Kostendaten'!AG$4)*('C.5 Übrige Anlagen'!$L$6:$L$149='C. Kostendaten'!$C25)*'C.5 Übrige Anlagen'!$N$6:$N$149) -> 0 | AH25: =SUMPRODUCT(('C.5 Übrige Anlagen'!$M$6:$M$149='C. Kostendaten'!AH$4)*('C.5 Übrige Anlagen'!$L$6:$L$149='C. Kostendaten'!$C25)*'C.5 Übrige Anlagen'!$N$6:$N$149) -> 0 | AI25: =SUMPRODUCT(('C.5 Übrige Anlagen'!$M$6:$M$149='C. Kostendaten'!AI$4)*('C.5 Übrige Anlagen'!$L$6:$L$149='C. Kostendaten'!$C25)*'C.5 Übrige Anlagen'!$N$6:$N$149) -> 0 | AJ25: =SUMPRODUCT(('C.5 Übrige Anlagen'!$M$6:$M$149='C. Kostendaten'!AJ$4)*('C.5 Übrige Anlagen'!$L$6:$L$149='C. Kostendaten'!$C25)*'C.5 Übrige Anlagen'!$N$6:$N$149) -> 0 | AK25: =SUMPRODUCT(('C.5 Übrige Anlagen'!$M$6:$M$149='C. Kostendaten'!AK$4)*('C.5 Übrige Anlagen'!$L$6:$L$149='C. Kostendaten'!$C25)*'C.5 Übrige Anlagen'!$N$6:$N$149) -> 0 | AL25: =SUMPRODUCT(('C.5 Übrige Anlagen'!$M$6:$M$149='C. Kostendaten'!AL$4)*('C.5 Übrige Anlagen'!$L$6:$L$149='C. Kostendaten'!$C25)*'C.5 Übrige Anlagen'!$N$6:$N$149) -> 0 | AM25: =SUMPRODUCT(('C.4 Kostendaten Regelein.'!$O$6:$O$149='C. Kostendaten'!AM$4)*('C.4 Kostendaten Regelein.'!$N$6:$N$149='C. Kostendaten'!$C25)*'C.4 Kostendaten Regelein.'!$P$6:$P$149) -> 0 | AN25: =SUMPRODUCT(('C.5 Übrige Anlagen'!$M$6:$M$149='C. Kostendaten'!AN$4)*('C.5 Übrige Anlagen'!$L$6:$L$149='C. Kostendaten'!$C25)*'C.5 Übrige Anlagen'!$N$6:$N$149) -> 0 | AO25: =SUMPRODUCT(('C.5 Übrige Anlagen'!$M$6:$M$149='C. Kostendaten'!AO$4)*('C.5 Übrige Anlagen'!$L$6:$L$149='C. Kostendaten'!$C25)*'C.5 Übrige Anlagen'!$N$6:$N$149) -> 0 | AP25: =SUMPRODUCT(('C.5 Übrige Anlagen'!$M$6:$M$149='C. Kostendaten'!AP$4)*('C.5 Übrige Anlagen'!$L$6:$L$149='C. Kostendaten'!$C25)*'C.5 Übrige Anlagen'!$N$6:$N$149) -> 0 | AQ25: =SUMPRODUCT(('C.5 Übrige Anlagen'!$M$6:$M$149='C. Kostendaten'!AQ$4)*('C.5 Übrige Anlagen'!$L$6:$L$149='C. Kostendaten'!$C25)*'C.5 Übrige Anlagen'!$N$6:$N$149) -> 0 | AR25: =SUMPRODUCT(('C.5 Übrige Anlagen'!$M$6:$M$149='C. Kostendaten'!AR$4)*('C.5 Übrige Anlagen'!$L$6:$L$149='C. Kostendaten'!$C25)*'C.5 Übrige Anlagen'!$N$6:$N$149) -> 0 | AS25: =SUMPRODUCT(('C.5 Übrige Anlagen'!$M$6:$M$149='C. Kostendaten'!AS$4)*('C.5 Übrige Anlagen'!$L$6:$L$149='C. Kostendaten'!$C25)*'C.5 Übrige Anlagen'!$N$6:$N$149) -> 0
B26: Anlagen im Bau 2025 - Abgänge/Umbuchungen | C26: 2025 | D26: 0 | E26: =SUMPRODUCT(('C.5 Übrige Anlagen'!$M$6:$M$149='C. Kostendaten'!E$4)*('C.5 Übrige Anlagen'!$L$6:$L$149='C. Kostendaten'!$C26)*'C.5 Übrige Anlagen'!$O$6:$O$149) -> 0 | F26: =SUMPRODUCT(('C.5 Übrige Anlagen'!$M$6:$M$149='C. Kostendaten'!F$4)*('C.5 Übrige Anlagen'!$L$6:$L$149='C. Kostendaten'!$C26)*'C.5 Übrige Anlagen'!$O$6:$O$149) -> 0 | G26: =SUMPRODUCT(('C.5 Übrige Anlagen'!$M$6:$M$149='C. Kostendaten'!G$4)*('C.5 Übrige Anlagen'!$L$6:$L$149='C. Kostendaten'!$C26)*'C.5 Übrige Anlagen'!$O$6:$O$149) -> 0 | H26: =SUMPRODUCT(('C.5 Übrige Anlagen'!$M$6:$M$149='C. Kostendaten'!H$4)*('C.5 Übrige Anlagen'!$L$6:$L$149='C. Kostendaten'!$C26)*'C.5 Übrige Anlagen'!$O$6:$O$149) -> 0 | I26: =SUMPRODUCT(('C.5 Übrige Anlagen'!$M$6:$M$149='C. Kostendaten'!I$4)*('C.5 Übrige Anlagen'!$L$6:$L$149='C. Kostendaten'!$C26)*'C.5 Übrige Anlagen'!$O$6:$O$149) -> 0 | J26: =SUMPRODUCT(('C.5 Übrige Anlagen'!$M$6:$M$149='C. Kostendaten'!J$4)*('C.5 Übrige Anlagen'!$L$6:$L$149='C. Kostendaten'!$C26)*'C.5 Übrige Anlagen'!$O$6:$O$149) -> 0 | K26: =SUMPRODUCT(('C.5 Übrige Anlagen'!$M$6:$M$149='C. Kostendaten'!K$4)*('C.5 Übrige Anlagen'!$L$6:$L$149='C. Kostendaten'!$C26)*'C.5 Übrige Anlagen'!$O$6:$O$149) -> 0 | L26: =SUMPRODUCT(('C.5 Übrige Anlagen'!$M$6:$M$149='C. Kostendaten'!L$4)*('C.5 Übrige Anlagen'!$L$6:$L$149='C. Kostendaten'!$C26)*'C.5 Übrige Anlagen'!$O$6:$O$149) -> 0 | M26: =SUMPRODUCT(('C.5 Übrige Anlagen'!$M$6:$M$149='C. Kostendaten'!M$4)*('C.5 Übrige Anlagen'!$L$6:$L$149='C. Kostendaten'!$C26)*'C.5 Übrige Anlagen'!$O$6:$O$149) -> 0 | N26: =SUMPRODUCT(('C.5 Übrige Anlagen'!$M$6:$M$149='C. Kostendaten'!N$4)*('C.5 Übrige Anlagen'!$L$6:$L$149='C. Kostendaten'!$C26)*'C.5 Übrige Anlagen'!$O$6:$O$149) -> 0 | O26: =SUMPRODUCT(('C.5 Übrige Anlagen'!$M$6:$M$149='C. Kostendaten'!O$4)*('C.5 Übrige Anlagen'!$L$6:$L$149='C. Kostendaten'!$C26)*'C.5 Übrige Anlagen'!$O$6:$O$149) -> 0 | P26: =SUMPRODUCT(('C.5 Übrige Anlagen'!$M$6:$M$149='C. Kostendaten'!P$4)*('C.5 Übrige Anlagen'!$L$6:$L$149='C. Kostendaten'!$C26)*'C.5 Übrige Anlagen'!$O$6:$O$149) -> 0 | Q26: =SUMPRODUCT(('C.5 Übrige Anlagen'!$M$6:$M$149='C. Kostendaten'!Q$4)*('C.5 Übrige Anlagen'!$L$6:$L$149='C. Kostendaten'!$C26)*'C.5 Übrige Anlagen'!$O$6:$O$149) -> 0 | R26: =SUMPRODUCT(('C.1 Kostendaten Verdichtung'!$O$6:$O$149='C. Kostendaten'!R$4)*('C.1 Kostendaten Verdichtung'!$N$6:$N$149='C. Kostendaten'!$C26)*'C.1 Kostendaten Verdichtung'!$Q$6:$Q$149) -> 0 | S26: =SUMPRODUCT(('C.5 Übrige Anlagen'!$M$6:$M$149='C. Kostendaten'!S$4)*('C.5 Übrige Anlagen'!$L$6:$L$149='C. Kostendaten'!$C26)*'C.5 Übrige Anlagen'!$O$6:$O$149) -> 0 | T26: =SUMPRODUCT(('C.5 Übrige Anlagen'!$M$6:$M$149='C. Kostendaten'!T$4)*('C.5 Übrige Anlagen'!$L$6:$L$149='C. Kostendaten'!$C26)*'C.5 Übrige Anlagen'!$O$6:$O$149) -> 0 | U26: =SUMPRODUCT(('C.5 Übrige Anlagen'!$M$6:$M$149='C. Kostendaten'!U$4)*('C.5 Übrige Anlagen'!$L$6:$L$149='C. Kostendaten'!$C26)*'C.5 Übrige Anlagen'!$O$6:$O$149) -> 0 | V26: =SUMPRODUCT(('C.5 Übrige Anlagen'!$M$6:$M$149='C. Kostendaten'!V$4)*('C.5 Übrige Anlagen'!$L$6:$L$149='C. Kostendaten'!$C26)*'C.5 Übrige Anlagen'!$O$6:$O$149) -> 0 | W26: =SUMPRODUCT(('C.5 Übrige Anlagen'!$M$6:$M$149='C. Kostendaten'!W$4)*('C.5 Übrige Anlagen'!$L$6:$L$149='C. Kostendaten'!$C26)*'C.5 Übrige Anlagen'!$O$6:$O$149) -> 0 | X26: =SUMPRODUCT(('C.5 Übrige Anlagen'!$M$6:$M$149='C. Kostendaten'!X$4)*('C.5 Übrige Anlagen'!$L$6:$L$149='C. Kostendaten'!$C26)*'C.5 Übrige Anlagen'!$O$6:$O$149) -> 0 | Y26: =SUMPRODUCT(('C.5 Übrige Anlagen'!$M$6:$M$149='C. Kostendaten'!Y$4)*('C.5 Übrige Anlagen'!$L$6:$L$149='C. Kostendaten'!$C26)*'C.5 Übrige Anlagen'!$O$6:$O$149) -> 0 | Z26: =SUMPRODUCT(('C.2 Kostendaten Rohr PE'!$V$6:$V$149='C. Kostendaten'!Z$4)*('C.2 Kostendaten Rohr PE'!$U$6:$U$149='C. Kostendaten'!$C26)*'C.2 Kostendaten Rohr PE'!$X$6:$X$149) -> 0 | AA26: =SUMPRODUCT(('C.3 Kostendaten Rohr kath'!$V$6:$V$149='C. Kostendaten'!AA$4)*('C.3 Kostendaten Rohr kath'!$U$6:$U$149='C. Kostendaten'!$C26)*'C.3 Kostendaten Rohr kath'!$X$6:$X$149) -> 0 | AB26: =SUMPRODUCT(('C.5 Übrige Anlagen'!$M$6:$M$149='C. Kostendaten'!AB$4)*('C.5 Übrige Anlagen'!$L$6:$L$149='C. Kostendaten'!$C26)*'C.5 Übrige Anlagen'!$O$6:$O$149) -> 0 | AC26: =SUMPRODUCT(('C.5 Übrige Anlagen'!$M$6:$M$149='C. Kostendaten'!AC$4)*('C.5 Übrige Anlagen'!$L$6:$L$149='C. Kostendaten'!$C26)*'C.5 Übrige Anlagen'!$O$6:$O$149) -> 0 | AD26: =SUMPRODUCT(('C.5 Übrige Anlagen'!$M$6:$M$149='C. Kostendaten'!AD$4)*('C.5 Übrige Anlagen'!$L$6:$L$149='C. Kostendaten'!$C26)*'C.5 Übrige Anlagen'!$O$6:$O$149) -> 0 | AE26: =SUMPRODUCT(('C.5 Übrige Anlagen'!$M$6:$M$149='C. Kostendaten'!AE$4)*('C.5 Übrige Anlagen'!$L$6:$L$149='C. Kostendaten'!$C26)*'C.5 Übrige Anlagen'!$O$6:$O$149) -> 0 | AF26: =SUMPRODUCT(('C.5 Übrige Anlagen'!$M$6:$M$149='C. Kostendaten'!AF$4)*('C.5 Übrige Anlagen'!$L$6:$L$149='C. Kostendaten'!$C26)*'C.5 Übrige Anlagen'!$O$6:$O$149) -> 0 | AG26: =SUMPRODUCT(('C.5 Übrige Anlagen'!$M$6:$M$149='C. Kostendaten'!AG$4)*('C.5 Übrige Anlagen'!$L$6:$L$149='C. Kostendaten'!$C26)*'C.5 Übrige Anlagen'!$O$6:$O$149) -> 0 | AH26: =SUMPRODUCT(('C.5 Übrige Anlagen'!$M$6:$M$149='C. Kostendaten'!AH$4)*('C.5 Übrige Anlagen'!$L$6:$L$149='C. Kostendaten'!$C26)*'C.5 Übrige Anlagen'!$O$6:$O$149) -> 0 | AI26: =SUMPRODUCT(('C.5 Übrige Anlagen'!$M$6:$M$149='C. Kostendaten'!AI$4)*('C.5 Übrige Anlagen'!$L$6:$L$149='C. Kostendaten'!$C26)*'C.5 Übrige Anlagen'!$O$6:$O$149) -> 0 | AJ26: =SUMPRODUCT(('C.5 Übrige Anlagen'!$M$6:$M$149='C. Kostendaten'!AJ$4)*('C.5 Übrige Anlagen'!$L$6:$L$149='C. Kostendaten'!$C26)*'C.5 Übrige Anlagen'!$O$6:$O$149) -> 0 | AK26: =SUMPRODUCT(('C.5 Übrige Anlagen'!$M$6:$M$149='C. Kostendaten'!AK$4)*('C.5 Übrige Anlagen'!$L$6:$L$149='C. Kostendaten'!$C26)*'C.5 Übrige Anlagen'!$O$6:$O$149) -> 0 | AL26: =SUMPRODUCT(('C.5 Übrige Anlagen'!$M$6:$M$149='C. Kostendaten'!AL$4)*('C.5 Übrige Anlagen'!$L$6:$L$149='C. Kostendaten'!$C26)*'C.5 Übrige Anlagen'!$O$6:$O$149) -> 0 | AM26: =SUMPRODUCT(('C.4 Kostendaten Regelein.'!$O$6:$O$149='C. Kostendaten'!AM$4)*('C.4 Kostendaten Regelein.'!$N$6:$N$149='C. Kostendaten'!$C26)*'C.4 Kostendaten Regelein.'!$Q$6:$Q$149) -> 0 | AN26: =SUMPRODUCT(('C.5 Übrige Anlagen'!$M$6:$M$149='C. Kostendaten'!AN$4)*('C.5 Übrige Anlagen'!$L$6:$L$149='C. Kostendaten'!$C26)*'C.5 Übrige Anlagen'!$O$6:$O$149) -> 0 | AO26: =SUMPRODUCT(('C.5 Übrige Anlagen'!$M$6:$M$149='C. Kostendaten'!AO$4)*('C.5 Übrige Anlagen'!$L$6:$L$149='C. Kostendaten'!$C26)*'C.5 Übrige Anlagen'!$O$6:$O$149) -> 0 | AP26: =SUMPRODUCT(('C.5 Übrige Anlagen'!$M$6:$M$149='C. Kostendaten'!AP$4)*('C.5 Übrige Anlagen'!$L$6:$L$149='C. Kostendaten'!$C26)*'C.5 Übrige Anlagen'!$O$6:$O$149) -> 0 | AQ26: =SUMPRODUCT(('C.5 Übrige Anlagen'!$M$6:$M$149='C. Kostendaten'!AQ$4)*('C.5 Übrige Anlagen'!$L$6:$L$149='C. Kostendaten'!$C26)*'C.5 Übrige Anlagen'!$O$6:$O$149) -> 0 | AR26: =SUMPRODUCT(('C.5 Übrige Anlagen'!$M$6:$M$149='C. Kostendaten'!AR$4)*('C.5 Übrige Anlagen'!$L$6:$L$149='C. Kostendaten'!$C26)*'C.5 Übrige Anlagen'!$O$6:$O$149) -> 0 | AS26: =SUMPRODUCT(('C.5 Übrige Anlagen'!$M$6:$M$149='C. Kostendaten'!AS$4)*('C.5 Übrige Anlagen'!$L$6:$L$149='C. Kostendaten'!$C26)*'C.5 Übrige Anlagen'!$O$6:$O$149) -> 0
B27: Anlagen im Bau 2026 - Anfangsbestand | C27: 2026 | D27: 0 | E27: =E24+E25-E26 -> 0 | F27: 0 | G27: 0 | H27: 0 | I27: 0 | J27: 0 | K27: 0 | L27: 0 | M27: 0 | N27: 0 | O27: 0 | P27: 0 | Q27: 0 | R27: 0 | S27: 0 | T27: 0 | U27: 0 | V27: 0 | W27: 0 | X27: 0 | Y27: 0 | Z27: 0 | AA27: 0 | AB27: 0 | AC27: 0 | AD27: 0 | AE27: 0 | AF27: 0 | AG27: 0 | AH27: 0 | AI27: 0 | AJ27: 0 | AK27: 0 | AL27: 0 | AM27: 0 | AN27: 0 | AO27: 0 | AP27: 0 | AQ27: 0 | AR27: 0 | AS27: 0
B28: Anlagen im Bau 2026 - Zugänge | C28: 2026 | D28: 0 | E28: =SUMPRODUCT(('C.5 Übrige Anlagen'!$M$6:$M$149='C. Kostendaten'!E$4)*('C.5 Übrige Anlagen'!$L$6:$L$149='C. Kostendaten'!$C28)*'C.5 Übrige Anlagen'!$N$6:$N$149) -> 0 | F28: =SUMPRODUCT(('C.5 Übrige Anlagen'!$M$6:$M$149='C. Kostendaten'!F$4)*('C.5 Übrige Anlagen'!$L$6:$L$149='C. Kostendaten'!$C28)*'C.5 Übrige Anlagen'!$N$6:$N$149) -> 0 | G28: =SUMPRODUCT(('C.5 Übrige Anlagen'!$M$6:$M$149='C. Kostendaten'!G$4)*('C.5 Übrige Anlagen'!$L$6:$L$149='C. Kostendaten'!$C28)*'C.5 Übrige Anlagen'!$N$6:$N$149) -> 0 | H28: =SUMPRODUCT(('C.5 Übrige Anlagen'!$M$6:$M$149='C. Kostendaten'!H$4)*('C.5 Übrige Anlagen'!$L$6:$L$149='C. Kostendaten'!$C28)*'C.5 Übrige Anlagen'!$N$6:$N$149) -> 0 | I28: =SUMPRODUCT(('C.5 Übrige Anlagen'!$M$6:$M$149='C. Kostendaten'!I$4)*('C.5 Übrige Anlagen'!$L$6:$L$149='C. Kostendaten'!$C28)*'C.5 Übrige Anlagen'!$N$6:$N$149) -> 0 | J28: =SUMPRODUCT(('C.5 Übrige Anlagen'!$M$6:$M$149='C. Kostendaten'!J$4)*('C.5 Übrige Anlagen'!$L$6:$L$149='C. Kostendaten'!$C28)*'C.5 Übrige Anlagen'!$N$6:$N$149) -> 0 | K28: =SUMPRODUCT(('C.5 Übrige Anlagen'!$M$6:$M$149='C. Kostendaten'!K$4)*('C.5 Übrige Anlagen'!$L$6:$L$149='C. Kostendaten'!$C28)*'C.5 Übrige Anlagen'!$N$6:$N$149) -> 0 | L28: =SUMPRODUCT(('C.5 Übrige Anlagen'!$M$6:$M$149='C. Kostendaten'!L$4)*('C.5 Übrige Anlagen'!$L$6:$L$149='C. Kostendaten'!$C28)*'C.5 Übrige Anlagen'!$N$6:$N$149) -> 0 | M28: =SUMPRODUCT(('C.5 Übrige Anlagen'!$M$6:$M$149='C. Kostendaten'!M$4)*('C.5 Übrige Anlagen'!$L$6:$L$149='C. Kostendaten'!$C28)*'C.5 Übrige Anlagen'!$N$6:$N$149) -> 0 | N28: =SUMPRODUCT(('C.5 Übrige Anlagen'!$M$6:$M$149='C. Kostendaten'!N$4)*('C.5 Übrige Anlagen'!$L$6:$L$149='C. Kostendaten'!$C28)*'C.5 Übrige Anlagen'!$N$6:$N$149) -> 0 | O28: =SUMPRODUCT(('C.5 Übrige Anlagen'!$M$6:$M$149='C. Kostendaten'!O$4)*('C.5 Übrige Anlagen'!$L$6:$L$149='C. Kostendaten'!$C28)*'C.5 Übrige Anlagen'!$N$6:$N$149) -> 0 | P28: =SUMPRODUCT(('C.5 Übrige Anlagen'!$M$6:$M$149='C. Kostendaten'!P$4)*('C.5 Übrige Anlagen'!$L$6:$L$149='C. Kostendaten'!$C28)*'C.5 Übrige Anlagen'!$N$6:$N$149) -> 0 | Q28: =SUMPRODUCT(('C.5 Übrige Anlagen'!$M$6:$M$149='C. Kostendaten'!Q$4)*('C.5 Übrige Anlagen'!$L$6:$L$149='C. Kostendaten'!$C28)*'C.5 Übrige Anlagen'!$N$6:$N$149) -> 0 | R28: =SUMPRODUCT(('C.1 Kostendaten Verdichtung'!$O$6:$O$149='C. Kostendaten'!R$4)*('C.1 Kostendaten Verdichtung'!$N$6:$N$149='C. Kostendaten'!$C28)*'C.1 Kostendaten Verdichtung'!$P$6:$P$149) -> 0 | S28: =SUMPRODUCT(('C.5 Übrige Anlagen'!$M$6:$M$149='C. Kostendaten'!S$4)*('C.5 Übrige Anlagen'!$L$6:$L$149='C. Kostendaten'!$C28)*'C.5 Übrige Anlagen'!$N$6:$N$149) -> 0 | T28: =SUMPRODUCT(('C.5 Übrige Anlagen'!$M$6:$M$149='C. Kostendaten'!T$4)*('C.5 Übrige Anlagen'!$L$6:$L$149='C. Kostendaten'!$C28)*'C.5 Übrige Anlagen'!$N$6:$N$149) -> 0 | U28: =SUMPRODUCT(('C.5 Übrige Anlagen'!$M$6:$M$149='C. Kostendaten'!U$4)*('C.5 Übrige Anlagen'!$L$6:$L$149='C. Kostendaten'!$C28)*'C.5 Übrige Anlagen'!$N$6:$N$149) -> 0 | V28: =SUMPRODUCT(('C.5 Übrige Anlagen'!$M$6:$M$149='C. Kostendaten'!V$4)*('C.5 Übrige Anlagen'!$L$6:$L$149='C. Kostendaten'!$C28)*'C.5 Übrige Anlagen'!$N$6:$N$149) -> 0 | W28: =SUMPRODUCT(('C.5 Übrige Anlagen'!$M$6:$M$149='C. Kostendaten'!W$4)*('C.5 Übrige Anlagen'!$L$6:$L$149='C. Kostendaten'!$C28)*'C.5 Übrige Anlagen'!$N$6:$N$149) -> 0 | X28: =SUMPRODUCT(('C.5 Übrige Anlagen'!$M$6:$M$149='C. Kostendaten'!X$4)*('C.5 Übrige Anlagen'!$L$6:$L$149='C. Kostendaten'!$C28)*'C.5 Übrige Anlagen'!$N$6:$N$149) -> 0 | Y28: =SUMPRODUCT(('C.5 Übrige Anlagen'!$M$6:$M$149='C. Kostendaten'!Y$4)*('C.5 Übrige Anlagen'!$L$6:$L$149='C. Kostendaten'!$C28)*'C.5 Übrige Anlagen'!$N$6:$N$149) -> 0 | Z28: =SUMPRODUCT(('C.2 Kostendaten Rohr PE'!$V$6:$V$149='C. Kostendaten'!Z$4)*('C.2 Kostendaten Rohr PE'!$U$6:$U$149='C. Kostendaten'!$C28)*'C.2 Kostendaten Rohr PE'!$W$6:$W$149) -> 0 | AA28: =SUMPRODUCT(('C.3 Kostendaten Rohr kath'!$V$6:$V$149='C. Kostendaten'!AA$4)*('C.3 Kostendaten Rohr kath'!$U$6:$U$149='C. Kostendaten'!$C28)*'C.3 Kostendaten Rohr kath'!$W$6:$W$149) -> 0 | AB28: =SUMPRODUCT(('C.5 Übrige Anlagen'!$M$6:$M$149='C. Kostendaten'!AB$4)*('C.5 Übrige Anlagen'!$L$6:$L$149='C. Kostendaten'!$C28)*'C.5 Übrige Anlagen'!$N$6:$N$149) -> 0 | AC28: =SUMPRODUCT(('C.5 Übrige Anlagen'!$M$6:$M$149='C. Kostendaten'!AC$4)*('C.5 Übrige Anlagen'!$L$6:$L$149='C. Kostendaten'!$C28)*'C.5 Übrige Anlagen'!$N$6:$N$149) -> 0 | AD28: =SUMPRODUCT(('C.5 Übrige Anlagen'!$M$6:$M$149='C. Kostendaten'!AD$4)*('C.5 Übrige Anlagen'!$L$6:$L$149='C. Kostendaten'!$C28)*'C.5 Übrige Anlagen'!$N$6:$N$149) -> 0 | AE28: =SUMPRODUCT(('C.5 Übrige Anlagen'!$M$6:$M$149='C. Kostendaten'!AE$4)*('C.5 Übrige Anlagen'!$L$6:$L$149='C. Kostendaten'!$C28)*'C.5 Übrige Anlagen'!$N$6:$N$149) -> 0 | AF28: =SUMPRODUCT(('C.5 Übrige Anlagen'!$M$6:$M$149='C. Kostendaten'!AF$4)*('C.5 Übrige Anlagen'!$L$6:$L$149='C. Kostendaten'!$C28)*'C.5 Übrige Anlagen'!$N$6:$N$149) -> 0 | AG28: =SUMPRODUCT(('C.5 Übrige Anlagen'!$M$6:$M$149='C. Kostendaten'!AG$4)*('C.5 Übrige Anlagen'!$L$6:$L$149='C. Kostendaten'!$C28)*'C.5 Übrige Anlagen'!$N$6:$N$149) -> 0 | AH28: =SUMPRODUCT(('C.5 Übrige Anlagen'!$M$6:$M$149='C. Kostendaten'!AH$4)*('C.5 Übrige Anlagen'!$L$6:$L$149='C. Kostendaten'!$C28)*'C.5 Übrige Anlagen'!$N$6:$N$149) -> 0 | AI28: =SUMPRODUCT(('C.5 Übrige Anlagen'!$M$6:$M$149='C. Kostendaten'!AI$4)*('C.5 Übrige Anlagen'!$L$6:$L$149='C. Kostendaten'!$C28)*'C.5 Übrige Anlagen'!$N$6:$N$149) -> 0 | AJ28: =SUMPRODUCT(('C.5 Übrige Anlagen'!$M$6:$M$149='C. Kostendaten'!AJ$4)*('C.5 Übrige Anlagen'!$L$6:$L$149='C. Kostendaten'!$C28)*'C.5 Übrige Anlagen'!$N$6:$N$149) -> 0 | AK28: =SUMPRODUCT(('C.5 Übrige Anlagen'!$M$6:$M$149='C. Kostendaten'!AK$4)*('C.5 Übrige Anlagen'!$L$6:$L$149='C. Kostendaten'!$C28)*'C.5 Übrige Anlagen'!$N$6:$N$149) -> 0 | AL28: =SUMPRODUCT(('C.5 Übrige Anlagen'!$M$6:$M$149='C. Kostendaten'!AL$4)*('C.5 Übrige Anlagen'!$L$6:$L$149='C. Kostendaten'!$C28)*'C.5 Übrige Anlagen'!$N$6:$N$149) -> 0 | AM28: =SUMPRODUCT(('C.4 Kostendaten Regelein.'!$O$6:$O$149='C. Kostendaten'!AM$4)*('C.4 Kostendaten Regelein.'!$N$6:$N$149='C. Kostendaten'!$C28)*'C.4 Kostendaten Regelein.'!$P$6:$P$149) -> 0 | AN28: =SUMPRODUCT(('C.5 Übrige Anlagen'!$M$6:$M$149='C. Kostendaten'!AN$4)*('C.5 Übrige Anlagen'!$L$6:$L$149='C. Kostendaten'!$C28)*'C.5 Übrige Anlagen'!$N$6:$N$149) -> 0 | AO28: =SUMPRODUCT(('C.5 Übrige Anlagen'!$M$6:$M$149='C. Kostendaten'!AO$4)*('C.5 Übrige Anlagen'!$L$6:$L$149='C. Kostendaten'!$C28)*'C.5 Übrige Anlagen'!$N$6:$N$149) -> 0 | AP28: =SUMPRODUCT(('C.5 Übrige Anlagen'!$M$6:$M$149='C. Kostendaten'!AP$4)*('C.5 Übrige Anlagen'!$L$6:$L$149='C. Kostendaten'!$C28)*'C.5 Übrige Anlagen'!$N$6:$N$149) -> 0 | AQ28: =SUMPRODUCT(('C.5 Übrige Anlagen'!$M$6:$M$149='C. Kostendaten'!AQ$4)*('C.5 Übrige Anlagen'!$L$6:$L$149='C. Kostendaten'!$C28)*'C.5 Übrige Anlagen'!$N$6:$N$149) -> 0 | AR28: =SUMPRODUCT(('C.5 Übrige Anlagen'!$M$6:$M$149='C. Kostendaten'!AR$4)*('C.5 Übrige Anlagen'!$L$6:$L$149='C. Kostendaten'!$C28)*'C.5 Übrige Anlagen'!$N$6:$N$149) -> 0 | AS28: =SUMPRODUCT(('C.5 Übrige Anlagen'!$M$6:$M$149='C. Kostendaten'!AS$4)*('C.5 Übrige Anlagen'!$L$6:$L$149='C. Kostendaten'!$C28)*'C.5 Übrige Anlagen'!$N$6:$N$149) -> 0
B29: Anlagen im Bau 2026 - Abgänge/Umbuchungen | C29: 2026 | D29: 0 | E29: =SUMPRODUCT(('C.5 Übrige Anlagen'!$M$6:$M$149='C. Kostendaten'!E$4)*('C.5 Übrige Anlagen'!$L$6:$L$149='C. Kostendaten'!$C29)*'C.5 Übrige Anlagen'!$O$6:$O$149) -> 0 | F29: =SUMPRODUCT(('C.5 Übrige Anlagen'!$M$6:$M$149='C. Kostendaten'!F$4)*('C.5 Übrige Anlagen'!$L$6:$L$149='C. Kostendaten'!$C29)*'C.5 Übrige Anlagen'!$O$6:$O$149) -> 0 | G29: =SUMPRODUCT(('C.5 Übrige Anlagen'!$M$6:$M$149='C. Kostendaten'!G$4)*('C.5 Übrige Anlagen'!$L$6:$L$149='C. Kostendaten'!$C29)*'C.5 Übrige Anlagen'!$O$6:$O$149) -> 0 | H29: =SUMPRODUCT(('C.5 Übrige Anlagen'!$M$6:$M$149='C. Kostendaten'!H$4)*('C.5 Übrige Anlagen'!$L$6:$L$149='C. Kostendaten'!$C29)*'C.5 Übrige Anlagen'!$O$6:$O$149) -> 0 | I29: =SUMPRODUCT(('C.5 Übrige Anlagen'!$M$6:$M$149='C. Kostendaten'!I$4)*('C.5 Übrige Anlagen'!$L$6:$L$149='C. Kostendaten'!$C29)*'C.5 Übrige Anlagen'!$O$6:$O$149) -> 0 | J29: =SUMPRODUCT(('C.5 Übrige Anlagen'!$M$6:$M$149='C. Kostendaten'!J$4)*('C.5 Übrige Anlagen'!$L$6:$L$149='C. Kostendaten'!$C29)*'C.5 Übrige Anlagen'!$O$6:$O$149) -> 0 | K29: =SUMPRODUCT(('C.5 Übrige Anlagen'!$M$6:$M$149='C. Kostendaten'!K$4)*('C.5 Übrige Anlagen'!$L$6:$L$149='C. Kostendaten'!$C29)*'C.5 Übrige Anlagen'!$O$6:$O$149) -> 0 | L29: =SUMPRODUCT(('C.5 Übrige Anlagen'!$M$6:$M$149='C. Kostendaten'!L$4)*('C.5 Übrige Anlagen'!$L$6:$L$149='C. Kostendaten'!$C29)*'C.5 Übrige Anlagen'!$O$6:$O$149) -> 0 | M29: =SUMPRODUCT(('C.5 Übrige Anlagen'!$M$6:$M$149='C. Kostendaten'!M$4)*('C.5 Übrige Anlagen'!$L$6:$L$149='C. Kostendaten'!$C29)*'C.5 Übrige Anlagen'!$O$6:$O$149) -> 0 | N29: =SUMPRODUCT(('C.5 Übrige Anlagen'!$M$6:$M$149='C. Kostendaten'!N$4)*('C.5 Übrige Anlagen'!$L$6:$L$149='C. Kostendaten'!$C29)*'C.5 Übrige Anlagen'!$O$6:$O$149) -> 0 | O29: =SUMPRODUCT(('C.5 Übrige Anlagen'!$M$6:$M$149='C. Kostendaten'!O$4)*('C.5 Übrige Anlagen'!$L$6:$L$149='C. Kostendaten'!$C29)*'C.5 Übrige Anlagen'!$O$6:$O$149) -> 0 | P29: =SUMPRODUCT(('C.5 Übrige Anlagen'!$M$6:$M$149='C. Kostendaten'!P$4)*('C.5 Übrige Anlagen'!$L$6:$L$149='C. Kostendaten'!$C29)*'C.5 Übrige Anlagen'!$O$6:$O$149) -> 0 | Q29: =SUMPRODUCT(('C.5 Übrige Anlagen'!$M$6:$M$149='C. Kostendaten'!Q$4)*('C.5 Übrige Anlagen'!$L$6:$L$149='C. Kostendaten'!$C29)*'C.5 Übrige Anlagen'!$O$6:$O$149) -> 0 | R29: =SUMPRODUCT(('C.1 Kostendaten Verdichtung'!$O$6:$O$149='C. Kostendaten'!R$4)*('C.1 Kostendaten Verdichtung'!$N$6:$N$149='C. Kostendaten'!$C29)*'C.1 Kostendaten Verdichtung'!$Q$6:$Q$149) -> 0 | S29: =SUMPRODUCT(('C.5 Übrige Anlagen'!$M$6:$M$149='C. Kostendaten'!S$4)*('C.5 Übrige Anlagen'!$L$6:$L$149='C. Kostendaten'!$C29)*'C.5 Übrige Anlagen'!$O$6:$O$149) -> 0 | T29: =SUMPRODUCT(('C.5 Übrige Anlagen'!$M$6:$M$149='C. Kostendaten'!T$4)*('C.5 Übrige Anlagen'!$L$6:$L$149='C. Kostendaten'!$C29)*'C.5 Übrige Anlagen'!$O$6:$O$149) -> 0 | U29: =SUMPRODUCT(('C.5 Übrige Anlagen'!$M$6:$M$149='C. Kostendaten'!U$4)*('C.5 Übrige Anlagen'!$L$6:$L$149='C. Kostendaten'!$C29)*'C.5 Übrige Anlagen'!$O$6:$O$149) -> 0 | V29: =SUMPRODUCT(('C.5 Übrige Anlagen'!$M$6:$M$149='C. Kostendaten'!V$4)*('C.5 Übrige Anlagen'!$L$6:$L$149='C. Kostendaten'!$C29)*'C.5 Übrige Anlagen'!$O$6:$O$149) -> 0 | W29: =SUMPRODUCT(('C.5 Übrige Anlagen'!$M$6:$M$149='C. Kostendaten'!W$4)*('C.5 Übrige Anlagen'!$L$6:$L$149='C. Kostendaten'!$C29)*'C.5 Übrige Anlagen'!$O$6:$O$149) -> 0 | X29: =SUMPRODUCT(('C.5 Übrige Anlagen'!$M$6:$M$149='C. Kostendaten'!X$4)*('C.5 Übrige Anlagen'!$L$6:$L$149='C. Kostendaten'!$C29)*'C.5 Übrige Anlagen'!$O$6:$O$149) -> 0 | Y29: =SUMPRODUCT(('C.5 Übrige Anlagen'!$M$6:$M$149='C. Kostendaten'!Y$4)*('C.5 Übrige Anlagen'!$L$6:$L$149='C. Kostendaten'!$C29)*'C.5 Übrige Anlagen'!$O$6:$O$149) -> 0 | Z29: =SUMPRODUCT(('C.2 Kostendaten Rohr PE'!$V$6:$V$149='C. Kostendaten'!Z$4)*('C.2 Kostendaten Rohr PE'!$U$6:$U$149='C. Kostendaten'!$C29)*'C.2 Kostendaten Rohr PE'!$X$6:$X$149) -> 0 | AA29: =SUMPRODUCT(('C.3 Kostendaten Rohr kath'!$V$6:$V$149='C. Kostendaten'!AA$4)*('C.3 Kostendaten Rohr kath'!$U$6:$U$149='C. Kostendaten'!$C29)*'C.3 Kostendaten Rohr kath'!$X$6:$X$149) -> 0 | AB29: =SUMPRODUCT(('C.5 Übrige Anlagen'!$M$6:$M$149='C. Kostendaten'!AB$4)*('C.5 Übrige Anlagen'!$L$6:$L$149='C. Kostendaten'!$C29)*'C.5 Übrige Anlagen'!$O$6:$O$149) -> 0 | AC29: =SUMPRODUCT(('C.5 Übrige Anlagen'!$M$6:$M$149='C. Kostendaten'!AC$4)*('C.5 Übrige Anlagen'!$L$6:$L$149='C. Kostendaten'!$C29)*'C.5 Übrige Anlagen'!$O$6:$O$149) -> 0 | AD29: =SUMPRODUCT(('C.5 Übrige Anlagen'!$M$6:$M$149='C. Kostendaten'!AD$4)*('C.5 Übrige Anlagen'!$L$6:$L$149='C. Kostendaten'!$C29)*'C.5 Übrige Anlagen'!$O$6:$O$149) -> 0 | AE29: =SUMPRODUCT(('C.5 Übrige Anlagen'!$M$6:$M$149='C. Kostendaten'!AE$4)*('C.5 Übrige Anlagen'!$L$6:$L$149='C. Kostendaten'!$C29)*'C.5 Übrige Anlagen'!$O$6:$O$149) -> 0 | AF29: =SUMPRODUCT(('C.5 Übrige Anlagen'!$M$6:$M$149='C. Kostendaten'!AF$4)*('C.5 Übrige Anlagen'!$L$6:$L$149='C. Kostendaten'!$C29)*'C.5 Übrige Anlagen'!$O$6:$O$149) -> 0 | AG29: =SUMPRODUCT(('C.5 Übrige Anlagen'!$M$6:$M$149='C. Kostendaten'!AG$4)*('C.5 Übrige Anlagen'!$L$6:$L$149='C. Kostendaten'!$C29)*'C.5 Übrige Anlagen'!$O$6:$O$149) -> 0 | AH29: =SUMPRODUCT(('C.5 Übrige Anlagen'!$M$6:$M$149='C. Kostendaten'!AH$4)*('C.5 Übrige Anlagen'!$L$6:$L$149='C. Kostendaten'!$C29)*'C.5 Übrige Anlagen'!$O$6:$O$149) -> 0 | AI29: =SUMPRODUCT(('C.5 Übrige Anlagen'!$M$6:$M$149='C. Kostendaten'!AI$4)*('C.5 Übrige Anlagen'!$L$6:$L$149='C. Kostendaten'!$C29)*'C.5 Übrige Anlagen'!$O$6:$O$149) -> 0 | AJ29: =SUMPRODUCT(('C.5 Übrige Anlagen'!$M$6:$M$149='C. Kostendaten'!AJ$4)*('C.5 Übrige Anlagen'!$L$6:$L$149='C. Kostendaten'!$C29)*'C.5 Übrige Anlagen'!$O$6:$O$149) -> 0 | AK29: =SUMPRODUCT(('C.5 Übrige Anlagen'!$M$6:$M$149='C. Kostendaten'!AK$4)*('C.5 Übrige Anlagen'!$L$6:$L$149='C. Kostendaten'!$C29)*'C.5 Übrige Anlagen'!$O$6:$O$149) -> 0 | AL29: =SUMPRODUCT(('C.5 Übrige Anlagen'!$M$6:$M$149='C. Kostendaten'!AL$4)*('C.5 Übrige Anlagen'!$L$6:$L$149='C. Kostendaten'!$C29)*'C.5 Übrige Anlagen'!$O$6:$O$149) -> 0 | AM29: =SUMPRODUCT(('C.4 Kostendaten Regelein.'!$O$6:$O$149='C. Kostendaten'!AM$4)*('C.4 Kostendaten Regelein.'!$N$6:$N$149='C. Kostendaten'!$C29)*'C.4 Kostendaten Regelein.'!$Q$6:$Q$149) -> 0 | AN29: =SUMPRODUCT(('C.5 Übrige Anlagen'!$M$6:$M$149='C. Kostendaten'!AN$4)*('C.5 Übrige Anlagen'!$L$6:$L$149='C. Kostendaten'!$C29)*'C.5 Übrige Anlagen'!$O$6:$O$149) -> 0 | AO29: =SUMPRODUCT(('C.5 Übrige Anlagen'!$M$6:$M$149='C. Kostendaten'!AO$4)*('C.5 Übrige Anlagen'!$L$6:$L$149='C. Kostendaten'!$C29)*'C.5 Übrige Anlagen'!$O$6:$O$149) -> 0 | AP29: =SUMPRODUCT(('C.5 Übrige Anlagen'!$M$6:$M$149='C. Kostendaten'!AP$4)*('C.5 Übrige Anlagen'!$L$6:$L$149='C. Kostendaten'!$C29)*'C.5 Übrige Anlagen'!$O$6:$O$149) -> 0 | AQ29: =SUMPRODUCT(('C.5 Übrige Anlagen'!$M$6:$M$149='C. Kostendaten'!AQ$4)*('C.5 Übrige Anlagen'!$L$6:$L$149='C. Kostendaten'!$C29)*'C.5 Übrige Anlagen'!$O$6:$O$149) -> 0 | AR29: =SUMPRODUCT(('C.5 Übrige Anlagen'!$M$6:$M$149='C. Kostendaten'!AR$4)*('C.5 Übrige Anlagen'!$L$6:$L$149='C. Kostendaten'!$C29)*'C.5 Übrige Anlagen'!$O$6:$O$149) -> 0 | AS29: =SUMPRODUCT(('C.5 Übrige Anlagen'!$M$6:$M$149='C. Kostendaten'!AS$4)*('C.5 Übrige Anlagen'!$L$6:$L$149='C. Kostendaten'!$C29)*'C.5 Übrige Anlagen'!$O$6:$O$149) -> 0
B30: Anlagen im Bau 2027 - Anfangsbestand | C30: 2027 | D30: 0 | E30: =E27+E28-E29 -> 0 | F30: 0 | G30: 0 | H30: 0 | I30: 0 | J30: 0 | K30: 0 | L30: 0 | M30: 0 | N30: 0 | O30: 0 | P30: 0 | Q30: 0 | R30: 0 | S30: 0 | T30: 0 | U30: 0 | V30: 0 | W30: 0 | X30: 0 | Y30: 0 | Z30: 0 | AA30: 0 | AB30: 0 | AC30: 0 | AD30: 0 | AE30: 0 | AF30: 0 | AG30: 0 | AH30: 0 | AI30: 0 | AJ30: 0 | AK30: 0 | AL30: 0 | AM30: 0 | AN30: 0 | AO30: 0 | AP30: 0 | AQ30: 0 | AR30: 0 | AS30: 0
B31: Anlagen im Bau 2027 - Zugänge | C31: 2027 | D31: 0 | E31: =SUMPRODUCT(('C.5 Übrige Anlagen'!$M$6:$M$149='C. Kostendaten'!E$4)*('C.5 Übrige Anlagen'!$L$6:$L$149='C. Kostendaten'!$C31)*'C.5 Übrige Anlagen'!$N$6:$N$149) -> 0 | F31: =SUMPRODUCT(('C.5 Übrige Anlagen'!$M$6:$M$149='C. Kostendaten'!F$4)*('C.5 Übrige Anlagen'!$L$6:$L$149='C. Kostendaten'!$C31)*'C.5 Übrige Anlagen'!$N$6:$N$149) -> 0 | G31: =SUMPRODUCT(('C.5 Übrige Anlagen'!$M$6:$M$149='C. Kostendaten'!G$4)*('C.5 Übrige Anlagen'!$L$6:$L$149='C. Kostendaten'!$C31)*'C.5 Übrige Anlagen'!$N$6:$N$149) -> 0 | H31: =SUMPRODUCT(('C.5 Übrige Anlagen'!$M$6:$M$149='C. Kostendaten'!H$4)*('C.5 Übrige Anlagen'!$L$6:$L$149='C. Kostendaten'!$C31)*'C.5 Übrige Anlagen'!$N$6:$N$149) -> 0 | I31: =SUMPRODUCT(('C.5 Übrige Anlagen'!$M$6:$M$149='C. Kostendaten'!I$4)*('C.5 Übrige Anlagen'!$L$6:$L$149='C. Kostendaten'!$C31)*'C.5 Übrige Anlagen'!$N$6:$N$149) -> 0 | J31: =SUMPRODUCT(('C.5 Übrige Anlagen'!$M$6:$M$149='C. Kostendaten'!J$4)*('C.5 Übrige Anlagen'!$L$6:$L$149='C. Kostendaten'!$C31)*'C.5 Übrige Anlagen'!$N$6:$N$149) -> 0 | K31: =SUMPRODUCT(('C.5 Übrige Anlagen'!$M$6:$M$149='C. Kostendaten'!K$4)*('C.5 Übrige Anlagen'!$L$6:$L$149='C. Kostendaten'!$C31)*'C.5 Übrige Anlagen'!$N$6:$N$149) -> 0 | L31: =SUMPRODUCT(('C.5 Übrige Anlagen'!$M$6:$M$149='C. Kostendaten'!L$4)*('C.5 Übrige Anlagen'!$L$6:$L$149='C. Kostendaten'!$C31)*'C.5 Übrige Anlagen'!$N$6:$N$149) -> 0 | M31: =SUMPRODUCT(('C.5 Übrige Anlagen'!$M$6:$M$149='C. Kostendaten'!M$4)*('C.5 Übrige Anlagen'!$L$6:$L$149='C. Kostendaten'!$C31)*'C.5 Übrige Anlagen'!$N$6:$N$149) -> 0 | N31: =SUMPRODUCT(('C.5 Übrige Anlagen'!$M$6:$M$149='C. Kostendaten'!N$4)*('C.5 Übrige Anlagen'!$L$6:$L$149='C. Kostendaten'!$C31)*'C.5 Übrige Anlagen'!$N$6:$N$149) -> 0 | O31: =SUMPRODUCT(('C.5 Übrige Anlagen'!$M$6:$M$149='C. Kostendaten'!O$4)*('C.5 Übrige Anlagen'!$L$6:$L$149='C. Kostendaten'!$C31)*'C.5 Übrige Anlagen'!$N$6:$N$149) -> 0 | P31: =SUMPRODUCT(('C.5 Übrige Anlagen'!$M$6:$M$149='C. Kostendaten'!P$4)*('C.5 Übrige Anlagen'!$L$6:$L$149='C. Kostendaten'!$C31)*'C.5 Übrige Anlagen'!$N$6:$N$149) -> 0 | Q31: =SUMPRODUCT(('C.5 Übrige Anlagen'!$M$6:$M$149='C. Kostendaten'!Q$4)*('C.5 Übrige Anlagen'!$L$6:$L$149='C. Kostendaten'!$C31)*'C.5 Übrige Anlagen'!$N$6:$N$149) -> 0 | R31: =SUMPRODUCT(('C.1 Kostendaten Verdichtung'!$O$6:$O$149='C. Kostendaten'!R$4)*('C.1 Kostendaten Verdichtung'!$N$6:$N$149='C. Kostendaten'!$C31)*'C.1 Kostendaten Verdichtung'!$P$6:$P$149) -> 0 | S31: =SUMPRODUCT(('C.5 Übrige Anlagen'!$M$6:$M$149='C. Kostendaten'!S$4)*('C.5 Übrige Anlagen'!$L$6:$L$149='C. Kostendaten'!$C31)*'C.5 Übrige Anlagen'!$N$6:$N$149) -> 0 | T31: =SUMPRODUCT(('C.5 Übrige Anlagen'!$M$6:$M$149='C. Kostendaten'!T$4)*('C.5 Übrige Anlagen'!$L$6:$L$149='C. Kostendaten'!$C31)*'C.5 Übrige Anlagen'!$N$6:$N$149) -> 0 | U31: =SUMPRODUCT(('C.5 Übrige Anlagen'!$M$6:$M$149='C. Kostendaten'!U$4)*('C.5 Übrige Anlagen'!$L$6:$L$149='C. Kostendaten'!$C31)*'C.5 Übrige Anlagen'!$N$6:$N$149) -> 0 | V31: =SUMPRODUCT(('C.5 Übrige Anlagen'!$M$6:$M$149='C. Kostendaten'!V$4)*('C.5 Übrige Anlagen'!$L$6:$L$149='C. Kostendaten'!$C31)*'C.5 Übrige Anlagen'!$N$6:$N$149) -> 0 | W31: =SUMPRODUCT(('C.5 Übrige Anlagen'!$M$6:$M$149='C. Kostendaten'!W$4)*('C.5 Übrige Anlagen'!$L$6:$L$149='C. Kostendaten'!$C31)*'C.5 Übrige Anlagen'!$N$6:$N$149) -> 0 | X31: =SUMPRODUCT(('C.5 Übrige Anlagen'!$M$6:$M$149='C. Kostendaten'!X$4)*('C.5 Übrige Anlagen'!$L$6:$L$149='C. Kostendaten'!$C31)*'C.5 Übrige Anlagen'!$N$6:$N$149) -> 0 | Y31: =SUMPRODUCT(('C.5 Übrige Anlagen'!$M$6:$M$149='C. Kostendaten'!Y$4)*('C.5 Übrige Anlagen'!$L$6:$L$149='C. Kostendaten'!$C31)*'C.5 Übrige Anlagen'!$N$6:$N$149) -> 0 | Z31: =SUMPRODUCT(('C.2 Kostendaten Rohr PE'!$V$6:$V$149='C. Kostendaten'!Z$4)*('C.2 Kostendaten Rohr PE'!$U$6:$U$149='C. Kostendaten'!$C31)*'C.2 Kostendaten Rohr PE'!$W$6:$W$149) -> 0 | AA31: =SUMPRODUCT(('C.3 Kostendaten Rohr kath'!$V$6:$V$149='C. Kostendaten'!AA$4)*('C.3 Kostendaten Rohr kath'!$U$6:$U$149='C. Kostendaten'!$C31)*'C.3 Kostendaten Rohr kath'!$W$6:$W$149) -> 0 | AB31: =SUMPRODUCT(('C.5 Übrige Anlagen'!$M$6:$M$149='C. Kostendaten'!AB$4)*('C.5 Übrige Anlagen'!$L$6:$L$149='C. Kostendaten'!$C31)*'C.5 Übrige Anlagen'!$N$6:$N$149) -> 0 | AC31: =SUMPRODUCT(('C.5 Übrige Anlagen'!$M$6:$M$149='C. Kostendaten'!AC$4)*('C.5 Übrige Anlagen'!$L$6:$L$149='C. Kostendaten'!$C31)*'C.5 Übrige Anlagen'!$N$6:$N$149) -> 0 | AD31: =SUMPRODUCT(('C.5 Übrige Anlagen'!$M$6:$M$149='C. Kostendaten'!AD$4)*('C.5 Übrige Anlagen'!$L$6:$L$149='C. Kostendaten'!$C31)*'C.5 Übrige Anlagen'!$N$6:$N$149) -> 0 | AE31: =SUMPRODUCT(('C.5 Übrige Anlagen'!$M$6:$M$149='C. Kostendaten'!AE$4)*('C.5 Übrige Anlagen'!$L$6:$L$149='C. Kostendaten'!$C31)*'C.5 Übrige Anlagen'!$N$6:$N$149) -> 0 | AF31: =SUMPRODUCT(('C.5 Übrige Anlagen'!$M$6:$M$149='C. Kostendaten'!AF$4)*('C.5 Übrige Anlagen'!$L$6:$L$149='C. Kostendaten'!$C31)*'C.5 Übrige Anlagen'!$N$6:$N$149) -> 0 | AG31: =SUMPRODUCT(('C.5 Übrige Anlagen'!$M$6:$M$149='C. Kostendaten'!AG$4)*('C.5 Übrige Anlagen'!$L$6:$L$149='C. Kostendaten'!$C31)*'C.5 Übrige Anlagen'!$N$6:$N$149) -> 0 | AH31: =SUMPRODUCT(('C.5 Übrige Anlagen'!$M$6:$M$149='C. Kostendaten'!AH$4)*('C.5 Übrige Anlagen'!$L$6:$L$149='C. Kostendaten'!$C31)*'C.5 Übrige Anlagen'!$N$6:$N$149) -> 0 | AI31: =SUMPRODUCT(('C.5 Übrige Anlagen'!$M$6:$M$149='C. Kostendaten'!AI$4)*('C.5 Übrige Anlagen'!$L$6:$L$149='C. Kostendaten'!$C31)*'C.5 Übrige Anlagen'!$N$6:$N$149) -> 0 | AJ31: =SUMPRODUCT(('C.5 Übrige Anlagen'!$M$6:$M$149='C. Kostendaten'!AJ$4)*('C.5 Übrige Anlagen'!$L$6:$L$149='C. Kostendaten'!$C31)*'C.5 Übrige Anlagen'!$N$6:$N$149) -> 0 | AK31: =SUMPRODUCT(('C.5 Übrige Anlagen'!$M$6:$M$149='C. Kostendaten'!AK$4)*('C.5 Übrige Anlagen'!$L$6:$L$149='C. Kostendaten'!$C31)*'C.5 Übrige Anlagen'!$N$6:$N$149) -> 0 | AL31: =SUMPRODUCT(('C.5 Übrige Anlagen'!$M$6:$M$149='C. Kostendaten'!AL$4)*('C.5 Übrige Anlagen'!$L$6:$L$149='C. Kostendaten'!$C31)*'C.5 Übrige Anlagen'!$N$6:$N$149) -> 0 | AM31: =SUMPRODUCT(('C.4 Kostendaten Regelein.'!$O$6:$O$149='C. Kostendaten'!AM$4)*('C.4 Kostendaten Regelein.'!$N$6:$N$149='C. Kostendaten'!$C31)*'C.4 Kostendaten Regelein.'!$P$6:$P$149) -> 0 | AN31: =SUMPRODUCT(('C.5 Übrige Anlagen'!$M$6:$M$149='C. Kostendaten'!AN$4)*('C.5 Übrige Anlagen'!$L$6:$L$149='C. Kostendaten'!$C31)*'C.5 Übrige Anlagen'!$N$6:$N$149) -> 0 | AO31: =SUMPRODUCT(('C.5 Übrige Anlagen'!$M$6:$M$149='C. Kostendaten'!AO$4)*('C.5 Übrige Anlagen'!$L$6:$L$149='C. Kostendaten'!$C31)*'C.5 Übrige Anlagen'!$N$6:$N$149) -> 0 | AP31: =SUMPRODUCT(('C.5 Übrige Anlagen'!$M$6:$M$149='C. Kostendaten'!AP$4)*('C.5 Übrige Anlagen'!$L$6:$L$149='C. Kostendaten'!$C31)*'C.5 Übrige Anlagen'!$N$6:$N$149) -> 0 | AQ31: =SUMPRODUCT(('C.5 Übrige Anlagen'!$M$6:$M$149='C. Kostendaten'!AQ$4)*('C.5 Übrige Anlagen'!$L$6:$L$149='C. Kostendaten'!$C31)*'C.5 Übrige Anlagen'!$N$6:$N$149) -> 0 | AR31: =SUMPRODUCT(('C.5 Übrige Anlagen'!$M$6:$M$149='C. Kostendaten'!AR$4)*('C.5 Übrige Anlagen'!$L$6:$L$149='C. Kostendaten'!$C31)*'C.5 Übrige Anlagen'!$N$6:$N$149) -> 0 | AS31: =SUMPRODUCT(('C.5 Übrige Anlagen'!$M$6:$M$149='C. Kostendaten'!AS$4)*('C.5 Übrige Anlagen'!$L$6:$L$149='C. Kostendaten'!$C31)*'C.5 Übrige Anlagen'!$N$6:$N$149) -> 0
B32: Anlagen im Bau 2027 - Abgänge/Umbuchungen | C32: 2027 | D32: 0 | E32: =SUMPRODUCT(('C.5 Übrige Anlagen'!$M$6:$M$149='C. Kostendaten'!E$4)*('C.5 Übrige Anlagen'!$L$6:$L$149='C. Kostendaten'!$C32)*'C.5 Übrige Anlagen'!$O$6:$O$149) -> 0 | F32: =SUMPRODUCT(('C.5 Übrige Anlagen'!$M$6:$M$149='C. Kostendaten'!F$4)*('C.5 Übrige Anlagen'!$L$6:$L$149='C. Kostendaten'!$C32)*'C.5 Übrige Anlagen'!$O$6:$O$149) -> 0 | G32: =SUMPRODUCT(('C.5 Übrige Anlagen'!$M$6:$M$149='C. Kostendaten'!G$4)*('C.5 Übrige Anlagen'!$L$6:$L$149='C. Kostendaten'!$C32)*'C.5 Übrige Anlagen'!$O$6:$O$149) -> 0 | H32: =SUMPRODUCT(('C.5 Übrige Anlagen'!$M$6:$M$149='C. Kostendaten'!H$4)*('C.5 Übrige Anlagen'!$L$6:$L$149='C. Kostendaten'!$C32)*'C.5 Übrige Anlagen'!$O$6:$O$149) -> 0 | I32: =SUMPRODUCT(('C.5 Übrige Anlagen'!$M$6:$M$149='C. Kostendaten'!I$4)*('C.5 Übrige Anlagen'!$L$6:$L$149='C. Kostendaten'!$C32)*'C.5 Übrige Anlagen'!$O$6:$O$149) -> 0 | J32: =SUMPRODUCT(('C.5 Übrige Anlagen'!$M$6:$M$149='C. Kostendaten'!J$4)*('C.5 Übrige Anlagen'!$L$6:$L$149='C. Kostendaten'!$C32)*'C.5 Übrige Anlagen'!$O$6:$O$149) -> 0 | K32: =SUMPRODUCT(('C.5 Übrige Anlagen'!$M$6:$M$149='C. Kostendaten'!K$4)*('C.5 Übrige Anlagen'!$L$6:$L$149='C. Kostendaten'!$C32)*'C.5 Übrige Anlagen'!$O$6:$O$149) -> 0 | L32: =SUMPRODUCT(('C.5 Übrige Anlagen'!$M$6:$M$149='C. Kostendaten'!L$4)*('C.5 Übrige Anlagen'!$L$6:$L$149='C. Kostendaten'!$C32)*'C.5 Übrige Anlagen'!$O$6:$O$149) -> 0 | M32: =SUMPRODUCT(('C.5 Übrige Anlagen'!$M$6:$M$149='C. Kostendaten'!M$4)*('C.5 Übrige Anlagen'!$L$6:$L$149='C. Kostendaten'!$C32)*'C.5 Übrige Anlagen'!$O$6:$O$149) -> 0 | N32: =SUMPRODUCT(('C.5 Übrige Anlagen'!$M$6:$M$149='C. Kostendaten'!N$4)*('C.5 Übrige Anlagen'!$L$6:$L$149='C. Kostendaten'!$C32)*'C.5 Übrige Anlagen'!$O$6:$O$149) -> 0 | O32: =SUMPRODUCT(('C.5 Übrige Anlagen'!$M$6:$M$149='C. Kostendaten'!O$4)*('C.5 Übrige Anlagen'!$L$6:$L$149='C. Kostendaten'!$C32)*'C.5 Übrige Anlagen'!$O$6:$O$149) -> 0 | P32: =SUMPRODUCT(('C.5 Übrige Anlagen'!$M$6:$M$149='C. Kostendaten'!P$4)*('C.5 Übrige Anlagen'!$L$6:$L$149='C. Kostendaten'!$C32)*'C.5 Übrige Anlagen'!$O$6:$O$149) -> 0 | Q32: =SUMPRODUCT(('C.5 Übrige Anlagen'!$M$6:$M$149='C. Kostendaten'!Q$4)*('C.5 Übrige Anlagen'!$L$6:$L$149='C. Kostendaten'!$C32)*'C.5 Übrige Anlagen'!$O$6:$O$149) -> 0 | R32: =SUMPRODUCT(('C.1 Kostendaten Verdichtung'!$O$6:$O$149='C. Kostendaten'!R$4)*('C.1 Kostendaten Verdichtung'!$N$6:$N$149='C. Kostendaten'!$C32)*'C.1 Kostendaten Verdichtung'!$Q$6:$Q$149) -> 0 | S32: =SUMPRODUCT(('C.5 Übrige Anlagen'!$M$6:$M$149='C. Kostendaten'!S$4)*('C.5 Übrige Anlagen'!$L$6:$L$149='C. Kostendaten'!$C32)*'C.5 Übrige Anlagen'!$O$6:$O$149) -> 0 | T32: =SUMPRODUCT(('C.5 Übrige Anlagen'!$M$6:$M$149='C. Kostendaten'!T$4)*('C.5 Übrige Anlagen'!$L$6:$L$149='C. Kostendaten'!$C32)*'C.5 Übrige Anlagen'!$O$6:$O$149) -> 0 | U32: =SUMPRODUCT(('C.5 Übrige Anlagen'!$M$6:$M$149='C. Kostendaten'!U$4)*('C.5 Übrige Anlagen'!$L$6:$L$149='C. Kostendaten'!$C32)*'C.5 Übrige Anlagen'!$O$6:$O$149) -> 0 | V32: =SUMPRODUCT(('C.5 Übrige Anlagen'!$M$6:$M$149='C. Kostendaten'!V$4)*('C.5 Übrige Anlagen'!$L$6:$L$149='C. Kostendaten'!$C32)*'C.5 Übrige Anlagen'!$O$6:$O$149) -> 0 | W32: =SUMPRODUCT(('C.5 Übrige Anlagen'!$M$6:$M$149='C. Kostendaten'!W$4)*('C.5 Übrige Anlagen'!$L$6:$L$149='C. Kostendaten'!$C32)*'C.5 Übrige Anlagen'!$O$6:$O$149) -> 0 | X32: =SUMPRODUCT(('C.5 Übrige Anlagen'!$M$6:$M$149='C. Kostendaten'!X$4)*('C.5 Übrige Anlagen'!$L$6:$L$149='C. Kostendaten'!$C32)*'C.5 Übrige Anlagen'!$O$6:$O$149) -> 0 | Y32: =SUMPRODUCT(('C.5 Übrige Anlagen'!$M$6:$M$149='C. Kostendaten'!Y$4)*('C.5 Übrige Anlagen'!$L$6:$L$149='C. Kostendaten'!$C32)*'C.5 Übrige Anlagen'!$O$6:$O$149) -> 0 | Z32: =SUMPRODUCT(('C.2 Kostendaten Rohr PE'!$V$6:$V$149='C. Kostendaten'!Z$4)*('C.2 Kostendaten Rohr PE'!$U$6:$U$149='C. Kostendaten'!$C32)*'C.2 Kostendaten Rohr PE'!$X$6:$X$149) -> 0 | AA32: =SUMPRODUCT(('C.3 Kostendaten Rohr kath'!$V$6:$V$149='C. Kostendaten'!AA$4)*('C.3 Kostendaten Rohr kath'!$U$6:$U$149='C. Kostendaten'!$C32)*'C.3 Kostendaten Rohr kath'!$X$6:$X$149) -> 0 | AB32: =SUMPRODUCT(('C.5 Übrige Anlagen'!$M$6:$M$149='C. Kostendaten'!AB$4)*('C.5 Übrige Anlagen'!$L$6:$L$149='C. Kostendaten'!$C32)*'C.5 Übrige Anlagen'!$O$6:$O$149) -> 0 | AC32: =SUMPRODUCT(('C.5 Übrige Anlagen'!$M$6:$M$149='C. Kostendaten'!AC$4)*('C.5 Übrige Anlagen'!$L$6:$L$149='C. Kostendaten'!$C32)*'C.5 Übrige Anlagen'!$O$6:$O$149) -> 0 | AD32: =SUMPRODUCT(('C.5 Übrige Anlagen'!$M$6:$M$149='C. Kostendaten'!AD$4)*('C.5 Übrige Anlagen'!$L$6:$L$149='C. Kostendaten'!$C32)*'C.5 Übrige Anlagen'!$O$6:$O$149) -> 0 | AE32: =SUMPRODUCT(('C.5 Übrige Anlagen'!$M$6:$M$149='C. Kostendaten'!AE$4)*('C.5 Übrige Anlagen'!$L$6:$L$149='C. Kostendaten'!$C32)*'C.5 Übrige Anlagen'!$O$6:$O$149) -> 0 | AF32: =SUMPRODUCT(('C.5 Übrige Anlagen'!$M$6:$M$149='C. Kostendaten'!AF$4)*('C.5 Übrige Anlagen'!$L$6:$L$149='C. Kostendaten'!$C32)*'C.5 Übrige Anlagen'!$O$6:$O$149) -> 0 | AG32: =SUMPRODUCT(('C.5 Übrige Anlagen'!$M$6:$M$149='C. Kostendaten'!AG$4)*('C.5 Übrige Anlagen'!$L$6:$L$149='C. Kostendaten'!$C32)*'C.5 Übrige Anlagen'!$O$6:$O$149) -> 0 | AH32: =SUMPRODUCT(('C.5 Übrige Anlagen'!$M$6:$M$149='C. Kostendaten'!AH$4)*('C.5 Übrige Anlagen'!$L$6:$L$149='C. Kostendaten'!$C32)*'C.5 Übrige Anlagen'!$O$6:$O$149) -> 0 | AI32: =SUMPRODUCT(('C.5 Übrige Anlagen'!$M$6:$M$149='C. Kostendaten'!AI$4)*('C.5 Übrige Anlagen'!$L$6:$L$149='C. Kostendaten'!$C32)*'C.5 Übrige Anlagen'!$O$6:$O$149) -> 0 | AJ32: =SUMPRODUCT(('C.5 Übrige Anlagen'!$M$6:$M$149='C. Kostendaten'!AJ$4)*('C.5 Übrige Anlagen'!$L$6:$L$149='C. Kostendaten'!$C32)*'C.5 Übrige Anlagen'!$O$6:$O$149) -> 0 | AK32: =SUMPRODUCT(('C.5 Übrige Anlagen'!$M$6:$M$149='C. Kostendaten'!AK$4)*('C.5 Übrige Anlagen'!$L$6:$L$149='C. Kostendaten'!$C32)*'C.5 Übrige Anlagen'!$O$6:$O$149) -> 0 | AL32: =SUMPRODUCT(('C.5 Übrige Anlagen'!$M$6:$M$149='C. Kostendaten'!AL$4)*('C.5 Übrige Anlagen'!$L$6:$L$149='C. Kostendaten'!$C32)*'C.5 Übrige Anlagen'!$O$6:$O$149) -> 0 | AM32: =SUMPRODUCT(('C.4 Kostendaten Regelein.'!$O$6:$O$149='C. Kostendaten'!AM$4)*('C.4 Kostendaten Regelein.'!$N$6:$N$149='C. Kostendaten'!$C32)*'C.4 Kostendaten Regelein.'!$Q$6:$Q$149) -> 0 | AN32: =SUMPRODUCT(('C.5 Übrige Anlagen'!$M$6:$M$149='C. Kostendaten'!AN$4)*('C.5 Übrige Anlagen'!$L$6:$L$149='C. Kostendaten'!$C32)*'C.5 Übrige Anlagen'!$O$6:$O$149) -> 0 | AO32: =SUMPRODUCT(('C.5 Übrige Anlagen'!$M$6:$M$149='C. Kostendaten'!AO$4)*('C.5 Übrige Anlagen'!$L$6:$L$149='C. Kostendaten'!$C32)*'C.5 Übrige Anlagen'!$O$6:$O$149) -> 0 | AP32: =SUMPRODUCT(('C.5 Übrige Anlagen'!$M$6:$M$149='C. Kostendaten'!AP$4)*('C.5 Übrige Anlagen'!$L$6:$L$149='C. Kostendaten'!$C32)*'C.5 Übrige Anlagen'!$O$6:$O$149) -> 0 | AQ32: =SUMPRODUCT(('C.5 Übrige Anlagen'!$M$6:$M$149='C. Kostendaten'!AQ$4)*('C.5 Übrige Anlagen'!$L$6:$L$149='C. Kostendaten'!$C32)*'C.5 Übrige Anlagen'!$O$6:$O$149) -> 0 | AR32: =SUMPRODUCT(('C.5 Übrige Anlagen'!$M$6:$M$149='C. Kostendaten'!AR$4)*('C.5 Übrige Anlagen'!$L$6:$L$149='C. Kostendaten'!$C32)*'C.5 Übrige Anlagen'!$O$6:$O$149) -> 0 | AS32: =SUMPRODUCT(('C.5 Übrige Anlagen'!$M$6:$M$149='C. Kostendaten'!AS$4)*('C.5 Übrige Anlagen'!$L$6:$L$149='C. Kostendaten'!$C32)*'C.5 Übrige Anlagen'!$O$6:$O$149) -> 0
B33: Anlagen im Bau 2028 - Anfangsbestand | C33: 2028 | D33: 0 | E33: =E30+E31-E32 -> 0 | F33: 0 | G33: 0 | H33: 0 | I33: 0 | J33: 0 | K33: 0 | L33: 0 | M33: 0 | N33: 0 | O33: 0 | P33: 0 | Q33: 0 | R33: 0 | S33: 0 | T33: 0 | U33: 0 | V33: 0 | W33: 0 | X33: 0 | Y33: 0 | Z33: 0 | AA33: 0 | AB33: 0 | AC33: 0 | AD33: 0 | AE33: 0 | AF33: 0 | AG33: 0 | AH33: 0 | AI33: 0 | AJ33: 0 | AK33: 0 | AL33: 0 | AM33: 0 | AN33: 0 | AO33: 0 | AP33: 0 | AQ33: 0 | AR33: 0 | AS33: 0
B34: Anlagen im Bau 2028 - Zugänge | C34: 2028 | D34: 0 | E34: =SUMPRODUCT(('C.5 Übrige Anlagen'!$M$6:$M$149='C. Kostendaten'!E$4)*('C.5 Übrige Anlagen'!$L$6:$L$149='C. Kostendaten'!$C34)*'C.5 Übrige Anlagen'!$N$6:$N$149) -> 0 | F34: =SUMPRODUCT(('C.5 Übrige Anlagen'!$M$6:$M$149='C. Kostendaten'!F$4)*('C.5 Übrige Anlagen'!$L$6:$L$149='C. Kostendaten'!$C34)*'C.5 Übrige Anlagen'!$N$6:$N$149) -> 0 | G34: =SUMPRODUCT(('C.5 Übrige Anlagen'!$M$6:$M$149='C. Kostendaten'!G$4)*('C.5 Übrige Anlagen'!$L$6:$L$149='C. Kostendaten'!$C34)*'C.5 Übrige Anlagen'!$N$6:$N$149) -> 0 | H34: =SUMPRODUCT(('C.5 Übrige Anlagen'!$M$6:$M$149='C. Kostendaten'!H$4)*('C.5 Übrige Anlagen'!$L$6:$L$149='C. Kostendaten'!$C34)*'C.5 Übrige Anlagen'!$N$6:$N$149) -> 0 | I34: =SUMPRODUCT(('C.5 Übrige Anlagen'!$M$6:$M$149='C. Kostendaten'!I$4)*('C.5 Übrige Anlagen'!$L$6:$L$149='C. Kostendaten'!$C34)*'C.5 Übrige Anlagen'!$N$6:$N$149) -> 0 | J34: =SUMPRODUCT(('C.5 Übrige Anlagen'!$M$6:$M$149='C. Kostendaten'!J$4)*('C.5 Übrige Anlagen'!$L$6:$L$149='C. Kostendaten'!$C34)*'C.5 Übrige Anlagen'!$N$6:$N$149) -> 0 | K34: =SUMPRODUCT(('C.5 Übrige Anlagen'!$M$6:$M$149='C. Kostendaten'!K$4)*('C.5 Übrige Anlagen'!$L$6:$L$149='C. Kostendaten'!$C34)*'C.5 Übrige Anlagen'!$N$6:$N$149) -> 0 | L34: =SUMPRODUCT(('C.5 Übrige Anlagen'!$M$6:$M$149='C. Kostendaten'!L$4)*('C.5 Übrige Anlagen'!$L$6:$L$149='C. Kostendaten'!$C34)*'C.5 Übrige Anlagen'!$N$6:$N$149) -> 0 | M34: =SUMPRODUCT(('C.5 Übrige Anlagen'!$M$6:$M$149='C. Kostendaten'!M$4)*('C.5 Übrige Anlagen'!$L$6:$L$149='C. Kostendaten'!$C34)*'C.5 Übrige Anlagen'!$N$6:$N$149) -> 0 | N34: =SUMPRODUCT(('C.5 Übrige Anlagen'!$M$6:$M$149='C. Kostendaten'!N$4)*('C.5 Übrige Anlagen'!$L$6:$L$149='C. Kostendaten'!$C34)*'C.5 Übrige Anlagen'!$N$6:$N$149) -> 0 | O34: =SUMPRODUCT(('C.5 Übrige Anlagen'!$M$6:$M$149='C. Kostendaten'!O$4)*('C.5 Übrige Anlagen'!$L$6:$L$149='C. Kostendaten'!$C34)*'C.5 Übrige Anlagen'!$N$6:$N$149) -> 0 | P34: =SUMPRODUCT(('C.5 Übrige Anlagen'!$M$6:$M$149='C. Kostendaten'!P$4)*('C.5 Übrige Anlagen'!$L$6:$L$149='C. Kostendaten'!$C34)*'C.5 Übrige Anlagen'!$N$6:$N$149) -> 0 | Q34: =SUMPRODUCT(('C.5 Übrige Anlagen'!$M$6:$M$149='C. Kostendaten'!Q$4)*('C.5 Übrige Anlagen'!$L$6:$L$149='C. Kostendaten'!$C34)*'C.5 Übrige Anlagen'!$N$6:$N$149) -> 0 | R34: =SUMPRODUCT(('C.1 Kostendaten Verdichtung'!$O$6:$O$149='C. Kostendaten'!R$4)*('C.1 Kostendaten Verdichtung'!$N$6:$N$149='C. Kostendaten'!$C34)*'C.1 Kostendaten Verdichtung'!$P$6:$P$149) -> 0 | S34: =SUMPRODUCT(('C.5 Übrige Anlagen'!$M$6:$M$149='C. Kostendaten'!S$4)*('C.5 Übrige Anlagen'!$L$6:$L$149='C. Kostendaten'!$C34)*'C.5 Übrige Anlagen'!$N$6:$N$149) -> 0 | T34: =SUMPRODUCT(('C.5 Übrige Anlagen'!$M$6:$M$149='C. Kostendaten'!T$4)*('C.5 Übrige Anlagen'!$L$6:$L$149='C. Kostendaten'!$C34)*'C.5 Übrige Anlagen'!$N$6:$N$149) -> 0 | U34: =SUMPRODUCT(('C.5 Übrige Anlagen'!$M$6:$M$149='C. Kostendaten'!U$4)*('C.5 Übrige Anlagen'!$L$6:$L$149='C. Kostendaten'!$C34)*'C.5 Übrige Anlagen'!$N$6:$N$149) -> 0 | V34: =SUMPRODUCT(('C.5 Übrige Anlagen'!$M$6:$M$149='C. Kostendaten'!V$4)*('C.5 Übrige Anlagen'!$L$6:$L$149='C. Kostendaten'!$C34)*'C.5 Übrige Anlagen'!$N$6:$N$149) -> 0 | W34: =SUMPRODUCT(('C.5 Übrige Anlagen'!$M$6:$M$149='C. Kostendaten'!W$4)*('C.5 Übrige Anlagen'!$L$6:$L$149='C. Kostendaten'!$C34)*'C.5 Übrige Anlagen'!$N$6:$N$149) -> 0 | X34: =SUMPRODUCT(('C.5 Übrige Anlagen'!$M$6:$M$149='C. Kostendaten'!X$4)*('C.5 Übrige Anlagen'!$L$6:$L$149='C. Kostendaten'!$C34)*'C.5 Übrige Anlagen'!$N$6:$N$149) -> 0 | Y34: =SUMPRODUCT(('C.5 Übrige Anlagen'!$M$6:$M$149='C. Kostendaten'!Y$4)*('C.5 Übrige Anlagen'!$L$6:$L$149='C. Kostendaten'!$C34)*'C.5 Übrige Anlagen'!$N$6:$N$149) -> 0 | Z34: =SUMPRODUCT(('C.2 Kostendaten Rohr PE'!$V$6:$V$149='C. Kostendaten'!Z$4)*('C.2 Kostendaten Rohr PE'!$U$6:$U$149='C. Kostendaten'!$C34)*'C.2 Kostendaten Rohr PE'!$W$6:$W$149) -> 0 | AA34: =SUMPRODUCT(('C.3 Kostendaten Rohr kath'!$V$6:$V$149='C. Kostendaten'!AA$4)*('C.3 Kostendaten Rohr kath'!$U$6:$U$149='C. Kostendaten'!$C34)*'C.3 Kostendaten Rohr kath'!$W$6:$W$149) -> 0 | AB34: =SUMPRODUCT(('C.5 Übrige Anlagen'!$M$6:$M$149='C. Kostendaten'!AB$4)*('C.5 Übrige Anlagen'!$L$6:$L$149='C. Kostendaten'!$C34)*'C.5 Übrige Anlagen'!$N$6:$N$149) -> 0 | AC34: =SUMPRODUCT(('C.5 Übrige Anlagen'!$M$6:$M$149='C. Kostendaten'!AC$4)*('C.5 Übrige Anlagen'!$L$6:$L$149='C. Kostendaten'!$C34)*'C.5 Übrige Anlagen'!$N$6:$N$149) -> 0 | AD34: =SUMPRODUCT(('C.5 Übrige Anlagen'!$M$6:$M$149='C. Kostendaten'!AD$4)*('C.5 Übrige Anlagen'!$L$6:$L$149='C. Kostendaten'!$C34)*'C.5 Übrige Anlagen'!$N$6:$N$149) -> 0 | AE34: =SUMPRODUCT(('C.5 Übrige Anlagen'!$M$6:$M$149='C. Kostendaten'!AE$4)*('C.5 Übrige Anlagen'!$L$6:$L$149='C. Kostendaten'!$C34)*'C.5 Übrige Anlagen'!$N$6:$N$149) -> 0 | AF34: =SUMPRODUCT(('C.5 Übrige Anlagen'!$M$6:$M$149='C. Kostendaten'!AF$4)*('C.5 Übrige Anlagen'!$L$6:$L$149='C. Kostendaten'!$C34)*'C.5 Übrige Anlagen'!$N$6:$N$149) -> 0 | AG34: =SUMPRODUCT(('C.5 Übrige Anlagen'!$M$6:$M$149='C. Kostendaten'!AG$4)*('C.5 Übrige Anlagen'!$L$6:$L$149='C. Kostendaten'!$C34)*'C.5 Übrige Anlagen'!$N$6:$N$149) -> 0 | AH34: =SUMPRODUCT(('C.5 Übrige Anlagen'!$M$6:$M$149='C. Kostendaten'!AH$4)*('C.5 Übrige Anlagen'!$L$6:$L$149='C. Kostendaten'!$C34)*'C.5 Übrige Anlagen'!$N$6:$N$149) -> 0 | AI34: =SUMPRODUCT(('C.5 Übrige Anlagen'!$M$6:$M$149='C. Kostendaten'!AI$4)*('C.5 Übrige Anlagen'!$L$6:$L$149='C. Kostendaten'!$C34)*'C.5 Übrige Anlagen'!$N$6:$N$149) -> 0 | AJ34: =SUMPRODUCT(('C.5 Übrige Anlagen'!$M$6:$M$149='C. Kostendaten'!AJ$4)*('C.5 Übrige Anlagen'!$L$6:$L$149='C. Kostendaten'!$C34)*'C.5 Übrige Anlagen'!$N$6:$N$149) -> 0 | AK34: =SUMPRODUCT(('C.5 Übrige Anlagen'!$M$6:$M$149='C. Kostendaten'!AK$4)*('C.5 Übrige Anlagen'!$L$6:$L$149='C. Kostendaten'!$C34)*'C.5 Übrige Anlagen'!$N$6:$N$149) -> 0 | AL34: =SUMPRODUCT(('C.5 Übrige Anlagen'!$M$6:$M$149='C. Kostendaten'!AL$4)*('C.5 Übrige Anlagen'!$L$6:$L$149='C. Kostendaten'!$C34)*'C.5 Übrige Anlagen'!$N$6:$N$149) -> 0 | AM34: =SUMPRODUCT(('C.4 Kostendaten Regelein.'!$O$6:$O$149='C. Kostendaten'!AM$4)*('C.4 Kostendaten Regelein.'!$N$6:$N$149='C. Kostendaten'!$C34)*'C.4 Kostendaten Regelein.'!$P$6:$P$149) -> 0 | AN34: =SUMPRODUCT(('C.5 Übrige Anlagen'!$M$6:$M$149='C. Kostendaten'!AN$4)*('C.5 Übrige Anlagen'!$L$6:$L$149='C. Kostendaten'!$C34)*'C.5 Übrige Anlagen'!$N$6:$N$149) -> 0 | AO34: =SUMPRODUCT(('C.5 Übrige Anlagen'!$M$6:$M$149='C. Kostendaten'!AO$4)*('C.5 Übrige Anlagen'!$L$6:$L$149='C. Kostendaten'!$C34)*'C.5 Übrige Anlagen'!$N$6:$N$149) -> 0 | AP34: =SUMPRODUCT(('C.5 Übrige Anlagen'!$M$6:$M$149='C. Kostendaten'!AP$4)*('C.5 Übrige Anlagen'!$L$6:$L$149='C. Kostendaten'!$C34)*'C.5 Übrige Anlagen'!$N$6:$N$149) -> 0 | AQ34: =SUMPRODUCT(('C.5 Übrige Anlagen'!$M$6:$M$149='C. Kostendaten'!AQ$4)*('C.5 Übrige Anlagen'!$L$6:$L$149='C. Kostendaten'!$C34)*'C.5 Übrige Anlagen'!$N$6:$N$149) -> 0 | AR34: =SUMPRODUCT(('C.5 Übrige Anlagen'!$M$6:$M$149='C. Kostendaten'!AR$4)*('C.5 Übrige Anlagen'!$L$6:$L$149='C. Kostendaten'!$C34)*'C.5 Übrige Anlagen'!$N$6:$N$149) -> 0 | AS34: =SUMPRODUCT(('C.5 Übrige Anlagen'!$M$6:$M$149='C. Kostendaten'!AS$4)*('C.5 Übrige Anlagen'!$L$6:$L$149='C. Kostendaten'!$C34)*'C.5 Übrige Anlagen'!$N$6:$N$149) -> 0
